Workbook

Sheet HOME

Sheet Total Page
C6: ="BR: "&CONFIG!$C$9&" - "&CONFIG!$B$14 -> BR: 0289 - WHITTIER
D8: ALLOCATION | F8: SCHOOL REQUEST
C10: SCHOOL BASED FUNDS (SBB)
C11: GENERAL FUND
C13: Per Pupil Base Funding (Total of lines 14-18) | D13: 963264
A14: HIDE | B14: Base Dollars | C14: SBB Base Allocation | D14: 840420
A15: HIDE | B15: GF Instructional $ | C15: Instructional Supplies | D15: 48636
B16: GF Small School Factor $ | C16: Small School Factor | D16: 14231
B17: Guest Teacher Allocation | C17: Guest Teacher Allocation | D17: 15808
A18: HIDE | B18: Minimum Allocation - SS | C18: Student Service Minimum Allocation | D18: 44169
A20: HIDE | B20: Portion of Estimated Carry Forward | C20: Portion of Estimated Carry Forward | D20: 44217
B21: GF Free Lunch Supp Funds $ | C21: Free Lunch Supp Funds (At-Risk) | D21: 27860
B22: EA Current Year - Dollars | C22: Extra Allocations | D22: 0
B23: TI Current Year - Dollars | C23: Targeted Inverventions | D23: 0
B24: Total Resources to School - GT | C24: GT Allocation | D24: 16486
B25: GF MM $ | C25: Mild Moderate Allocation | D25: 98916
B26: GF ESL and ELA $ | C26: English Language Learners | D26: 65944
C27: GENERAL FUND | D27: 1216687 | F27: =SUM('Budget Input'!T364:Z364) -> 1216687 | G27: =D27-F27 -> 0
C30: MILL LEVY ALLOCATIONS
B32: 1998 Mill Levy Facilitator $ | C32: Student Literacy Development (Facilitator) | D32: 17388 | F32: =+D32/73280 -> 0.2372816594
B33: 1998 Mill Levy Technology $ | C33: Technology | D33: 6688
B34: 2003 Mill Levy Arts $ | C34: Art & Music | D34: 67841
B35: 2003 Mill Levy Text book $ | C35: Textbooks - Fund 16 | D35: 2710
B36: 1998 Mill Levy Library $ | C36: Library Books Centrally Managed Fund 12 | D36: 1824
C37: 1998 & 2003 MILL LEVY FUNDS | D37: 96451 | F37: =SUM('Budget Input'!AL364:'Budget Input'!AP364) -> 96451 | G37: =D37-F37 -> 0
C39: ECE & KINDER ALLOCATIONS
B41: Special ECE Tuition Base $ | C41: ECE - Tuition Based | D41: 44738
B42: CPP - ECE $ | C42: ECE - CPP | D42: 89574
B43: ECE Head start $ | C43: ECE - Head Start | D43: 47897
B44: Fd 20 ECE Head start $ | C44: ECE - Head Start - ARRA Funded | D44: 0
B45: Special Kinder Tuition Base $ | C45: Kinder - Tuition Based | D45: 45442
B46: GF Kinder $ | C46: Kinder - GF Program | D46: 0
B47: Special Kinder Advanced Tuition $ | C47: Kinder - Advanced | D47: 0
B48: 2003 Mill Levy Kinder $ | C48: Kinder - All Day (Formerly Mill Levy) | D48: 45442
B49: CPP - Kinder $ | C49: Kinder - CPP | D49: 0
C50: ECE & KINDER FUNDS | D50: 273093 | F50: ='Budget Input'!AF364+'Budget Input'!AA364 -> 273093 | G50: =D50-F50 -> 0
C52: STATE AND FEDERAL FUNDING SOURCES
B54: Title I Total $ | C54: Title I | D54: 105360
B55: Title I ARRA | C55: Title I - ARRA | D55: 33880
B56: Title II Facilitators $ | C56: Title II - Student Literacy Development (Facilitator) | D56: 9576 | F56: =+D56/76204 -> 0.1256626949
B57: ELA Para Dollars ELAPA and Title III | C57: ELPA Para Dollars | D57: 0
B58: Native Language Tutor Dollars | C58: Title III - Native Language Tutor | D58: 0
C59: STATE AND FEDERAL FUNDING SOURCES | D59: 148816 | F59: =SUM('Budget Input'!AQ364:'Budget Input'!AT364) -> 148816 | G59: =D59-F59 -> 0
C61: OTHER FUNDING SOURCES
B62: Class Size Relief | C62: Class Size Relief
B64: Mill Levy SIG | C64: Mill Levy SIG | D64: 0
B65: GF Share of Benefits $ | C65: TOTAL OTHER FUNDING SOURCES | D65: 0 | F65: =SUM(F62:F64) -> 0 | G65: =D65-F65 -> 0
C68: TOTAL SCHOOL BUDGET FUNDS | D68: 1735047 | F68: =+F65+F59+F50+F37+F27 -> 1735047 | G68: =D68-F68 -> 0
B70: 597 | C70: Special Education | D70: 181488
B71: 38 | C71: Paid Leaves | D71: 11552
B72: Teacher Substitutes | C72: Teacher Substitutes
B73: 801 | C73: Other School support programs (ELA, GT, Instructional Support, etc) | D73: 243504
B74: 915 | C74: Facilities/Capital Maintenance | D74: 278160
B75: 287 | C75: Transportation | D75: 87248
B76: 216 | C76: Technology | D76: 65664
B77: 39 | C77: Security | D77: 11856
B78: 295 | C78: Food Service | D78: 89680
B79: 286 | C79: Other | D79: 86944
C80: SCHOOL OPERATING FUNDS CENTRALLY BUDGETED | D80: 1056096
B82: 78 | C82: Technology Department | D82: 23712
B83: 32 | C83: Facilities Operations | D83: 9728
B84: 68 | C84: Personnel Services | D84: 20672
B85: 100 | C85: Curriculum & Instructional Support Teams | D85: 30400
B86: 61 | C86: Share of Comp increase and benefit costs | D86: 18544
B87: 161 | C87: Other (Planning, Legal, Financial Services, etc) | D87: 48944
C88: CENTRAL OPERATING FUNDS | D88: 152000
C90: GRAND TOTAL ALL FUNDS | D90: 2936519

Sheet School Staffing Tool
A6: hide | B6: ="BR: "&CONFIG!$C$9&" - "&CONFIG!$B$14 -> BR: 0289 - WHITTIER | F6: hide | G6: hide | H6: hide | I6: hide | J6: hide | K6: hide | L6: hide | M6: hide | N6: hide | O6: hide | P6: hide | Q6: hide | R6: hide | S6: hide | T6: hide | U6: hide | Y6: hide | AF6: hide | AM6: hide | AT6: hide | BS6: header
B8: FY 10-11 PROJECTED ENROLLMENT (ECE - 12 at a 1.0) | Z8: Required Purchases | AG8: Required Purchases | AN8: Required Purchases | AU8: Required Purchases | BB8: Required Purchases | BI8: Required Purchases | BS8: header
B9: ECE | C9: 33 | Y9: General Funds Art Match | Z9: General Funds Art Match | AC9: 0.5 | AD9: 32972 | AF9: Special ECE Tuition Base FTE | AG9: ECE - Tuition Based Regular Teacher | AJ9: 0.5 | AK9: 34009 | AM9: 2003 Mill Levy Arts FTE | AN9: Mill Levy Arts Teacher | AQ9: 1 | AR9: 65944 | BH9: Class Size Relief FTE | BI9: CSR | BL9: 0 | BS9: header
B10: K | C10: 38 | Y10: ESL Teacher FTE | Z10: ESL Teacher | AC10: 1 | AD10: 65944 | AF10: CPP - ECE FTE | AG10: ECE - CPP Regular Teacher | AJ10: 1 | AK10: 68018 | AM10: 1998 Mill Levy Facilitator FTE | BH10: Class Size Loan FTE | BI10: Loan | BL10: 0 | BS10: header
B11: 1-12 | C11: 233 | Y11: Day Min Nurse | Z11: Nurse Days Minimum | AC11: 1 | AD11: 14724 | AF11: ECE Head start FTE | AG11: ECE - Head Start Regular Teacher | AJ11: 0.5 | AK11: 34009 | BS11: header
B12: Total | C12: 304 | Y12: Day Min Mental Health | Z12: Mental Health Days Minimum | AC12: 2 | AD12: 29448 | AF12: Fd 20 ECE Head start FTE | AG12: ECE - Head Start - ARRA Funded | AJ12: 0 | AK12: 0 | BS12: header
Y13: GF Mild/Moderate FTE's | Z13: Mild Moderate Minimum FTE | AC13: 1.5 | AD13: 98916 | AF13: Special Kinder Tuition Base FTE | AG13: Kinder - Tuition Based Regular Teacher | AJ13: 0.5 | AK13: 34009 | BS13: header
B14: MM | C14: 27.2 | Y14: Reading Recovery Match | Z14: Reading Recovery Match (Budget Input Page) | AD14: 2000 | AF14: 2003 Mill Levy Kinder FTE | AG14: Kinder - All Day Regular Teacher (Formerly Mill Levy) | AJ14: 0.5 | AK14: 34009 | BS14: header
AF15: CPP - Kinder FTE | AG15: Kinder - CPP Regular Teacher | AJ15: 0 | AK15: 0 | BS15: header
AF16: Special Kinder Advanced Tuition FTE | AG16: Kinder - Advanced Regular Teacher | AJ16: 0 | AK16: 0 | BS16: header
AF17: Kinder - Base Match | AG17: Kinder - Base Match | AJ17: 1 | AK17: 65944 | BS17: header
AF18: Kinder - General Funds Advanced Match | AG18: Kinder - General Funds Advanced Match | AJ18: 0 | AK18: 0 | BS18: header
B19: G1 | C19: 40 | BS19: 0
B20: G2 | C20: 27 | BS20: 0
B21: G3 | C21: 23 | BS21: 0
B22: G4 | C22: 32 | BS22: 0
B23: G5 | C23: 23 | BS23: 0
B24: G6 | C24: 29 | BS24: 0
B25: G7 | C25: 29 | BS25: 0
B26: G8 | C26: 30 | BS26: 0
B27: G9 | C27: 0 | BS27: 0
B28: G10 | C28: 0 | BS28: 0
B29: G11 | C29: 0 | BS29: 0
B30: G12 | C30: 0 | BS30: 0
BS31: header
S32: FTE | T32: $$$ | U32: $$$ | Z32: General Fund | AG32: ECE and Kinder Allocations | AN32: Mill Levy 1998 & 2003 | AU32: Federal Funds Title I School Wide - Title I ARRA - Title II | BB32: SIG | BI32: Class Size Relief | BO32: FTE's Budgeted Centrally | BS32: header
A33: MAIN POSITION # | B33: FY 09-10 Position Number | C33: GRADE/COURSE | D33: MS / HS | E33: EMPLOYEE NAME | F33: POSITION DESCRIPTION | G33: Cayenta Account Number | H33: FUND | I33: LOC | J33: SRE | K33: PROG | L33: PROJ | M33: JC | N33: SAL OBJ | O33: BEN OBJ | P33: Position | Q33: Position Sub | R33: JOB CODE | S33: Employee - School Staffing - SEND FTE | T33: Employee - School Staffing - SEND SALARY $$$ | U33: Employee - School Staffing - SEND BENEFIT $$$ | W33: Class Size | Z33: Type | AA33: SALARY COST | AB33: BENEFIT COST | AC33: FTE | AD33: TOTAL COST | AG33: Type | AH33: SALARY COST | AI33: BENEFIT COST | AJ33: FTE | AK33: TOTAL COST | AN33: Type | AO33: SALARY COST | AP33: BENEFIT COST | AQ33: FTE | AR33: TOTAL COST | AU33: Type | AV33: SALARY COST | AW33: BENEFIT COST | AX33: FTE | AY33: TOTAL COST | BB33: Type | BC33: SALARY COST | BD33: BENEFIT COST | BE33: FTE | BF33: TOTAL COST | BI33: Type | BJ33: SALARY COST | BK33: BENEFIT COST | BL33: FTE | BM33: COST | BO33: Type | BP33: FTE | BR33: BARGAINING UNIT | BS33: header | BU33: KEY | BV33: FTE | BW33: SAL | BX33: BEN
A34: =LEFT(B34,18) -> 0289 FY 10-11 P001 | B34: =CONCATENATE(CONFIG!$C$9," ",CONFIG!$B$6," ",P34,Q34) -> 0289 FY 10-11 P001A | C34: ECE | F34: =IF(AC34<>"",Z34,IF(AJ34<>"",AG34,IF(AQ34<>"",AN34,IF(AX34<>"",AU34,IF(BE34<>"",BB34,IF(BL34<>"",BI34,IF(BP34<>"",BO34,""))))))) -> ECE - Tuition Based Regular Teacher | G34: =IF(F34="","",IF(OR(D34="",D34="HS"),VLOOKUP(F34,'JOB CODE LOOKUP'!$S$5:$V$183,3,FALSE),VLOOKUP(F34,'JOB CODE LOOKUP'!$S$5:$V$183,4,FALSE))) -> 29289110040191320110 | H34: =LEFT(G34,2) -> 29 | I34: =MID(G34,3,3) -> 289 | J34: =MID(G34,6,2) -> 11 | K34: =MID(G34,8,4) -> 0040 | L34: =MID(G34,12,4) -> 1913 | M34: =MID(G34,16,1) -> 2 | N34: =RIGHT(G34,4) -> 0110 | O34: =IF(N34="","","0200") -> 0200 | P34: P001 | Q34: A | R34: =IF(F34="","",(IF(CONFIG!$B$12="ES",VLOOKUP(F34,'JOB CODE LOOKUP'!$A$2:$E$222,2,FALSE),IF(CONFIG!$B$12="K-8",VLOOKUP(F34,'JOB CODE LOOKUP'!$G$2:$K$222,2,FALSE),IF(CONFIG!$B$12="MS",VLOOKUP(F34,'JOB CODE LOOKUP'!$M$2:$Q$222,2,FALSE),IF(CONFIG!$B$12="HS",VLOOKUP(F34,'JOB CODE LOOKUP'!$S$2:$W$222,2,FALSE),IF(AND(CONFIG!$B$12="6-12",D34="HS"),VLOOKUP(F34,'JOB CODE LOOKUP'!$S$2:$W$222,2,FALSE),IF(AND(CONFIG!$B$12="6-12",D34="MS"),VLOOKUP(F34,'JOB CODE LOOKUP'!$M$2:$Q$222,2,FALSE),"")))))))) -> 3302 | S34: =IF(CONFIG!$B$2<>"Y","",(IF(OR(G34="",LEFT(H34,1)="2",H34="19",L34="1911"),"",dbs(BV34,CONFIG!$B$4&":Employee - School Staffing",CONFIG!$B$5,CONFIG!$B$6,CONFIG!$C$9,H34,I34,J34,K34,L34,M34,N34,P34,Q34,R34,"FTE")))) ->  | T34: =IF(CONFIG!$B$2<>"Y","",(IF(OR(G34="",LEFT(H34,1)="2",H34="19",L34="1911"),"",dbs(BW34,CONFIG!$B$4&":Employee - School Staffing",CONFIG!$B$5,CONFIG!$B$6,CONFIG!$C$9,H34,I34,J34,K34,L34,M34,N34,P34,Q34,R34,"AMOUNT")))) ->  | U34: =IF(CONFIG!$B$2<>"Y","",(IF(OR(G34="",LEFT(H34,1)="2",H34="19",L34="1911"),"",dbs(BX34,CONFIG!$B$4&":Employee - School Staffing",CONFIG!$B$5,CONFIG!$B$6,CONFIG!$C$9,H34,I34,J34,K34,L34,M34,O34,P34,Q34,R34,"AMOUNT")))) ->  | W34: 16 | Y34: =RIGHT(P34,2) -> 01 | AA34: =(IF(AC34="",0,IF(CONFIG!$B$22<>"Autonomous",ROUND(VLOOKUP(R34,'AVERAGE SALARY LOOKUP'!$A$3:$E$10004,4,FALSE)*AC34,0),IF(E34="",0,IF(E34="vacancy",ROUND(VLOOKUP(R34,'AVERAGE SALARY LOOKUP'!$A$3:$E$10004,4,FALSE)*AC34,0),ROUND(VLOOKUP(E34,'FULL TIME ACTUAL RATES'!$B$2:$G$4927,6,FALSE)*AC34,0)))))) -> 0 | AB34: =IF($H34="",0,IF(CONFIG!$B$22="Autonomous",ROUND((AA34*VLOOKUP($H34,CONFIG!$A$46:$C$55,3,FALSE)+(VLOOKUP($BR34,CONFIG!$A$33:$C$43,3,FALSE)*AC34)),0),(ROUND('School Staffing Tool'!AC34*VLOOKUP(R34,'AVERAGE SALARY LOOKUP'!$A$3:$F$700,6,FALSE),0)))) -> 0 | AD34: =IF(AA34="",0,ROUND(AA34+AB34,0)) -> 0 | AG34: ECE - Tuition Based Regular Teacher | AH34: =(IF(AJ34="",0,ROUND(VLOOKUP(R34,'AVERAGE SALARY LOOKUP'!$A$3:$E$10004,4,FALSE)*AJ34,0))) -> 25884 | AI34: =IF($H34="",0,IF(CONFIG!$B$22="Autonomous",ROUND((AH34*VLOOKUP($H34,CONFIG!$A$46:$C$55,3,FALSE)+(VLOOKUP($BR34,CONFIG!$A$33:$C$43,3,FALSE)*AJ34)),0),IF(H34="10",(ROUND(AJ34*VLOOKUP($R34,'AVERAGE SALARY LOOKUP'!$A$3:$I$700,6,FALSE),0)),(ROUND(AJ34*VLOOKUP($R34,'AVERAGE SALARY LOOKUP'!$A$3:$I$700,9,FALSE),0))))) -> 8125 | AJ34: 0.5 | AK34: =IF(AH34="",0,ROUND(AH34+AI34,0)) -> 34009 | AO34: =(IF(AQ34="",0,IF(CONFIG!$B$22<>"Autonomous",ROUND(VLOOKUP(R34,'AVERAGE SALARY LOOKUP'!$A$3:$E$10004,4,FALSE)*AQ34,0),IF(E34="",0,IF(E34="vacancy",ROUND(VLOOKUP(R34,'AVERAGE SALARY LOOKUP'!$A$3:$E$10004,4,FALSE)*AQ34,0),ROUND(VLOOKUP(E34,'FULL TIME ACTUAL RATES'!$B$2:$G$4927,6,FALSE)*AQ34,0)))))) -> 0 | AP34: =IF($H34="",0,IF(CONFIG!$B$22="Autonomous",ROUND((AO34*VLOOKUP($H34,CONFIG!$A$46:$C$55,3,FALSE)+(VLOOKUP($BR34,CONFIG!$A$33:$C$43,3,FALSE)*AQ34)),0),(ROUND('School Staffing Tool'!AQ34*VLOOKUP($R34,'AVERAGE SALARY LOOKUP'!$A$3:$F$700,6,FALSE),0)))) -> 0 | AR34: =IF(AO34="",0,ROUND(AO34+AP34,0)) -> 0 | AV34: =(IF(AX34="",0,ROUND(VLOOKUP(R34,'AVERAGE SALARY LOOKUP'!$A$3:$E$10004,4,FALSE)*AX34,0))) -> 0 | AW34: =IF($H34="",0,IF(CONFIG!$B$22="Autonomous",ROUND((AV34*VLOOKUP($H34,CONFIG!$A$46:$C$55,3,FALSE)+(VLOOKUP($BR34,CONFIG!$A$33:$C$43,3,FALSE)*AX34)),0),(ROUND('School Staffing Tool'!AX34*VLOOKUP($R34,'AVERAGE SALARY LOOKUP'!$A$3:$H$700,8,FALSE),0)))) -> 0 | AY34: =IF(AV34="",0,ROUND(AV34+AW34,0)) -> 0 | BC34: 0 | BD34: =IF(BB34="",0,ROUND((BC34*VLOOKUP($H34,CONFIG!$A$46:$C$55,3,FALSE)+(VLOOKUP($BR34,CONFIG!$A$33:$C$43,3,FALSE)*BE34)),0)) -> 0 | BF34: =IF(BC34="",0,ROUND(BC34+BD34,0)) -> 0 | BJ34: =(IF(BL34="",0,ROUND(VLOOKUP($R$34,'AVERAGE SALARY LOOKUP'!$A$3:$E$10004,4,FALSE)*BL34,0))) -> 0 | BK34: =IF($H34="",0,IF(CONFIG!$B$22="Autonomous",ROUND((BJ34*VLOOKUP($H34,CONFIG!$A$46:$C$55,3,FALSE)+(VLOOKUP($BR34,CONFIG!$A$33:$C$43,3,FALSE)*BL34)),0),(ROUND('School Staffing Tool'!BL34*VLOOKUP($R34,'AVERAGE SALARY LOOKUP'!$A$3:$F$700,6,FALSE),0)))) -> 0 | BM34: =IF(BJ34="","",BJ34+BK34) -> 0 | BQ34: =BP34+BL34+BE34+AQ34+AX34+AJ34+AC34 -> 0.5 | BR34: =IF(R34="","",VLOOKUP(R34,'AVERAGE SALARY LOOKUP'!$A$3:$C$686,3,FALSE)) -> DCTA | BS34: =BQ34 -> 0.5 | BU34: =IF(F34="","",(CONCATENATE(H34,",",L34,",",M34))) -> 29,1913,2 | BV34: =BP34+BL34+BE34+AQ34+AX34+AJ34+AC34 -> 0.5 | BW34: =IF(F34="",0,AA34+AH34+AO34+AV34+BC34+BJ34) -> 25884 | BX34: =IF(F34="",0,AB34+AI34+AP34+AW34+BD34+BK34) -> 8125
A35: =LEFT(B35,18) -> 0289 FY 10-11 P001 | B35: =CONCATENATE(CONFIG!$C$9," ",CONFIG!$B$6," ",P35,Q35) -> 0289 FY 10-11 P001B | F35: ECE - CPP Regular Teacher | G35: =IF(F35="","",IF(OR(D35="",D35="HS"),VLOOKUP(F35,'JOB CODE LOOKUP'!$S$5:$V$183,3,FALSE),VLOOKUP(F35,'JOB CODE LOOKUP'!$S$5:$V$183,4,FALSE))) -> 19289110040314120110 | H35: =LEFT(G35,2) -> 19 | I35: =MID(G35,3,3) -> 289 | J35: =MID(G35,6,2) -> 11 | K35: =MID(G35,8,4) -> 0040 | L35: =MID(G35,12,4) -> 3141 | M35: =MID(G35,16,1) -> 2 | N35: =RIGHT(G35,4) -> 0110 | O35: =IF(N35="","","0200") -> 0200 | P35: P001 | Q35: B | R35: =IF(F35="","",(IF(CONFIG!$B$12="ES",VLOOKUP(F35,'JOB CODE LOOKUP'!$A$2:$E$222,2,FALSE),IF(CONFIG!$B$12="K-8",VLOOKUP(F35,'JOB CODE LOOKUP'!$G$2:$K$222,2,FALSE),IF(CONFIG!$B$12="MS",VLOOKUP(F35,'JOB CODE LOOKUP'!$M$2:$Q$222,2,FALSE),IF(CONFIG!$B$12="HS",VLOOKUP(F35,'JOB CODE LOOKUP'!$S$2:$W$222,2,FALSE),IF(AND(CONFIG!$B$12="6-12",D35="HS"),VLOOKUP(F35,'JOB CODE LOOKUP'!$S$2:$W$222,2,FALSE),IF(AND(CONFIG!$B$12="6-12",D35="MS"),VLOOKUP(F35,'JOB CODE LOOKUP'!$M$2:$Q$222,2,FALSE),"")))))))) -> 3302 | S35: =IF(CONFIG!$B$2<>"Y","",(IF(OR(G35="",LEFT(H35,1)="2",H35="19",L35="1911"),"",dbs(BV35,CONFIG!$B$4&":Employee - School Staffing",CONFIG!$B$5,CONFIG!$B$6,CONFIG!$C$9,H35,I35,J35,K35,L35,M35,N35,P35,Q35,R35,"FTE")))) ->  | T35: =IF(CONFIG!$B$2<>"Y","",(IF(OR(G35="",LEFT(H35,1)="2",H35="19",L35="1911"),"",dbs(BW35,CONFIG!$B$4&":Employee - School Staffing",CONFIG!$B$5,CONFIG!$B$6,CONFIG!$C$9,H35,I35,J35,K35,L35,M35,N35,P35,Q35,R35,"AMOUNT")))) ->  | U35: =IF(CONFIG!$B$2<>"Y","",(IF(OR(G35="",LEFT(H35,1)="2",H35="19",L35="1911"),"",dbs(BX35,CONFIG!$B$4&":Employee - School Staffing",CONFIG!$B$5,CONFIG!$B$6,CONFIG!$C$9,H35,I35,J35,K35,L35,M35,O35,P35,Q35,R35,"AMOUNT")))) ->  | Y35: 01 | AA35: =(IF(AC35="",0,IF(CONFIG!$B$22<>"Autonomous",ROUND(VLOOKUP(R35,'AVERAGE SALARY LOOKUP'!$A$3:$E$10004,4,FALSE)*AC35,0),IF(E35="",0,IF(E35="vacancy",ROUND(VLOOKUP(R35,'AVERAGE SALARY LOOKUP'!$A$3:$E$10004,4,FALSE)*AC35,0),ROUND(VLOOKUP(E35,'FULL TIME ACTUAL RATES'!$B$2:$G$4927,6,FALSE)*AC35,0)))))) -> 0 | AB35: =IF($H35="",0,IF(CONFIG!$B$22="Autonomous",ROUND((AA35*VLOOKUP($H35,CONFIG!$A$46:$C$55,3,FALSE)+(VLOOKUP($BR35,CONFIG!$A$33:$C$43,3,FALSE)*AC35)),0),(ROUND('School Staffing Tool'!AC35*VLOOKUP(R35,'AVERAGE SALARY LOOKUP'!$A$3:$F$700,6,FALSE),0)))) -> 0 | AD35: =IF(AA35="",0,ROUND(AA35+AB35,0)) -> 0 | AG35: ECE - CPP Regular Teacher | AH35: =(IF(AJ35="",0,ROUND(VLOOKUP(R35,'AVERAGE SALARY LOOKUP'!$A$3:$E$10004,4,FALSE)*AJ35,0))) -> 25884 | AI35: =IF($H35="",0,IF(CONFIG!$B$22="Autonomous",ROUND((AH35*VLOOKUP($H35,CONFIG!$A$46:$C$55,3,FALSE)+(VLOOKUP($BR35,CONFIG!$A$33:$C$43,3,FALSE)*AJ35)),0),IF(H35="10",(ROUND(AJ35*VLOOKUP($R35,'AVERAGE SALARY LOOKUP'!$A$3:$I$700,6,FALSE),0)),(ROUND(AJ35*VLOOKUP($R35,'AVERAGE SALARY LOOKUP'!$A$3:$I$700,9,FALSE),0))))) -> 8125 | AJ35: 0.5 | AK35: =IF(AH35="",0,ROUND(AH35+AI35,0)) -> 34009 | AO35: =(IF(AQ35="",0,IF(CONFIG!$B$22<>"Autonomous",ROUND(VLOOKUP(R35,'AVERAGE SALARY LOOKUP'!$A$3:$E$10004,4,FALSE)*AQ35,0),IF(E35="",0,IF(E35="vacancy",ROUND(VLOOKUP(R35,'AVERAGE SALARY LOOKUP'!$A$3:$E$10004,4,FALSE)*AQ35,0),ROUND(VLOOKUP(E35,'FULL TIME ACTUAL RATES'!$B$2:$G$4927,6,FALSE)*AQ35,0)))))) -> 0 | AP35: =IF($H35="",0,IF(CONFIG!$B$22="Autonomous",ROUND((AO35*VLOOKUP($H35,CONFIG!$A$46:$C$55,3,FALSE)+(VLOOKUP($BR35,CONFIG!$A$33:$C$43,3,FALSE)*AQ35)),0),(ROUND('School Staffing Tool'!AQ35*VLOOKUP($R35,'AVERAGE SALARY LOOKUP'!$A$3:$F$700,6,FALSE),0)))) -> 0 | AR35: =IF(AO35="",0,ROUND(AO35+AP35,0)) -> 0 | AV35: =(IF(AX35="",0,ROUND(VLOOKUP(R35,'AVERAGE SALARY LOOKUP'!$A$3:$E$10004,4,FALSE)*AX35,0))) -> 0 | AW35: =IF($H35="",0,IF(CONFIG!$B$22="Autonomous",ROUND((AV35*VLOOKUP($H35,CONFIG!$A$46:$C$55,3,FALSE)+(VLOOKUP($BR35,CONFIG!$A$33:$C$43,3,FALSE)*AX35)),0),(ROUND('School Staffing Tool'!AX35*VLOOKUP($R35,'AVERAGE SALARY LOOKUP'!$A$3:$H$700,8,FALSE),0)))) -> 0 | AY35: =IF(AV35="",0,ROUND(AV35+AW35,0)) -> 0 | BC35: 0 | BD35: =IF(BB35="",0,ROUND((BC35*VLOOKUP($H35,CONFIG!$A$46:$C$55,3,FALSE)+(VLOOKUP($BR35,CONFIG!$A$33:$C$43,3,FALSE)*BE35)),0)) -> 0 | BF35: =IF(BC35="",0,ROUND(BC35+BD35,0)) -> 0 | BJ35: =(IF(BL35="",0,ROUND(VLOOKUP($R$34,'AVERAGE SALARY LOOKUP'!$A$3:$E$10004,4,FALSE)*BL35,0))) -> 0 | BK35: =IF($H35="",0,IF(CONFIG!$B$22="Autonomous",ROUND((BJ35*VLOOKUP($H35,CONFIG!$A$46:$C$55,3,FALSE)+(VLOOKUP($BR35,CONFIG!$A$33:$C$43,3,FALSE)*BL35)),0),(ROUND('School Staffing Tool'!BL35*VLOOKUP($R35,'AVERAGE SALARY LOOKUP'!$A$3:$F$700,6,FALSE),0)))) -> 0 | BM35: =IF(BJ35="","",BJ35+BK35) -> 0 | BQ35: =BP35+BL35+BE35+AQ35+AX35+AJ35+AC35 -> 0.5 | BR35: =IF(R35="","",VLOOKUP(R35,'AVERAGE SALARY LOOKUP'!$A$3:$C$686,3,FALSE)) -> DCTA | BS35: =BQ35 -> 0.5 | BU35: =IF(F35="","",(CONCATENATE(H35,",",L35,",",M35))) -> 19,3141,2 | BV35: 0.5 | BW35: 25884 | BX35: 8125
A36: 0289 FY 10-11 P001 | B36: =CONCATENATE(CONFIG!$C$9," ",CONFIG!$B$6," ",P36,Q36) -> 0289 FY 10-11 P001C | G36: =IF(F36="","",IF(OR(D36="",D36="HS"),VLOOKUP(F36,'JOB CODE LOOKUP'!$S$5:$V$183,3,FALSE),VLOOKUP(F36,'JOB CODE LOOKUP'!$S$5:$V$183,4,FALSE))) ->  | P36: P001 | Q36: C | R36: =IF(F36="","",(IF(CONFIG!$B$12="ES",VLOOKUP(F36,'JOB CODE LOOKUP'!$A$2:$E$222,2,FALSE),IF(CONFIG!$B$12="K-8",VLOOKUP(F36,'JOB CODE LOOKUP'!$G$2:$K$222,2,FALSE),IF(CONFIG!$B$12="MS",VLOOKUP(F36,'JOB CODE LOOKUP'!$M$2:$Q$222,2,FALSE),IF(CONFIG!$B$12="HS",VLOOKUP(F36,'JOB CODE LOOKUP'!$S$2:$W$222,2,FALSE),IF(AND(CONFIG!$B$12="6-12",D36="HS"),VLOOKUP(F36,'JOB CODE LOOKUP'!$S$2:$W$222,2,FALSE),IF(AND(CONFIG!$B$12="6-12",D36="MS"),VLOOKUP(F36,'JOB CODE LOOKUP'!$M$2:$Q$222,2,FALSE),"")))))))) ->  | S36: =IF(CONFIG!$B$2<>"Y","",(IF(OR(G36="",LEFT(H36,1)="2",H36="19",L36="1911"),"",dbs(BV36,CONFIG!$B$4&":Employee - School Staffing",CONFIG!$B$5,CONFIG!$B$6,CONFIG!$C$9,H36,I36,J36,K36,L36,M36,N36,P36,Q36,R36,"FTE")))) ->  | T36: =IF(CONFIG!$B$2<>"Y","",(IF(OR(G36="",LEFT(H36,1)="2",H36="19",L36="1911"),"",dbs(BW36,CONFIG!$B$4&":Employee - School Staffing",CONFIG!$B$5,CONFIG!$B$6,CONFIG!$C$9,H36,I36,J36,K36,L36,M36,N36,P36,Q36,R36,"AMOUNT")))) ->  | U36: =IF(CONFIG!$B$2<>"Y","",(IF(OR(G36="",LEFT(H36,1)="2",H36="19",L36="1911"),"",dbs(BX36,CONFIG!$B$4&":Employee - School Staffing",CONFIG!$B$5,CONFIG!$B$6,CONFIG!$C$9,H36,I36,J36,K36,L36,M36,O36,P36,Q36,R36,"AMOUNT")))) ->  | Y36: 01 | AA36: =(IF(AC36="",0,IF(CONFIG!$B$22<>"Autonomous",ROUND(VLOOKUP(R36,'AVERAGE SALARY LOOKUP'!$A$3:$E$10004,4,FALSE)*AC36,0),IF(E36="",0,IF(E36="vacancy",ROUND(VLOOKUP(R36,'AVERAGE SALARY LOOKUP'!$A$3:$E$10004,4,FALSE)*AC36,0),ROUND(VLOOKUP(E36,'FULL TIME ACTUAL RATES'!$B$2:$G$4927,6,FALSE)*AC36,0)))))) -> 0 | AB36: =IF($H36="",0,IF(CONFIG!$B$22="Autonomous",ROUND((AA36*VLOOKUP($H36,CONFIG!$A$46:$C$55,3,FALSE)+(VLOOKUP($BR36,CONFIG!$A$33:$C$43,3,FALSE)*AC36)),0),(ROUND('School Staffing Tool'!AC36*VLOOKUP(R36,'AVERAGE SALARY LOOKUP'!$A$3:$F$700,6,FALSE),0)))) -> 0 | AD36: 0 | AH36: =(IF(AJ36="",0,ROUND(VLOOKUP(R36,'AVERAGE SALARY LOOKUP'!$A$3:$E$10004,4,FALSE)*AJ36,0))) -> 0 | AI36: =IF($H36="",0,IF(CONFIG!$B$22="Autonomous",ROUND((AH36*VLOOKUP($H36,CONFIG!$A$46:$C$55,3,FALSE)+(VLOOKUP($BR36,CONFIG!$A$33:$C$43,3,FALSE)*AJ36)),0),IF(H36="10",(ROUND(AJ36*VLOOKUP($R36,'AVERAGE SALARY LOOKUP'!$A$3:$I$700,6,FALSE),0)),(ROUND(AJ36*VLOOKUP($R36,'AVERAGE SALARY LOOKUP'!$A$3:$I$700,9,FALSE),0))))) -> 0 | AK36: 0 | AO36: =(IF(AQ36="",0,IF(CONFIG!$B$22<>"Autonomous",ROUND(VLOOKUP(R36,'AVERAGE SALARY LOOKUP'!$A$3:$E$10004,4,FALSE)*AQ36,0),IF(E36="",0,IF(E36="vacancy",ROUND(VLOOKUP(R36,'AVERAGE SALARY LOOKUP'!$A$3:$E$10004,4,FALSE)*AQ36,0),ROUND(VLOOKUP(E36,'FULL TIME ACTUAL RATES'!$B$2:$G$4927,6,FALSE)*AQ36,0)))))) -> 0 | AP36: =IF($H36="",0,IF(CONFIG!$B$22="Autonomous",ROUND((AO36*VLOOKUP($H36,CONFIG!$A$46:$C$55,3,FALSE)+(VLOOKUP($BR36,CONFIG!$A$33:$C$43,3,FALSE)*AQ36)),0),(ROUND('School Staffing Tool'!AQ36*VLOOKUP($R36,'AVERAGE SALARY LOOKUP'!$A$3:$F$700,6,FALSE),0)))) -> 0 | AR36: 0 | AV36: =(IF(AX36="",0,ROUND(VLOOKUP(R36,'AVERAGE SALARY LOOKUP'!$A$3:$E$10004,4,FALSE)*AX36,0))) -> 0 | AW36: =IF($H36="",0,IF(CONFIG!$B$22="Autonomous",ROUND((AV36*VLOOKUP($H36,CONFIG!$A$46:$C$55,3,FALSE)+(VLOOKUP($BR36,CONFIG!$A$33:$C$43,3,FALSE)*AX36)),0),(ROUND('School Staffing Tool'!AX36*VLOOKUP($R36,'AVERAGE SALARY LOOKUP'!$A$3:$H$700,8,FALSE),0)))) -> 0 | AY36: 0 | BC36: 0 | BD36: =IF(BB36="",0,ROUND((BC36*VLOOKUP($H36,CONFIG!$A$46:$C$55,3,FALSE)+(VLOOKUP($BR36,CONFIG!$A$33:$C$43,3,FALSE)*BE36)),0)) -> 0 | BF36: 0 | BJ36: =(IF(BL36="",0,ROUND(VLOOKUP($R$34,'AVERAGE SALARY LOOKUP'!$A$3:$E$10004,4,FALSE)*BL36,0))) -> 0 | BK36: =IF($H36="",0,IF(CONFIG!$B$22="Autonomous",ROUND((BJ36*VLOOKUP($H36,CONFIG!$A$46:$C$55,3,FALSE)+(VLOOKUP($BR36,CONFIG!$A$33:$C$43,3,FALSE)*BL36)),0),(ROUND('School Staffing Tool'!BL36*VLOOKUP($R36,'AVERAGE SALARY LOOKUP'!$A$3:$F$700,6,FALSE),0)))) -> 0 | BM36: 0 | BQ36: 0 | BR36: =IF(R36="","",VLOOKUP(R36,'AVERAGE SALARY LOOKUP'!$A$3:$C$686,3,FALSE)) ->  | BS36: 0 | BV36: 0 | BW36: 0 | BX36: 0
A37: 0289 FY 10-11 P002 | B37: =CONCATENATE(CONFIG!$C$9," ",CONFIG!$B$6," ",P37,Q37) -> 0289 FY 10-11 P002A | C37: ECE/Head Start | F37: ECE - CPP Regular Teacher | G37: =IF(F37="","",IF(OR(D37="",D37="HS"),VLOOKUP(F37,'JOB CODE LOOKUP'!$S$5:$V$183,3,FALSE),VLOOKUP(F37,'JOB CODE LOOKUP'!$S$5:$V$183,4,FALSE))) -> 19289110040314120110 | H37: 19 | I37: 289 | J37: 11 | K37: 0040 | L37: 3141 | M37: 2 | N37: 0110 | O37: 0200 | P37: P002 | Q37: A | R37: =IF(F37="","",(IF(CONFIG!$B$12="ES",VLOOKUP(F37,'JOB CODE LOOKUP'!$A$2:$E$222,2,FALSE),IF(CONFIG!$B$12="K-8",VLOOKUP(F37,'JOB CODE LOOKUP'!$G$2:$K$222,2,FALSE),IF(CONFIG!$B$12="MS",VLOOKUP(F37,'JOB CODE LOOKUP'!$M$2:$Q$222,2,FALSE),IF(CONFIG!$B$12="HS",VLOOKUP(F37,'JOB CODE LOOKUP'!$S$2:$W$222,2,FALSE),IF(AND(CONFIG!$B$12="6-12",D37="HS"),VLOOKUP(F37,'JOB CODE LOOKUP'!$S$2:$W$222,2,FALSE),IF(AND(CONFIG!$B$12="6-12",D37="MS"),VLOOKUP(F37,'JOB CODE LOOKUP'!$M$2:$Q$222,2,FALSE),"")))))))) -> 3302 | S37: =IF(CONFIG!$B$2<>"Y","",(IF(OR(G37="",LEFT(H37,1)="2",H37="19",L37="1911"),"",dbs(BV37,CONFIG!$B$4&":Employee - School Staffing",CONFIG!$B$5,CONFIG!$B$6,CONFIG!$C$9,H37,I37,J37,K37,L37,M37,N37,P37,Q37,R37,"FTE")))) ->  | T37: =IF(CONFIG!$B$2<>"Y","",(IF(OR(G37="",LEFT(H37,1)="2",H37="19",L37="1911"),"",dbs(BW37,CONFIG!$B$4&":Employee - School Staffing",CONFIG!$B$5,CONFIG!$B$6,CONFIG!$C$9,H37,I37,J37,K37,L37,M37,N37,P37,Q37,R37,"AMOUNT")))) ->  | U37: =IF(CONFIG!$B$2<>"Y","",(IF(OR(G37="",LEFT(H37,1)="2",H37="19",L37="1911"),"",dbs(BX37,CONFIG!$B$4&":Employee - School Staffing",CONFIG!$B$5,CONFIG!$B$6,CONFIG!$C$9,H37,I37,J37,K37,L37,M37,O37,P37,Q37,R37,"AMOUNT")))) ->  | W37: 17 | Y37: 02 | AA37: =(IF(AC37="",0,IF(CONFIG!$B$22<>"Autonomous",ROUND(VLOOKUP(R37,'AVERAGE SALARY LOOKUP'!$A$3:$E$10004,4,FALSE)*AC37,0),IF(E37="",0,IF(E37="vacancy",ROUND(VLOOKUP(R37,'AVERAGE SALARY LOOKUP'!$A$3:$E$10004,4,FALSE)*AC37,0),ROUND(VLOOKUP(E37,'FULL TIME ACTUAL RATES'!$B$2:$G$4927,6,FALSE)*AC37,0)))))) -> 0 | AB37: =IF($H37="",0,IF(CONFIG!$B$22="Autonomous",ROUND((AA37*VLOOKUP($H37,CONFIG!$A$46:$C$55,3,FALSE)+(VLOOKUP($BR37,CONFIG!$A$33:$C$43,3,FALSE)*AC37)),0),(ROUND('School Staffing Tool'!AC37*VLOOKUP(R37,'AVERAGE SALARY LOOKUP'!$A$3:$F$700,6,FALSE),0)))) -> 0 | AD37: 0 | AG37: ECE - CPP Regular Teacher | AH37: =(IF(AJ37="",0,ROUND(VLOOKUP(R37,'AVERAGE SALARY LOOKUP'!$A$3:$E$10004,4,FALSE)*AJ37,0))) -> 25884 | AI37: =IF($H37="",0,IF(CONFIG!$B$22="Autonomous",ROUND((AH37*VLOOKUP($H37,CONFIG!$A$46:$C$55,3,FALSE)+(VLOOKUP($BR37,CONFIG!$A$33:$C$43,3,FALSE)*AJ37)),0),IF(H37="10",(ROUND(AJ37*VLOOKUP($R37,'AVERAGE SALARY LOOKUP'!$A$3:$I$700,6,FALSE),0)),(ROUND(AJ37*VLOOKUP($R37,'AVERAGE SALARY LOOKUP'!$A$3:$I$700,9,FALSE),0))))) -> 8125 | AJ37: 0.5 | AK37: 34009 | AO37: =(IF(AQ37="",0,IF(CONFIG!$B$22<>"Autonomous",ROUND(VLOOKUP(R37,'AVERAGE SALARY LOOKUP'!$A$3:$E$10004,4,FALSE)*AQ37,0),IF(E37="",0,IF(E37="vacancy",ROUND(VLOOKUP(R37,'AVERAGE SALARY LOOKUP'!$A$3:$E$10004,4,FALSE)*AQ37,0),ROUND(VLOOKUP(E37,'FULL TIME ACTUAL RATES'!$B$2:$G$4927,6,FALSE)*AQ37,0)))))) -> 0 | AP37: =IF($H37="",0,IF(CONFIG!$B$22="Autonomous",ROUND((AO37*VLOOKUP($H37,CONFIG!$A$46:$C$55,3,FALSE)+(VLOOKUP($BR37,CONFIG!$A$33:$C$43,3,FALSE)*AQ37)),0),(ROUND('School Staffing Tool'!AQ37*VLOOKUP($R37,'AVERAGE SALARY LOOKUP'!$A$3:$F$700,6,FALSE),0)))) -> 0 | AR37: 0 | AV37: =(IF(AX37="",0,ROUND(VLOOKUP(R37,'AVERAGE SALARY LOOKUP'!$A$3:$E$10004,4,FALSE)*AX37,0))) -> 0 | AW37: =IF($H37="",0,IF(CONFIG!$B$22="Autonomous",ROUND((AV37*VLOOKUP($H37,CONFIG!$A$46:$C$55,3,FALSE)+(VLOOKUP($BR37,CONFIG!$A$33:$C$43,3,FALSE)*AX37)),0),(ROUND('School Staffing Tool'!AX37*VLOOKUP($R37,'AVERAGE SALARY LOOKUP'!$A$3:$H$700,8,FALSE),0)))) -> 0 | AY37: 0 | BC37: 0 | BD37: =IF(BB37="",0,ROUND((BC37*VLOOKUP($H37,CONFIG!$A$46:$C$55,3,FALSE)+(VLOOKUP($BR37,CONFIG!$A$33:$C$43,3,FALSE)*BE37)),0)) -> 0 | BF37: 0 | BJ37: =(IF(BL37="",0,ROUND(VLOOKUP($R$34,'AVERAGE SALARY LOOKUP'!$A$3:$E$10004,4,FALSE)*BL37,0))) -> 0 | BK37: =IF($H37="",0,IF(CONFIG!$B$22="Autonomous",ROUND((BJ37*VLOOKUP($H37,CONFIG!$A$46:$C$55,3,FALSE)+(VLOOKUP($BR37,CONFIG!$A$33:$C$43,3,FALSE)*BL37)),0),(ROUND('School Staffing Tool'!BL37*VLOOKUP($R37,'AVERAGE SALARY LOOKUP'!$A$3:$F$700,6,FALSE),0)))) -> 0 | BM37: 0 | BQ37: 0.5 | BR37: =IF(R37="","",VLOOKUP(R37,'AVERAGE SALARY LOOKUP'!$A$3:$C$686,3,FALSE)) -> DCTA | BS37: 0.5 | BU37: 19,3141,2 | BV37: 0.5 | BW37: 25884 | BX37: 8125
A38: 0289 FY 10-11 P002 | B38: =CONCATENATE(CONFIG!$C$9," ",CONFIG!$B$6," ",P38,Q38) -> 0289 FY 10-11 P002B | F38: ECE - Head Start Regular Teacher | G38: =IF(F38="","",IF(OR(D38="",D38="HS"),VLOOKUP(F38,'JOB CODE LOOKUP'!$S$5:$V$183,3,FALSE),VLOOKUP(F38,'JOB CODE LOOKUP'!$S$5:$V$183,4,FALSE))) -> 28289110040860020110 | H38: 28 | I38: 289 | J38: 11 | K38: 0040 | L38: 8600 | M38: 2 | N38: 0110 | O38: 0200 | P38: P002 | Q38: B | R38: =IF(F38="","",(IF(CONFIG!$B$12="ES",VLOOKUP(F38,'JOB CODE LOOKUP'!$A$2:$E$222,2,FALSE),IF(CONFIG!$B$12="K-8",VLOOKUP(F38,'JOB CODE LOOKUP'!$G$2:$K$222,2,FALSE),IF(CONFIG!$B$12="MS",VLOOKUP(F38,'JOB CODE LOOKUP'!$M$2:$Q$222,2,FALSE),IF(CONFIG!$B$12="HS",VLOOKUP(F38,'JOB CODE LOOKUP'!$S$2:$W$222,2,FALSE),IF(AND(CONFIG!$B$12="6-12",D38="HS"),VLOOKUP(F38,'JOB CODE LOOKUP'!$S$2:$W$222,2,FALSE),IF(AND(CONFIG!$B$12="6-12",D38="MS"),VLOOKUP(F38,'JOB CODE LOOKUP'!$M$2:$Q$222,2,FALSE),"")))))))) -> 3302 | S38: =IF(CONFIG!$B$2<>"Y","",(IF(OR(G38="",LEFT(H38,1)="2",H38="19",L38="1911"),"",dbs(BV38,CONFIG!$B$4&":Employee - School Staffing",CONFIG!$B$5,CONFIG!$B$6,CONFIG!$C$9,H38,I38,J38,K38,L38,M38,N38,P38,Q38,R38,"FTE")))) ->  | T38: =IF(CONFIG!$B$2<>"Y","",(IF(OR(G38="",LEFT(H38,1)="2",H38="19",L38="1911"),"",dbs(BW38,CONFIG!$B$4&":Employee - School Staffing",CONFIG!$B$5,CONFIG!$B$6,CONFIG!$C$9,H38,I38,J38,K38,L38,M38,N38,P38,Q38,R38,"AMOUNT")))) ->  | U38: =IF(CONFIG!$B$2<>"Y","",(IF(OR(G38="",LEFT(H38,1)="2",H38="19",L38="1911"),"",dbs(BX38,CONFIG!$B$4&":Employee - School Staffing",CONFIG!$B$5,CONFIG!$B$6,CONFIG!$C$9,H38,I38,J38,K38,L38,M38,O38,P38,Q38,R38,"AMOUNT")))) ->  | Y38: 02 | AA38: =(IF(AC38="",0,IF(CONFIG!$B$22<>"Autonomous",ROUND(VLOOKUP(R38,'AVERAGE SALARY LOOKUP'!$A$3:$E$10004,4,FALSE)*AC38,0),IF(E38="",0,IF(E38="vacancy",ROUND(VLOOKUP(R38,'AVERAGE SALARY LOOKUP'!$A$3:$E$10004,4,FALSE)*AC38,0),ROUND(VLOOKUP(E38,'FULL TIME ACTUAL RATES'!$B$2:$G$4927,6,FALSE)*AC38,0)))))) -> 0 | AB38: =IF($H38="",0,IF(CONFIG!$B$22="Autonomous",ROUND((AA38*VLOOKUP($H38,CONFIG!$A$46:$C$55,3,FALSE)+(VLOOKUP($BR38,CONFIG!$A$33:$C$43,3,FALSE)*AC38)),0),(ROUND('School Staffing Tool'!AC38*VLOOKUP(R38,'AVERAGE SALARY LOOKUP'!$A$3:$F$700,6,FALSE),0)))) -> 0 | AD38: 0 | AG38: ECE - Head Start Regular Teacher | AH38: =(IF(AJ38="",0,ROUND(VLOOKUP(R38,'AVERAGE SALARY LOOKUP'!$A$3:$E$10004,4,FALSE)*AJ38,0))) -> 25884 | AI38: =IF($H38="",0,IF(CONFIG!$B$22="Autonomous",ROUND((AH38*VLOOKUP($H38,CONFIG!$A$46:$C$55,3,FALSE)+(VLOOKUP($BR38,CONFIG!$A$33:$C$43,3,FALSE)*AJ38)),0),IF(H38="10",(ROUND(AJ38*VLOOKUP($R38,'AVERAGE SALARY LOOKUP'!$A$3:$I$700,6,FALSE),0)),(ROUND(AJ38*VLOOKUP($R38,'AVERAGE SALARY LOOKUP'!$A$3:$I$700,9,FALSE),0))))) -> 8125 | AJ38: 0.5 | AK38: 34009 | AO38: =(IF(AQ38="",0,IF(CONFIG!$B$22<>"Autonomous",ROUND(VLOOKUP(R38,'AVERAGE SALARY LOOKUP'!$A$3:$E$10004,4,FALSE)*AQ38,0),IF(E38="",0,IF(E38="vacancy",ROUND(VLOOKUP(R38,'AVERAGE SALARY LOOKUP'!$A$3:$E$10004,4,FALSE)*AQ38,0),ROUND(VLOOKUP(E38,'FULL TIME ACTUAL RATES'!$B$2:$G$4927,6,FALSE)*AQ38,0)))))) -> 0 | AP38: =IF($H38="",0,IF(CONFIG!$B$22="Autonomous",ROUND((AO38*VLOOKUP($H38,CONFIG!$A$46:$C$55,3,FALSE)+(VLOOKUP($BR38,CONFIG!$A$33:$C$43,3,FALSE)*AQ38)),0),(ROUND('School Staffing Tool'!AQ38*VLOOKUP($R38,'AVERAGE SALARY LOOKUP'!$A$3:$F$700,6,FALSE),0)))) -> 0 | AR38: 0 | AV38: =(IF(AX38="",0,ROUND(VLOOKUP(R38,'AVERAGE SALARY LOOKUP'!$A$3:$E$10004,4,FALSE)*AX38,0))) -> 0 | AW38: =IF($H38="",0,IF(CONFIG!$B$22="Autonomous",ROUND((AV38*VLOOKUP($H38,CONFIG!$A$46:$C$55,3,FALSE)+(VLOOKUP($BR38,CONFIG!$A$33:$C$43,3,FALSE)*AX38)),0),(ROUND('School Staffing Tool'!AX38*VLOOKUP($R38,'AVERAGE SALARY LOOKUP'!$A$3:$H$700,8,FALSE),0)))) -> 0 | AY38: 0 | BC38: 0 | BD38: =IF(BB38="",0,ROUND((BC38*VLOOKUP($H38,CONFIG!$A$46:$C$55,3,FALSE)+(VLOOKUP($BR38,CONFIG!$A$33:$C$43,3,FALSE)*BE38)),0)) -> 0 | BF38: 0 | BJ38: =(IF(BL38="",0,ROUND(VLOOKUP($R$34,'AVERAGE SALARY LOOKUP'!$A$3:$E$10004,4,FALSE)*BL38,0))) -> 0 | BK38: =IF($H38="",0,IF(CONFIG!$B$22="Autonomous",ROUND((BJ38*VLOOKUP($H38,CONFIG!$A$46:$C$55,3,FALSE)+(VLOOKUP($BR38,CONFIG!$A$33:$C$43,3,FALSE)*BL38)),0),(ROUND('School Staffing Tool'!BL38*VLOOKUP($R38,'AVERAGE SALARY LOOKUP'!$A$3:$F$700,6,FALSE),0)))) -> 0 | BM38: 0 | BQ38: 0.5 | BR38: =IF(R38="","",VLOOKUP(R38,'AVERAGE SALARY LOOKUP'!$A$3:$C$686,3,FALSE)) -> DCTA | BS38: 0.5 | BU38: 28,8600,2 | BV38: 0.5 | BW38: 25884 | BX38: 8125
A39: 0289 FY 10-11 P002 | B39: =CONCATENATE(CONFIG!$C$9," ",CONFIG!$B$6," ",P39,Q39) -> 0289 FY 10-11 P002C | G39: =IF(F39="","",IF(OR(D39="",D39="HS"),VLOOKUP(F39,'JOB CODE LOOKUP'!$S$5:$V$183,3,FALSE),VLOOKUP(F39,'JOB CODE LOOKUP'!$S$5:$V$183,4,FALSE))) ->  | P39: P002 | Q39: C | R39: =IF(F39="","",(IF(CONFIG!$B$12="ES",VLOOKUP(F39,'JOB CODE LOOKUP'!$A$2:$E$222,2,FALSE),IF(CONFIG!$B$12="K-8",VLOOKUP(F39,'JOB CODE LOOKUP'!$G$2:$K$222,2,FALSE),IF(CONFIG!$B$12="MS",VLOOKUP(F39,'JOB CODE LOOKUP'!$M$2:$Q$222,2,FALSE),IF(CONFIG!$B$12="HS",VLOOKUP(F39,'JOB CODE LOOKUP'!$S$2:$W$222,2,FALSE),IF(AND(CONFIG!$B$12="6-12",D39="HS"),VLOOKUP(F39,'JOB CODE LOOKUP'!$S$2:$W$222,2,FALSE),IF(AND(CONFIG!$B$12="6-12",D39="MS"),VLOOKUP(F39,'JOB CODE LOOKUP'!$M$2:$Q$222,2,FALSE),"")))))))) ->  | S39: =IF(CONFIG!$B$2<>"Y","",(IF(OR(G39="",LEFT(H39,1)="2",H39="19",L39="1911"),"",dbs(BV39,CONFIG!$B$4&":Employee - School Staffing",CONFIG!$B$5,CONFIG!$B$6,CONFIG!$C$9,H39,I39,J39,K39,L39,M39,N39,P39,Q39,R39,"FTE")))) ->  | T39: =IF(CONFIG!$B$2<>"Y","",(IF(OR(G39="",LEFT(H39,1)="2",H39="19",L39="1911"),"",dbs(BW39,CONFIG!$B$4&":Employee - School Staffing",CONFIG!$B$5,CONFIG!$B$6,CONFIG!$C$9,H39,I39,J39,K39,L39,M39,N39,P39,Q39,R39,"AMOUNT")))) ->  | U39: =IF(CONFIG!$B$2<>"Y","",(IF(OR(G39="",LEFT(H39,1)="2",H39="19",L39="1911"),"",dbs(BX39,CONFIG!$B$4&":Employee - School Staffing",CONFIG!$B$5,CONFIG!$B$6,CONFIG!$C$9,H39,I39,J39,K39,L39,M39,O39,P39,Q39,R39,"AMOUNT")))) ->  | Y39: 02 | AA39: =(IF(AC39="",0,IF(CONFIG!$B$22<>"Autonomous",ROUND(VLOOKUP(R39,'AVERAGE SALARY LOOKUP'!$A$3:$E$10004,4,FALSE)*AC39,0),IF(E39="",0,IF(E39="vacancy",ROUND(VLOOKUP(R39,'AVERAGE SALARY LOOKUP'!$A$3:$E$10004,4,FALSE)*AC39,0),ROUND(VLOOKUP(E39,'FULL TIME ACTUAL RATES'!$B$2:$G$4927,6,FALSE)*AC39,0)))))) -> 0 | AB39: =IF($H39="",0,IF(CONFIG!$B$22="Autonomous",ROUND((AA39*VLOOKUP($H39,CONFIG!$A$46:$C$55,3,FALSE)+(VLOOKUP($BR39,CONFIG!$A$33:$C$43,3,FALSE)*AC39)),0),(ROUND('School Staffing Tool'!AC39*VLOOKUP(R39,'AVERAGE SALARY LOOKUP'!$A$3:$F$700,6,FALSE),0)))) -> 0 | AD39: 0 | AH39: =(IF(AJ39="",0,ROUND(VLOOKUP(R39,'AVERAGE SALARY LOOKUP'!$A$3:$E$10004,4,FALSE)*AJ39,0))) -> 0 | AI39: =IF($H39="",0,IF(CONFIG!$B$22="Autonomous",ROUND((AH39*VLOOKUP($H39,CONFIG!$A$46:$C$55,3,FALSE)+(VLOOKUP($BR39,CONFIG!$A$33:$C$43,3,FALSE)*AJ39)),0),IF(H39="10",(ROUND(AJ39*VLOOKUP($R39,'AVERAGE SALARY LOOKUP'!$A$3:$I$700,6,FALSE),0)),(ROUND(AJ39*VLOOKUP($R39,'AVERAGE SALARY LOOKUP'!$A$3:$I$700,9,FALSE),0))))) -> 0 | AK39: 0 | AO39: =(IF(AQ39="",0,IF(CONFIG!$B$22<>"Autonomous",ROUND(VLOOKUP(R39,'AVERAGE SALARY LOOKUP'!$A$3:$E$10004,4,FALSE)*AQ39,0),IF(E39="",0,IF(E39="vacancy",ROUND(VLOOKUP(R39,'AVERAGE SALARY LOOKUP'!$A$3:$E$10004,4,FALSE)*AQ39,0),ROUND(VLOOKUP(E39,'FULL TIME ACTUAL RATES'!$B$2:$G$4927,6,FALSE)*AQ39,0)))))) -> 0 | AP39: =IF($H39="",0,IF(CONFIG!$B$22="Autonomous",ROUND((AO39*VLOOKUP($H39,CONFIG!$A$46:$C$55,3,FALSE)+(VLOOKUP($BR39,CONFIG!$A$33:$C$43,3,FALSE)*AQ39)),0),(ROUND('School Staffing Tool'!AQ39*VLOOKUP($R39,'AVERAGE SALARY LOOKUP'!$A$3:$F$700,6,FALSE),0)))) -> 0 | AR39: 0 | AV39: =(IF(AX39="",0,ROUND(VLOOKUP(R39,'AVERAGE SALARY LOOKUP'!$A$3:$E$10004,4,FALSE)*AX39,0))) -> 0 | AW39: =IF($H39="",0,IF(CONFIG!$B$22="Autonomous",ROUND((AV39*VLOOKUP($H39,CONFIG!$A$46:$C$55,3,FALSE)+(VLOOKUP($BR39,CONFIG!$A$33:$C$43,3,FALSE)*AX39)),0),(ROUND('School Staffing Tool'!AX39*VLOOKUP($R39,'AVERAGE SALARY LOOKUP'!$A$3:$H$700,8,FALSE),0)))) -> 0 | AY39: 0 | BC39: 0 | BD39: =IF(BB39="",0,ROUND((BC39*VLOOKUP($H39,CONFIG!$A$46:$C$55,3,FALSE)+(VLOOKUP($BR39,CONFIG!$A$33:$C$43,3,FALSE)*BE39)),0)) -> 0 | BF39: 0 | BJ39: =(IF(BL39="",0,ROUND(VLOOKUP($R$34,'AVERAGE SALARY LOOKUP'!$A$3:$E$10004,4,FALSE)*BL39,0))) -> 0 | BK39: =IF($H39="",0,IF(CONFIG!$B$22="Autonomous",ROUND((BJ39*VLOOKUP($H39,CONFIG!$A$46:$C$55,3,FALSE)+(VLOOKUP($BR39,CONFIG!$A$33:$C$43,3,FALSE)*BL39)),0),(ROUND('School Staffing Tool'!BL39*VLOOKUP($R39,'AVERAGE SALARY LOOKUP'!$A$3:$F$700,6,FALSE),0)))) -> 0 | BM39: 0 | BQ39: 0 | BR39: =IF(R39="","",VLOOKUP(R39,'AVERAGE SALARY LOOKUP'!$A$3:$C$686,3,FALSE)) ->  | BS39: 0 | BV39: 0 | BW39: 0 | BX39: 0
A40: 0289 FY 10-11 P003 | B40: =CONCATENATE(CONFIG!$C$9," ",CONFIG!$B$6," ",P40,Q40) -> 0289 FY 10-11 P003A | C40: Kinder | F40: Kinder - Tuition Based Regular Teacher | G40: =IF(F40="","",IF(OR(D40="",D40="HS"),VLOOKUP(F40,'JOB CODE LOOKUP'!$S$5:$V$183,3,FALSE),VLOOKUP(F40,'JOB CODE LOOKUP'!$S$5:$V$183,4,FALSE))) -> 29289110018191120110 | H40: 29 | I40: 289 | J40: 11 | K40: 0018 | L40: 1911 | M40: 2 | N40: 0110 | O40: 0200 | P40: P003 | Q40: A | R40: =IF(F40="","",(IF(CONFIG!$B$12="ES",VLOOKUP(F40,'JOB CODE LOOKUP'!$A$2:$E$222,2,FALSE),IF(CONFIG!$B$12="K-8",VLOOKUP(F40,'JOB CODE LOOKUP'!$G$2:$K$222,2,FALSE),IF(CONFIG!$B$12="MS",VLOOKUP(F40,'JOB CODE LOOKUP'!$M$2:$Q$222,2,FALSE),IF(CONFIG!$B$12="HS",VLOOKUP(F40,'JOB CODE LOOKUP'!$S$2:$W$222,2,FALSE),IF(AND(CONFIG!$B$12="6-12",D40="HS"),VLOOKUP(F40,'JOB CODE LOOKUP'!$S$2:$W$222,2,FALSE),IF(AND(CONFIG!$B$12="6-12",D40="MS"),VLOOKUP(F40,'JOB CODE LOOKUP'!$M$2:$Q$222,2,FALSE),"")))))))) -> 3302 | S40: =IF(CONFIG!$B$2<>"Y","",(IF(OR(G40="",LEFT(H40,1)="2",H40="19",L40="1911"),"",dbs(BV40,CONFIG!$B$4&":Employee - School Staffing",CONFIG!$B$5,CONFIG!$B$6,CONFIG!$C$9,H40,I40,J40,K40,L40,M40,N40,P40,Q40,R40,"FTE")))) ->  | T40: =IF(CONFIG!$B$2<>"Y","",(IF(OR(G40="",LEFT(H40,1)="2",H40="19",L40="1911"),"",dbs(BW40,CONFIG!$B$4&":Employee - School Staffing",CONFIG!$B$5,CONFIG!$B$6,CONFIG!$C$9,H40,I40,J40,K40,L40,M40,N40,P40,Q40,R40,"AMOUNT")))) ->  | U40: =IF(CONFIG!$B$2<>"Y","",(IF(OR(G40="",LEFT(H40,1)="2",H40="19",L40="1911"),"",dbs(BX40,CONFIG!$B$4&":Employee - School Staffing",CONFIG!$B$5,CONFIG!$B$6,CONFIG!$C$9,H40,I40,J40,K40,L40,M40,O40,P40,Q40,R40,"AMOUNT")))) ->  | W40: 19 | Y40: 03 | AA40: =(IF(AC40="",0,IF(CONFIG!$B$22<>"Autonomous",ROUND(VLOOKUP(R40,'AVERAGE SALARY LOOKUP'!$A$3:$E$10004,4,FALSE)*AC40,0),IF(E40="",0,IF(E40="vacancy",ROUND(VLOOKUP(R40,'AVERAGE SALARY LOOKUP'!$A$3:$E$10004,4,FALSE)*AC40,0),ROUND(VLOOKUP(E40,'FULL TIME ACTUAL RATES'!$B$2:$G$4927,6,FALSE)*AC40,0)))))) -> 0 | AB40: =IF($H40="",0,IF(CONFIG!$B$22="Autonomous",ROUND((AA40*VLOOKUP($H40,CONFIG!$A$46:$C$55,3,FALSE)+(VLOOKUP($BR40,CONFIG!$A$33:$C$43,3,FALSE)*AC40)),0),(ROUND('School Staffing Tool'!AC40*VLOOKUP(R40,'AVERAGE SALARY LOOKUP'!$A$3:$F$700,6,FALSE),0)))) -> 0 | AD40: 0 | AG40: Kinder - Tuition Based Regular Teacher | AH40: =(IF(AJ40="",0,ROUND(VLOOKUP(R40,'AVERAGE SALARY LOOKUP'!$A$3:$E$10004,4,FALSE)*AJ40,0))) -> 25884 | AI40: =IF($H40="",0,IF(CONFIG!$B$22="Autonomous",ROUND((AH40*VLOOKUP($H40,CONFIG!$A$46:$C$55,3,FALSE)+(VLOOKUP($BR40,CONFIG!$A$33:$C$43,3,FALSE)*AJ40)),0),IF(H40="10",(ROUND(AJ40*VLOOKUP($R40,'AVERAGE SALARY LOOKUP'!$A$3:$I$700,6,FALSE),0)),(ROUND(AJ40*VLOOKUP($R40,'AVERAGE SALARY LOOKUP'!$A$3:$I$700,9,FALSE),0))))) -> 8125 | AJ40: 0.5 | AK40: 34009 | AO40: =(IF(AQ40="",0,IF(CONFIG!$B$22<>"Autonomous",ROUND(VLOOKUP(R40,'AVERAGE SALARY LOOKUP'!$A$3:$E$10004,4,FALSE)*AQ40,0),IF(E40="",0,IF(E40="vacancy",ROUND(VLOOKUP(R40,'AVERAGE SALARY LOOKUP'!$A$3:$E$10004,4,FALSE)*AQ40,0),ROUND(VLOOKUP(E40,'FULL TIME ACTUAL RATES'!$B$2:$G$4927,6,FALSE)*AQ40,0)))))) -> 0 | AP40: =IF($H40="",0,IF(CONFIG!$B$22="Autonomous",ROUND((AO40*VLOOKUP($H40,CONFIG!$A$46:$C$55,3,FALSE)+(VLOOKUP($BR40,CONFIG!$A$33:$C$43,3,FALSE)*AQ40)),0),(ROUND('School Staffing Tool'!AQ40*VLOOKUP($R40,'AVERAGE SALARY LOOKUP'!$A$3:$F$700,6,FALSE),0)))) -> 0 | AR40: 0 | AV40: =(IF(AX40="",0,ROUND(VLOOKUP(R40,'AVERAGE SALARY LOOKUP'!$A$3:$E$10004,4,FALSE)*AX40,0))) -> 0 | AW40: =IF($H40="",0,IF(CONFIG!$B$22="Autonomous",ROUND((AV40*VLOOKUP($H40,CONFIG!$A$46:$C$55,3,FALSE)+(VLOOKUP($BR40,CONFIG!$A$33:$C$43,3,FALSE)*AX40)),0),(ROUND('School Staffing Tool'!AX40*VLOOKUP($R40,'AVERAGE SALARY LOOKUP'!$A$3:$H$700,8,FALSE),0)))) -> 0 | AY40: 0 | BC40: 0 | BD40: =IF(BB40="",0,ROUND((BC40*VLOOKUP($H40,CONFIG!$A$46:$C$55,3,FALSE)+(VLOOKUP($BR40,CONFIG!$A$33:$C$43,3,FALSE)*BE40)),0)) -> 0 | BF40: 0 | BJ40: =(IF(BL40="",0,ROUND(VLOOKUP($R$34,'AVERAGE SALARY LOOKUP'!$A$3:$E$10004,4,FALSE)*BL40,0))) -> 0 | BK40: =IF($H40="",0,IF(CONFIG!$B$22="Autonomous",ROUND((BJ40*VLOOKUP($H40,CONFIG!$A$46:$C$55,3,FALSE)+(VLOOKUP($BR40,CONFIG!$A$33:$C$43,3,FALSE)*BL40)),0),(ROUND('School Staffing Tool'!BL40*VLOOKUP($R40,'AVERAGE SALARY LOOKUP'!$A$3:$F$700,6,FALSE),0)))) -> 0 | BM40: 0 | BQ40: 0.5 | BR40: =IF(R40="","",VLOOKUP(R40,'AVERAGE SALARY LOOKUP'!$A$3:$C$686,3,FALSE)) -> DCTA | BS40: 0.5 | BU40: 29,1911,2 | BV40: 0.5 | BW40: 25884 | BX40: 8125
A41: 0289 FY 10-11 P003 | B41: =CONCATENATE(CONFIG!$C$9," ",CONFIG!$B$6," ",P41,Q41) -> 0289 FY 10-11 P003B | F41: Kinder Match - ELA-E Teacher | G41: =IF(F41="","",IF(OR(D41="",D41="HS"),VLOOKUP(F41,'JOB CODE LOOKUP'!$S$5:$V$183,3,FALSE),VLOOKUP(F41,'JOB CODE LOOKUP'!$S$5:$V$183,4,FALSE))) -> 10289110018314520110 | H41: 10 | I41: 289 | J41: 11 | K41: 0018 | L41: 3145 | M41: 2 | N41: 0110 | O41: 0200 | P41: P003 | Q41: B | R41: =IF(F41="","",(IF(CONFIG!$B$12="ES",VLOOKUP(F41,'JOB CODE LOOKUP'!$A$2:$E$222,2,FALSE),IF(CONFIG!$B$12="K-8",VLOOKUP(F41,'JOB CODE LOOKUP'!$G$2:$K$222,2,FALSE),IF(CONFIG!$B$12="MS",VLOOKUP(F41,'JOB CODE LOOKUP'!$M$2:$Q$222,2,FALSE),IF(CONFIG!$B$12="HS",VLOOKUP(F41,'JOB CODE LOOKUP'!$S$2:$W$222,2,FALSE),IF(AND(CONFIG!$B$12="6-12",D41="HS"),VLOOKUP(F41,'JOB CODE LOOKUP'!$S$2:$W$222,2,FALSE),IF(AND(CONFIG!$B$12="6-12",D41="MS"),VLOOKUP(F41,'JOB CODE LOOKUP'!$M$2:$Q$222,2,FALSE),"")))))))) -> 3302 | S41: =IF(CONFIG!$B$2<>"Y","",(IF(OR(G41="",LEFT(H41,1)="2",H41="19",L41="1911"),"",dbs(BV41,CONFIG!$B$4&":Employee - School Staffing",CONFIG!$B$5,CONFIG!$B$6,CONFIG!$C$9,H41,I41,J41,K41,L41,M41,N41,P41,Q41,R41,"FTE")))) ->  | T41: =IF(CONFIG!$B$2<>"Y","",(IF(OR(G41="",LEFT(H41,1)="2",H41="19",L41="1911"),"",dbs(BW41,CONFIG!$B$4&":Employee - School Staffing",CONFIG!$B$5,CONFIG!$B$6,CONFIG!$C$9,H41,I41,J41,K41,L41,M41,N41,P41,Q41,R41,"AMOUNT")))) ->  | U41: =IF(CONFIG!$B$2<>"Y","",(IF(OR(G41="",LEFT(H41,1)="2",H41="19",L41="1911"),"",dbs(BX41,CONFIG!$B$4&":Employee - School Staffing",CONFIG!$B$5,CONFIG!$B$6,CONFIG!$C$9,H41,I41,J41,K41,L41,M41,O41,P41,Q41,R41,"AMOUNT")))) ->  | Y41: 03 | AA41: =(IF(AC41="",0,IF(CONFIG!$B$22<>"Autonomous",ROUND(VLOOKUP(R41,'AVERAGE SALARY LOOKUP'!$A$3:$E$10004,4,FALSE)*AC41,0),IF(E41="",0,IF(E41="vacancy",ROUND(VLOOKUP(R41,'AVERAGE SALARY LOOKUP'!$A$3:$E$10004,4,FALSE)*AC41,0),ROUND(VLOOKUP(E41,'FULL TIME ACTUAL RATES'!$B$2:$G$4927,6,FALSE)*AC41,0)))))) -> 0 | AB41: =IF($H41="",0,IF(CONFIG!$B$22="Autonomous",ROUND((AA41*VLOOKUP($H41,CONFIG!$A$46:$C$55,3,FALSE)+(VLOOKUP($BR41,CONFIG!$A$33:$C$43,3,FALSE)*AC41)),0),(ROUND('School Staffing Tool'!AC41*VLOOKUP(R41,'AVERAGE SALARY LOOKUP'!$A$3:$F$700,6,FALSE),0)))) -> 0 | AD41: 0 | AG41: Kinder Match - ELA-E Teacher | AH41: =(IF(AJ41="",0,ROUND(VLOOKUP(R41,'AVERAGE SALARY LOOKUP'!$A$3:$E$10004,4,FALSE)*AJ41,0))) -> 25884 | AI41: =IF($H41="",0,IF(CONFIG!$B$22="Autonomous",ROUND((AH41*VLOOKUP($H41,CONFIG!$A$46:$C$55,3,FALSE)+(VLOOKUP($BR41,CONFIG!$A$33:$C$43,3,FALSE)*AJ41)),0),IF(H41="10",(ROUND(AJ41*VLOOKUP($R41,'AVERAGE SALARY LOOKUP'!$A$3:$I$700,6,FALSE),0)),(ROUND(AJ41*VLOOKUP($R41,'AVERAGE SALARY LOOKUP'!$A$3:$I$700,9,FALSE),0))))) -> 7088 | AJ41: 0.5 | AK41: 32972 | AO41: =(IF(AQ41="",0,IF(CONFIG!$B$22<>"Autonomous",ROUND(VLOOKUP(R41,'AVERAGE SALARY LOOKUP'!$A$3:$E$10004,4,FALSE)*AQ41,0),IF(E41="",0,IF(E41="vacancy",ROUND(VLOOKUP(R41,'AVERAGE SALARY LOOKUP'!$A$3:$E$10004,4,FALSE)*AQ41,0),ROUND(VLOOKUP(E41,'FULL TIME ACTUAL RATES'!$B$2:$G$4927,6,FALSE)*AQ41,0)))))) -> 0 | AP41: =IF($H41="",0,IF(CONFIG!$B$22="Autonomous",ROUND((AO41*VLOOKUP($H41,CONFIG!$A$46:$C$55,3,FALSE)+(VLOOKUP($BR41,CONFIG!$A$33:$C$43,3,FALSE)*AQ41)),0),(ROUND('School Staffing Tool'!AQ41*VLOOKUP($R41,'AVERAGE SALARY LOOKUP'!$A$3:$F$700,6,FALSE),0)))) -> 0 | AR41: 0 | AV41: =(IF(AX41="",0,ROUND(VLOOKUP(R41,'AVERAGE SALARY LOOKUP'!$A$3:$E$10004,4,FALSE)*AX41,0))) -> 0 | AW41: =IF($H41="",0,IF(CONFIG!$B$22="Autonomous",ROUND((AV41*VLOOKUP($H41,CONFIG!$A$46:$C$55,3,FALSE)+(VLOOKUP($BR41,CONFIG!$A$33:$C$43,3,FALSE)*AX41)),0),(ROUND('School Staffing Tool'!AX41*VLOOKUP($R41,'AVERAGE SALARY LOOKUP'!$A$3:$H$700,8,FALSE),0)))) -> 0 | AY41: 0 | BC41: 0 | BD41: =IF(BB41="",0,ROUND((BC41*VLOOKUP($H41,CONFIG!$A$46:$C$55,3,FALSE)+(VLOOKUP($BR41,CONFIG!$A$33:$C$43,3,FALSE)*BE41)),0)) -> 0 | BF41: 0 | BJ41: =(IF(BL41="",0,ROUND(VLOOKUP($R$34,'AVERAGE SALARY LOOKUP'!$A$3:$E$10004,4,FALSE)*BL41,0))) -> 0 | BK41: =IF($H41="",0,IF(CONFIG!$B$22="Autonomous",ROUND((BJ41*VLOOKUP($H41,CONFIG!$A$46:$C$55,3,FALSE)+(VLOOKUP($BR41,CONFIG!$A$33:$C$43,3,FALSE)*BL41)),0),(ROUND('School Staffing Tool'!BL41*VLOOKUP($R41,'AVERAGE SALARY LOOKUP'!$A$3:$F$700,6,FALSE),0)))) -> 0 | BM41: 0 | BQ41: 0.5 | BR41: =IF(R41="","",VLOOKUP(R41,'AVERAGE SALARY LOOKUP'!$A$3:$C$686,3,FALSE)) -> DCTA | BS41: 0.5 | BU41: 10,3145,2 | BV41: 0.5 | BW41: 25884 | BX41: 7088
A42: 0289 FY 10-11 P003 | B42: =CONCATENATE(CONFIG!$C$9," ",CONFIG!$B$6," ",P42,Q42) -> 0289 FY 10-11 P003C | G42: =IF(F42="","",IF(OR(D42="",D42="HS"),VLOOKUP(F42,'JOB CODE LOOKUP'!$S$5:$V$183,3,FALSE),VLOOKUP(F42,'JOB CODE LOOKUP'!$S$5:$V$183,4,FALSE))) ->  | P42: P003 | Q42: C | R42: =IF(F42="","",(IF(CONFIG!$B$12="ES",VLOOKUP(F42,'JOB CODE LOOKUP'!$A$2:$E$222,2,FALSE),IF(CONFIG!$B$12="K-8",VLOOKUP(F42,'JOB CODE LOOKUP'!$G$2:$K$222,2,FALSE),IF(CONFIG!$B$12="MS",VLOOKUP(F42,'JOB CODE LOOKUP'!$M$2:$Q$222,2,FALSE),IF(CONFIG!$B$12="HS",VLOOKUP(F42,'JOB CODE LOOKUP'!$S$2:$W$222,2,FALSE),IF(AND(CONFIG!$B$12="6-12",D42="HS"),VLOOKUP(F42,'JOB CODE LOOKUP'!$S$2:$W$222,2,FALSE),IF(AND(CONFIG!$B$12="6-12",D42="MS"),VLOOKUP(F42,'JOB CODE LOOKUP'!$M$2:$Q$222,2,FALSE),"")))))))) ->  | S42: =IF(CONFIG!$B$2<>"Y","",(IF(OR(G42="",LEFT(H42,1)="2",H42="19",L42="1911"),"",dbs(BV42,CONFIG!$B$4&":Employee - School Staffing",CONFIG!$B$5,CONFIG!$B$6,CONFIG!$C$9,H42,I42,J42,K42,L42,M42,N42,P42,Q42,R42,"FTE")))) ->  | T42: =IF(CONFIG!$B$2<>"Y","",(IF(OR(G42="",LEFT(H42,1)="2",H42="19",L42="1911"),"",dbs(BW42,CONFIG!$B$4&":Employee - School Staffing",CONFIG!$B$5,CONFIG!$B$6,CONFIG!$C$9,H42,I42,J42,K42,L42,M42,N42,P42,Q42,R42,"AMOUNT")))) ->  | U42: =IF(CONFIG!$B$2<>"Y","",(IF(OR(G42="",LEFT(H42,1)="2",H42="19",L42="1911"),"",dbs(BX42,CONFIG!$B$4&":Employee - School Staffing",CONFIG!$B$5,CONFIG!$B$6,CONFIG!$C$9,H42,I42,J42,K42,L42,M42,O42,P42,Q42,R42,"AMOUNT")))) ->  | Y42: 03 | AA42: =(IF(AC42="",0,IF(CONFIG!$B$22<>"Autonomous",ROUND(VLOOKUP(R42,'AVERAGE SALARY LOOKUP'!$A$3:$E$10004,4,FALSE)*AC42,0),IF(E42="",0,IF(E42="vacancy",ROUND(VLOOKUP(R42,'AVERAGE SALARY LOOKUP'!$A$3:$E$10004,4,FALSE)*AC42,0),ROUND(VLOOKUP(E42,'FULL TIME ACTUAL RATES'!$B$2:$G$4927,6,FALSE)*AC42,0)))))) -> 0 | AB42: =IF($H42="",0,IF(CONFIG!$B$22="Autonomous",ROUND((AA42*VLOOKUP($H42,CONFIG!$A$46:$C$55,3,FALSE)+(VLOOKUP($BR42,CONFIG!$A$33:$C$43,3,FALSE)*AC42)),0),(ROUND('School Staffing Tool'!AC42*VLOOKUP(R42,'AVERAGE SALARY LOOKUP'!$A$3:$F$700,6,FALSE),0)))) -> 0 | AD42: 0 | AH42: =(IF(AJ42="",0,ROUND(VLOOKUP(R42,'AVERAGE SALARY LOOKUP'!$A$3:$E$10004,4,FALSE)*AJ42,0))) -> 0 | AI42: =IF($H42="",0,IF(CONFIG!$B$22="Autonomous",ROUND((AH42*VLOOKUP($H42,CONFIG!$A$46:$C$55,3,FALSE)+(VLOOKUP($BR42,CONFIG!$A$33:$C$43,3,FALSE)*AJ42)),0),IF(H42="10",(ROUND(AJ42*VLOOKUP($R42,'AVERAGE SALARY LOOKUP'!$A$3:$I$700,6,FALSE),0)),(ROUND(AJ42*VLOOKUP($R42,'AVERAGE SALARY LOOKUP'!$A$3:$I$700,9,FALSE),0))))) -> 0 | AK42: 0 | AO42: =(IF(AQ42="",0,IF(CONFIG!$B$22<>"Autonomous",ROUND(VLOOKUP(R42,'AVERAGE SALARY LOOKUP'!$A$3:$E$10004,4,FALSE)*AQ42,0),IF(E42="",0,IF(E42="vacancy",ROUND(VLOOKUP(R42,'AVERAGE SALARY LOOKUP'!$A$3:$E$10004,4,FALSE)*AQ42,0),ROUND(VLOOKUP(E42,'FULL TIME ACTUAL RATES'!$B$2:$G$4927,6,FALSE)*AQ42,0)))))) -> 0 | AP42: =IF($H42="",0,IF(CONFIG!$B$22="Autonomous",ROUND((AO42*VLOOKUP($H42,CONFIG!$A$46:$C$55,3,FALSE)+(VLOOKUP($BR42,CONFIG!$A$33:$C$43,3,FALSE)*AQ42)),0),(ROUND('School Staffing Tool'!AQ42*VLOOKUP($R42,'AVERAGE SALARY LOOKUP'!$A$3:$F$700,6,FALSE),0)))) -> 0 | AR42: 0 | AV42: =(IF(AX42="",0,ROUND(VLOOKUP(R42,'AVERAGE SALARY LOOKUP'!$A$3:$E$10004,4,FALSE)*AX42,0))) -> 0 | AW42: =IF($H42="",0,IF(CONFIG!$B$22="Autonomous",ROUND((AV42*VLOOKUP($H42,CONFIG!$A$46:$C$55,3,FALSE)+(VLOOKUP($BR42,CONFIG!$A$33:$C$43,3,FALSE)*AX42)),0),(ROUND('School Staffing Tool'!AX42*VLOOKUP($R42,'AVERAGE SALARY LOOKUP'!$A$3:$H$700,8,FALSE),0)))) -> 0 | AY42: 0 | BC42: 0 | BD42: =IF(BB42="",0,ROUND((BC42*VLOOKUP($H42,CONFIG!$A$46:$C$55,3,FALSE)+(VLOOKUP($BR42,CONFIG!$A$33:$C$43,3,FALSE)*BE42)),0)) -> 0 | BF42: 0 | BJ42: =(IF(BL42="",0,ROUND(VLOOKUP($R$34,'AVERAGE SALARY LOOKUP'!$A$3:$E$10004,4,FALSE)*BL42,0))) -> 0 | BK42: =IF($H42="",0,IF(CONFIG!$B$22="Autonomous",ROUND((BJ42*VLOOKUP($H42,CONFIG!$A$46:$C$55,3,FALSE)+(VLOOKUP($BR42,CONFIG!$A$33:$C$43,3,FALSE)*BL42)),0),(ROUND('School Staffing Tool'!BL42*VLOOKUP($R42,'AVERAGE SALARY LOOKUP'!$A$3:$F$700,6,FALSE),0)))) -> 0 | BM42: 0 | BQ42: 0 | BR42: =IF(R42="","",VLOOKUP(R42,'AVERAGE SALARY LOOKUP'!$A$3:$C$686,3,FALSE)) ->  | BS42: 0 | BV42: 0 | BW42: 0 | BX42: 0
A43: 0289 FY 10-11 P004 | B43: =CONCATENATE(CONFIG!$C$9," ",CONFIG!$B$6," ",P43,Q43) -> 0289 FY 10-11 P004A | C43: Kinder | F43: Kinder - All Day Regular Teacher (Formerly Mill Levy) | G43: =IF(F43="","",IF(OR(D43="",D43="HS"),VLOOKUP(F43,'JOB CODE LOOKUP'!$S$5:$V$183,3,FALSE),VLOOKUP(F43,'JOB CODE LOOKUP'!$S$5:$V$183,4,FALSE))) -> 29289110018192320110 | H43: 29 | I43: 289 | J43: 11 | K43: 0018 | L43: 1923 | M43: 2 | N43: 0110 | O43: 0200 | P43: P004 | Q43: A | R43: =IF(F43="","",(IF(CONFIG!$B$12="ES",VLOOKUP(F43,'JOB CODE LOOKUP'!$A$2:$E$222,2,FALSE),IF(CONFIG!$B$12="K-8",VLOOKUP(F43,'JOB CODE LOOKUP'!$G$2:$K$222,2,FALSE),IF(CONFIG!$B$12="MS",VLOOKUP(F43,'JOB CODE LOOKUP'!$M$2:$Q$222,2,FALSE),IF(CONFIG!$B$12="HS",VLOOKUP(F43,'JOB CODE LOOKUP'!$S$2:$W$222,2,FALSE),IF(AND(CONFIG!$B$12="6-12",D43="HS"),VLOOKUP(F43,'JOB CODE LOOKUP'!$S$2:$W$222,2,FALSE),IF(AND(CONFIG!$B$12="6-12",D43="MS"),VLOOKUP(F43,'JOB CODE LOOKUP'!$M$2:$Q$222,2,FALSE),"")))))))) -> 3302 | S43: =IF(CONFIG!$B$2<>"Y","",(IF(OR(G43="",LEFT(H43,1)="2",H43="19",L43="1911"),"",dbs(BV43,CONFIG!$B$4&":Employee - School Staffing",CONFIG!$B$5,CONFIG!$B$6,CONFIG!$C$9,H43,I43,J43,K43,L43,M43,N43,P43,Q43,R43,"FTE")))) ->  | T43: =IF(CONFIG!$B$2<>"Y","",(IF(OR(G43="",LEFT(H43,1)="2",H43="19",L43="1911"),"",dbs(BW43,CONFIG!$B$4&":Employee - School Staffing",CONFIG!$B$5,CONFIG!$B$6,CONFIG!$C$9,H43,I43,J43,K43,L43,M43,N43,P43,Q43,R43,"AMOUNT")))) ->  | U43: =IF(CONFIG!$B$2<>"Y","",(IF(OR(G43="",LEFT(H43,1)="2",H43="19",L43="1911"),"",dbs(BX43,CONFIG!$B$4&":Employee - School Staffing",CONFIG!$B$5,CONFIG!$B$6,CONFIG!$C$9,H43,I43,J43,K43,L43,M43,O43,P43,Q43,R43,"AMOUNT")))) ->  | W43: 19 | Y43: 04 | AA43: =(IF(AC43="",0,IF(CONFIG!$B$22<>"Autonomous",ROUND(VLOOKUP(R43,'AVERAGE SALARY LOOKUP'!$A$3:$E$10004,4,FALSE)*AC43,0),IF(E43="",0,IF(E43="vacancy",ROUND(VLOOKUP(R43,'AVERAGE SALARY LOOKUP'!$A$3:$E$10004,4,FALSE)*AC43,0),ROUND(VLOOKUP(E43,'FULL TIME ACTUAL RATES'!$B$2:$G$4927,6,FALSE)*AC43,0)))))) -> 0 | AB43: =IF($H43="",0,IF(CONFIG!$B$22="Autonomous",ROUND((AA43*VLOOKUP($H43,CONFIG!$A$46:$C$55,3,FALSE)+(VLOOKUP($BR43,CONFIG!$A$33:$C$43,3,FALSE)*AC43)),0),(ROUND('School Staffing Tool'!AC43*VLOOKUP(R43,'AVERAGE SALARY LOOKUP'!$A$3:$F$700,6,FALSE),0)))) -> 0 | AD43: 0 | AG43: Kinder - All Day Regular Teacher (Formerly Mill Levy) | AH43: =(IF(AJ43="",0,ROUND(VLOOKUP(R43,'AVERAGE SALARY LOOKUP'!$A$3:$E$10004,4,FALSE)*AJ43,0))) -> 25884 | AI43: =IF($H43="",0,IF(CONFIG!$B$22="Autonomous",ROUND((AH43*VLOOKUP($H43,CONFIG!$A$46:$C$55,3,FALSE)+(VLOOKUP($BR43,CONFIG!$A$33:$C$43,3,FALSE)*AJ43)),0),IF(H43="10",(ROUND(AJ43*VLOOKUP($R43,'AVERAGE SALARY LOOKUP'!$A$3:$I$700,6,FALSE),0)),(ROUND(AJ43*VLOOKUP($R43,'AVERAGE SALARY LOOKUP'!$A$3:$I$700,9,FALSE),0))))) -> 8125 | AJ43: 0.5 | AK43: 34009 | AO43: =(IF(AQ43="",0,IF(CONFIG!$B$22<>"Autonomous",ROUND(VLOOKUP(R43,'AVERAGE SALARY LOOKUP'!$A$3:$E$10004,4,FALSE)*AQ43,0),IF(E43="",0,IF(E43="vacancy",ROUND(VLOOKUP(R43,'AVERAGE SALARY LOOKUP'!$A$3:$E$10004,4,FALSE)*AQ43,0),ROUND(VLOOKUP(E43,'FULL TIME ACTUAL RATES'!$B$2:$G$4927,6,FALSE)*AQ43,0)))))) -> 0 | AP43: =IF($H43="",0,IF(CONFIG!$B$22="Autonomous",ROUND((AO43*VLOOKUP($H43,CONFIG!$A$46:$C$55,3,FALSE)+(VLOOKUP($BR43,CONFIG!$A$33:$C$43,3,FALSE)*AQ43)),0),(ROUND('School Staffing Tool'!AQ43*VLOOKUP($R43,'AVERAGE SALARY LOOKUP'!$A$3:$F$700,6,FALSE),0)))) -> 0 | AR43: 0 | AV43: =(IF(AX43="",0,ROUND(VLOOKUP(R43,'AVERAGE SALARY LOOKUP'!$A$3:$E$10004,4,FALSE)*AX43,0))) -> 0 | AW43: =IF($H43="",0,IF(CONFIG!$B$22="Autonomous",ROUND((AV43*VLOOKUP($H43,CONFIG!$A$46:$C$55,3,FALSE)+(VLOOKUP($BR43,CONFIG!$A$33:$C$43,3,FALSE)*AX43)),0),(ROUND('School Staffing Tool'!AX43*VLOOKUP($R43,'AVERAGE SALARY LOOKUP'!$A$3:$H$700,8,FALSE),0)))) -> 0 | AY43: 0 | BC43: 0 | BD43: =IF(BB43="",0,ROUND((BC43*VLOOKUP($H43,CONFIG!$A$46:$C$55,3,FALSE)+(VLOOKUP($BR43,CONFIG!$A$33:$C$43,3,FALSE)*BE43)),0)) -> 0 | BF43: 0 | BJ43: =(IF(BL43="",0,ROUND(VLOOKUP($R$34,'AVERAGE SALARY LOOKUP'!$A$3:$E$10004,4,FALSE)*BL43,0))) -> 0 | BK43: =IF($H43="",0,IF(CONFIG!$B$22="Autonomous",ROUND((BJ43*VLOOKUP($H43,CONFIG!$A$46:$C$55,3,FALSE)+(VLOOKUP($BR43,CONFIG!$A$33:$C$43,3,FALSE)*BL43)),0),(ROUND('School Staffing Tool'!BL43*VLOOKUP($R43,'AVERAGE SALARY LOOKUP'!$A$3:$F$700,6,FALSE),0)))) -> 0 | BM43: 0 | BQ43: 0.5 | BR43: =IF(R43="","",VLOOKUP(R43,'AVERAGE SALARY LOOKUP'!$A$3:$C$686,3,FALSE)) -> DCTA | BS43: 0.5 | BU43: 29,1923,2 | BV43: 0.5 | BW43: 25884 | BX43: 8125
A44: 0289 FY 10-11 P004 | B44: =CONCATENATE(CONFIG!$C$9," ",CONFIG!$B$6," ",P44,Q44) -> 0289 FY 10-11 P004B | F44: Kinder Match - ELA-E Teacher | G44: =IF(F44="","",IF(OR(D44="",D44="HS"),VLOOKUP(F44,'JOB CODE LOOKUP'!$S$5:$V$183,3,FALSE),VLOOKUP(F44,'JOB CODE LOOKUP'!$S$5:$V$183,4,FALSE))) -> 10289110018314520110 | H44: 10 | I44: 289 | J44: 11 | K44: 0018 | L44: 3145 | M44: 2 | N44: 0110 | O44: 0200 | P44: P004 | Q44: B | R44: =IF(F44="","",(IF(CONFIG!$B$12="ES",VLOOKUP(F44,'JOB CODE LOOKUP'!$A$2:$E$222,2,FALSE),IF(CONFIG!$B$12="K-8",VLOOKUP(F44,'JOB CODE LOOKUP'!$G$2:$K$222,2,FALSE),IF(CONFIG!$B$12="MS",VLOOKUP(F44,'JOB CODE LOOKUP'!$M$2:$Q$222,2,FALSE),IF(CONFIG!$B$12="HS",VLOOKUP(F44,'JOB CODE LOOKUP'!$S$2:$W$222,2,FALSE),IF(AND(CONFIG!$B$12="6-12",D44="HS"),VLOOKUP(F44,'JOB CODE LOOKUP'!$S$2:$W$222,2,FALSE),IF(AND(CONFIG!$B$12="6-12",D44="MS"),VLOOKUP(F44,'JOB CODE LOOKUP'!$M$2:$Q$222,2,FALSE),"")))))))) -> 3302 | S44: =IF(CONFIG!$B$2<>"Y","",(IF(OR(G44="",LEFT(H44,1)="2",H44="19",L44="1911"),"",dbs(BV44,CONFIG!$B$4&":Employee - School Staffing",CONFIG!$B$5,CONFIG!$B$6,CONFIG!$C$9,H44,I44,J44,K44,L44,M44,N44,P44,Q44,R44,"FTE")))) ->  | T44: =IF(CONFIG!$B$2<>"Y","",(IF(OR(G44="",LEFT(H44,1)="2",H44="19",L44="1911"),"",dbs(BW44,CONFIG!$B$4&":Employee - School Staffing",CONFIG!$B$5,CONFIG!$B$6,CONFIG!$C$9,H44,I44,J44,K44,L44,M44,N44,P44,Q44,R44,"AMOUNT")))) ->  | U44: =IF(CONFIG!$B$2<>"Y","",(IF(OR(G44="",LEFT(H44,1)="2",H44="19",L44="1911"),"",dbs(BX44,CONFIG!$B$4&":Employee - School Staffing",CONFIG!$B$5,CONFIG!$B$6,CONFIG!$C$9,H44,I44,J44,K44,L44,M44,O44,P44,Q44,R44,"AMOUNT")))) ->  | Y44: 04 | AA44: =(IF(AC44="",0,IF(CONFIG!$B$22<>"Autonomous",ROUND(VLOOKUP(R44,'AVERAGE SALARY LOOKUP'!$A$3:$E$10004,4,FALSE)*AC44,0),IF(E44="",0,IF(E44="vacancy",ROUND(VLOOKUP(R44,'AVERAGE SALARY LOOKUP'!$A$3:$E$10004,4,FALSE)*AC44,0),ROUND(VLOOKUP(E44,'FULL TIME ACTUAL RATES'!$B$2:$G$4927,6,FALSE)*AC44,0)))))) -> 0 | AB44: =IF($H44="",0,IF(CONFIG!$B$22="Autonomous",ROUND((AA44*VLOOKUP($H44,CONFIG!$A$46:$C$55,3,FALSE)+(VLOOKUP($BR44,CONFIG!$A$33:$C$43,3,FALSE)*AC44)),0),(ROUND('School Staffing Tool'!AC44*VLOOKUP(R44,'AVERAGE SALARY LOOKUP'!$A$3:$F$700,6,FALSE),0)))) -> 0 | AD44: 0 | AG44: Kinder Match - ELA-E Teacher | AH44: =(IF(AJ44="",0,ROUND(VLOOKUP(R44,'AVERAGE SALARY LOOKUP'!$A$3:$E$10004,4,FALSE)*AJ44,0))) -> 25884 | AI44: =IF($H44="",0,IF(CONFIG!$B$22="Autonomous",ROUND((AH44*VLOOKUP($H44,CONFIG!$A$46:$C$55,3,FALSE)+(VLOOKUP($BR44,CONFIG!$A$33:$C$43,3,FALSE)*AJ44)),0),IF(H44="10",(ROUND(AJ44*VLOOKUP($R44,'AVERAGE SALARY LOOKUP'!$A$3:$I$700,6,FALSE),0)),(ROUND(AJ44*VLOOKUP($R44,'AVERAGE SALARY LOOKUP'!$A$3:$I$700,9,FALSE),0))))) -> 7088 | AJ44: 0.5 | AK44: 32972 | AO44: =(IF(AQ44="",0,IF(CONFIG!$B$22<>"Autonomous",ROUND(VLOOKUP(R44,'AVERAGE SALARY LOOKUP'!$A$3:$E$10004,4,FALSE)*AQ44,0),IF(E44="",0,IF(E44="vacancy",ROUND(VLOOKUP(R44,'AVERAGE SALARY LOOKUP'!$A$3:$E$10004,4,FALSE)*AQ44,0),ROUND(VLOOKUP(E44,'FULL TIME ACTUAL RATES'!$B$2:$G$4927,6,FALSE)*AQ44,0)))))) -> 0 | AP44: =IF($H44="",0,IF(CONFIG!$B$22="Autonomous",ROUND((AO44*VLOOKUP($H44,CONFIG!$A$46:$C$55,3,FALSE)+(VLOOKUP($BR44,CONFIG!$A$33:$C$43,3,FALSE)*AQ44)),0),(ROUND('School Staffing Tool'!AQ44*VLOOKUP($R44,'AVERAGE SALARY LOOKUP'!$A$3:$F$700,6,FALSE),0)))) -> 0 | AR44: 0 | AV44: =(IF(AX44="",0,ROUND(VLOOKUP(R44,'AVERAGE SALARY LOOKUP'!$A$3:$E$10004,4,FALSE)*AX44,0))) -> 0 | AW44: =IF($H44="",0,IF(CONFIG!$B$22="Autonomous",ROUND((AV44*VLOOKUP($H44,CONFIG!$A$46:$C$55,3,FALSE)+(VLOOKUP($BR44,CONFIG!$A$33:$C$43,3,FALSE)*AX44)),0),(ROUND('School Staffing Tool'!AX44*VLOOKUP($R44,'AVERAGE SALARY LOOKUP'!$A$3:$H$700,8,FALSE),0)))) -> 0 | AY44: 0 | BC44: 0 | BD44: =IF(BB44="",0,ROUND((BC44*VLOOKUP($H44,CONFIG!$A$46:$C$55,3,FALSE)+(VLOOKUP($BR44,CONFIG!$A$33:$C$43,3,FALSE)*BE44)),0)) -> 0 | BF44: 0 | BJ44: =(IF(BL44="",0,ROUND(VLOOKUP($R$34,'AVERAGE SALARY LOOKUP'!$A$3:$E$10004,4,FALSE)*BL44,0))) -> 0 | BK44: =IF($H44="",0,IF(CONFIG!$B$22="Autonomous",ROUND((BJ44*VLOOKUP($H44,CONFIG!$A$46:$C$55,3,FALSE)+(VLOOKUP($BR44,CONFIG!$A$33:$C$43,3,FALSE)*BL44)),0),(ROUND('School Staffing Tool'!BL44*VLOOKUP($R44,'AVERAGE SALARY LOOKUP'!$A$3:$F$700,6,FALSE),0)))) -> 0 | BM44: 0 | BQ44: 0.5 | BR44: =IF(R44="","",VLOOKUP(R44,'AVERAGE SALARY LOOKUP'!$A$3:$C$686,3,FALSE)) -> DCTA | BS44: 0.5 | BU44: 10,3145,2 | BV44: 0.5 | BW44: 25884 | BX44: 7088
A45: 0289 FY 10-11 P004 | B45: =CONCATENATE(CONFIG!$C$9," ",CONFIG!$B$6," ",P45,Q45) -> 0289 FY 10-11 P004C | G45: =IF(F45="","",IF(OR(D45="",D45="HS"),VLOOKUP(F45,'JOB CODE LOOKUP'!$S$5:$V$183,3,FALSE),VLOOKUP(F45,'JOB CODE LOOKUP'!$S$5:$V$183,4,FALSE))) ->  | P45: P004 | Q45: C | R45: =IF(F45="","",(IF(CONFIG!$B$12="ES",VLOOKUP(F45,'JOB CODE LOOKUP'!$A$2:$E$222,2,FALSE),IF(CONFIG!$B$12="K-8",VLOOKUP(F45,'JOB CODE LOOKUP'!$G$2:$K$222,2,FALSE),IF(CONFIG!$B$12="MS",VLOOKUP(F45,'JOB CODE LOOKUP'!$M$2:$Q$222,2,FALSE),IF(CONFIG!$B$12="HS",VLOOKUP(F45,'JOB CODE LOOKUP'!$S$2:$W$222,2,FALSE),IF(AND(CONFIG!$B$12="6-12",D45="HS"),VLOOKUP(F45,'JOB CODE LOOKUP'!$S$2:$W$222,2,FALSE),IF(AND(CONFIG!$B$12="6-12",D45="MS"),VLOOKUP(F45,'JOB CODE LOOKUP'!$M$2:$Q$222,2,FALSE),"")))))))) ->  | S45: =IF(CONFIG!$B$2<>"Y","",(IF(OR(G45="",LEFT(H45,1)="2",H45="19",L45="1911"),"",dbs(BV45,CONFIG!$B$4&":Employee - School Staffing",CONFIG!$B$5,CONFIG!$B$6,CONFIG!$C$9,H45,I45,J45,K45,L45,M45,N45,P45,Q45,R45,"FTE")))) ->  | T45: =IF(CONFIG!$B$2<>"Y","",(IF(OR(G45="",LEFT(H45,1)="2",H45="19",L45="1911"),"",dbs(BW45,CONFIG!$B$4&":Employee - School Staffing",CONFIG!$B$5,CONFIG!$B$6,CONFIG!$C$9,H45,I45,J45,K45,L45,M45,N45,P45,Q45,R45,"AMOUNT")))) ->  | U45: =IF(CONFIG!$B$2<>"Y","",(IF(OR(G45="",LEFT(H45,1)="2",H45="19",L45="1911"),"",dbs(BX45,CONFIG!$B$4&":Employee - School Staffing",CONFIG!$B$5,CONFIG!$B$6,CONFIG!$C$9,H45,I45,J45,K45,L45,M45,O45,P45,Q45,R45,"AMOUNT")))) ->  | Y45: 04 | AA45: =(IF(AC45="",0,IF(CONFIG!$B$22<>"Autonomous",ROUND(VLOOKUP(R45,'AVERAGE SALARY LOOKUP'!$A$3:$E$10004,4,FALSE)*AC45,0),IF(E45="",0,IF(E45="vacancy",ROUND(VLOOKUP(R45,'AVERAGE SALARY LOOKUP'!$A$3:$E$10004,4,FALSE)*AC45,0),ROUND(VLOOKUP(E45,'FULL TIME ACTUAL RATES'!$B$2:$G$4927,6,FALSE)*AC45,0)))))) -> 0 | AB45: =IF($H45="",0,IF(CONFIG!$B$22="Autonomous",ROUND((AA45*VLOOKUP($H45,CONFIG!$A$46:$C$55,3,FALSE)+(VLOOKUP($BR45,CONFIG!$A$33:$C$43,3,FALSE)*AC45)),0),(ROUND('School Staffing Tool'!AC45*VLOOKUP(R45,'AVERAGE SALARY LOOKUP'!$A$3:$F$700,6,FALSE),0)))) -> 0 | AD45: 0 | AH45: =(IF(AJ45="",0,ROUND(VLOOKUP(R45,'AVERAGE SALARY LOOKUP'!$A$3:$E$10004,4,FALSE)*AJ45,0))) -> 0 | AI45: =IF($H45="",0,IF(CONFIG!$B$22="Autonomous",ROUND((AH45*VLOOKUP($H45,CONFIG!$A$46:$C$55,3,FALSE)+(VLOOKUP($BR45,CONFIG!$A$33:$C$43,3,FALSE)*AJ45)),0),IF(H45="10",(ROUND(AJ45*VLOOKUP($R45,'AVERAGE SALARY LOOKUP'!$A$3:$I$700,6,FALSE),0)),(ROUND(AJ45*VLOOKUP($R45,'AVERAGE SALARY LOOKUP'!$A$3:$I$700,9,FALSE),0))))) -> 0 | AK45: 0 | AO45: =(IF(AQ45="",0,IF(CONFIG!$B$22<>"Autonomous",ROUND(VLOOKUP(R45,'AVERAGE SALARY LOOKUP'!$A$3:$E$10004,4,FALSE)*AQ45,0),IF(E45="",0,IF(E45="vacancy",ROUND(VLOOKUP(R45,'AVERAGE SALARY LOOKUP'!$A$3:$E$10004,4,FALSE)*AQ45,0),ROUND(VLOOKUP(E45,'FULL TIME ACTUAL RATES'!$B$2:$G$4927,6,FALSE)*AQ45,0)))))) -> 0 | AP45: =IF($H45="",0,IF(CONFIG!$B$22="Autonomous",ROUND((AO45*VLOOKUP($H45,CONFIG!$A$46:$C$55,3,FALSE)+(VLOOKUP($BR45,CONFIG!$A$33:$C$43,3,FALSE)*AQ45)),0),(ROUND('School Staffing Tool'!AQ45*VLOOKUP($R45,'AVERAGE SALARY LOOKUP'!$A$3:$F$700,6,FALSE),0)))) -> 0 | AR45: 0 | AV45: =(IF(AX45="",0,ROUND(VLOOKUP(R45,'AVERAGE SALARY LOOKUP'!$A$3:$E$10004,4,FALSE)*AX45,0))) -> 0 | AW45: =IF($H45="",0,IF(CONFIG!$B$22="Autonomous",ROUND((AV45*VLOOKUP($H45,CONFIG!$A$46:$C$55,3,FALSE)+(VLOOKUP($BR45,CONFIG!$A$33:$C$43,3,FALSE)*AX45)),0),(ROUND('School Staffing Tool'!AX45*VLOOKUP($R45,'AVERAGE SALARY LOOKUP'!$A$3:$H$700,8,FALSE),0)))) -> 0 | AY45: 0 | BC45: 0 | BD45: =IF(BB45="",0,ROUND((BC45*VLOOKUP($H45,CONFIG!$A$46:$C$55,3,FALSE)+(VLOOKUP($BR45,CONFIG!$A$33:$C$43,3,FALSE)*BE45)),0)) -> 0 | BF45: 0 | BJ45: =(IF(BL45="",0,ROUND(VLOOKUP($R$34,'AVERAGE SALARY LOOKUP'!$A$3:$E$10004,4,FALSE)*BL45,0))) -> 0 | BK45: =IF($H45="",0,IF(CONFIG!$B$22="Autonomous",ROUND((BJ45*VLOOKUP($H45,CONFIG!$A$46:$C$55,3,FALSE)+(VLOOKUP($BR45,CONFIG!$A$33:$C$43,3,FALSE)*BL45)),0),(ROUND('School Staffing Tool'!BL45*VLOOKUP($R45,'AVERAGE SALARY LOOKUP'!$A$3:$F$700,6,FALSE),0)))) -> 0 | BM45: 0 | BQ45: 0 | BR45: =IF(R45="","",VLOOKUP(R45,'AVERAGE SALARY LOOKUP'!$A$3:$C$686,3,FALSE)) ->  | BS45: 0 | BV45: 0 | BW45: 0 | BX45: 0
A46: 0289 FY 10-11 P005 | B46: =CONCATENATE(CONFIG!$C$9," ",CONFIG!$B$6," ",P46,Q46) -> 0289 FY 10-11 P005A | C46: 1/2 Split | F46: Title I - ARRA Teacher | G46: =IF(F46="","",IF(OR(D46="",D46="HS"),VLOOKUP(F46,'JOB CODE LOOKUP'!$S$5:$V$183,3,FALSE),VLOOKUP(F46,'JOB CODE LOOKUP'!$S$5:$V$183,4,FALSE))) -> 20289110018438920110 | H46: 20 | I46: 289 | J46: 11 | K46: 0018 | L46: 4389 | M46: 2 | N46: 0110 | O46: 0200 | P46: P005 | Q46: A | R46: =IF(F46="","",(IF(CONFIG!$B$12="ES",VLOOKUP(F46,'JOB CODE LOOKUP'!$A$2:$E$222,2,FALSE),IF(CONFIG!$B$12="K-8",VLOOKUP(F46,'JOB CODE LOOKUP'!$G$2:$K$222,2,FALSE),IF(CONFIG!$B$12="MS",VLOOKUP(F46,'JOB CODE LOOKUP'!$M$2:$Q$222,2,FALSE),IF(CONFIG!$B$12="HS",VLOOKUP(F46,'JOB CODE LOOKUP'!$S$2:$W$222,2,FALSE),IF(AND(CONFIG!$B$12="6-12",D46="HS"),VLOOKUP(F46,'JOB CODE LOOKUP'!$S$2:$W$222,2,FALSE),IF(AND(CONFIG!$B$12="6-12",D46="MS"),VLOOKUP(F46,'JOB CODE LOOKUP'!$M$2:$Q$222,2,FALSE),"")))))))) -> 3302 | S46: =IF(CONFIG!$B$2<>"Y","",(IF(OR(G46="",LEFT(H46,1)="2",H46="19",L46="1911"),"",dbs(BV46,CONFIG!$B$4&":Employee - School Staffing",CONFIG!$B$5,CONFIG!$B$6,CONFIG!$C$9,H46,I46,J46,K46,L46,M46,N46,P46,Q46,R46,"FTE")))) ->  | T46: =IF(CONFIG!$B$2<>"Y","",(IF(OR(G46="",LEFT(H46,1)="2",H46="19",L46="1911"),"",dbs(BW46,CONFIG!$B$4&":Employee - School Staffing",CONFIG!$B$5,CONFIG!$B$6,CONFIG!$C$9,H46,I46,J46,K46,L46,M46,N46,P46,Q46,R46,"AMOUNT")))) ->  | U46: =IF(CONFIG!$B$2<>"Y","",(IF(OR(G46="",LEFT(H46,1)="2",H46="19",L46="1911"),"",dbs(BX46,CONFIG!$B$4&":Employee - School Staffing",CONFIG!$B$5,CONFIG!$B$6,CONFIG!$C$9,H46,I46,J46,K46,L46,M46,O46,P46,Q46,R46,"AMOUNT")))) ->  | Y46: 05 | AA46: =(IF(AC46="",0,IF(CONFIG!$B$22<>"Autonomous",ROUND(VLOOKUP(R46,'AVERAGE SALARY LOOKUP'!$A$3:$E$10004,4,FALSE)*AC46,0),IF(E46="",0,IF(E46="vacancy",ROUND(VLOOKUP(R46,'AVERAGE SALARY LOOKUP'!$A$3:$E$10004,4,FALSE)*AC46,0),ROUND(VLOOKUP(E46,'FULL TIME ACTUAL RATES'!$B$2:$G$4927,6,FALSE)*AC46,0)))))) -> 0 | AB46: =IF($H46="",0,IF(CONFIG!$B$22="Autonomous",ROUND((AA46*VLOOKUP($H46,CONFIG!$A$46:$C$55,3,FALSE)+(VLOOKUP($BR46,CONFIG!$A$33:$C$43,3,FALSE)*AC46)),0),(ROUND('School Staffing Tool'!AC46*VLOOKUP(R46,'AVERAGE SALARY LOOKUP'!$A$3:$F$700,6,FALSE),0)))) -> 0 | AD46: 0 | AH46: =(IF(AJ46="",0,ROUND(VLOOKUP(R46,'AVERAGE SALARY LOOKUP'!$A$3:$E$10004,4,FALSE)*AJ46,0))) -> 0 | AI46: =IF($H46="",0,IF(CONFIG!$B$22="Autonomous",ROUND((AH46*VLOOKUP($H46,CONFIG!$A$46:$C$55,3,FALSE)+(VLOOKUP($BR46,CONFIG!$A$33:$C$43,3,FALSE)*AJ46)),0),IF(H46="10",(ROUND(AJ46*VLOOKUP($R46,'AVERAGE SALARY LOOKUP'!$A$3:$I$700,6,FALSE),0)),(ROUND(AJ46*VLOOKUP($R46,'AVERAGE SALARY LOOKUP'!$A$3:$I$700,9,FALSE),0))))) -> 0 | AK46: 0 | AO46: =(IF(AQ46="",0,IF(CONFIG!$B$22<>"Autonomous",ROUND(VLOOKUP(R46,'AVERAGE SALARY LOOKUP'!$A$3:$E$10004,4,FALSE)*AQ46,0),IF(E46="",0,IF(E46="vacancy",ROUND(VLOOKUP(R46,'AVERAGE SALARY LOOKUP'!$A$3:$E$10004,4,FALSE)*AQ46,0),ROUND(VLOOKUP(E46,'FULL TIME ACTUAL RATES'!$B$2:$G$4927,6,FALSE)*AQ46,0)))))) -> 0 | AP46: =IF($H46="",0,IF(CONFIG!$B$22="Autonomous",ROUND((AO46*VLOOKUP($H46,CONFIG!$A$46:$C$55,3,FALSE)+(VLOOKUP($BR46,CONFIG!$A$33:$C$43,3,FALSE)*AQ46)),0),(ROUND('School Staffing Tool'!AQ46*VLOOKUP($R46,'AVERAGE SALARY LOOKUP'!$A$3:$F$700,6,FALSE),0)))) -> 0 | AR46: 0 | AU46: Title I - ARRA Teacher | AV46: =(IF(AX46="",0,ROUND(VLOOKUP(R46,'AVERAGE SALARY LOOKUP'!$A$3:$E$10004,4,FALSE)*AX46,0))) -> 25366 | AW46: =IF($H46="",0,IF(CONFIG!$B$22="Autonomous",ROUND((AV46*VLOOKUP($H46,CONFIG!$A$46:$C$55,3,FALSE)+(VLOOKUP($BR46,CONFIG!$A$33:$C$43,3,FALSE)*AX46)),0),(ROUND('School Staffing Tool'!AX46*VLOOKUP($R46,'AVERAGE SALARY LOOKUP'!$A$3:$H$700,8,FALSE),0)))) -> 7963 | AX46: 0.49 | AY46: 33329 | BC46: 0 | BD46: =IF(BB46="",0,ROUND((BC46*VLOOKUP($H46,CONFIG!$A$46:$C$55,3,FALSE)+(VLOOKUP($BR46,CONFIG!$A$33:$C$43,3,FALSE)*BE46)),0)) -> 0 | BF46: 0 | BJ46: =(IF(BL46="",0,ROUND(VLOOKUP($R$34,'AVERAGE SALARY LOOKUP'!$A$3:$E$10004,4,FALSE)*BL46,0))) -> 0 | BK46: =IF($H46="",0,IF(CONFIG!$B$22="Autonomous",ROUND((BJ46*VLOOKUP($H46,CONFIG!$A$46:$C$55,3,FALSE)+(VLOOKUP($BR46,CONFIG!$A$33:$C$43,3,FALSE)*BL46)),0),(ROUND('School Staffing Tool'!BL46*VLOOKUP($R46,'AVERAGE SALARY LOOKUP'!$A$3:$F$700,6,FALSE),0)))) -> 0 | BM46: 0 | BQ46: 0.49 | BR46: =IF(R46="","",VLOOKUP(R46,'AVERAGE SALARY LOOKUP'!$A$3:$C$686,3,FALSE)) -> DCTA | BS46: 0.49 | BU46: 20,4389,2 | BV46: 0.49 | BW46: 25366 | BX46: 7963
A47: 0289 FY 10-11 P005 | B47: =CONCATENATE(CONFIG!$C$9," ",CONFIG!$B$6," ",P47,Q47) -> 0289 FY 10-11 P005B | F47: ML Regular Teacher (Facilitator Conv) | G47: =IF(F47="","",IF(OR(D47="",D47="HS"),VLOOKUP(F47,'JOB CODE LOOKUP'!$S$5:$V$183,3,FALSE),VLOOKUP(F47,'JOB CODE LOOKUP'!$S$5:$V$183,4,FALSE))) -> 12289110018008620110 | H47: 12 | I47: 289 | J47: 11 | K47: 0018 | L47: 0086 | M47: 2 | N47: 0110 | O47: 0200 | P47: P005 | Q47: B | R47: =IF(F47="","",(IF(CONFIG!$B$12="ES",VLOOKUP(F47,'JOB CODE LOOKUP'!$A$2:$E$222,2,FALSE),IF(CONFIG!$B$12="K-8",VLOOKUP(F47,'JOB CODE LOOKUP'!$G$2:$K$222,2,FALSE),IF(CONFIG!$B$12="MS",VLOOKUP(F47,'JOB CODE LOOKUP'!$M$2:$Q$222,2,FALSE),IF(CONFIG!$B$12="HS",VLOOKUP(F47,'JOB CODE LOOKUP'!$S$2:$W$222,2,FALSE),IF(AND(CONFIG!$B$12="6-12",D47="HS"),VLOOKUP(F47,'JOB CODE LOOKUP'!$S$2:$W$222,2,FALSE),IF(AND(CONFIG!$B$12="6-12",D47="MS"),VLOOKUP(F47,'JOB CODE LOOKUP'!$M$2:$Q$222,2,FALSE),"")))))))) -> 3302 | S47: =IF(CONFIG!$B$2<>"Y","",(IF(OR(G47="",LEFT(H47,1)="2",H47="19",L47="1911"),"",dbs(BV47,CONFIG!$B$4&":Employee - School Staffing",CONFIG!$B$5,CONFIG!$B$6,CONFIG!$C$9,H47,I47,J47,K47,L47,M47,N47,P47,Q47,R47,"FTE")))) ->  | T47: =IF(CONFIG!$B$2<>"Y","",(IF(OR(G47="",LEFT(H47,1)="2",H47="19",L47="1911"),"",dbs(BW47,CONFIG!$B$4&":Employee - School Staffing",CONFIG!$B$5,CONFIG!$B$6,CONFIG!$C$9,H47,I47,J47,K47,L47,M47,N47,P47,Q47,R47,"AMOUNT")))) ->  | U47: =IF(CONFIG!$B$2<>"Y","",(IF(OR(G47="",LEFT(H47,1)="2",H47="19",L47="1911"),"",dbs(BX47,CONFIG!$B$4&":Employee - School Staffing",CONFIG!$B$5,CONFIG!$B$6,CONFIG!$C$9,H47,I47,J47,K47,L47,M47,O47,P47,Q47,R47,"AMOUNT")))) ->  | Y47: 05 | AA47: =(IF(AC47="",0,IF(CONFIG!$B$22<>"Autonomous",ROUND(VLOOKUP(R47,'AVERAGE SALARY LOOKUP'!$A$3:$E$10004,4,FALSE)*AC47,0),IF(E47="",0,IF(E47="vacancy",ROUND(VLOOKUP(R47,'AVERAGE SALARY LOOKUP'!$A$3:$E$10004,4,FALSE)*AC47,0),ROUND(VLOOKUP(E47,'FULL TIME ACTUAL RATES'!$B$2:$G$4927,6,FALSE)*AC47,0)))))) -> 0 | AB47: =IF($H47="",0,IF(CONFIG!$B$22="Autonomous",ROUND((AA47*VLOOKUP($H47,CONFIG!$A$46:$C$55,3,FALSE)+(VLOOKUP($BR47,CONFIG!$A$33:$C$43,3,FALSE)*AC47)),0),(ROUND('School Staffing Tool'!AC47*VLOOKUP(R47,'AVERAGE SALARY LOOKUP'!$A$3:$F$700,6,FALSE),0)))) -> 0 | AD47: 0 | AH47: =(IF(AJ47="",0,ROUND(VLOOKUP(R47,'AVERAGE SALARY LOOKUP'!$A$3:$E$10004,4,FALSE)*AJ47,0))) -> 0 | AI47: =IF($H47="",0,IF(CONFIG!$B$22="Autonomous",ROUND((AH47*VLOOKUP($H47,CONFIG!$A$46:$C$55,3,FALSE)+(VLOOKUP($BR47,CONFIG!$A$33:$C$43,3,FALSE)*AJ47)),0),IF(H47="10",(ROUND(AJ47*VLOOKUP($R47,'AVERAGE SALARY LOOKUP'!$A$3:$I$700,6,FALSE),0)),(ROUND(AJ47*VLOOKUP($R47,'AVERAGE SALARY LOOKUP'!$A$3:$I$700,9,FALSE),0))))) -> 0 | AK47: 0 | AN47: ML Regular Teacher (Facilitator Conv) | AO47: =(IF(AQ47="",0,IF(CONFIG!$B$22<>"Autonomous",ROUND(VLOOKUP(R47,'AVERAGE SALARY LOOKUP'!$A$3:$E$10004,4,FALSE)*AQ47,0),IF(E47="",0,IF(E47="vacancy",ROUND(VLOOKUP(R47,'AVERAGE SALARY LOOKUP'!$A$3:$E$10004,4,FALSE)*AQ47,0),ROUND(VLOOKUP(E47,'FULL TIME ACTUAL RATES'!$B$2:$G$4927,6,FALSE)*AQ47,0)))))) -> 13460 | AP47: =IF($H47="",0,IF(CONFIG!$B$22="Autonomous",ROUND((AO47*VLOOKUP($H47,CONFIG!$A$46:$C$55,3,FALSE)+(VLOOKUP($BR47,CONFIG!$A$33:$C$43,3,FALSE)*AQ47)),0),(ROUND('School Staffing Tool'!AQ47*VLOOKUP($R47,'AVERAGE SALARY LOOKUP'!$A$3:$F$700,6,FALSE),0)))) -> 3686 | AQ47: 0.26 | AR47: 17146 | AV47: =(IF(AX47="",0,ROUND(VLOOKUP(R47,'AVERAGE SALARY LOOKUP'!$A$3:$E$10004,4,FALSE)*AX47,0))) -> 0 | AW47: =IF($H47="",0,IF(CONFIG!$B$22="Autonomous",ROUND((AV47*VLOOKUP($H47,CONFIG!$A$46:$C$55,3,FALSE)+(VLOOKUP($BR47,CONFIG!$A$33:$C$43,3,FALSE)*AX47)),0),(ROUND('School Staffing Tool'!AX47*VLOOKUP($R47,'AVERAGE SALARY LOOKUP'!$A$3:$H$700,8,FALSE),0)))) -> 0 | AY47: 0 | BC47: 0 | BD47: =IF(BB47="",0,ROUND((BC47*VLOOKUP($H47,CONFIG!$A$46:$C$55,3,FALSE)+(VLOOKUP($BR47,CONFIG!$A$33:$C$43,3,FALSE)*BE47)),0)) -> 0 | BF47: 0 | BJ47: =(IF(BL47="",0,ROUND(VLOOKUP($R$34,'AVERAGE SALARY LOOKUP'!$A$3:$E$10004,4,FALSE)*BL47,0))) -> 0 | BK47: =IF($H47="",0,IF(CONFIG!$B$22="Autonomous",ROUND((BJ47*VLOOKUP($H47,CONFIG!$A$46:$C$55,3,FALSE)+(VLOOKUP($BR47,CONFIG!$A$33:$C$43,3,FALSE)*BL47)),0),(ROUND('School Staffing Tool'!BL47*VLOOKUP($R47,'AVERAGE SALARY LOOKUP'!$A$3:$F$700,6,FALSE),0)))) -> 0 | BM47: 0 | BQ47: 0.26 | BR47: =IF(R47="","",VLOOKUP(R47,'AVERAGE SALARY LOOKUP'!$A$3:$C$686,3,FALSE)) -> DCTA | BS47: 0.26 | BU47: 12,0086,2 | BV47: 0.26 | BW47: 13460 | BX47: 3686
A48: 0289 FY 10-11 P005 | B48: =CONCATENATE(CONFIG!$C$9," ",CONFIG!$B$6," ",P48,Q48) -> 0289 FY 10-11 P005C | F48: Title I Teacher | G48: =IF(F48="","",IF(OR(D48="",D48="HS"),VLOOKUP(F48,'JOB CODE LOOKUP'!$S$5:$V$183,3,FALSE),VLOOKUP(F48,'JOB CODE LOOKUP'!$S$5:$V$183,4,FALSE))) -> 28289110018401020110 | H48: 28 | I48: 289 | J48: 11 | K48: 0018 | L48: 4010 | M48: 2 | N48: 0110 | O48: 0200 | P48: P005 | Q48: C | R48: =IF(F48="","",(IF(CONFIG!$B$12="ES",VLOOKUP(F48,'JOB CODE LOOKUP'!$A$2:$E$222,2,FALSE),IF(CONFIG!$B$12="K-8",VLOOKUP(F48,'JOB CODE LOOKUP'!$G$2:$K$222,2,FALSE),IF(CONFIG!$B$12="MS",VLOOKUP(F48,'JOB CODE LOOKUP'!$M$2:$Q$222,2,FALSE),IF(CONFIG!$B$12="HS",VLOOKUP(F48,'JOB CODE LOOKUP'!$S$2:$W$222,2,FALSE),IF(AND(CONFIG!$B$12="6-12",D48="HS"),VLOOKUP(F48,'JOB CODE LOOKUP'!$S$2:$W$222,2,FALSE),IF(AND(CONFIG!$B$12="6-12",D48="MS"),VLOOKUP(F48,'JOB CODE LOOKUP'!$M$2:$Q$222,2,FALSE),"")))))))) -> 3302 | S48: =IF(CONFIG!$B$2<>"Y","",(IF(OR(G48="",LEFT(H48,1)="2",H48="19",L48="1911"),"",dbs(BV48,CONFIG!$B$4&":Employee - School Staffing",CONFIG!$B$5,CONFIG!$B$6,CONFIG!$C$9,H48,I48,J48,K48,L48,M48,N48,P48,Q48,R48,"FTE")))) ->  | T48: =IF(CONFIG!$B$2<>"Y","",(IF(OR(G48="",LEFT(H48,1)="2",H48="19",L48="1911"),"",dbs(BW48,CONFIG!$B$4&":Employee - School Staffing",CONFIG!$B$5,CONFIG!$B$6,CONFIG!$C$9,H48,I48,J48,K48,L48,M48,N48,P48,Q48,R48,"AMOUNT")))) ->  | U48: =IF(CONFIG!$B$2<>"Y","",(IF(OR(G48="",LEFT(H48,1)="2",H48="19",L48="1911"),"",dbs(BX48,CONFIG!$B$4&":Employee - School Staffing",CONFIG!$B$5,CONFIG!$B$6,CONFIG!$C$9,H48,I48,J48,K48,L48,M48,O48,P48,Q48,R48,"AMOUNT")))) ->  | Y48: 05 | AA48: =(IF(AC48="",0,IF(CONFIG!$B$22<>"Autonomous",ROUND(VLOOKUP(R48,'AVERAGE SALARY LOOKUP'!$A$3:$E$10004,4,FALSE)*AC48,0),IF(E48="",0,IF(E48="vacancy",ROUND(VLOOKUP(R48,'AVERAGE SALARY LOOKUP'!$A$3:$E$10004,4,FALSE)*AC48,0),ROUND(VLOOKUP(E48,'FULL TIME ACTUAL RATES'!$B$2:$G$4927,6,FALSE)*AC48,0)))))) -> 0 | AB48: =IF($H48="",0,IF(CONFIG!$B$22="Autonomous",ROUND((AA48*VLOOKUP($H48,CONFIG!$A$46:$C$55,3,FALSE)+(VLOOKUP($BR48,CONFIG!$A$33:$C$43,3,FALSE)*AC48)),0),(ROUND('School Staffing Tool'!AC48*VLOOKUP(R48,'AVERAGE SALARY LOOKUP'!$A$3:$F$700,6,FALSE),0)))) -> 0 | AD48: 0 | AH48: =(IF(AJ48="",0,ROUND(VLOOKUP(R48,'AVERAGE SALARY LOOKUP'!$A$3:$E$10004,4,FALSE)*AJ48,0))) -> 0 | AI48: =IF($H48="",0,IF(CONFIG!$B$22="Autonomous",ROUND((AH48*VLOOKUP($H48,CONFIG!$A$46:$C$55,3,FALSE)+(VLOOKUP($BR48,CONFIG!$A$33:$C$43,3,FALSE)*AJ48)),0),IF(H48="10",(ROUND(AJ48*VLOOKUP($R48,'AVERAGE SALARY LOOKUP'!$A$3:$I$700,6,FALSE),0)),(ROUND(AJ48*VLOOKUP($R48,'AVERAGE SALARY LOOKUP'!$A$3:$I$700,9,FALSE),0))))) -> 0 | AK48: 0 | AO48: =(IF(AQ48="",0,IF(CONFIG!$B$22<>"Autonomous",ROUND(VLOOKUP(R48,'AVERAGE SALARY LOOKUP'!$A$3:$E$10004,4,FALSE)*AQ48,0),IF(E48="",0,IF(E48="vacancy",ROUND(VLOOKUP(R48,'AVERAGE SALARY LOOKUP'!$A$3:$E$10004,4,FALSE)*AQ48,0),ROUND(VLOOKUP(E48,'FULL TIME ACTUAL RATES'!$B$2:$G$4927,6,FALSE)*AQ48,0)))))) -> 0 | AP48: =IF($H48="",0,IF(CONFIG!$B$22="Autonomous",ROUND((AO48*VLOOKUP($H48,CONFIG!$A$46:$C$55,3,FALSE)+(VLOOKUP($BR48,CONFIG!$A$33:$C$43,3,FALSE)*AQ48)),0),(ROUND('School Staffing Tool'!AQ48*VLOOKUP($R48,'AVERAGE SALARY LOOKUP'!$A$3:$F$700,6,FALSE),0)))) -> 0 | AR48: 0 | AU48: Title I Teacher | AV48: =(IF(AX48="",0,ROUND(VLOOKUP(R48,'AVERAGE SALARY LOOKUP'!$A$3:$E$10004,4,FALSE)*AX48,0))) -> 12942 | AW48: =IF($H48="",0,IF(CONFIG!$B$22="Autonomous",ROUND((AV48*VLOOKUP($H48,CONFIG!$A$46:$C$55,3,FALSE)+(VLOOKUP($BR48,CONFIG!$A$33:$C$43,3,FALSE)*AX48)),0),(ROUND('School Staffing Tool'!AX48*VLOOKUP($R48,'AVERAGE SALARY LOOKUP'!$A$3:$H$700,8,FALSE),0)))) -> 4063 | AX48: 0.25 | AY48: 17005 | BC48: 0 | BD48: =IF(BB48="",0,ROUND((BC48*VLOOKUP($H48,CONFIG!$A$46:$C$55,3,FALSE)+(VLOOKUP($BR48,CONFIG!$A$33:$C$43,3,FALSE)*BE48)),0)) -> 0 | BF48: 0 | BJ48: =(IF(BL48="",0,ROUND(VLOOKUP($R$34,'AVERAGE SALARY LOOKUP'!$A$3:$E$10004,4,FALSE)*BL48,0))) -> 0 | BK48: =IF($H48="",0,IF(CONFIG!$B$22="Autonomous",ROUND((BJ48*VLOOKUP($H48,CONFIG!$A$46:$C$55,3,FALSE)+(VLOOKUP($BR48,CONFIG!$A$33:$C$43,3,FALSE)*BL48)),0),(ROUND('School Staffing Tool'!BL48*VLOOKUP($R48,'AVERAGE SALARY LOOKUP'!$A$3:$F$700,6,FALSE),0)))) -> 0 | BM48: 0 | BQ48: 0.25 | BR48: =IF(R48="","",VLOOKUP(R48,'AVERAGE SALARY LOOKUP'!$A$3:$C$686,3,FALSE)) -> DCTA | BS48: 0.25 | BU48: 28,4010,2 | BV48: 0.25 | BW48: 12942 | BX48: 4063
A49: 0289 FY 10-11 P006 | B49: =CONCATENATE(CONFIG!$C$9," ",CONFIG!$B$6," ",P49,Q49) -> 0289 FY 10-11 P006A | C49: 2/3 Lit | F49: ELA - E Teacher | G49: =IF(F49="","",IF(OR(D49="",D49="HS"),VLOOKUP(F49,'JOB CODE LOOKUP'!$S$5:$V$183,3,FALSE),VLOOKUP(F49,'JOB CODE LOOKUP'!$S$5:$V$183,4,FALSE))) -> 10289110018314520110 | H49: 10 | I49: 289 | J49: 11 | K49: 0018 | L49: 3145 | M49: 2 | N49: 0110 | O49: 0200 | P49: P006 | Q49: A | R49: =IF(F49="","",(IF(CONFIG!$B$12="ES",VLOOKUP(F49,'JOB CODE LOOKUP'!$A$2:$E$222,2,FALSE),IF(CONFIG!$B$12="K-8",VLOOKUP(F49,'JOB CODE LOOKUP'!$G$2:$K$222,2,FALSE),IF(CONFIG!$B$12="MS",VLOOKUP(F49,'JOB CODE LOOKUP'!$M$2:$Q$222,2,FALSE),IF(CONFIG!$B$12="HS",VLOOKUP(F49,'JOB CODE LOOKUP'!$S$2:$W$222,2,FALSE),IF(AND(CONFIG!$B$12="6-12",D49="HS"),VLOOKUP(F49,'JOB CODE LOOKUP'!$S$2:$W$222,2,FALSE),IF(AND(CONFIG!$B$12="6-12",D49="MS"),VLOOKUP(F49,'JOB CODE LOOKUP'!$M$2:$Q$222,2,FALSE),"")))))))) -> 3302 | S49: =IF(CONFIG!$B$2<>"Y","",(IF(OR(G49="",LEFT(H49,1)="2",H49="19",L49="1911"),"",dbs(BV49,CONFIG!$B$4&":Employee - School Staffing",CONFIG!$B$5,CONFIG!$B$6,CONFIG!$C$9,H49,I49,J49,K49,L49,M49,N49,P49,Q49,R49,"FTE")))) ->  | T49: =IF(CONFIG!$B$2<>"Y","",(IF(OR(G49="",LEFT(H49,1)="2",H49="19",L49="1911"),"",dbs(BW49,CONFIG!$B$4&":Employee - School Staffing",CONFIG!$B$5,CONFIG!$B$6,CONFIG!$C$9,H49,I49,J49,K49,L49,M49,N49,P49,Q49,R49,"AMOUNT")))) ->  | U49: =IF(CONFIG!$B$2<>"Y","",(IF(OR(G49="",LEFT(H49,1)="2",H49="19",L49="1911"),"",dbs(BX49,CONFIG!$B$4&":Employee - School Staffing",CONFIG!$B$5,CONFIG!$B$6,CONFIG!$C$9,H49,I49,J49,K49,L49,M49,O49,P49,Q49,R49,"AMOUNT")))) ->  | Y49: 06 | Z49: ELA - E Teacher | AA49: =(IF(AC49="",0,IF(CONFIG!$B$22<>"Autonomous",ROUND(VLOOKUP(R49,'AVERAGE SALARY LOOKUP'!$A$3:$E$10004,4,FALSE)*AC49,0),IF(E49="",0,IF(E49="vacancy",ROUND(VLOOKUP(R49,'AVERAGE SALARY LOOKUP'!$A$3:$E$10004,4,FALSE)*AC49,0),ROUND(VLOOKUP(E49,'FULL TIME ACTUAL RATES'!$B$2:$G$4927,6,FALSE)*AC49,0)))))) -> 51768 | AB49: =IF($H49="",0,IF(CONFIG!$B$22="Autonomous",ROUND((AA49*VLOOKUP($H49,CONFIG!$A$46:$C$55,3,FALSE)+(VLOOKUP($BR49,CONFIG!$A$33:$C$43,3,FALSE)*AC49)),0),(ROUND('School Staffing Tool'!AC49*VLOOKUP(R49,'AVERAGE SALARY LOOKUP'!$A$3:$F$700,6,FALSE),0)))) -> 14176 | AC49: 1 | AD49: 65944 | AH49: =(IF(AJ49="",0,ROUND(VLOOKUP(R49,'AVERAGE SALARY LOOKUP'!$A$3:$E$10004,4,FALSE)*AJ49,0))) -> 0 | AI49: =IF($H49="",0,IF(CONFIG!$B$22="Autonomous",ROUND((AH49*VLOOKUP($H49,CONFIG!$A$46:$C$55,3,FALSE)+(VLOOKUP($BR49,CONFIG!$A$33:$C$43,3,FALSE)*AJ49)),0),IF(H49="10",(ROUND(AJ49*VLOOKUP($R49,'AVERAGE SALARY LOOKUP'!$A$3:$I$700,6,FALSE),0)),(ROUND(AJ49*VLOOKUP($R49,'AVERAGE SALARY LOOKUP'!$A$3:$I$700,9,FALSE),0))))) -> 0 | AK49: 0 | AO49: =(IF(AQ49="",0,IF(CONFIG!$B$22<>"Autonomous",ROUND(VLOOKUP(R49,'AVERAGE SALARY LOOKUP'!$A$3:$E$10004,4,FALSE)*AQ49,0),IF(E49="",0,IF(E49="vacancy",ROUND(VLOOKUP(R49,'AVERAGE SALARY LOOKUP'!$A$3:$E$10004,4,FALSE)*AQ49,0),ROUND(VLOOKUP(E49,'FULL TIME ACTUAL RATES'!$B$2:$G$4927,6,FALSE)*AQ49,0)))))) -> 0 | AP49: =IF($H49="",0,IF(CONFIG!$B$22="Autonomous",ROUND((AO49*VLOOKUP($H49,CONFIG!$A$46:$C$55,3,FALSE)+(VLOOKUP($BR49,CONFIG!$A$33:$C$43,3,FALSE)*AQ49)),0),(ROUND('School Staffing Tool'!AQ49*VLOOKUP($R49,'AVERAGE SALARY LOOKUP'!$A$3:$F$700,6,FALSE),0)))) -> 0 | AR49: 0 | AV49: =(IF(AX49="",0,ROUND(VLOOKUP(R49,'AVERAGE SALARY LOOKUP'!$A$3:$E$10004,4,FALSE)*AX49,0))) -> 0 | AW49: =IF($H49="",0,IF(CONFIG!$B$22="Autonomous",ROUND((AV49*VLOOKUP($H49,CONFIG!$A$46:$C$55,3,FALSE)+(VLOOKUP($BR49,CONFIG!$A$33:$C$43,3,FALSE)*AX49)),0),(ROUND('School Staffing Tool'!AX49*VLOOKUP($R49,'AVERAGE SALARY LOOKUP'!$A$3:$H$700,8,FALSE),0)))) -> 0 | AY49: 0 | BC49: 0 | BD49: =IF(BB49="",0,ROUND((BC49*VLOOKUP($H49,CONFIG!$A$46:$C$55,3,FALSE)+(VLOOKUP($BR49,CONFIG!$A$33:$C$43,3,FALSE)*BE49)),0)) -> 0 | BF49: 0 | BJ49: =(IF(BL49="",0,ROUND(VLOOKUP($R$34,'AVERAGE SALARY LOOKUP'!$A$3:$E$10004,4,FALSE)*BL49,0))) -> 0 | BK49: =IF($H49="",0,IF(CONFIG!$B$22="Autonomous",ROUND((BJ49*VLOOKUP($H49,CONFIG!$A$46:$C$55,3,FALSE)+(VLOOKUP($BR49,CONFIG!$A$33:$C$43,3,FALSE)*BL49)),0),(ROUND('School Staffing Tool'!BL49*VLOOKUP($R49,'AVERAGE SALARY LOOKUP'!$A$3:$F$700,6,FALSE),0)))) -> 0 | BM49: 0 | BQ49: 1 | BR49: =IF(R49="","",VLOOKUP(R49,'AVERAGE SALARY LOOKUP'!$A$3:$C$686,3,FALSE)) -> DCTA | BS49: 1 | BU49: 10,3145,2 | BV49: 1 | BW49: 51768 | BX49: 14176
A50: 0289 FY 10-11 P006 | B50: =CONCATENATE(CONFIG!$C$9," ",CONFIG!$B$6," ",P50,Q50) -> 0289 FY 10-11 P006B | G50: =IF(F50="","",IF(OR(D50="",D50="HS"),VLOOKUP(F50,'JOB CODE LOOKUP'!$S$5:$V$183,3,FALSE),VLOOKUP(F50,'JOB CODE LOOKUP'!$S$5:$V$183,4,FALSE))) ->  | P50: P006 | Q50: B | R50: =IF(F50="","",(IF(CONFIG!$B$12="ES",VLOOKUP(F50,'JOB CODE LOOKUP'!$A$2:$E$222,2,FALSE),IF(CONFIG!$B$12="K-8",VLOOKUP(F50,'JOB CODE LOOKUP'!$G$2:$K$222,2,FALSE),IF(CONFIG!$B$12="MS",VLOOKUP(F50,'JOB CODE LOOKUP'!$M$2:$Q$222,2,FALSE),IF(CONFIG!$B$12="HS",VLOOKUP(F50,'JOB CODE LOOKUP'!$S$2:$W$222,2,FALSE),IF(AND(CONFIG!$B$12="6-12",D50="HS"),VLOOKUP(F50,'JOB CODE LOOKUP'!$S$2:$W$222,2,FALSE),IF(AND(CONFIG!$B$12="6-12",D50="MS"),VLOOKUP(F50,'JOB CODE LOOKUP'!$M$2:$Q$222,2,FALSE),"")))))))) ->  | S50: =IF(CONFIG!$B$2<>"Y","",(IF(OR(G50="",LEFT(H50,1)="2",H50="19",L50="1911"),"",dbs(BV50,CONFIG!$B$4&":Employee - School Staffing",CONFIG!$B$5,CONFIG!$B$6,CONFIG!$C$9,H50,I50,J50,K50,L50,M50,N50,P50,Q50,R50,"FTE")))) ->  | T50: =IF(CONFIG!$B$2<>"Y","",(IF(OR(G50="",LEFT(H50,1)="2",H50="19",L50="1911"),"",dbs(BW50,CONFIG!$B$4&":Employee - School Staffing",CONFIG!$B$5,CONFIG!$B$6,CONFIG!$C$9,H50,I50,J50,K50,L50,M50,N50,P50,Q50,R50,"AMOUNT")))) ->  | U50: =IF(CONFIG!$B$2<>"Y","",(IF(OR(G50="",LEFT(H50,1)="2",H50="19",L50="1911"),"",dbs(BX50,CONFIG!$B$4&":Employee - School Staffing",CONFIG!$B$5,CONFIG!$B$6,CONFIG!$C$9,H50,I50,J50,K50,L50,M50,O50,P50,Q50,R50,"AMOUNT")))) ->  | Y50: 06 | AA50: =(IF(AC50="",0,IF(CONFIG!$B$22<>"Autonomous",ROUND(VLOOKUP(R50,'AVERAGE SALARY LOOKUP'!$A$3:$E$10004,4,FALSE)*AC50,0),IF(E50="",0,IF(E50="vacancy",ROUND(VLOOKUP(R50,'AVERAGE SALARY LOOKUP'!$A$3:$E$10004,4,FALSE)*AC50,0),ROUND(VLOOKUP(E50,'FULL TIME ACTUAL RATES'!$B$2:$G$4927,6,FALSE)*AC50,0)))))) -> 0 | AB50: =IF($H50="",0,IF(CONFIG!$B$22="Autonomous",ROUND((AA50*VLOOKUP($H50,CONFIG!$A$46:$C$55,3,FALSE)+(VLOOKUP($BR50,CONFIG!$A$33:$C$43,3,FALSE)*AC50)),0),(ROUND('School Staffing Tool'!AC50*VLOOKUP(R50,'AVERAGE SALARY LOOKUP'!$A$3:$F$700,6,FALSE),0)))) -> 0 | AD50: 0 | AH50: =(IF(AJ50="",0,ROUND(VLOOKUP(R50,'AVERAGE SALARY LOOKUP'!$A$3:$E$10004,4,FALSE)*AJ50,0))) -> 0 | AI50: =IF($H50="",0,IF(CONFIG!$B$22="Autonomous",ROUND((AH50*VLOOKUP($H50,CONFIG!$A$46:$C$55,3,FALSE)+(VLOOKUP($BR50,CONFIG!$A$33:$C$43,3,FALSE)*AJ50)),0),IF(H50="10",(ROUND(AJ50*VLOOKUP($R50,'AVERAGE SALARY LOOKUP'!$A$3:$I$700,6,FALSE),0)),(ROUND(AJ50*VLOOKUP($R50,'AVERAGE SALARY LOOKUP'!$A$3:$I$700,9,FALSE),0))))) -> 0 | AK50: 0 | AO50: =(IF(AQ50="",0,IF(CONFIG!$B$22<>"Autonomous",ROUND(VLOOKUP(R50,'AVERAGE SALARY LOOKUP'!$A$3:$E$10004,4,FALSE)*AQ50,0),IF(E50="",0,IF(E50="vacancy",ROUND(VLOOKUP(R50,'AVERAGE SALARY LOOKUP'!$A$3:$E$10004,4,FALSE)*AQ50,0),ROUND(VLOOKUP(E50,'FULL TIME ACTUAL RATES'!$B$2:$G$4927,6,FALSE)*AQ50,0)))))) -> 0 | AP50: =IF($H50="",0,IF(CONFIG!$B$22="Autonomous",ROUND((AO50*VLOOKUP($H50,CONFIG!$A$46:$C$55,3,FALSE)+(VLOOKUP($BR50,CONFIG!$A$33:$C$43,3,FALSE)*AQ50)),0),(ROUND('School Staffing Tool'!AQ50*VLOOKUP($R50,'AVERAGE SALARY LOOKUP'!$A$3:$F$700,6,FALSE),0)))) -> 0 | AR50: 0 | AV50: =(IF(AX50="",0,ROUND(VLOOKUP(R50,'AVERAGE SALARY LOOKUP'!$A$3:$E$10004,4,FALSE)*AX50,0))) -> 0 | AW50: =IF($H50="",0,IF(CONFIG!$B$22="Autonomous",ROUND((AV50*VLOOKUP($H50,CONFIG!$A$46:$C$55,3,FALSE)+(VLOOKUP($BR50,CONFIG!$A$33:$C$43,3,FALSE)*AX50)),0),(ROUND('School Staffing Tool'!AX50*VLOOKUP($R50,'AVERAGE SALARY LOOKUP'!$A$3:$H$700,8,FALSE),0)))) -> 0 | AY50: 0 | BC50: 0 | BD50: =IF(BB50="",0,ROUND((BC50*VLOOKUP($H50,CONFIG!$A$46:$C$55,3,FALSE)+(VLOOKUP($BR50,CONFIG!$A$33:$C$43,3,FALSE)*BE50)),0)) -> 0 | BF50: 0 | BJ50: =(IF(BL50="",0,ROUND(VLOOKUP($R$34,'AVERAGE SALARY LOOKUP'!$A$3:$E$10004,4,FALSE)*BL50,0))) -> 0 | BK50: =IF($H50="",0,IF(CONFIG!$B$22="Autonomous",ROUND((BJ50*VLOOKUP($H50,CONFIG!$A$46:$C$55,3,FALSE)+(VLOOKUP($BR50,CONFIG!$A$33:$C$43,3,FALSE)*BL50)),0),(ROUND('School Staffing Tool'!BL50*VLOOKUP($R50,'AVERAGE SALARY LOOKUP'!$A$3:$F$700,6,FALSE),0)))) -> 0 | BM50: 0 | BQ50: 0 | BR50: =IF(R50="","",VLOOKUP(R50,'AVERAGE SALARY LOOKUP'!$A$3:$C$686,3,FALSE)) ->  | BS50: 0 | BV50: 0 | BW50: 0 | BX50: 0
A51: 0289 FY 10-11 P006 | B51: =CONCATENATE(CONFIG!$C$9," ",CONFIG!$B$6," ",P51,Q51) -> 0289 FY 10-11 P006C | G51: =IF(F51="","",IF(OR(D51="",D51="HS"),VLOOKUP(F51,'JOB CODE LOOKUP'!$S$5:$V$183,3,FALSE),VLOOKUP(F51,'JOB CODE LOOKUP'!$S$5:$V$183,4,FALSE))) ->  | P51: P006 | Q51: C | R51: =IF(F51="","",(IF(CONFIG!$B$12="ES",VLOOKUP(F51,'JOB CODE LOOKUP'!$A$2:$E$222,2,FALSE),IF(CONFIG!$B$12="K-8",VLOOKUP(F51,'JOB CODE LOOKUP'!$G$2:$K$222,2,FALSE),IF(CONFIG!$B$12="MS",VLOOKUP(F51,'JOB CODE LOOKUP'!$M$2:$Q$222,2,FALSE),IF(CONFIG!$B$12="HS",VLOOKUP(F51,'JOB CODE LOOKUP'!$S$2:$W$222,2,FALSE),IF(AND(CONFIG!$B$12="6-12",D51="HS"),VLOOKUP(F51,'JOB CODE LOOKUP'!$S$2:$W$222,2,FALSE),IF(AND(CONFIG!$B$12="6-12",D51="MS"),VLOOKUP(F51,'JOB CODE LOOKUP'!$M$2:$Q$222,2,FALSE),"")))))))) ->  | S51: =IF(CONFIG!$B$2<>"Y","",(IF(OR(G51="",LEFT(H51,1)="2",H51="19",L51="1911"),"",dbs(BV51,CONFIG!$B$4&":Employee - School Staffing",CONFIG!$B$5,CONFIG!$B$6,CONFIG!$C$9,H51,I51,J51,K51,L51,M51,N51,P51,Q51,R51,"FTE")))) ->  | T51: =IF(CONFIG!$B$2<>"Y","",(IF(OR(G51="",LEFT(H51,1)="2",H51="19",L51="1911"),"",dbs(BW51,CONFIG!$B$4&":Employee - School Staffing",CONFIG!$B$5,CONFIG!$B$6,CONFIG!$C$9,H51,I51,J51,K51,L51,M51,N51,P51,Q51,R51,"AMOUNT")))) ->  | U51: =IF(CONFIG!$B$2<>"Y","",(IF(OR(G51="",LEFT(H51,1)="2",H51="19",L51="1911"),"",dbs(BX51,CONFIG!$B$4&":Employee - School Staffing",CONFIG!$B$5,CONFIG!$B$6,CONFIG!$C$9,H51,I51,J51,K51,L51,M51,O51,P51,Q51,R51,"AMOUNT")))) ->  | Y51: 06 | AA51: =(IF(AC51="",0,IF(CONFIG!$B$22<>"Autonomous",ROUND(VLOOKUP(R51,'AVERAGE SALARY LOOKUP'!$A$3:$E$10004,4,FALSE)*AC51,0),IF(E51="",0,IF(E51="vacancy",ROUND(VLOOKUP(R51,'AVERAGE SALARY LOOKUP'!$A$3:$E$10004,4,FALSE)*AC51,0),ROUND(VLOOKUP(E51,'FULL TIME ACTUAL RATES'!$B$2:$G$4927,6,FALSE)*AC51,0)))))) -> 0 | AB51: =IF($H51="",0,IF(CONFIG!$B$22="Autonomous",ROUND((AA51*VLOOKUP($H51,CONFIG!$A$46:$C$55,3,FALSE)+(VLOOKUP($BR51,CONFIG!$A$33:$C$43,3,FALSE)*AC51)),0),(ROUND('School Staffing Tool'!AC51*VLOOKUP(R51,'AVERAGE SALARY LOOKUP'!$A$3:$F$700,6,FALSE),0)))) -> 0 | AD51: 0 | AH51: =(IF(AJ51="",0,ROUND(VLOOKUP(R51,'AVERAGE SALARY LOOKUP'!$A$3:$E$10004,4,FALSE)*AJ51,0))) -> 0 | AI51: =IF($H51="",0,IF(CONFIG!$B$22="Autonomous",ROUND((AH51*VLOOKUP($H51,CONFIG!$A$46:$C$55,3,FALSE)+(VLOOKUP($BR51,CONFIG!$A$33:$C$43,3,FALSE)*AJ51)),0),IF(H51="10",(ROUND(AJ51*VLOOKUP($R51,'AVERAGE SALARY LOOKUP'!$A$3:$I$700,6,FALSE),0)),(ROUND(AJ51*VLOOKUP($R51,'AVERAGE SALARY LOOKUP'!$A$3:$I$700,9,FALSE),0))))) -> 0 | AK51: 0 | AO51: =(IF(AQ51="",0,IF(CONFIG!$B$22<>"Autonomous",ROUND(VLOOKUP(R51,'AVERAGE SALARY LOOKUP'!$A$3:$E$10004,4,FALSE)*AQ51,0),IF(E51="",0,IF(E51="vacancy",ROUND(VLOOKUP(R51,'AVERAGE SALARY LOOKUP'!$A$3:$E$10004,4,FALSE)*AQ51,0),ROUND(VLOOKUP(E51,'FULL TIME ACTUAL RATES'!$B$2:$G$4927,6,FALSE)*AQ51,0)))))) -> 0 | AP51: =IF($H51="",0,IF(CONFIG!$B$22="Autonomous",ROUND((AO51*VLOOKUP($H51,CONFIG!$A$46:$C$55,3,FALSE)+(VLOOKUP($BR51,CONFIG!$A$33:$C$43,3,FALSE)*AQ51)),0),(ROUND('School Staffing Tool'!AQ51*VLOOKUP($R51,'AVERAGE SALARY LOOKUP'!$A$3:$F$700,6,FALSE),0)))) -> 0 | AR51: 0 | AV51: =(IF(AX51="",0,ROUND(VLOOKUP(R51,'AVERAGE SALARY LOOKUP'!$A$3:$E$10004,4,FALSE)*AX51,0))) -> 0 | AW51: =IF($H51="",0,IF(CONFIG!$B$22="Autonomous",ROUND((AV51*VLOOKUP($H51,CONFIG!$A$46:$C$55,3,FALSE)+(VLOOKUP($BR51,CONFIG!$A$33:$C$43,3,FALSE)*AX51)),0),(ROUND('School Staffing Tool'!AX51*VLOOKUP($R51,'AVERAGE SALARY LOOKUP'!$A$3:$H$700,8,FALSE),0)))) -> 0 | AY51: 0 | BC51: 0 | BD51: =IF(BB51="",0,ROUND((BC51*VLOOKUP($H51,CONFIG!$A$46:$C$55,3,FALSE)+(VLOOKUP($BR51,CONFIG!$A$33:$C$43,3,FALSE)*BE51)),0)) -> 0 | BF51: 0 | BJ51: =(IF(BL51="",0,ROUND(VLOOKUP($R$34,'AVERAGE SALARY LOOKUP'!$A$3:$E$10004,4,FALSE)*BL51,0))) -> 0 | BK51: =IF($H51="",0,IF(CONFIG!$B$22="Autonomous",ROUND((BJ51*VLOOKUP($H51,CONFIG!$A$46:$C$55,3,FALSE)+(VLOOKUP($BR51,CONFIG!$A$33:$C$43,3,FALSE)*BL51)),0),(ROUND('School Staffing Tool'!BL51*VLOOKUP($R51,'AVERAGE SALARY LOOKUP'!$A$3:$F$700,6,FALSE),0)))) -> 0 | BM51: 0 | BQ51: 0 | BR51: =IF(R51="","",VLOOKUP(R51,'AVERAGE SALARY LOOKUP'!$A$3:$C$686,3,FALSE)) ->  | BS51: 0 | BV51: 0 | BW51: 0 | BX51: 0
A52: 0289 FY 10-11 P007 | B52: =CONCATENATE(CONFIG!$C$9," ",CONFIG!$B$6," ",P52,Q52) -> 0289 FY 10-11 P007A | C52: 2nd Math/Tech | F52: ELA - E Teacher | G52: =IF(F52="","",IF(OR(D52="",D52="HS"),VLOOKUP(F52,'JOB CODE LOOKUP'!$S$5:$V$183,3,FALSE),VLOOKUP(F52,'JOB CODE LOOKUP'!$S$5:$V$183,4,FALSE))) -> 10289110018314520110 | H52: 10 | I52: 289 | J52: 11 | K52: 0018 | L52: 3145 | M52: 2 | N52: 0110 | O52: 0200 | P52: P007 | Q52: A | R52: =IF(F52="","",(IF(CONFIG!$B$12="ES",VLOOKUP(F52,'JOB CODE LOOKUP'!$A$2:$E$222,2,FALSE),IF(CONFIG!$B$12="K-8",VLOOKUP(F52,'JOB CODE LOOKUP'!$G$2:$K$222,2,FALSE),IF(CONFIG!$B$12="MS",VLOOKUP(F52,'JOB CODE LOOKUP'!$M$2:$Q$222,2,FALSE),IF(CONFIG!$B$12="HS",VLOOKUP(F52,'JOB CODE LOOKUP'!$S$2:$W$222,2,FALSE),IF(AND(CONFIG!$B$12="6-12",D52="HS"),VLOOKUP(F52,'JOB CODE LOOKUP'!$S$2:$W$222,2,FALSE),IF(AND(CONFIG!$B$12="6-12",D52="MS"),VLOOKUP(F52,'JOB CODE LOOKUP'!$M$2:$Q$222,2,FALSE),"")))))))) -> 3302 | S52: =IF(CONFIG!$B$2<>"Y","",(IF(OR(G52="",LEFT(H52,1)="2",H52="19",L52="1911"),"",dbs(BV52,CONFIG!$B$4&":Employee - School Staffing",CONFIG!$B$5,CONFIG!$B$6,CONFIG!$C$9,H52,I52,J52,K52,L52,M52,N52,P52,Q52,R52,"FTE")))) ->  | T52: =IF(CONFIG!$B$2<>"Y","",(IF(OR(G52="",LEFT(H52,1)="2",H52="19",L52="1911"),"",dbs(BW52,CONFIG!$B$4&":Employee - School Staffing",CONFIG!$B$5,CONFIG!$B$6,CONFIG!$C$9,H52,I52,J52,K52,L52,M52,N52,P52,Q52,R52,"AMOUNT")))) ->  | U52: =IF(CONFIG!$B$2<>"Y","",(IF(OR(G52="",LEFT(H52,1)="2",H52="19",L52="1911"),"",dbs(BX52,CONFIG!$B$4&":Employee - School Staffing",CONFIG!$B$5,CONFIG!$B$6,CONFIG!$C$9,H52,I52,J52,K52,L52,M52,O52,P52,Q52,R52,"AMOUNT")))) ->  | Y52: 07 | Z52: ELA - E Teacher | AA52: =(IF(AC52="",0,IF(CONFIG!$B$22<>"Autonomous",ROUND(VLOOKUP(R52,'AVERAGE SALARY LOOKUP'!$A$3:$E$10004,4,FALSE)*AC52,0),IF(E52="",0,IF(E52="vacancy",ROUND(VLOOKUP(R52,'AVERAGE SALARY LOOKUP'!$A$3:$E$10004,4,FALSE)*AC52,0),ROUND(VLOOKUP(E52,'FULL TIME ACTUAL RATES'!$B$2:$G$4927,6,FALSE)*AC52,0)))))) -> 46591 | AB52: =IF($H52="",0,IF(CONFIG!$B$22="Autonomous",ROUND((AA52*VLOOKUP($H52,CONFIG!$A$46:$C$55,3,FALSE)+(VLOOKUP($BR52,CONFIG!$A$33:$C$43,3,FALSE)*AC52)),0),(ROUND('School Staffing Tool'!AC52*VLOOKUP(R52,'AVERAGE SALARY LOOKUP'!$A$3:$F$700,6,FALSE),0)))) -> 12758 | AC52: 0.9 | AD52: 59349 | AH52: =(IF(AJ52="",0,ROUND(VLOOKUP(R52,'AVERAGE SALARY LOOKUP'!$A$3:$E$10004,4,FALSE)*AJ52,0))) -> 0 | AI52: =IF($H52="",0,IF(CONFIG!$B$22="Autonomous",ROUND((AH52*VLOOKUP($H52,CONFIG!$A$46:$C$55,3,FALSE)+(VLOOKUP($BR52,CONFIG!$A$33:$C$43,3,FALSE)*AJ52)),0),IF(H52="10",(ROUND(AJ52*VLOOKUP($R52,'AVERAGE SALARY LOOKUP'!$A$3:$I$700,6,FALSE),0)),(ROUND(AJ52*VLOOKUP($R52,'AVERAGE SALARY LOOKUP'!$A$3:$I$700,9,FALSE),0))))) -> 0 | AK52: 0 | AO52: =(IF(AQ52="",0,IF(CONFIG!$B$22<>"Autonomous",ROUND(VLOOKUP(R52,'AVERAGE SALARY LOOKUP'!$A$3:$E$10004,4,FALSE)*AQ52,0),IF(E52="",0,IF(E52="vacancy",ROUND(VLOOKUP(R52,'AVERAGE SALARY LOOKUP'!$A$3:$E$10004,4,FALSE)*AQ52,0),ROUND(VLOOKUP(E52,'FULL TIME ACTUAL RATES'!$B$2:$G$4927,6,FALSE)*AQ52,0)))))) -> 0 | AP52: =IF($H52="",0,IF(CONFIG!$B$22="Autonomous",ROUND((AO52*VLOOKUP($H52,CONFIG!$A$46:$C$55,3,FALSE)+(VLOOKUP($BR52,CONFIG!$A$33:$C$43,3,FALSE)*AQ52)),0),(ROUND('School Staffing Tool'!AQ52*VLOOKUP($R52,'AVERAGE SALARY LOOKUP'!$A$3:$F$700,6,FALSE),0)))) -> 0 | AR52: 0 | AV52: =(IF(AX52="",0,ROUND(VLOOKUP(R52,'AVERAGE SALARY LOOKUP'!$A$3:$E$10004,4,FALSE)*AX52,0))) -> 0 | AW52: =IF($H52="",0,IF(CONFIG!$B$22="Autonomous",ROUND((AV52*VLOOKUP($H52,CONFIG!$A$46:$C$55,3,FALSE)+(VLOOKUP($BR52,CONFIG!$A$33:$C$43,3,FALSE)*AX52)),0),(ROUND('School Staffing Tool'!AX52*VLOOKUP($R52,'AVERAGE SALARY LOOKUP'!$A$3:$H$700,8,FALSE),0)))) -> 0 | AY52: 0 | BC52: 0 | BD52: =IF(BB52="",0,ROUND((BC52*VLOOKUP($H52,CONFIG!$A$46:$C$55,3,FALSE)+(VLOOKUP($BR52,CONFIG!$A$33:$C$43,3,FALSE)*BE52)),0)) -> 0 | BF52: 0 | BJ52: =(IF(BL52="",0,ROUND(VLOOKUP($R$34,'AVERAGE SALARY LOOKUP'!$A$3:$E$10004,4,FALSE)*BL52,0))) -> 0 | BK52: =IF($H52="",0,IF(CONFIG!$B$22="Autonomous",ROUND((BJ52*VLOOKUP($H52,CONFIG!$A$46:$C$55,3,FALSE)+(VLOOKUP($BR52,CONFIG!$A$33:$C$43,3,FALSE)*BL52)),0),(ROUND('School Staffing Tool'!BL52*VLOOKUP($R52,'AVERAGE SALARY LOOKUP'!$A$3:$F$700,6,FALSE),0)))) -> 0 | BM52: 0 | BQ52: 0.9 | BR52: =IF(R52="","",VLOOKUP(R52,'AVERAGE SALARY LOOKUP'!$A$3:$C$686,3,FALSE)) -> DCTA | BS52: 0.9 | BU52: 10,3145,2 | BV52: 0.9 | BW52: 46591 | BX52: 12758
A53: 0289 FY 10-11 P007 | B53: =CONCATENATE(CONFIG!$C$9," ",CONFIG!$B$6," ",P53,Q53) -> 0289 FY 10-11 P007B | F53: ML Technology Regular Teacher | G53: =IF(F53="","",IF(OR(D53="",D53="HS"),VLOOKUP(F53,'JOB CODE LOOKUP'!$S$5:$V$183,3,FALSE),VLOOKUP(F53,'JOB CODE LOOKUP'!$S$5:$V$183,4,FALSE))) -> 12289110018008720110 | H53: 12 | I53: 289 | J53: 11 | K53: 0018 | L53: 0087 | M53: 2 | N53: 0110 | O53: 0200 | P53: P007 | Q53: B | R53: =IF(F53="","",(IF(CONFIG!$B$12="ES",VLOOKUP(F53,'JOB CODE LOOKUP'!$A$2:$E$222,2,FALSE),IF(CONFIG!$B$12="K-8",VLOOKUP(F53,'JOB CODE LOOKUP'!$G$2:$K$222,2,FALSE),IF(CONFIG!$B$12="MS",VLOOKUP(F53,'JOB CODE LOOKUP'!$M$2:$Q$222,2,FALSE),IF(CONFIG!$B$12="HS",VLOOKUP(F53,'JOB CODE LOOKUP'!$S$2:$W$222,2,FALSE),IF(AND(CONFIG!$B$12="6-12",D53="HS"),VLOOKUP(F53,'JOB CODE LOOKUP'!$S$2:$W$222,2,FALSE),IF(AND(CONFIG!$B$12="6-12",D53="MS"),VLOOKUP(F53,'JOB CODE LOOKUP'!$M$2:$Q$222,2,FALSE),"")))))))) -> 3302 | S53: =IF(CONFIG!$B$2<>"Y","",(IF(OR(G53="",LEFT(H53,1)="2",H53="19",L53="1911"),"",dbs(BV53,CONFIG!$B$4&":Employee - School Staffing",CONFIG!$B$5,CONFIG!$B$6,CONFIG!$C$9,H53,I53,J53,K53,L53,M53,N53,P53,Q53,R53,"FTE")))) ->  | T53: =IF(CONFIG!$B$2<>"Y","",(IF(OR(G53="",LEFT(H53,1)="2",H53="19",L53="1911"),"",dbs(BW53,CONFIG!$B$4&":Employee - School Staffing",CONFIG!$B$5,CONFIG!$B$6,CONFIG!$C$9,H53,I53,J53,K53,L53,M53,N53,P53,Q53,R53,"AMOUNT")))) ->  | U53: =IF(CONFIG!$B$2<>"Y","",(IF(OR(G53="",LEFT(H53,1)="2",H53="19",L53="1911"),"",dbs(BX53,CONFIG!$B$4&":Employee - School Staffing",CONFIG!$B$5,CONFIG!$B$6,CONFIG!$C$9,H53,I53,J53,K53,L53,M53,O53,P53,Q53,R53,"AMOUNT")))) ->  | Y53: 07 | AA53: =(IF(AC53="",0,IF(CONFIG!$B$22<>"Autonomous",ROUND(VLOOKUP(R53,'AVERAGE SALARY LOOKUP'!$A$3:$E$10004,4,FALSE)*AC53,0),IF(E53="",0,IF(E53="vacancy",ROUND(VLOOKUP(R53,'AVERAGE SALARY LOOKUP'!$A$3:$E$10004,4,FALSE)*AC53,0),ROUND(VLOOKUP(E53,'FULL TIME ACTUAL RATES'!$B$2:$G$4927,6,FALSE)*AC53,0)))))) -> 0 | AB53: =IF($H53="",0,IF(CONFIG!$B$22="Autonomous",ROUND((AA53*VLOOKUP($H53,CONFIG!$A$46:$C$55,3,FALSE)+(VLOOKUP($BR53,CONFIG!$A$33:$C$43,3,FALSE)*AC53)),0),(ROUND('School Staffing Tool'!AC53*VLOOKUP(R53,'AVERAGE SALARY LOOKUP'!$A$3:$F$700,6,FALSE),0)))) -> 0 | AD53: 0 | AH53: =(IF(AJ53="",0,ROUND(VLOOKUP(R53,'AVERAGE SALARY LOOKUP'!$A$3:$E$10004,4,FALSE)*AJ53,0))) -> 0 | AI53: =IF($H53="",0,IF(CONFIG!$B$22="Autonomous",ROUND((AH53*VLOOKUP($H53,CONFIG!$A$46:$C$55,3,FALSE)+(VLOOKUP($BR53,CONFIG!$A$33:$C$43,3,FALSE)*AJ53)),0),IF(H53="10",(ROUND(AJ53*VLOOKUP($R53,'AVERAGE SALARY LOOKUP'!$A$3:$I$700,6,FALSE),0)),(ROUND(AJ53*VLOOKUP($R53,'AVERAGE SALARY LOOKUP'!$A$3:$I$700,9,FALSE),0))))) -> 0 | AK53: 0 | AN53: ML Technology Regular Teacher | AO53: =(IF(AQ53="",0,IF(CONFIG!$B$22<>"Autonomous",ROUND(VLOOKUP(R53,'AVERAGE SALARY LOOKUP'!$A$3:$E$10004,4,FALSE)*AQ53,0),IF(E53="",0,IF(E53="vacancy",ROUND(VLOOKUP(R53,'AVERAGE SALARY LOOKUP'!$A$3:$E$10004,4,FALSE)*AQ53,0),ROUND(VLOOKUP(E53,'FULL TIME ACTUAL RATES'!$B$2:$G$4927,6,FALSE)*AQ53,0)))))) -> 5177 | AP53: =IF($H53="",0,IF(CONFIG!$B$22="Autonomous",ROUND((AO53*VLOOKUP($H53,CONFIG!$A$46:$C$55,3,FALSE)+(VLOOKUP($BR53,CONFIG!$A$33:$C$43,3,FALSE)*AQ53)),0),(ROUND('School Staffing Tool'!AQ53*VLOOKUP($R53,'AVERAGE SALARY LOOKUP'!$A$3:$F$700,6,FALSE),0)))) -> 1418 | AQ53: 0.1 | AR53: 6595 | AV53: =(IF(AX53="",0,ROUND(VLOOKUP(R53,'AVERAGE SALARY LOOKUP'!$A$3:$E$10004,4,FALSE)*AX53,0))) -> 0 | AW53: =IF($H53="",0,IF(CONFIG!$B$22="Autonomous",ROUND((AV53*VLOOKUP($H53,CONFIG!$A$46:$C$55,3,FALSE)+(VLOOKUP($BR53,CONFIG!$A$33:$C$43,3,FALSE)*AX53)),0),(ROUND('School Staffing Tool'!AX53*VLOOKUP($R53,'AVERAGE SALARY LOOKUP'!$A$3:$H$700,8,FALSE),0)))) -> 0 | AY53: 0 | BC53: 0 | BD53: =IF(BB53="",0,ROUND((BC53*VLOOKUP($H53,CONFIG!$A$46:$C$55,3,FALSE)+(VLOOKUP($BR53,CONFIG!$A$33:$C$43,3,FALSE)*BE53)),0)) -> 0 | BF53: 0 | BJ53: =(IF(BL53="",0,ROUND(VLOOKUP($R$34,'AVERAGE SALARY LOOKUP'!$A$3:$E$10004,4,FALSE)*BL53,0))) -> 0 | BK53: =IF($H53="",0,IF(CONFIG!$B$22="Autonomous",ROUND((BJ53*VLOOKUP($H53,CONFIG!$A$46:$C$55,3,FALSE)+(VLOOKUP($BR53,CONFIG!$A$33:$C$43,3,FALSE)*BL53)),0),(ROUND('School Staffing Tool'!BL53*VLOOKUP($R53,'AVERAGE SALARY LOOKUP'!$A$3:$F$700,6,FALSE),0)))) -> 0 | BM53: 0 | BQ53: 0.1 | BR53: =IF(R53="","",VLOOKUP(R53,'AVERAGE SALARY LOOKUP'!$A$3:$C$686,3,FALSE)) -> DCTA | BS53: 0.1 | BU53: 12,0087,2 | BV53: 0.1 | BW53: 5177 | BX53: 1418
A54: 0289 FY 10-11 P007 | B54: =CONCATENATE(CONFIG!$C$9," ",CONFIG!$B$6," ",P54,Q54) -> 0289 FY 10-11 P007C | G54: =IF(F54="","",IF(OR(D54="",D54="HS"),VLOOKUP(F54,'JOB CODE LOOKUP'!$S$5:$V$183,3,FALSE),VLOOKUP(F54,'JOB CODE LOOKUP'!$S$5:$V$183,4,FALSE))) ->  | P54: P007 | Q54: C | R54: =IF(F54="","",(IF(CONFIG!$B$12="ES",VLOOKUP(F54,'JOB CODE LOOKUP'!$A$2:$E$222,2,FALSE),IF(CONFIG!$B$12="K-8",VLOOKUP(F54,'JOB CODE LOOKUP'!$G$2:$K$222,2,FALSE),IF(CONFIG!$B$12="MS",VLOOKUP(F54,'JOB CODE LOOKUP'!$M$2:$Q$222,2,FALSE),IF(CONFIG!$B$12="HS",VLOOKUP(F54,'JOB CODE LOOKUP'!$S$2:$W$222,2,FALSE),IF(AND(CONFIG!$B$12="6-12",D54="HS"),VLOOKUP(F54,'JOB CODE LOOKUP'!$S$2:$W$222,2,FALSE),IF(AND(CONFIG!$B$12="6-12",D54="MS"),VLOOKUP(F54,'JOB CODE LOOKUP'!$M$2:$Q$222,2,FALSE),"")))))))) ->  | S54: =IF(CONFIG!$B$2<>"Y","",(IF(OR(G54="",LEFT(H54,1)="2",H54="19",L54="1911"),"",dbs(BV54,CONFIG!$B$4&":Employee - School Staffing",CONFIG!$B$5,CONFIG!$B$6,CONFIG!$C$9,H54,I54,J54,K54,L54,M54,N54,P54,Q54,R54,"FTE")))) ->  | T54: =IF(CONFIG!$B$2<>"Y","",(IF(OR(G54="",LEFT(H54,1)="2",H54="19",L54="1911"),"",dbs(BW54,CONFIG!$B$4&":Employee - School Staffing",CONFIG!$B$5,CONFIG!$B$6,CONFIG!$C$9,H54,I54,J54,K54,L54,M54,N54,P54,Q54,R54,"AMOUNT")))) ->  | U54: =IF(CONFIG!$B$2<>"Y","",(IF(OR(G54="",LEFT(H54,1)="2",H54="19",L54="1911"),"",dbs(BX54,CONFIG!$B$4&":Employee - School Staffing",CONFIG!$B$5,CONFIG!$B$6,CONFIG!$C$9,H54,I54,J54,K54,L54,M54,O54,P54,Q54,R54,"AMOUNT")))) ->  | Y54: 07 | AA54: =(IF(AC54="",0,IF(CONFIG!$B$22<>"Autonomous",ROUND(VLOOKUP(R54,'AVERAGE SALARY LOOKUP'!$A$3:$E$10004,4,FALSE)*AC54,0),IF(E54="",0,IF(E54="vacancy",ROUND(VLOOKUP(R54,'AVERAGE SALARY LOOKUP'!$A$3:$E$10004,4,FALSE)*AC54,0),ROUND(VLOOKUP(E54,'FULL TIME ACTUAL RATES'!$B$2:$G$4927,6,FALSE)*AC54,0)))))) -> 0 | AB54: =IF($H54="",0,IF(CONFIG!$B$22="Autonomous",ROUND((AA54*VLOOKUP($H54,CONFIG!$A$46:$C$55,3,FALSE)+(VLOOKUP($BR54,CONFIG!$A$33:$C$43,3,FALSE)*AC54)),0),(ROUND('School Staffing Tool'!AC54*VLOOKUP(R54,'AVERAGE SALARY LOOKUP'!$A$3:$F$700,6,FALSE),0)))) -> 0 | AD54: 0 | AH54: =(IF(AJ54="",0,ROUND(VLOOKUP(R54,'AVERAGE SALARY LOOKUP'!$A$3:$E$10004,4,FALSE)*AJ54,0))) -> 0 | AI54: =IF($H54="",0,IF(CONFIG!$B$22="Autonomous",ROUND((AH54*VLOOKUP($H54,CONFIG!$A$46:$C$55,3,FALSE)+(VLOOKUP($BR54,CONFIG!$A$33:$C$43,3,FALSE)*AJ54)),0),IF(H54="10",(ROUND(AJ54*VLOOKUP($R54,'AVERAGE SALARY LOOKUP'!$A$3:$I$700,6,FALSE),0)),(ROUND(AJ54*VLOOKUP($R54,'AVERAGE SALARY LOOKUP'!$A$3:$I$700,9,FALSE),0))))) -> 0 | AK54: 0 | AO54: =(IF(AQ54="",0,IF(CONFIG!$B$22<>"Autonomous",ROUND(VLOOKUP(R54,'AVERAGE SALARY LOOKUP'!$A$3:$E$10004,4,FALSE)*AQ54,0),IF(E54="",0,IF(E54="vacancy",ROUND(VLOOKUP(R54,'AVERAGE SALARY LOOKUP'!$A$3:$E$10004,4,FALSE)*AQ54,0),ROUND(VLOOKUP(E54,'FULL TIME ACTUAL RATES'!$B$2:$G$4927,6,FALSE)*AQ54,0)))))) -> 0 | AP54: =IF($H54="",0,IF(CONFIG!$B$22="Autonomous",ROUND((AO54*VLOOKUP($H54,CONFIG!$A$46:$C$55,3,FALSE)+(VLOOKUP($BR54,CONFIG!$A$33:$C$43,3,FALSE)*AQ54)),0),(ROUND('School Staffing Tool'!AQ54*VLOOKUP($R54,'AVERAGE SALARY LOOKUP'!$A$3:$F$700,6,FALSE),0)))) -> 0 | AR54: 0 | AV54: =(IF(AX54="",0,ROUND(VLOOKUP(R54,'AVERAGE SALARY LOOKUP'!$A$3:$E$10004,4,FALSE)*AX54,0))) -> 0 | AW54: =IF($H54="",0,IF(CONFIG!$B$22="Autonomous",ROUND((AV54*VLOOKUP($H54,CONFIG!$A$46:$C$55,3,FALSE)+(VLOOKUP($BR54,CONFIG!$A$33:$C$43,3,FALSE)*AX54)),0),(ROUND('School Staffing Tool'!AX54*VLOOKUP($R54,'AVERAGE SALARY LOOKUP'!$A$3:$H$700,8,FALSE),0)))) -> 0 | AY54: 0 | BC54: 0 | BD54: =IF(BB54="",0,ROUND((BC54*VLOOKUP($H54,CONFIG!$A$46:$C$55,3,FALSE)+(VLOOKUP($BR54,CONFIG!$A$33:$C$43,3,FALSE)*BE54)),0)) -> 0 | BF54: 0 | BJ54: =(IF(BL54="",0,ROUND(VLOOKUP($R$34,'AVERAGE SALARY LOOKUP'!$A$3:$E$10004,4,FALSE)*BL54,0))) -> 0 | BK54: =IF($H54="",0,IF(CONFIG!$B$22="Autonomous",ROUND((BJ54*VLOOKUP($H54,CONFIG!$A$46:$C$55,3,FALSE)+(VLOOKUP($BR54,CONFIG!$A$33:$C$43,3,FALSE)*BL54)),0),(ROUND('School Staffing Tool'!BL54*VLOOKUP($R54,'AVERAGE SALARY LOOKUP'!$A$3:$F$700,6,FALSE),0)))) -> 0 | BM54: 0 | BQ54: 0 | BR54: =IF(R54="","",VLOOKUP(R54,'AVERAGE SALARY LOOKUP'!$A$3:$C$686,3,FALSE)) ->  | BS54: 0 | BV54: 0 | BW54: 0 | BX54: 0
A55: 0289 FY 10-11 P008 | B55: =CONCATENATE(CONFIG!$C$9," ",CONFIG!$B$6," ",P55,Q55) -> 0289 FY 10-11 P008A | C55: 3rd Math/AA | F55: ELA - E Teacher | G55: =IF(F55="","",IF(OR(D55="",D55="HS"),VLOOKUP(F55,'JOB CODE LOOKUP'!$S$5:$V$183,3,FALSE),VLOOKUP(F55,'JOB CODE LOOKUP'!$S$5:$V$183,4,FALSE))) -> 10289110018314520110 | H55: 10 | I55: 289 | J55: 11 | K55: 0018 | L55: 3145 | M55: 2 | N55: 0110 | O55: 0200 | P55: P008 | Q55: A | R55: =IF(F55="","",(IF(CONFIG!$B$12="ES",VLOOKUP(F55,'JOB CODE LOOKUP'!$A$2:$E$222,2,FALSE),IF(CONFIG!$B$12="K-8",VLOOKUP(F55,'JOB CODE LOOKUP'!$G$2:$K$222,2,FALSE),IF(CONFIG!$B$12="MS",VLOOKUP(F55,'JOB CODE LOOKUP'!$M$2:$Q$222,2,FALSE),IF(CONFIG!$B$12="HS",VLOOKUP(F55,'JOB CODE LOOKUP'!$S$2:$W$222,2,FALSE),IF(AND(CONFIG!$B$12="6-12",D55="HS"),VLOOKUP(F55,'JOB CODE LOOKUP'!$S$2:$W$222,2,FALSE),IF(AND(CONFIG!$B$12="6-12",D55="MS"),VLOOKUP(F55,'JOB CODE LOOKUP'!$M$2:$Q$222,2,FALSE),"")))))))) -> 3302 | S55: =IF(CONFIG!$B$2<>"Y","",(IF(OR(G55="",LEFT(H55,1)="2",H55="19",L55="1911"),"",dbs(BV55,CONFIG!$B$4&":Employee - School Staffing",CONFIG!$B$5,CONFIG!$B$6,CONFIG!$C$9,H55,I55,J55,K55,L55,M55,N55,P55,Q55,R55,"FTE")))) ->  | T55: =IF(CONFIG!$B$2<>"Y","",(IF(OR(G55="",LEFT(H55,1)="2",H55="19",L55="1911"),"",dbs(BW55,CONFIG!$B$4&":Employee - School Staffing",CONFIG!$B$5,CONFIG!$B$6,CONFIG!$C$9,H55,I55,J55,K55,L55,M55,N55,P55,Q55,R55,"AMOUNT")))) ->  | U55: =IF(CONFIG!$B$2<>"Y","",(IF(OR(G55="",LEFT(H55,1)="2",H55="19",L55="1911"),"",dbs(BX55,CONFIG!$B$4&":Employee - School Staffing",CONFIG!$B$5,CONFIG!$B$6,CONFIG!$C$9,H55,I55,J55,K55,L55,M55,O55,P55,Q55,R55,"AMOUNT")))) ->  | Y55: 08 | Z55: ELA - E Teacher | AA55: =(IF(AC55="",0,IF(CONFIG!$B$22<>"Autonomous",ROUND(VLOOKUP(R55,'AVERAGE SALARY LOOKUP'!$A$3:$E$10004,4,FALSE)*AC55,0),IF(E55="",0,IF(E55="vacancy",ROUND(VLOOKUP(R55,'AVERAGE SALARY LOOKUP'!$A$3:$E$10004,4,FALSE)*AC55,0),ROUND(VLOOKUP(E55,'FULL TIME ACTUAL RATES'!$B$2:$G$4927,6,FALSE)*AC55,0)))))) -> 25884 | AB55: =IF($H55="",0,IF(CONFIG!$B$22="Autonomous",ROUND((AA55*VLOOKUP($H55,CONFIG!$A$46:$C$55,3,FALSE)+(VLOOKUP($BR55,CONFIG!$A$33:$C$43,3,FALSE)*AC55)),0),(ROUND('School Staffing Tool'!AC55*VLOOKUP(R55,'AVERAGE SALARY LOOKUP'!$A$3:$F$700,6,FALSE),0)))) -> 7088 | AC55: 0.5 | AD55: 32972 | AH55: =(IF(AJ55="",0,ROUND(VLOOKUP(R55,'AVERAGE SALARY LOOKUP'!$A$3:$E$10004,4,FALSE)*AJ55,0))) -> 0 | AI55: =IF($H55="",0,IF(CONFIG!$B$22="Autonomous",ROUND((AH55*VLOOKUP($H55,CONFIG!$A$46:$C$55,3,FALSE)+(VLOOKUP($BR55,CONFIG!$A$33:$C$43,3,FALSE)*AJ55)),0),IF(H55="10",(ROUND(AJ55*VLOOKUP($R55,'AVERAGE SALARY LOOKUP'!$A$3:$I$700,6,FALSE),0)),(ROUND(AJ55*VLOOKUP($R55,'AVERAGE SALARY LOOKUP'!$A$3:$I$700,9,FALSE),0))))) -> 0 | AK55: 0 | AO55: =(IF(AQ55="",0,IF(CONFIG!$B$22<>"Autonomous",ROUND(VLOOKUP(R55,'AVERAGE SALARY LOOKUP'!$A$3:$E$10004,4,FALSE)*AQ55,0),IF(E55="",0,IF(E55="vacancy",ROUND(VLOOKUP(R55,'AVERAGE SALARY LOOKUP'!$A$3:$E$10004,4,FALSE)*AQ55,0),ROUND(VLOOKUP(E55,'FULL TIME ACTUAL RATES'!$B$2:$G$4927,6,FALSE)*AQ55,0)))))) -> 0 | AP55: =IF($H55="",0,IF(CONFIG!$B$22="Autonomous",ROUND((AO55*VLOOKUP($H55,CONFIG!$A$46:$C$55,3,FALSE)+(VLOOKUP($BR55,CONFIG!$A$33:$C$43,3,FALSE)*AQ55)),0),(ROUND('School Staffing Tool'!AQ55*VLOOKUP($R55,'AVERAGE SALARY LOOKUP'!$A$3:$F$700,6,FALSE),0)))) -> 0 | AR55: 0 | AV55: =(IF(AX55="",0,ROUND(VLOOKUP(R55,'AVERAGE SALARY LOOKUP'!$A$3:$E$10004,4,FALSE)*AX55,0))) -> 0 | AW55: =IF($H55="",0,IF(CONFIG!$B$22="Autonomous",ROUND((AV55*VLOOKUP($H55,CONFIG!$A$46:$C$55,3,FALSE)+(VLOOKUP($BR55,CONFIG!$A$33:$C$43,3,FALSE)*AX55)),0),(ROUND('School Staffing Tool'!AX55*VLOOKUP($R55,'AVERAGE SALARY LOOKUP'!$A$3:$H$700,8,FALSE),0)))) -> 0 | AY55: 0 | BC55: 0 | BD55: =IF(BB55="",0,ROUND((BC55*VLOOKUP($H55,CONFIG!$A$46:$C$55,3,FALSE)+(VLOOKUP($BR55,CONFIG!$A$33:$C$43,3,FALSE)*BE55)),0)) -> 0 | BF55: 0 | BJ55: =(IF(BL55="",0,ROUND(VLOOKUP($R$34,'AVERAGE SALARY LOOKUP'!$A$3:$E$10004,4,FALSE)*BL55,0))) -> 0 | BK55: =IF($H55="",0,IF(CONFIG!$B$22="Autonomous",ROUND((BJ55*VLOOKUP($H55,CONFIG!$A$46:$C$55,3,FALSE)+(VLOOKUP($BR55,CONFIG!$A$33:$C$43,3,FALSE)*BL55)),0),(ROUND('School Staffing Tool'!BL55*VLOOKUP($R55,'AVERAGE SALARY LOOKUP'!$A$3:$F$700,6,FALSE),0)))) -> 0 | BM55: 0 | BQ55: 0.5 | BR55: =IF(R55="","",VLOOKUP(R55,'AVERAGE SALARY LOOKUP'!$A$3:$C$686,3,FALSE)) -> DCTA | BS55: 0.5 | BU55: 10,3145,2 | BV55: 0.5 | BW55: 25884 | BX55: 7088
A56: 0289 FY 10-11 P008 | B56: =CONCATENATE(CONFIG!$C$9," ",CONFIG!$B$6," ",P56,Q56) -> 0289 FY 10-11 P008B | F56: Administrative Assistant | G56: =IF(F56="","",IF(OR(D56="",D56="HS"),VLOOKUP(F56,'JOB CODE LOOKUP'!$S$5:$V$183,3,FALSE),VLOOKUP(F56,'JOB CODE LOOKUP'!$S$5:$V$183,4,FALSE))) -> 10289110018001120110 | H56: 10 | I56: 289 | J56: 11 | K56: 0018 | L56: 0011 | M56: 2 | N56: 0110 | O56: 0200 | P56: P008 | Q56: B | R56: =IF(F56="","",(IF(CONFIG!$B$12="ES",VLOOKUP(F56,'JOB CODE LOOKUP'!$A$2:$E$222,2,FALSE),IF(CONFIG!$B$12="K-8",VLOOKUP(F56,'JOB CODE LOOKUP'!$G$2:$K$222,2,FALSE),IF(CONFIG!$B$12="MS",VLOOKUP(F56,'JOB CODE LOOKUP'!$M$2:$Q$222,2,FALSE),IF(CONFIG!$B$12="HS",VLOOKUP(F56,'JOB CODE LOOKUP'!$S$2:$W$222,2,FALSE),IF(AND(CONFIG!$B$12="6-12",D56="HS"),VLOOKUP(F56,'JOB CODE LOOKUP'!$S$2:$W$222,2,FALSE),IF(AND(CONFIG!$B$12="6-12",D56="MS"),VLOOKUP(F56,'JOB CODE LOOKUP'!$M$2:$Q$222,2,FALSE),"")))))))) -> 3382 | S56: =IF(CONFIG!$B$2<>"Y","",(IF(OR(G56="",LEFT(H56,1)="2",H56="19",L56="1911"),"",dbs(BV56,CONFIG!$B$4&":Employee - School Staffing",CONFIG!$B$5,CONFIG!$B$6,CONFIG!$C$9,H56,I56,J56,K56,L56,M56,N56,P56,Q56,R56,"FTE")))) ->  | T56: =IF(CONFIG!$B$2<>"Y","",(IF(OR(G56="",LEFT(H56,1)="2",H56="19",L56="1911"),"",dbs(BW56,CONFIG!$B$4&":Employee - School Staffing",CONFIG!$B$5,CONFIG!$B$6,CONFIG!$C$9,H56,I56,J56,K56,L56,M56,N56,P56,Q56,R56,"AMOUNT")))) ->  | U56: =IF(CONFIG!$B$2<>"Y","",(IF(OR(G56="",LEFT(H56,1)="2",H56="19",L56="1911"),"",dbs(BX56,CONFIG!$B$4&":Employee - School Staffing",CONFIG!$B$5,CONFIG!$B$6,CONFIG!$C$9,H56,I56,J56,K56,L56,M56,O56,P56,Q56,R56,"AMOUNT")))) ->  | Y56: 08 | Z56: Administrative Assistant | AA56: =(IF(AC56="",0,IF(CONFIG!$B$22<>"Autonomous",ROUND(VLOOKUP(R56,'AVERAGE SALARY LOOKUP'!$A$3:$E$10004,4,FALSE)*AC56,0),IF(E56="",0,IF(E56="vacancy",ROUND(VLOOKUP(R56,'AVERAGE SALARY LOOKUP'!$A$3:$E$10004,4,FALSE)*AC56,0),ROUND(VLOOKUP(E56,'FULL TIME ACTUAL RATES'!$B$2:$G$4927,6,FALSE)*AC56,0)))))) -> 25884 | AB56: =IF($H56="",0,IF(CONFIG!$B$22="Autonomous",ROUND((AA56*VLOOKUP($H56,CONFIG!$A$46:$C$55,3,FALSE)+(VLOOKUP($BR56,CONFIG!$A$33:$C$43,3,FALSE)*AC56)),0),(ROUND('School Staffing Tool'!AC56*VLOOKUP(R56,'AVERAGE SALARY LOOKUP'!$A$3:$F$700,6,FALSE),0)))) -> 7088 | AC56: 0.5 | AD56: 32972 | AH56: =(IF(AJ56="",0,ROUND(VLOOKUP(R56,'AVERAGE SALARY LOOKUP'!$A$3:$E$10004,4,FALSE)*AJ56,0))) -> 0 | AI56: =IF($H56="",0,IF(CONFIG!$B$22="Autonomous",ROUND((AH56*VLOOKUP($H56,CONFIG!$A$46:$C$55,3,FALSE)+(VLOOKUP($BR56,CONFIG!$A$33:$C$43,3,FALSE)*AJ56)),0),IF(H56="10",(ROUND(AJ56*VLOOKUP($R56,'AVERAGE SALARY LOOKUP'!$A$3:$I$700,6,FALSE),0)),(ROUND(AJ56*VLOOKUP($R56,'AVERAGE SALARY LOOKUP'!$A$3:$I$700,9,FALSE),0))))) -> 0 | AK56: 0 | AO56: =(IF(AQ56="",0,IF(CONFIG!$B$22<>"Autonomous",ROUND(VLOOKUP(R56,'AVERAGE SALARY LOOKUP'!$A$3:$E$10004,4,FALSE)*AQ56,0),IF(E56="",0,IF(E56="vacancy",ROUND(VLOOKUP(R56,'AVERAGE SALARY LOOKUP'!$A$3:$E$10004,4,FALSE)*AQ56,0),ROUND(VLOOKUP(E56,'FULL TIME ACTUAL RATES'!$B$2:$G$4927,6,FALSE)*AQ56,0)))))) -> 0 | AP56: =IF($H56="",0,IF(CONFIG!$B$22="Autonomous",ROUND((AO56*VLOOKUP($H56,CONFIG!$A$46:$C$55,3,FALSE)+(VLOOKUP($BR56,CONFIG!$A$33:$C$43,3,FALSE)*AQ56)),0),(ROUND('School Staffing Tool'!AQ56*VLOOKUP($R56,'AVERAGE SALARY LOOKUP'!$A$3:$F$700,6,FALSE),0)))) -> 0 | AR56: 0 | AV56: =(IF(AX56="",0,ROUND(VLOOKUP(R56,'AVERAGE SALARY LOOKUP'!$A$3:$E$10004,4,FALSE)*AX56,0))) -> 0 | AW56: =IF($H56="",0,IF(CONFIG!$B$22="Autonomous",ROUND((AV56*VLOOKUP($H56,CONFIG!$A$46:$C$55,3,FALSE)+(VLOOKUP($BR56,CONFIG!$A$33:$C$43,3,FALSE)*AX56)),0),(ROUND('School Staffing Tool'!AX56*VLOOKUP($R56,'AVERAGE SALARY LOOKUP'!$A$3:$H$700,8,FALSE),0)))) -> 0 | AY56: 0 | BC56: 0 | BD56: =IF(BB56="",0,ROUND((BC56*VLOOKUP($H56,CONFIG!$A$46:$C$55,3,FALSE)+(VLOOKUP($BR56,CONFIG!$A$33:$C$43,3,FALSE)*BE56)),0)) -> 0 | BF56: 0 | BJ56: =(IF(BL56="",0,ROUND(VLOOKUP($R$34,'AVERAGE SALARY LOOKUP'!$A$3:$E$10004,4,FALSE)*BL56,0))) -> 0 | BK56: =IF($H56="",0,IF(CONFIG!$B$22="Autonomous",ROUND((BJ56*VLOOKUP($H56,CONFIG!$A$46:$C$55,3,FALSE)+(VLOOKUP($BR56,CONFIG!$A$33:$C$43,3,FALSE)*BL56)),0),(ROUND('School Staffing Tool'!BL56*VLOOKUP($R56,'AVERAGE SALARY LOOKUP'!$A$3:$F$700,6,FALSE),0)))) -> 0 | BM56: 0 | BQ56: 0.5 | BR56: =IF(R56="","",VLOOKUP(R56,'AVERAGE SALARY LOOKUP'!$A$3:$C$686,3,FALSE)) -> DCTA | BS56: 0.5 | BU56: 10,0011,2 | BV56: 0.5 | BW56: 25884 | BX56: 7088
A57: 0289 FY 10-11 P008 | B57: =CONCATENATE(CONFIG!$C$9," ",CONFIG!$B$6," ",P57,Q57) -> 0289 FY 10-11 P008C | G57: =IF(F57="","",IF(OR(D57="",D57="HS"),VLOOKUP(F57,'JOB CODE LOOKUP'!$S$5:$V$183,3,FALSE),VLOOKUP(F57,'JOB CODE LOOKUP'!$S$5:$V$183,4,FALSE))) ->  | P57: P008 | Q57: C | R57: =IF(F57="","",(IF(CONFIG!$B$12="ES",VLOOKUP(F57,'JOB CODE LOOKUP'!$A$2:$E$222,2,FALSE),IF(CONFIG!$B$12="K-8",VLOOKUP(F57,'JOB CODE LOOKUP'!$G$2:$K$222,2,FALSE),IF(CONFIG!$B$12="MS",VLOOKUP(F57,'JOB CODE LOOKUP'!$M$2:$Q$222,2,FALSE),IF(CONFIG!$B$12="HS",VLOOKUP(F57,'JOB CODE LOOKUP'!$S$2:$W$222,2,FALSE),IF(AND(CONFIG!$B$12="6-12",D57="HS"),VLOOKUP(F57,'JOB CODE LOOKUP'!$S$2:$W$222,2,FALSE),IF(AND(CONFIG!$B$12="6-12",D57="MS"),VLOOKUP(F57,'JOB CODE LOOKUP'!$M$2:$Q$222,2,FALSE),"")))))))) ->  | S57: =IF(CONFIG!$B$2<>"Y","",(IF(OR(G57="",LEFT(H57,1)="2",H57="19",L57="1911"),"",dbs(BV57,CONFIG!$B$4&":Employee - School Staffing",CONFIG!$B$5,CONFIG!$B$6,CONFIG!$C$9,H57,I57,J57,K57,L57,M57,N57,P57,Q57,R57,"FTE")))) ->  | T57: =IF(CONFIG!$B$2<>"Y","",(IF(OR(G57="",LEFT(H57,1)="2",H57="19",L57="1911"),"",dbs(BW57,CONFIG!$B$4&":Employee - School Staffing",CONFIG!$B$5,CONFIG!$B$6,CONFIG!$C$9,H57,I57,J57,K57,L57,M57,N57,P57,Q57,R57,"AMOUNT")))) ->  | U57: =IF(CONFIG!$B$2<>"Y","",(IF(OR(G57="",LEFT(H57,1)="2",H57="19",L57="1911"),"",dbs(BX57,CONFIG!$B$4&":Employee - School Staffing",CONFIG!$B$5,CONFIG!$B$6,CONFIG!$C$9,H57,I57,J57,K57,L57,M57,O57,P57,Q57,R57,"AMOUNT")))) ->  | Y57: 08 | AA57: =(IF(AC57="",0,IF(CONFIG!$B$22<>"Autonomous",ROUND(VLOOKUP(R57,'AVERAGE SALARY LOOKUP'!$A$3:$E$10004,4,FALSE)*AC57,0),IF(E57="",0,IF(E57="vacancy",ROUND(VLOOKUP(R57,'AVERAGE SALARY LOOKUP'!$A$3:$E$10004,4,FALSE)*AC57,0),ROUND(VLOOKUP(E57,'FULL TIME ACTUAL RATES'!$B$2:$G$4927,6,FALSE)*AC57,0)))))) -> 0 | AB57: =IF($H57="",0,IF(CONFIG!$B$22="Autonomous",ROUND((AA57*VLOOKUP($H57,CONFIG!$A$46:$C$55,3,FALSE)+(VLOOKUP($BR57,CONFIG!$A$33:$C$43,3,FALSE)*AC57)),0),(ROUND('School Staffing Tool'!AC57*VLOOKUP(R57,'AVERAGE SALARY LOOKUP'!$A$3:$F$700,6,FALSE),0)))) -> 0 | AD57: 0 | AH57: =(IF(AJ57="",0,ROUND(VLOOKUP(R57,'AVERAGE SALARY LOOKUP'!$A$3:$E$10004,4,FALSE)*AJ57,0))) -> 0 | AI57: =IF($H57="",0,IF(CONFIG!$B$22="Autonomous",ROUND((AH57*VLOOKUP($H57,CONFIG!$A$46:$C$55,3,FALSE)+(VLOOKUP($BR57,CONFIG!$A$33:$C$43,3,FALSE)*AJ57)),0),IF(H57="10",(ROUND(AJ57*VLOOKUP($R57,'AVERAGE SALARY LOOKUP'!$A$3:$I$700,6,FALSE),0)),(ROUND(AJ57*VLOOKUP($R57,'AVERAGE SALARY LOOKUP'!$A$3:$I$700,9,FALSE),0))))) -> 0 | AK57: 0 | AO57: =(IF(AQ57="",0,IF(CONFIG!$B$22<>"Autonomous",ROUND(VLOOKUP(R57,'AVERAGE SALARY LOOKUP'!$A$3:$E$10004,4,FALSE)*AQ57,0),IF(E57="",0,IF(E57="vacancy",ROUND(VLOOKUP(R57,'AVERAGE SALARY LOOKUP'!$A$3:$E$10004,4,FALSE)*AQ57,0),ROUND(VLOOKUP(E57,'FULL TIME ACTUAL RATES'!$B$2:$G$4927,6,FALSE)*AQ57,0)))))) -> 0 | AP57: =IF($H57="",0,IF(CONFIG!$B$22="Autonomous",ROUND((AO57*VLOOKUP($H57,CONFIG!$A$46:$C$55,3,FALSE)+(VLOOKUP($BR57,CONFIG!$A$33:$C$43,3,FALSE)*AQ57)),0),(ROUND('School Staffing Tool'!AQ57*VLOOKUP($R57,'AVERAGE SALARY LOOKUP'!$A$3:$F$700,6,FALSE),0)))) -> 0 | AR57: 0 | AV57: =(IF(AX57="",0,ROUND(VLOOKUP(R57,'AVERAGE SALARY LOOKUP'!$A$3:$E$10004,4,FALSE)*AX57,0))) -> 0 | AW57: =IF($H57="",0,IF(CONFIG!$B$22="Autonomous",ROUND((AV57*VLOOKUP($H57,CONFIG!$A$46:$C$55,3,FALSE)+(VLOOKUP($BR57,CONFIG!$A$33:$C$43,3,FALSE)*AX57)),0),(ROUND('School Staffing Tool'!AX57*VLOOKUP($R57,'AVERAGE SALARY LOOKUP'!$A$3:$H$700,8,FALSE),0)))) -> 0 | AY57: 0 | BC57: 0 | BD57: =IF(BB57="",0,ROUND((BC57*VLOOKUP($H57,CONFIG!$A$46:$C$55,3,FALSE)+(VLOOKUP($BR57,CONFIG!$A$33:$C$43,3,FALSE)*BE57)),0)) -> 0 | BF57: 0 | BJ57: =(IF(BL57="",0,ROUND(VLOOKUP($R$34,'AVERAGE SALARY LOOKUP'!$A$3:$E$10004,4,FALSE)*BL57,0))) -> 0 | BK57: =IF($H57="",0,IF(CONFIG!$B$22="Autonomous",ROUND((BJ57*VLOOKUP($H57,CONFIG!$A$46:$C$55,3,FALSE)+(VLOOKUP($BR57,CONFIG!$A$33:$C$43,3,FALSE)*BL57)),0),(ROUND('School Staffing Tool'!BL57*VLOOKUP($R57,'AVERAGE SALARY LOOKUP'!$A$3:$F$700,6,FALSE),0)))) -> 0 | BM57: 0 | BQ57: 0 | BR57: =IF(R57="","",VLOOKUP(R57,'AVERAGE SALARY LOOKUP'!$A$3:$C$686,3,FALSE)) ->  | BS57: 0 | BV57: 0 | BW57: 0 | BX57: 0
A58: 0289 FY 10-11 P009 | B58: =CONCATENATE(CONFIG!$C$9," ",CONFIG!$B$6," ",P58,Q58) -> 0289 FY 10-11 P009A | C58: 4/5 Lit | F58: ELA - E Teacher | G58: =IF(F58="","",IF(OR(D58="",D58="HS"),VLOOKUP(F58,'JOB CODE LOOKUP'!$S$5:$V$183,3,FALSE),VLOOKUP(F58,'JOB CODE LOOKUP'!$S$5:$V$183,4,FALSE))) -> 10289110018314520110 | H58: 10 | I58: 289 | J58: 11 | K58: 0018 | L58: 3145 | M58: 2 | N58: 0110 | O58: 0200 | P58: P009 | Q58: A | R58: =IF(F58="","",(IF(CONFIG!$B$12="ES",VLOOKUP(F58,'JOB CODE LOOKUP'!$A$2:$E$222,2,FALSE),IF(CONFIG!$B$12="K-8",VLOOKUP(F58,'JOB CODE LOOKUP'!$G$2:$K$222,2,FALSE),IF(CONFIG!$B$12="MS",VLOOKUP(F58,'JOB CODE LOOKUP'!$M$2:$Q$222,2,FALSE),IF(CONFIG!$B$12="HS",VLOOKUP(F58,'JOB CODE LOOKUP'!$S$2:$W$222,2,FALSE),IF(AND(CONFIG!$B$12="6-12",D58="HS"),VLOOKUP(F58,'JOB CODE LOOKUP'!$S$2:$W$222,2,FALSE),IF(AND(CONFIG!$B$12="6-12",D58="MS"),VLOOKUP(F58,'JOB CODE LOOKUP'!$M$2:$Q$222,2,FALSE),"")))))))) -> 3302 | S58: =IF(CONFIG!$B$2<>"Y","",(IF(OR(G58="",LEFT(H58,1)="2",H58="19",L58="1911"),"",dbs(BV58,CONFIG!$B$4&":Employee - School Staffing",CONFIG!$B$5,CONFIG!$B$6,CONFIG!$C$9,H58,I58,J58,K58,L58,M58,N58,P58,Q58,R58,"FTE")))) ->  | T58: =IF(CONFIG!$B$2<>"Y","",(IF(OR(G58="",LEFT(H58,1)="2",H58="19",L58="1911"),"",dbs(BW58,CONFIG!$B$4&":Employee - School Staffing",CONFIG!$B$5,CONFIG!$B$6,CONFIG!$C$9,H58,I58,J58,K58,L58,M58,N58,P58,Q58,R58,"AMOUNT")))) ->  | U58: =IF(CONFIG!$B$2<>"Y","",(IF(OR(G58="",LEFT(H58,1)="2",H58="19",L58="1911"),"",dbs(BX58,CONFIG!$B$4&":Employee - School Staffing",CONFIG!$B$5,CONFIG!$B$6,CONFIG!$C$9,H58,I58,J58,K58,L58,M58,O58,P58,Q58,R58,"AMOUNT")))) ->  | Y58: 09 | Z58: ELA - E Teacher | AA58: =(IF(AC58="",0,IF(CONFIG!$B$22<>"Autonomous",ROUND(VLOOKUP(R58,'AVERAGE SALARY LOOKUP'!$A$3:$E$10004,4,FALSE)*AC58,0),IF(E58="",0,IF(E58="vacancy",ROUND(VLOOKUP(R58,'AVERAGE SALARY LOOKUP'!$A$3:$E$10004,4,FALSE)*AC58,0),ROUND(VLOOKUP(E58,'FULL TIME ACTUAL RATES'!$B$2:$G$4927,6,FALSE)*AC58,0)))))) -> 51768 | AB58: =IF($H58="",0,IF(CONFIG!$B$22="Autonomous",ROUND((AA58*VLOOKUP($H58,CONFIG!$A$46:$C$55,3,FALSE)+(VLOOKUP($BR58,CONFIG!$A$33:$C$43,3,FALSE)*AC58)),0),(ROUND('School Staffing Tool'!AC58*VLOOKUP(R58,'AVERAGE SALARY LOOKUP'!$A$3:$F$700,6,FALSE),0)))) -> 14176 | AC58: 1 | AD58: 65944 | AH58: =(IF(AJ58="",0,ROUND(VLOOKUP(R58,'AVERAGE SALARY LOOKUP'!$A$3:$E$10004,4,FALSE)*AJ58,0))) -> 0 | AI58: =IF($H58="",0,IF(CONFIG!$B$22="Autonomous",ROUND((AH58*VLOOKUP($H58,CONFIG!$A$46:$C$55,3,FALSE)+(VLOOKUP($BR58,CONFIG!$A$33:$C$43,3,FALSE)*AJ58)),0),IF(H58="10",(ROUND(AJ58*VLOOKUP($R58,'AVERAGE SALARY LOOKUP'!$A$3:$I$700,6,FALSE),0)),(ROUND(AJ58*VLOOKUP($R58,'AVERAGE SALARY LOOKUP'!$A$3:$I$700,9,FALSE),0))))) -> 0 | AK58: 0 | AO58: =(IF(AQ58="",0,IF(CONFIG!$B$22<>"Autonomous",ROUND(VLOOKUP(R58,'AVERAGE SALARY LOOKUP'!$A$3:$E$10004,4,FALSE)*AQ58,0),IF(E58="",0,IF(E58="vacancy",ROUND(VLOOKUP(R58,'AVERAGE SALARY LOOKUP'!$A$3:$E$10004,4,FALSE)*AQ58,0),ROUND(VLOOKUP(E58,'FULL TIME ACTUAL RATES'!$B$2:$G$4927,6,FALSE)*AQ58,0)))))) -> 0 | AP58: =IF($H58="",0,IF(CONFIG!$B$22="Autonomous",ROUND((AO58*VLOOKUP($H58,CONFIG!$A$46:$C$55,3,FALSE)+(VLOOKUP($BR58,CONFIG!$A$33:$C$43,3,FALSE)*AQ58)),0),(ROUND('School Staffing Tool'!AQ58*VLOOKUP($R58,'AVERAGE SALARY LOOKUP'!$A$3:$F$700,6,FALSE),0)))) -> 0 | AR58: 0 | AV58: =(IF(AX58="",0,ROUND(VLOOKUP(R58,'AVERAGE SALARY LOOKUP'!$A$3:$E$10004,4,FALSE)*AX58,0))) -> 0 | AW58: =IF($H58="",0,IF(CONFIG!$B$22="Autonomous",ROUND((AV58*VLOOKUP($H58,CONFIG!$A$46:$C$55,3,FALSE)+(VLOOKUP($BR58,CONFIG!$A$33:$C$43,3,FALSE)*AX58)),0),(ROUND('School Staffing Tool'!AX58*VLOOKUP($R58,'AVERAGE SALARY LOOKUP'!$A$3:$H$700,8,FALSE),0)))) -> 0 | AY58: 0 | BC58: 0 | BD58: =IF(BB58="",0,ROUND((BC58*VLOOKUP($H58,CONFIG!$A$46:$C$55,3,FALSE)+(VLOOKUP($BR58,CONFIG!$A$33:$C$43,3,FALSE)*BE58)),0)) -> 0 | BF58: 0 | BJ58: =(IF(BL58="",0,ROUND(VLOOKUP($R$34,'AVERAGE SALARY LOOKUP'!$A$3:$E$10004,4,FALSE)*BL58,0))) -> 0 | BK58: =IF($H58="",0,IF(CONFIG!$B$22="Autonomous",ROUND((BJ58*VLOOKUP($H58,CONFIG!$A$46:$C$55,3,FALSE)+(VLOOKUP($BR58,CONFIG!$A$33:$C$43,3,FALSE)*BL58)),0),(ROUND('School Staffing Tool'!BL58*VLOOKUP($R58,'AVERAGE SALARY LOOKUP'!$A$3:$F$700,6,FALSE),0)))) -> 0 | BM58: 0 | BQ58: 1 | BR58: =IF(R58="","",VLOOKUP(R58,'AVERAGE SALARY LOOKUP'!$A$3:$C$686,3,FALSE)) -> DCTA | BS58: 1 | BU58: 10,3145,2 | BV58: 1 | BW58: 51768 | BX58: 14176
A59: 0289 FY 10-11 P009 | B59: =CONCATENATE(CONFIG!$C$9," ",CONFIG!$B$6," ",P59,Q59) -> 0289 FY 10-11 P009B | G59: =IF(F59="","",IF(OR(D59="",D59="HS"),VLOOKUP(F59,'JOB CODE LOOKUP'!$S$5:$V$183,3,FALSE),VLOOKUP(F59,'JOB CODE LOOKUP'!$S$5:$V$183,4,FALSE))) ->  | P59: P009 | Q59: B | R59: =IF(F59="","",(IF(CONFIG!$B$12="ES",VLOOKUP(F59,'JOB CODE LOOKUP'!$A$2:$E$222,2,FALSE),IF(CONFIG!$B$12="K-8",VLOOKUP(F59,'JOB CODE LOOKUP'!$G$2:$K$222,2,FALSE),IF(CONFIG!$B$12="MS",VLOOKUP(F59,'JOB CODE LOOKUP'!$M$2:$Q$222,2,FALSE),IF(CONFIG!$B$12="HS",VLOOKUP(F59,'JOB CODE LOOKUP'!$S$2:$W$222,2,FALSE),IF(AND(CONFIG!$B$12="6-12",D59="HS"),VLOOKUP(F59,'JOB CODE LOOKUP'!$S$2:$W$222,2,FALSE),IF(AND(CONFIG!$B$12="6-12",D59="MS"),VLOOKUP(F59,'JOB CODE LOOKUP'!$M$2:$Q$222,2,FALSE),"")))))))) ->  | S59: =IF(CONFIG!$B$2<>"Y","",(IF(OR(G59="",LEFT(H59,1)="2",H59="19",L59="1911"),"",dbs(BV59,CONFIG!$B$4&":Employee - School Staffing",CONFIG!$B$5,CONFIG!$B$6,CONFIG!$C$9,H59,I59,J59,K59,L59,M59,N59,P59,Q59,R59,"FTE")))) ->  | T59: =IF(CONFIG!$B$2<>"Y","",(IF(OR(G59="",LEFT(H59,1)="2",H59="19",L59="1911"),"",dbs(BW59,CONFIG!$B$4&":Employee - School Staffing",CONFIG!$B$5,CONFIG!$B$6,CONFIG!$C$9,H59,I59,J59,K59,L59,M59,N59,P59,Q59,R59,"AMOUNT")))) ->  | U59: =IF(CONFIG!$B$2<>"Y","",(IF(OR(G59="",LEFT(H59,1)="2",H59="19",L59="1911"),"",dbs(BX59,CONFIG!$B$4&":Employee - School Staffing",CONFIG!$B$5,CONFIG!$B$6,CONFIG!$C$9,H59,I59,J59,K59,L59,M59,O59,P59,Q59,R59,"AMOUNT")))) ->  | Y59: 09 | AA59: =(IF(AC59="",0,IF(CONFIG!$B$22<>"Autonomous",ROUND(VLOOKUP(R59,'AVERAGE SALARY LOOKUP'!$A$3:$E$10004,4,FALSE)*AC59,0),IF(E59="",0,IF(E59="vacancy",ROUND(VLOOKUP(R59,'AVERAGE SALARY LOOKUP'!$A$3:$E$10004,4,FALSE)*AC59,0),ROUND(VLOOKUP(E59,'FULL TIME ACTUAL RATES'!$B$2:$G$4927,6,FALSE)*AC59,0)))))) -> 0 | AB59: =IF($H59="",0,IF(CONFIG!$B$22="Autonomous",ROUND((AA59*VLOOKUP($H59,CONFIG!$A$46:$C$55,3,FALSE)+(VLOOKUP($BR59,CONFIG!$A$33:$C$43,3,FALSE)*AC59)),0),(ROUND('School Staffing Tool'!AC59*VLOOKUP(R59,'AVERAGE SALARY LOOKUP'!$A$3:$F$700,6,FALSE),0)))) -> 0 | AD59: 0 | AH59: =(IF(AJ59="",0,ROUND(VLOOKUP(R59,'AVERAGE SALARY LOOKUP'!$A$3:$E$10004,4,FALSE)*AJ59,0))) -> 0 | AI59: =IF($H59="",0,IF(CONFIG!$B$22="Autonomous",ROUND((AH59*VLOOKUP($H59,CONFIG!$A$46:$C$55,3,FALSE)+(VLOOKUP($BR59,CONFIG!$A$33:$C$43,3,FALSE)*AJ59)),0),IF(H59="10",(ROUND(AJ59*VLOOKUP($R59,'AVERAGE SALARY LOOKUP'!$A$3:$I$700,6,FALSE),0)),(ROUND(AJ59*VLOOKUP($R59,'AVERAGE SALARY LOOKUP'!$A$3:$I$700,9,FALSE),0))))) -> 0 | AK59: 0 | AO59: =(IF(AQ59="",0,IF(CONFIG!$B$22<>"Autonomous",ROUND(VLOOKUP(R59,'AVERAGE SALARY LOOKUP'!$A$3:$E$10004,4,FALSE)*AQ59,0),IF(E59="",0,IF(E59="vacancy",ROUND(VLOOKUP(R59,'AVERAGE SALARY LOOKUP'!$A$3:$E$10004,4,FALSE)*AQ59,0),ROUND(VLOOKUP(E59,'FULL TIME ACTUAL RATES'!$B$2:$G$4927,6,FALSE)*AQ59,0)))))) -> 0 | AP59: =IF($H59="",0,IF(CONFIG!$B$22="Autonomous",ROUND((AO59*VLOOKUP($H59,CONFIG!$A$46:$C$55,3,FALSE)+(VLOOKUP($BR59,CONFIG!$A$33:$C$43,3,FALSE)*AQ59)),0),(ROUND('School Staffing Tool'!AQ59*VLOOKUP($R59,'AVERAGE SALARY LOOKUP'!$A$3:$F$700,6,FALSE),0)))) -> 0 | AR59: 0 | AV59: =(IF(AX59="",0,ROUND(VLOOKUP(R59,'AVERAGE SALARY LOOKUP'!$A$3:$E$10004,4,FALSE)*AX59,0))) -> 0 | AW59: =IF($H59="",0,IF(CONFIG!$B$22="Autonomous",ROUND((AV59*VLOOKUP($H59,CONFIG!$A$46:$C$55,3,FALSE)+(VLOOKUP($BR59,CONFIG!$A$33:$C$43,3,FALSE)*AX59)),0),(ROUND('School Staffing Tool'!AX59*VLOOKUP($R59,'AVERAGE SALARY LOOKUP'!$A$3:$H$700,8,FALSE),0)))) -> 0 | AY59: 0 | BC59: 0 | BD59: =IF(BB59="",0,ROUND((BC59*VLOOKUP($H59,CONFIG!$A$46:$C$55,3,FALSE)+(VLOOKUP($BR59,CONFIG!$A$33:$C$43,3,FALSE)*BE59)),0)) -> 0 | BF59: 0 | BJ59: =(IF(BL59="",0,ROUND(VLOOKUP($R$34,'AVERAGE SALARY LOOKUP'!$A$3:$E$10004,4,FALSE)*BL59,0))) -> 0 | BK59: =IF($H59="",0,IF(CONFIG!$B$22="Autonomous",ROUND((BJ59*VLOOKUP($H59,CONFIG!$A$46:$C$55,3,FALSE)+(VLOOKUP($BR59,CONFIG!$A$33:$C$43,3,FALSE)*BL59)),0),(ROUND('School Staffing Tool'!BL59*VLOOKUP($R59,'AVERAGE SALARY LOOKUP'!$A$3:$F$700,6,FALSE),0)))) -> 0 | BM59: 0 | BQ59: 0 | BR59: =IF(R59="","",VLOOKUP(R59,'AVERAGE SALARY LOOKUP'!$A$3:$C$686,3,FALSE)) ->  | BS59: 0 | BV59: 0 | BW59: 0 | BX59: 0
A60: 0289 FY 10-11 P009 | B60: =CONCATENATE(CONFIG!$C$9," ",CONFIG!$B$6," ",P60,Q60) -> 0289 FY 10-11 P009C | G60: =IF(F60="","",IF(OR(D60="",D60="HS"),VLOOKUP(F60,'JOB CODE LOOKUP'!$S$5:$V$183,3,FALSE),VLOOKUP(F60,'JOB CODE LOOKUP'!$S$5:$V$183,4,FALSE))) ->  | P60: P009 | Q60: C | R60: =IF(F60="","",(IF(CONFIG!$B$12="ES",VLOOKUP(F60,'JOB CODE LOOKUP'!$A$2:$E$222,2,FALSE),IF(CONFIG!$B$12="K-8",VLOOKUP(F60,'JOB CODE LOOKUP'!$G$2:$K$222,2,FALSE),IF(CONFIG!$B$12="MS",VLOOKUP(F60,'JOB CODE LOOKUP'!$M$2:$Q$222,2,FALSE),IF(CONFIG!$B$12="HS",VLOOKUP(F60,'JOB CODE LOOKUP'!$S$2:$W$222,2,FALSE),IF(AND(CONFIG!$B$12="6-12",D60="HS"),VLOOKUP(F60,'JOB CODE LOOKUP'!$S$2:$W$222,2,FALSE),IF(AND(CONFIG!$B$12="6-12",D60="MS"),VLOOKUP(F60,'JOB CODE LOOKUP'!$M$2:$Q$222,2,FALSE),"")))))))) ->  | S60: =IF(CONFIG!$B$2<>"Y","",(IF(OR(G60="",LEFT(H60,1)="2",H60="19",L60="1911"),"",dbs(BV60,CONFIG!$B$4&":Employee - School Staffing",CONFIG!$B$5,CONFIG!$B$6,CONFIG!$C$9,H60,I60,J60,K60,L60,M60,N60,P60,Q60,R60,"FTE")))) ->  | T60: =IF(CONFIG!$B$2<>"Y","",(IF(OR(G60="",LEFT(H60,1)="2",H60="19",L60="1911"),"",dbs(BW60,CONFIG!$B$4&":Employee - School Staffing",CONFIG!$B$5,CONFIG!$B$6,CONFIG!$C$9,H60,I60,J60,K60,L60,M60,N60,P60,Q60,R60,"AMOUNT")))) ->  | U60: =IF(CONFIG!$B$2<>"Y","",(IF(OR(G60="",LEFT(H60,1)="2",H60="19",L60="1911"),"",dbs(BX60,CONFIG!$B$4&":Employee - School Staffing",CONFIG!$B$5,CONFIG!$B$6,CONFIG!$C$9,H60,I60,J60,K60,L60,M60,O60,P60,Q60,R60,"AMOUNT")))) ->  | Y60: 09 | AA60: =(IF(AC60="",0,IF(CONFIG!$B$22<>"Autonomous",ROUND(VLOOKUP(R60,'AVERAGE SALARY LOOKUP'!$A$3:$E$10004,4,FALSE)*AC60,0),IF(E60="",0,IF(E60="vacancy",ROUND(VLOOKUP(R60,'AVERAGE SALARY LOOKUP'!$A$3:$E$10004,4,FALSE)*AC60,0),ROUND(VLOOKUP(E60,'FULL TIME ACTUAL RATES'!$B$2:$G$4927,6,FALSE)*AC60,0)))))) -> 0 | AB60: =IF($H60="",0,IF(CONFIG!$B$22="Autonomous",ROUND((AA60*VLOOKUP($H60,CONFIG!$A$46:$C$55,3,FALSE)+(VLOOKUP($BR60,CONFIG!$A$33:$C$43,3,FALSE)*AC60)),0),(ROUND('School Staffing Tool'!AC60*VLOOKUP(R60,'AVERAGE SALARY LOOKUP'!$A$3:$F$700,6,FALSE),0)))) -> 0 | AD60: 0 | AH60: =(IF(AJ60="",0,ROUND(VLOOKUP(R60,'AVERAGE SALARY LOOKUP'!$A$3:$E$10004,4,FALSE)*AJ60,0))) -> 0 | AI60: =IF($H60="",0,IF(CONFIG!$B$22="Autonomous",ROUND((AH60*VLOOKUP($H60,CONFIG!$A$46:$C$55,3,FALSE)+(VLOOKUP($BR60,CONFIG!$A$33:$C$43,3,FALSE)*AJ60)),0),IF(H60="10",(ROUND(AJ60*VLOOKUP($R60,'AVERAGE SALARY LOOKUP'!$A$3:$I$700,6,FALSE),0)),(ROUND(AJ60*VLOOKUP($R60,'AVERAGE SALARY LOOKUP'!$A$3:$I$700,9,FALSE),0))))) -> 0 | AK60: 0 | AO60: =(IF(AQ60="",0,IF(CONFIG!$B$22<>"Autonomous",ROUND(VLOOKUP(R60,'AVERAGE SALARY LOOKUP'!$A$3:$E$10004,4,FALSE)*AQ60,0),IF(E60="",0,IF(E60="vacancy",ROUND(VLOOKUP(R60,'AVERAGE SALARY LOOKUP'!$A$3:$E$10004,4,FALSE)*AQ60,0),ROUND(VLOOKUP(E60,'FULL TIME ACTUAL RATES'!$B$2:$G$4927,6,FALSE)*AQ60,0)))))) -> 0 | AP60: =IF($H60="",0,IF(CONFIG!$B$22="Autonomous",ROUND((AO60*VLOOKUP($H60,CONFIG!$A$46:$C$55,3,FALSE)+(VLOOKUP($BR60,CONFIG!$A$33:$C$43,3,FALSE)*AQ60)),0),(ROUND('School Staffing Tool'!AQ60*VLOOKUP($R60,'AVERAGE SALARY LOOKUP'!$A$3:$F$700,6,FALSE),0)))) -> 0 | AR60: 0 | AV60: =(IF(AX60="",0,ROUND(VLOOKUP(R60,'AVERAGE SALARY LOOKUP'!$A$3:$E$10004,4,FALSE)*AX60,0))) -> 0 | AW60: =IF($H60="",0,IF(CONFIG!$B$22="Autonomous",ROUND((AV60*VLOOKUP($H60,CONFIG!$A$46:$C$55,3,FALSE)+(VLOOKUP($BR60,CONFIG!$A$33:$C$43,3,FALSE)*AX60)),0),(ROUND('School Staffing Tool'!AX60*VLOOKUP($R60,'AVERAGE SALARY LOOKUP'!$A$3:$H$700,8,FALSE),0)))) -> 0 | AY60: 0 | BC60: 0 | BD60: =IF(BB60="",0,ROUND((BC60*VLOOKUP($H60,CONFIG!$A$46:$C$55,3,FALSE)+(VLOOKUP($BR60,CONFIG!$A$33:$C$43,3,FALSE)*BE60)),0)) -> 0 | BF60: 0 | BJ60: =(IF(BL60="",0,ROUND(VLOOKUP($R$34,'AVERAGE SALARY LOOKUP'!$A$3:$E$10004,4,FALSE)*BL60,0))) -> 0 | BK60: =IF($H60="",0,IF(CONFIG!$B$22="Autonomous",ROUND((BJ60*VLOOKUP($H60,CONFIG!$A$46:$C$55,3,FALSE)+(VLOOKUP($BR60,CONFIG!$A$33:$C$43,3,FALSE)*BL60)),0),(ROUND('School Staffing Tool'!BL60*VLOOKUP($R60,'AVERAGE SALARY LOOKUP'!$A$3:$F$700,6,FALSE),0)))) -> 0 | BM60: 0 | BQ60: 0 | BR60: =IF(R60="","",VLOOKUP(R60,'AVERAGE SALARY LOOKUP'!$A$3:$C$686,3,FALSE)) ->  | BS60: 0 | BV60: 0 | BW60: 0 | BX60: 0
A61: 0289 FY 10-11 P010 | B61: =CONCATENATE(CONFIG!$C$9," ",CONFIG!$B$6," ",P61,Q61) -> 0289 FY 10-11 P010A | C61: 4/5 Math | F61: ELA - E Teacher | G61: =IF(F61="","",IF(OR(D61="",D61="HS"),VLOOKUP(F61,'JOB CODE LOOKUP'!$S$5:$V$183,3,FALSE),VLOOKUP(F61,'JOB CODE LOOKUP'!$S$5:$V$183,4,FALSE))) -> 10289110018314520110 | H61: 10 | I61: 289 | J61: 11 | K61: 0018 | L61: 3145 | M61: 2 | N61: 0110 | O61: 0200 | P61: P010 | Q61: A | R61: =IF(F61="","",(IF(CONFIG!$B$12="ES",VLOOKUP(F61,'JOB CODE LOOKUP'!$A$2:$E$222,2,FALSE),IF(CONFIG!$B$12="K-8",VLOOKUP(F61,'JOB CODE LOOKUP'!$G$2:$K$222,2,FALSE),IF(CONFIG!$B$12="MS",VLOOKUP(F61,'JOB CODE LOOKUP'!$M$2:$Q$222,2,FALSE),IF(CONFIG!$B$12="HS",VLOOKUP(F61,'JOB CODE LOOKUP'!$S$2:$W$222,2,FALSE),IF(AND(CONFIG!$B$12="6-12",D61="HS"),VLOOKUP(F61,'JOB CODE LOOKUP'!$S$2:$W$222,2,FALSE),IF(AND(CONFIG!$B$12="6-12",D61="MS"),VLOOKUP(F61,'JOB CODE LOOKUP'!$M$2:$Q$222,2,FALSE),"")))))))) -> 3302 | S61: =IF(CONFIG!$B$2<>"Y","",(IF(OR(G61="",LEFT(H61,1)="2",H61="19",L61="1911"),"",dbs(BV61,CONFIG!$B$4&":Employee - School Staffing",CONFIG!$B$5,CONFIG!$B$6,CONFIG!$C$9,H61,I61,J61,K61,L61,M61,N61,P61,Q61,R61,"FTE")))) ->  | T61: =IF(CONFIG!$B$2<>"Y","",(IF(OR(G61="",LEFT(H61,1)="2",H61="19",L61="1911"),"",dbs(BW61,CONFIG!$B$4&":Employee - School Staffing",CONFIG!$B$5,CONFIG!$B$6,CONFIG!$C$9,H61,I61,J61,K61,L61,M61,N61,P61,Q61,R61,"AMOUNT")))) ->  | U61: =IF(CONFIG!$B$2<>"Y","",(IF(OR(G61="",LEFT(H61,1)="2",H61="19",L61="1911"),"",dbs(BX61,CONFIG!$B$4&":Employee - School Staffing",CONFIG!$B$5,CONFIG!$B$6,CONFIG!$C$9,H61,I61,J61,K61,L61,M61,O61,P61,Q61,R61,"AMOUNT")))) ->  | Y61: 10 | Z61: ELA - E Teacher | AA61: =(IF(AC61="",0,IF(CONFIG!$B$22<>"Autonomous",ROUND(VLOOKUP(R61,'AVERAGE SALARY LOOKUP'!$A$3:$E$10004,4,FALSE)*AC61,0),IF(E61="",0,IF(E61="vacancy",ROUND(VLOOKUP(R61,'AVERAGE SALARY LOOKUP'!$A$3:$E$10004,4,FALSE)*AC61,0),ROUND(VLOOKUP(E61,'FULL TIME ACTUAL RATES'!$B$2:$G$4927,6,FALSE)*AC61,0)))))) -> 51768 | AB61: =IF($H61="",0,IF(CONFIG!$B$22="Autonomous",ROUND((AA61*VLOOKUP($H61,CONFIG!$A$46:$C$55,3,FALSE)+(VLOOKUP($BR61,CONFIG!$A$33:$C$43,3,FALSE)*AC61)),0),(ROUND('School Staffing Tool'!AC61*VLOOKUP(R61,'AVERAGE SALARY LOOKUP'!$A$3:$F$700,6,FALSE),0)))) -> 14176 | AC61: 1 | AD61: 65944 | AH61: =(IF(AJ61="",0,ROUND(VLOOKUP(R61,'AVERAGE SALARY LOOKUP'!$A$3:$E$10004,4,FALSE)*AJ61,0))) -> 0 | AI61: =IF($H61="",0,IF(CONFIG!$B$22="Autonomous",ROUND((AH61*VLOOKUP($H61,CONFIG!$A$46:$C$55,3,FALSE)+(VLOOKUP($BR61,CONFIG!$A$33:$C$43,3,FALSE)*AJ61)),0),IF(H61="10",(ROUND(AJ61*VLOOKUP($R61,'AVERAGE SALARY LOOKUP'!$A$3:$I$700,6,FALSE),0)),(ROUND(AJ61*VLOOKUP($R61,'AVERAGE SALARY LOOKUP'!$A$3:$I$700,9,FALSE),0))))) -> 0 | AK61: 0 | AO61: =(IF(AQ61="",0,IF(CONFIG!$B$22<>"Autonomous",ROUND(VLOOKUP(R61,'AVERAGE SALARY LOOKUP'!$A$3:$E$10004,4,FALSE)*AQ61,0),IF(E61="",0,IF(E61="vacancy",ROUND(VLOOKUP(R61,'AVERAGE SALARY LOOKUP'!$A$3:$E$10004,4,FALSE)*AQ61,0),ROUND(VLOOKUP(E61,'FULL TIME ACTUAL RATES'!$B$2:$G$4927,6,FALSE)*AQ61,0)))))) -> 0 | AP61: =IF($H61="",0,IF(CONFIG!$B$22="Autonomous",ROUND((AO61*VLOOKUP($H61,CONFIG!$A$46:$C$55,3,FALSE)+(VLOOKUP($BR61,CONFIG!$A$33:$C$43,3,FALSE)*AQ61)),0),(ROUND('School Staffing Tool'!AQ61*VLOOKUP($R61,'AVERAGE SALARY LOOKUP'!$A$3:$F$700,6,FALSE),0)))) -> 0 | AR61: 0 | AV61: =(IF(AX61="",0,ROUND(VLOOKUP(R61,'AVERAGE SALARY LOOKUP'!$A$3:$E$10004,4,FALSE)*AX61,0))) -> 0 | AW61: =IF($H61="",0,IF(CONFIG!$B$22="Autonomous",ROUND((AV61*VLOOKUP($H61,CONFIG!$A$46:$C$55,3,FALSE)+(VLOOKUP($BR61,CONFIG!$A$33:$C$43,3,FALSE)*AX61)),0),(ROUND('School Staffing Tool'!AX61*VLOOKUP($R61,'AVERAGE SALARY LOOKUP'!$A$3:$H$700,8,FALSE),0)))) -> 0 | AY61: 0 | BC61: 0 | BD61: =IF(BB61="",0,ROUND((BC61*VLOOKUP($H61,CONFIG!$A$46:$C$55,3,FALSE)+(VLOOKUP($BR61,CONFIG!$A$33:$C$43,3,FALSE)*BE61)),0)) -> 0 | BF61: 0 | BJ61: =(IF(BL61="",0,ROUND(VLOOKUP($R$34,'AVERAGE SALARY LOOKUP'!$A$3:$E$10004,4,FALSE)*BL61,0))) -> 0 | BK61: =IF($H61="",0,IF(CONFIG!$B$22="Autonomous",ROUND((BJ61*VLOOKUP($H61,CONFIG!$A$46:$C$55,3,FALSE)+(VLOOKUP($BR61,CONFIG!$A$33:$C$43,3,FALSE)*BL61)),0),(ROUND('School Staffing Tool'!BL61*VLOOKUP($R61,'AVERAGE SALARY LOOKUP'!$A$3:$F$700,6,FALSE),0)))) -> 0 | BM61: 0 | BQ61: 1 | BR61: =IF(R61="","",VLOOKUP(R61,'AVERAGE SALARY LOOKUP'!$A$3:$C$686,3,FALSE)) -> DCTA | BS61: 1 | BU61: 10,3145,2 | BV61: 1 | BW61: 51768 | BX61: 14176
A62: 0289 FY 10-11 P010 | B62: =CONCATENATE(CONFIG!$C$9," ",CONFIG!$B$6," ",P62,Q62) -> 0289 FY 10-11 P010B | G62: =IF(F62="","",IF(OR(D62="",D62="HS"),VLOOKUP(F62,'JOB CODE LOOKUP'!$S$5:$V$183,3,FALSE),VLOOKUP(F62,'JOB CODE LOOKUP'!$S$5:$V$183,4,FALSE))) ->  | P62: P010 | Q62: B | R62: =IF(F62="","",(IF(CONFIG!$B$12="ES",VLOOKUP(F62,'JOB CODE LOOKUP'!$A$2:$E$222,2,FALSE),IF(CONFIG!$B$12="K-8",VLOOKUP(F62,'JOB CODE LOOKUP'!$G$2:$K$222,2,FALSE),IF(CONFIG!$B$12="MS",VLOOKUP(F62,'JOB CODE LOOKUP'!$M$2:$Q$222,2,FALSE),IF(CONFIG!$B$12="HS",VLOOKUP(F62,'JOB CODE LOOKUP'!$S$2:$W$222,2,FALSE),IF(AND(CONFIG!$B$12="6-12",D62="HS"),VLOOKUP(F62,'JOB CODE LOOKUP'!$S$2:$W$222,2,FALSE),IF(AND(CONFIG!$B$12="6-12",D62="MS"),VLOOKUP(F62,'JOB CODE LOOKUP'!$M$2:$Q$222,2,FALSE),"")))))))) ->  | S62: =IF(CONFIG!$B$2<>"Y","",(IF(OR(G62="",LEFT(H62,1)="2",H62="19",L62="1911"),"",dbs(BV62,CONFIG!$B$4&":Employee - School Staffing",CONFIG!$B$5,CONFIG!$B$6,CONFIG!$C$9,H62,I62,J62,K62,L62,M62,N62,P62,Q62,R62,"FTE")))) ->  | T62: =IF(CONFIG!$B$2<>"Y","",(IF(OR(G62="",LEFT(H62,1)="2",H62="19",L62="1911"),"",dbs(BW62,CONFIG!$B$4&":Employee - School Staffing",CONFIG!$B$5,CONFIG!$B$6,CONFIG!$C$9,H62,I62,J62,K62,L62,M62,N62,P62,Q62,R62,"AMOUNT")))) ->  | U62: =IF(CONFIG!$B$2<>"Y","",(IF(OR(G62="",LEFT(H62,1)="2",H62="19",L62="1911"),"",dbs(BX62,CONFIG!$B$4&":Employee - School Staffing",CONFIG!$B$5,CONFIG!$B$6,CONFIG!$C$9,H62,I62,J62,K62,L62,M62,O62,P62,Q62,R62,"AMOUNT")))) ->  | Y62: 10 | AA62: =(IF(AC62="",0,IF(CONFIG!$B$22<>"Autonomous",ROUND(VLOOKUP(R62,'AVERAGE SALARY LOOKUP'!$A$3:$E$10004,4,FALSE)*AC62,0),IF(E62="",0,IF(E62="vacancy",ROUND(VLOOKUP(R62,'AVERAGE SALARY LOOKUP'!$A$3:$E$10004,4,FALSE)*AC62,0),ROUND(VLOOKUP(E62,'FULL TIME ACTUAL RATES'!$B$2:$G$4927,6,FALSE)*AC62,0)))))) -> 0 | AB62: =IF($H62="",0,IF(CONFIG!$B$22="Autonomous",ROUND((AA62*VLOOKUP($H62,CONFIG!$A$46:$C$55,3,FALSE)+(VLOOKUP($BR62,CONFIG!$A$33:$C$43,3,FALSE)*AC62)),0),(ROUND('School Staffing Tool'!AC62*VLOOKUP(R62,'AVERAGE SALARY LOOKUP'!$A$3:$F$700,6,FALSE),0)))) -> 0 | AD62: 0 | AH62: =(IF(AJ62="",0,ROUND(VLOOKUP(R62,'AVERAGE SALARY LOOKUP'!$A$3:$E$10004,4,FALSE)*AJ62,0))) -> 0 | AI62: =IF($H62="",0,IF(CONFIG!$B$22="Autonomous",ROUND((AH62*VLOOKUP($H62,CONFIG!$A$46:$C$55,3,FALSE)+(VLOOKUP($BR62,CONFIG!$A$33:$C$43,3,FALSE)*AJ62)),0),IF(H62="10",(ROUND(AJ62*VLOOKUP($R62,'AVERAGE SALARY LOOKUP'!$A$3:$I$700,6,FALSE),0)),(ROUND(AJ62*VLOOKUP($R62,'AVERAGE SALARY LOOKUP'!$A$3:$I$700,9,FALSE),0))))) -> 0 | AK62: 0 | AO62: =(IF(AQ62="",0,IF(CONFIG!$B$22<>"Autonomous",ROUND(VLOOKUP(R62,'AVERAGE SALARY LOOKUP'!$A$3:$E$10004,4,FALSE)*AQ62,0),IF(E62="",0,IF(E62="vacancy",ROUND(VLOOKUP(R62,'AVERAGE SALARY LOOKUP'!$A$3:$E$10004,4,FALSE)*AQ62,0),ROUND(VLOOKUP(E62,'FULL TIME ACTUAL RATES'!$B$2:$G$4927,6,FALSE)*AQ62,0)))))) -> 0 | AP62: =IF($H62="",0,IF(CONFIG!$B$22="Autonomous",ROUND((AO62*VLOOKUP($H62,CONFIG!$A$46:$C$55,3,FALSE)+(VLOOKUP($BR62,CONFIG!$A$33:$C$43,3,FALSE)*AQ62)),0),(ROUND('School Staffing Tool'!AQ62*VLOOKUP($R62,'AVERAGE SALARY LOOKUP'!$A$3:$F$700,6,FALSE),0)))) -> 0 | AR62: 0 | AV62: =(IF(AX62="",0,ROUND(VLOOKUP(R62,'AVERAGE SALARY LOOKUP'!$A$3:$E$10004,4,FALSE)*AX62,0))) -> 0 | AW62: =IF($H62="",0,IF(CONFIG!$B$22="Autonomous",ROUND((AV62*VLOOKUP($H62,CONFIG!$A$46:$C$55,3,FALSE)+(VLOOKUP($BR62,CONFIG!$A$33:$C$43,3,FALSE)*AX62)),0),(ROUND('School Staffing Tool'!AX62*VLOOKUP($R62,'AVERAGE SALARY LOOKUP'!$A$3:$H$700,8,FALSE),0)))) -> 0 | AY62: 0 | BC62: 0 | BD62: =IF(BB62="",0,ROUND((BC62*VLOOKUP($H62,CONFIG!$A$46:$C$55,3,FALSE)+(VLOOKUP($BR62,CONFIG!$A$33:$C$43,3,FALSE)*BE62)),0)) -> 0 | BF62: 0 | BJ62: =(IF(BL62="",0,ROUND(VLOOKUP($R$34,'AVERAGE SALARY LOOKUP'!$A$3:$E$10004,4,FALSE)*BL62,0))) -> 0 | BK62: =IF($H62="",0,IF(CONFIG!$B$22="Autonomous",ROUND((BJ62*VLOOKUP($H62,CONFIG!$A$46:$C$55,3,FALSE)+(VLOOKUP($BR62,CONFIG!$A$33:$C$43,3,FALSE)*BL62)),0),(ROUND('School Staffing Tool'!BL62*VLOOKUP($R62,'AVERAGE SALARY LOOKUP'!$A$3:$F$700,6,FALSE),0)))) -> 0 | BM62: 0 | BQ62: 0 | BR62: =IF(R62="","",VLOOKUP(R62,'AVERAGE SALARY LOOKUP'!$A$3:$C$686,3,FALSE)) ->  | BS62: 0 | BV62: 0 | BW62: 0 | BX62: 0
A63: 0289 FY 10-11 P010 | B63: =CONCATENATE(CONFIG!$C$9," ",CONFIG!$B$6," ",P63,Q63) -> 0289 FY 10-11 P010C | G63: =IF(F63="","",IF(OR(D63="",D63="HS"),VLOOKUP(F63,'JOB CODE LOOKUP'!$S$5:$V$183,3,FALSE),VLOOKUP(F63,'JOB CODE LOOKUP'!$S$5:$V$183,4,FALSE))) ->  | P63: P010 | Q63: C | R63: =IF(F63="","",(IF(CONFIG!$B$12="ES",VLOOKUP(F63,'JOB CODE LOOKUP'!$A$2:$E$222,2,FALSE),IF(CONFIG!$B$12="K-8",VLOOKUP(F63,'JOB CODE LOOKUP'!$G$2:$K$222,2,FALSE),IF(CONFIG!$B$12="MS",VLOOKUP(F63,'JOB CODE LOOKUP'!$M$2:$Q$222,2,FALSE),IF(CONFIG!$B$12="HS",VLOOKUP(F63,'JOB CODE LOOKUP'!$S$2:$W$222,2,FALSE),IF(AND(CONFIG!$B$12="6-12",D63="HS"),VLOOKUP(F63,'JOB CODE LOOKUP'!$S$2:$W$222,2,FALSE),IF(AND(CONFIG!$B$12="6-12",D63="MS"),VLOOKUP(F63,'JOB CODE LOOKUP'!$M$2:$Q$222,2,FALSE),"")))))))) ->  | S63: =IF(CONFIG!$B$2<>"Y","",(IF(OR(G63="",LEFT(H63,1)="2",H63="19",L63="1911"),"",dbs(BV63,CONFIG!$B$4&":Employee - School Staffing",CONFIG!$B$5,CONFIG!$B$6,CONFIG!$C$9,H63,I63,J63,K63,L63,M63,N63,P63,Q63,R63,"FTE")))) ->  | T63: =IF(CONFIG!$B$2<>"Y","",(IF(OR(G63="",LEFT(H63,1)="2",H63="19",L63="1911"),"",dbs(BW63,CONFIG!$B$4&":Employee - School Staffing",CONFIG!$B$5,CONFIG!$B$6,CONFIG!$C$9,H63,I63,J63,K63,L63,M63,N63,P63,Q63,R63,"AMOUNT")))) ->  | U63: =IF(CONFIG!$B$2<>"Y","",(IF(OR(G63="",LEFT(H63,1)="2",H63="19",L63="1911"),"",dbs(BX63,CONFIG!$B$4&":Employee - School Staffing",CONFIG!$B$5,CONFIG!$B$6,CONFIG!$C$9,H63,I63,J63,K63,L63,M63,O63,P63,Q63,R63,"AMOUNT")))) ->  | Y63: 10 | AA63: =(IF(AC63="",0,IF(CONFIG!$B$22<>"Autonomous",ROUND(VLOOKUP(R63,'AVERAGE SALARY LOOKUP'!$A$3:$E$10004,4,FALSE)*AC63,0),IF(E63="",0,IF(E63="vacancy",ROUND(VLOOKUP(R63,'AVERAGE SALARY LOOKUP'!$A$3:$E$10004,4,FALSE)*AC63,0),ROUND(VLOOKUP(E63,'FULL TIME ACTUAL RATES'!$B$2:$G$4927,6,FALSE)*AC63,0)))))) -> 0 | AB63: =IF($H63="",0,IF(CONFIG!$B$22="Autonomous",ROUND((AA63*VLOOKUP($H63,CONFIG!$A$46:$C$55,3,FALSE)+(VLOOKUP($BR63,CONFIG!$A$33:$C$43,3,FALSE)*AC63)),0),(ROUND('School Staffing Tool'!AC63*VLOOKUP(R63,'AVERAGE SALARY LOOKUP'!$A$3:$F$700,6,FALSE),0)))) -> 0 | AD63: 0 | AH63: =(IF(AJ63="",0,ROUND(VLOOKUP(R63,'AVERAGE SALARY LOOKUP'!$A$3:$E$10004,4,FALSE)*AJ63,0))) -> 0 | AI63: =IF($H63="",0,IF(CONFIG!$B$22="Autonomous",ROUND((AH63*VLOOKUP($H63,CONFIG!$A$46:$C$55,3,FALSE)+(VLOOKUP($BR63,CONFIG!$A$33:$C$43,3,FALSE)*AJ63)),0),IF(H63="10",(ROUND(AJ63*VLOOKUP($R63,'AVERAGE SALARY LOOKUP'!$A$3:$I$700,6,FALSE),0)),(ROUND(AJ63*VLOOKUP($R63,'AVERAGE SALARY LOOKUP'!$A$3:$I$700,9,FALSE),0))))) -> 0 | AK63: 0 | AO63: =(IF(AQ63="",0,IF(CONFIG!$B$22<>"Autonomous",ROUND(VLOOKUP(R63,'AVERAGE SALARY LOOKUP'!$A$3:$E$10004,4,FALSE)*AQ63,0),IF(E63="",0,IF(E63="vacancy",ROUND(VLOOKUP(R63,'AVERAGE SALARY LOOKUP'!$A$3:$E$10004,4,FALSE)*AQ63,0),ROUND(VLOOKUP(E63,'FULL TIME ACTUAL RATES'!$B$2:$G$4927,6,FALSE)*AQ63,0)))))) -> 0 | AP63: =IF($H63="",0,IF(CONFIG!$B$22="Autonomous",ROUND((AO63*VLOOKUP($H63,CONFIG!$A$46:$C$55,3,FALSE)+(VLOOKUP($BR63,CONFIG!$A$33:$C$43,3,FALSE)*AQ63)),0),(ROUND('School Staffing Tool'!AQ63*VLOOKUP($R63,'AVERAGE SALARY LOOKUP'!$A$3:$F$700,6,FALSE),0)))) -> 0 | AR63: 0 | AV63: =(IF(AX63="",0,ROUND(VLOOKUP(R63,'AVERAGE SALARY LOOKUP'!$A$3:$E$10004,4,FALSE)*AX63,0))) -> 0 | AW63: =IF($H63="",0,IF(CONFIG!$B$22="Autonomous",ROUND((AV63*VLOOKUP($H63,CONFIG!$A$46:$C$55,3,FALSE)+(VLOOKUP($BR63,CONFIG!$A$33:$C$43,3,FALSE)*AX63)),0),(ROUND('School Staffing Tool'!AX63*VLOOKUP($R63,'AVERAGE SALARY LOOKUP'!$A$3:$H$700,8,FALSE),0)))) -> 0 | AY63: 0 | BC63: 0 | BD63: =IF(BB63="",0,ROUND((BC63*VLOOKUP($H63,CONFIG!$A$46:$C$55,3,FALSE)+(VLOOKUP($BR63,CONFIG!$A$33:$C$43,3,FALSE)*BE63)),0)) -> 0 | BF63: 0 | BJ63: =(IF(BL63="",0,ROUND(VLOOKUP($R$34,'AVERAGE SALARY LOOKUP'!$A$3:$E$10004,4,FALSE)*BL63,0))) -> 0 | BK63: =IF($H63="",0,IF(CONFIG!$B$22="Autonomous",ROUND((BJ63*VLOOKUP($H63,CONFIG!$A$46:$C$55,3,FALSE)+(VLOOKUP($BR63,CONFIG!$A$33:$C$43,3,FALSE)*BL63)),0),(ROUND('School Staffing Tool'!BL63*VLOOKUP($R63,'AVERAGE SALARY LOOKUP'!$A$3:$F$700,6,FALSE),0)))) -> 0 | BM63: 0 | BQ63: 0 | BR63: =IF(R63="","",VLOOKUP(R63,'AVERAGE SALARY LOOKUP'!$A$3:$C$686,3,FALSE)) ->  | BS63: 0 | BV63: 0 | BW63: 0 | BX63: 0
A64: 0289 FY 10-11 P011 | B64: =CONCATENATE(CONFIG!$C$9," ",CONFIG!$B$6," ",P64,Q64) -> 0289 FY 10-11 P011A | C64: 6,7,8 Math | F64: ELA - E Teacher | G64: =IF(F64="","",IF(OR(D64="",D64="HS"),VLOOKUP(F64,'JOB CODE LOOKUP'!$S$5:$V$183,3,FALSE),VLOOKUP(F64,'JOB CODE LOOKUP'!$S$5:$V$183,4,FALSE))) -> 10289110018314520110 | H64: 10 | I64: 289 | J64: 11 | K64: 0018 | L64: 3145 | M64: 2 | N64: 0110 | O64: 0200 | P64: P011 | Q64: A | R64: =IF(F64="","",(IF(CONFIG!$B$12="ES",VLOOKUP(F64,'JOB CODE LOOKUP'!$A$2:$E$222,2,FALSE),IF(CONFIG!$B$12="K-8",VLOOKUP(F64,'JOB CODE LOOKUP'!$G$2:$K$222,2,FALSE),IF(CONFIG!$B$12="MS",VLOOKUP(F64,'JOB CODE LOOKUP'!$M$2:$Q$222,2,FALSE),IF(CONFIG!$B$12="HS",VLOOKUP(F64,'JOB CODE LOOKUP'!$S$2:$W$222,2,FALSE),IF(AND(CONFIG!$B$12="6-12",D64="HS"),VLOOKUP(F64,'JOB CODE LOOKUP'!$S$2:$W$222,2,FALSE),IF(AND(CONFIG!$B$12="6-12",D64="MS"),VLOOKUP(F64,'JOB CODE LOOKUP'!$M$2:$Q$222,2,FALSE),"")))))))) -> 3302 | S64: =IF(CONFIG!$B$2<>"Y","",(IF(OR(G64="",LEFT(H64,1)="2",H64="19",L64="1911"),"",dbs(BV64,CONFIG!$B$4&":Employee - School Staffing",CONFIG!$B$5,CONFIG!$B$6,CONFIG!$C$9,H64,I64,J64,K64,L64,M64,N64,P64,Q64,R64,"FTE")))) ->  | T64: =IF(CONFIG!$B$2<>"Y","",(IF(OR(G64="",LEFT(H64,1)="2",H64="19",L64="1911"),"",dbs(BW64,CONFIG!$B$4&":Employee - School Staffing",CONFIG!$B$5,CONFIG!$B$6,CONFIG!$C$9,H64,I64,J64,K64,L64,M64,N64,P64,Q64,R64,"AMOUNT")))) ->  | U64: =IF(CONFIG!$B$2<>"Y","",(IF(OR(G64="",LEFT(H64,1)="2",H64="19",L64="1911"),"",dbs(BX64,CONFIG!$B$4&":Employee - School Staffing",CONFIG!$B$5,CONFIG!$B$6,CONFIG!$C$9,H64,I64,J64,K64,L64,M64,O64,P64,Q64,R64,"AMOUNT")))) ->  | Y64: 11 | Z64: ELA - E Teacher | AA64: =(IF(AC64="",0,IF(CONFIG!$B$22<>"Autonomous",ROUND(VLOOKUP(R64,'AVERAGE SALARY LOOKUP'!$A$3:$E$10004,4,FALSE)*AC64,0),IF(E64="",0,IF(E64="vacancy",ROUND(VLOOKUP(R64,'AVERAGE SALARY LOOKUP'!$A$3:$E$10004,4,FALSE)*AC64,0),ROUND(VLOOKUP(E64,'FULL TIME ACTUAL RATES'!$B$2:$G$4927,6,FALSE)*AC64,0)))))) -> 51768 | AB64: =IF($H64="",0,IF(CONFIG!$B$22="Autonomous",ROUND((AA64*VLOOKUP($H64,CONFIG!$A$46:$C$55,3,FALSE)+(VLOOKUP($BR64,CONFIG!$A$33:$C$43,3,FALSE)*AC64)),0),(ROUND('School Staffing Tool'!AC64*VLOOKUP(R64,'AVERAGE SALARY LOOKUP'!$A$3:$F$700,6,FALSE),0)))) -> 14176 | AC64: 1 | AD64: 65944 | AH64: =(IF(AJ64="",0,ROUND(VLOOKUP(R64,'AVERAGE SALARY LOOKUP'!$A$3:$E$10004,4,FALSE)*AJ64,0))) -> 0 | AI64: =IF($H64="",0,IF(CONFIG!$B$22="Autonomous",ROUND((AH64*VLOOKUP($H64,CONFIG!$A$46:$C$55,3,FALSE)+(VLOOKUP($BR64,CONFIG!$A$33:$C$43,3,FALSE)*AJ64)),0),IF(H64="10",(ROUND(AJ64*VLOOKUP($R64,'AVERAGE SALARY LOOKUP'!$A$3:$I$700,6,FALSE),0)),(ROUND(AJ64*VLOOKUP($R64,'AVERAGE SALARY LOOKUP'!$A$3:$I$700,9,FALSE),0))))) -> 0 | AK64: 0 | AO64: =(IF(AQ64="",0,IF(CONFIG!$B$22<>"Autonomous",ROUND(VLOOKUP(R64,'AVERAGE SALARY LOOKUP'!$A$3:$E$10004,4,FALSE)*AQ64,0),IF(E64="",0,IF(E64="vacancy",ROUND(VLOOKUP(R64,'AVERAGE SALARY LOOKUP'!$A$3:$E$10004,4,FALSE)*AQ64,0),ROUND(VLOOKUP(E64,'FULL TIME ACTUAL RATES'!$B$2:$G$4927,6,FALSE)*AQ64,0)))))) -> 0 | AP64: =IF($H64="",0,IF(CONFIG!$B$22="Autonomous",ROUND((AO64*VLOOKUP($H64,CONFIG!$A$46:$C$55,3,FALSE)+(VLOOKUP($BR64,CONFIG!$A$33:$C$43,3,FALSE)*AQ64)),0),(ROUND('School Staffing Tool'!AQ64*VLOOKUP($R64,'AVERAGE SALARY LOOKUP'!$A$3:$F$700,6,FALSE),0)))) -> 0 | AR64: 0 | AV64: =(IF(AX64="",0,ROUND(VLOOKUP(R64,'AVERAGE SALARY LOOKUP'!$A$3:$E$10004,4,FALSE)*AX64,0))) -> 0 | AW64: =IF($H64="",0,IF(CONFIG!$B$22="Autonomous",ROUND((AV64*VLOOKUP($H64,CONFIG!$A$46:$C$55,3,FALSE)+(VLOOKUP($BR64,CONFIG!$A$33:$C$43,3,FALSE)*AX64)),0),(ROUND('School Staffing Tool'!AX64*VLOOKUP($R64,'AVERAGE SALARY LOOKUP'!$A$3:$H$700,8,FALSE),0)))) -> 0 | AY64: 0 | BC64: 0 | BD64: =IF(BB64="",0,ROUND((BC64*VLOOKUP($H64,CONFIG!$A$46:$C$55,3,FALSE)+(VLOOKUP($BR64,CONFIG!$A$33:$C$43,3,FALSE)*BE64)),0)) -> 0 | BF64: 0 | BJ64: =(IF(BL64="",0,ROUND(VLOOKUP($R$34,'AVERAGE SALARY LOOKUP'!$A$3:$E$10004,4,FALSE)*BL64,0))) -> 0 | BK64: =IF($H64="",0,IF(CONFIG!$B$22="Autonomous",ROUND((BJ64*VLOOKUP($H64,CONFIG!$A$46:$C$55,3,FALSE)+(VLOOKUP($BR64,CONFIG!$A$33:$C$43,3,FALSE)*BL64)),0),(ROUND('School Staffing Tool'!BL64*VLOOKUP($R64,'AVERAGE SALARY LOOKUP'!$A$3:$F$700,6,FALSE),0)))) -> 0 | BM64: 0 | BQ64: 1 | BR64: =IF(R64="","",VLOOKUP(R64,'AVERAGE SALARY LOOKUP'!$A$3:$C$686,3,FALSE)) -> DCTA | BS64: 1 | BU64: 10,3145,2 | BV64: 1 | BW64: 51768 | BX64: 14176
A65: 0289 FY 10-11 P011 | B65: =CONCATENATE(CONFIG!$C$9," ",CONFIG!$B$6," ",P65,Q65) -> 0289 FY 10-11 P011B | G65: =IF(F65="","",IF(OR(D65="",D65="HS"),VLOOKUP(F65,'JOB CODE LOOKUP'!$S$5:$V$183,3,FALSE),VLOOKUP(F65,'JOB CODE LOOKUP'!$S$5:$V$183,4,FALSE))) ->  | P65: P011 | Q65: B | R65: =IF(F65="","",(IF(CONFIG!$B$12="ES",VLOOKUP(F65,'JOB CODE LOOKUP'!$A$2:$E$222,2,FALSE),IF(CONFIG!$B$12="K-8",VLOOKUP(F65,'JOB CODE LOOKUP'!$G$2:$K$222,2,FALSE),IF(CONFIG!$B$12="MS",VLOOKUP(F65,'JOB CODE LOOKUP'!$M$2:$Q$222,2,FALSE),IF(CONFIG!$B$12="HS",VLOOKUP(F65,'JOB CODE LOOKUP'!$S$2:$W$222,2,FALSE),IF(AND(CONFIG!$B$12="6-12",D65="HS"),VLOOKUP(F65,'JOB CODE LOOKUP'!$S$2:$W$222,2,FALSE),IF(AND(CONFIG!$B$12="6-12",D65="MS"),VLOOKUP(F65,'JOB CODE LOOKUP'!$M$2:$Q$222,2,FALSE),"")))))))) ->  | S65: =IF(CONFIG!$B$2<>"Y","",(IF(OR(G65="",LEFT(H65,1)="2",H65="19",L65="1911"),"",dbs(BV65,CONFIG!$B$4&":Employee - School Staffing",CONFIG!$B$5,CONFIG!$B$6,CONFIG!$C$9,H65,I65,J65,K65,L65,M65,N65,P65,Q65,R65,"FTE")))) ->  | T65: =IF(CONFIG!$B$2<>"Y","",(IF(OR(G65="",LEFT(H65,1)="2",H65="19",L65="1911"),"",dbs(BW65,CONFIG!$B$4&":Employee - School Staffing",CONFIG!$B$5,CONFIG!$B$6,CONFIG!$C$9,H65,I65,J65,K65,L65,M65,N65,P65,Q65,R65,"AMOUNT")))) ->  | U65: =IF(CONFIG!$B$2<>"Y","",(IF(OR(G65="",LEFT(H65,1)="2",H65="19",L65="1911"),"",dbs(BX65,CONFIG!$B$4&":Employee - School Staffing",CONFIG!$B$5,CONFIG!$B$6,CONFIG!$C$9,H65,I65,J65,K65,L65,M65,O65,P65,Q65,R65,"AMOUNT")))) ->  | Y65: 11 | AA65: =(IF(AC65="",0,IF(CONFIG!$B$22<>"Autonomous",ROUND(VLOOKUP(R65,'AVERAGE SALARY LOOKUP'!$A$3:$E$10004,4,FALSE)*AC65,0),IF(E65="",0,IF(E65="vacancy",ROUND(VLOOKUP(R65,'AVERAGE SALARY LOOKUP'!$A$3:$E$10004,4,FALSE)*AC65,0),ROUND(VLOOKUP(E65,'FULL TIME ACTUAL RATES'!$B$2:$G$4927,6,FALSE)*AC65,0)))))) -> 0 | AB65: =IF($H65="",0,IF(CONFIG!$B$22="Autonomous",ROUND((AA65*VLOOKUP($H65,CONFIG!$A$46:$C$55,3,FALSE)+(VLOOKUP($BR65,CONFIG!$A$33:$C$43,3,FALSE)*AC65)),0),(ROUND('School Staffing Tool'!AC65*VLOOKUP(R65,'AVERAGE SALARY LOOKUP'!$A$3:$F$700,6,FALSE),0)))) -> 0 | AD65: 0 | AH65: =(IF(AJ65="",0,ROUND(VLOOKUP(R65,'AVERAGE SALARY LOOKUP'!$A$3:$E$10004,4,FALSE)*AJ65,0))) -> 0 | AI65: =IF($H65="",0,IF(CONFIG!$B$22="Autonomous",ROUND((AH65*VLOOKUP($H65,CONFIG!$A$46:$C$55,3,FALSE)+(VLOOKUP($BR65,CONFIG!$A$33:$C$43,3,FALSE)*AJ65)),0),IF(H65="10",(ROUND(AJ65*VLOOKUP($R65,'AVERAGE SALARY LOOKUP'!$A$3:$I$700,6,FALSE),0)),(ROUND(AJ65*VLOOKUP($R65,'AVERAGE SALARY LOOKUP'!$A$3:$I$700,9,FALSE),0))))) -> 0 | AK65: 0 | AO65: =(IF(AQ65="",0,IF(CONFIG!$B$22<>"Autonomous",ROUND(VLOOKUP(R65,'AVERAGE SALARY LOOKUP'!$A$3:$E$10004,4,FALSE)*AQ65,0),IF(E65="",0,IF(E65="vacancy",ROUND(VLOOKUP(R65,'AVERAGE SALARY LOOKUP'!$A$3:$E$10004,4,FALSE)*AQ65,0),ROUND(VLOOKUP(E65,'FULL TIME ACTUAL RATES'!$B$2:$G$4927,6,FALSE)*AQ65,0)))))) -> 0 | AP65: =IF($H65="",0,IF(CONFIG!$B$22="Autonomous",ROUND((AO65*VLOOKUP($H65,CONFIG!$A$46:$C$55,3,FALSE)+(VLOOKUP($BR65,CONFIG!$A$33:$C$43,3,FALSE)*AQ65)),0),(ROUND('School Staffing Tool'!AQ65*VLOOKUP($R65,'AVERAGE SALARY LOOKUP'!$A$3:$F$700,6,FALSE),0)))) -> 0 | AR65: 0 | AV65: =(IF(AX65="",0,ROUND(VLOOKUP(R65,'AVERAGE SALARY LOOKUP'!$A$3:$E$10004,4,FALSE)*AX65,0))) -> 0 | AW65: =IF($H65="",0,IF(CONFIG!$B$22="Autonomous",ROUND((AV65*VLOOKUP($H65,CONFIG!$A$46:$C$55,3,FALSE)+(VLOOKUP($BR65,CONFIG!$A$33:$C$43,3,FALSE)*AX65)),0),(ROUND('School Staffing Tool'!AX65*VLOOKUP($R65,'AVERAGE SALARY LOOKUP'!$A$3:$H$700,8,FALSE),0)))) -> 0 | AY65: 0 | BC65: 0 | BD65: =IF(BB65="",0,ROUND((BC65*VLOOKUP($H65,CONFIG!$A$46:$C$55,3,FALSE)+(VLOOKUP($BR65,CONFIG!$A$33:$C$43,3,FALSE)*BE65)),0)) -> 0 | BF65: 0 | BJ65: =(IF(BL65="",0,ROUND(VLOOKUP($R$34,'AVERAGE SALARY LOOKUP'!$A$3:$E$10004,4,FALSE)*BL65,0))) -> 0 | BK65: =IF($H65="",0,IF(CONFIG!$B$22="Autonomous",ROUND((BJ65*VLOOKUP($H65,CONFIG!$A$46:$C$55,3,FALSE)+(VLOOKUP($BR65,CONFIG!$A$33:$C$43,3,FALSE)*BL65)),0),(ROUND('School Staffing Tool'!BL65*VLOOKUP($R65,'AVERAGE SALARY LOOKUP'!$A$3:$F$700,6,FALSE),0)))) -> 0 | BM65: 0 | BQ65: 0 | BR65: =IF(R65="","",VLOOKUP(R65,'AVERAGE SALARY LOOKUP'!$A$3:$C$686,3,FALSE)) ->  | BS65: 0 | BV65: 0 | BW65: 0 | BX65: 0
A66: 0289 FY 10-11 P011 | B66: =CONCATENATE(CONFIG!$C$9," ",CONFIG!$B$6," ",P66,Q66) -> 0289 FY 10-11 P011C | G66: =IF(F66="","",IF(OR(D66="",D66="HS"),VLOOKUP(F66,'JOB CODE LOOKUP'!$S$5:$V$183,3,FALSE),VLOOKUP(F66,'JOB CODE LOOKUP'!$S$5:$V$183,4,FALSE))) ->  | P66: P011 | Q66: C | R66: =IF(F66="","",(IF(CONFIG!$B$12="ES",VLOOKUP(F66,'JOB CODE LOOKUP'!$A$2:$E$222,2,FALSE),IF(CONFIG!$B$12="K-8",VLOOKUP(F66,'JOB CODE LOOKUP'!$G$2:$K$222,2,FALSE),IF(CONFIG!$B$12="MS",VLOOKUP(F66,'JOB CODE LOOKUP'!$M$2:$Q$222,2,FALSE),IF(CONFIG!$B$12="HS",VLOOKUP(F66,'JOB CODE LOOKUP'!$S$2:$W$222,2,FALSE),IF(AND(CONFIG!$B$12="6-12",D66="HS"),VLOOKUP(F66,'JOB CODE LOOKUP'!$S$2:$W$222,2,FALSE),IF(AND(CONFIG!$B$12="6-12",D66="MS"),VLOOKUP(F66,'JOB CODE LOOKUP'!$M$2:$Q$222,2,FALSE),"")))))))) ->  | S66: =IF(CONFIG!$B$2<>"Y","",(IF(OR(G66="",LEFT(H66,1)="2",H66="19",L66="1911"),"",dbs(BV66,CONFIG!$B$4&":Employee - School Staffing",CONFIG!$B$5,CONFIG!$B$6,CONFIG!$C$9,H66,I66,J66,K66,L66,M66,N66,P66,Q66,R66,"FTE")))) ->  | T66: =IF(CONFIG!$B$2<>"Y","",(IF(OR(G66="",LEFT(H66,1)="2",H66="19",L66="1911"),"",dbs(BW66,CONFIG!$B$4&":Employee - School Staffing",CONFIG!$B$5,CONFIG!$B$6,CONFIG!$C$9,H66,I66,J66,K66,L66,M66,N66,P66,Q66,R66,"AMOUNT")))) ->  | U66: =IF(CONFIG!$B$2<>"Y","",(IF(OR(G66="",LEFT(H66,1)="2",H66="19",L66="1911"),"",dbs(BX66,CONFIG!$B$4&":Employee - School Staffing",CONFIG!$B$5,CONFIG!$B$6,CONFIG!$C$9,H66,I66,J66,K66,L66,M66,O66,P66,Q66,R66,"AMOUNT")))) ->  | Y66: 11 | AA66: =(IF(AC66="",0,IF(CONFIG!$B$22<>"Autonomous",ROUND(VLOOKUP(R66,'AVERAGE SALARY LOOKUP'!$A$3:$E$10004,4,FALSE)*AC66,0),IF(E66="",0,IF(E66="vacancy",ROUND(VLOOKUP(R66,'AVERAGE SALARY LOOKUP'!$A$3:$E$10004,4,FALSE)*AC66,0),ROUND(VLOOKUP(E66,'FULL TIME ACTUAL RATES'!$B$2:$G$4927,6,FALSE)*AC66,0)))))) -> 0 | AB66: =IF($H66="",0,IF(CONFIG!$B$22="Autonomous",ROUND((AA66*VLOOKUP($H66,CONFIG!$A$46:$C$55,3,FALSE)+(VLOOKUP($BR66,CONFIG!$A$33:$C$43,3,FALSE)*AC66)),0),(ROUND('School Staffing Tool'!AC66*VLOOKUP(R66,'AVERAGE SALARY LOOKUP'!$A$3:$F$700,6,FALSE),0)))) -> 0 | AD66: 0 | AH66: =(IF(AJ66="",0,ROUND(VLOOKUP(R66,'AVERAGE SALARY LOOKUP'!$A$3:$E$10004,4,FALSE)*AJ66,0))) -> 0 | AI66: =IF($H66="",0,IF(CONFIG!$B$22="Autonomous",ROUND((AH66*VLOOKUP($H66,CONFIG!$A$46:$C$55,3,FALSE)+(VLOOKUP($BR66,CONFIG!$A$33:$C$43,3,FALSE)*AJ66)),0),IF(H66="10",(ROUND(AJ66*VLOOKUP($R66,'AVERAGE SALARY LOOKUP'!$A$3:$I$700,6,FALSE),0)),(ROUND(AJ66*VLOOKUP($R66,'AVERAGE SALARY LOOKUP'!$A$3:$I$700,9,FALSE),0))))) -> 0 | AK66: 0 | AO66: =(IF(AQ66="",0,IF(CONFIG!$B$22<>"Autonomous",ROUND(VLOOKUP(R66,'AVERAGE SALARY LOOKUP'!$A$3:$E$10004,4,FALSE)*AQ66,0),IF(E66="",0,IF(E66="vacancy",ROUND(VLOOKUP(R66,'AVERAGE SALARY LOOKUP'!$A$3:$E$10004,4,FALSE)*AQ66,0),ROUND(VLOOKUP(E66,'FULL TIME ACTUAL RATES'!$B$2:$G$4927,6,FALSE)*AQ66,0)))))) -> 0 | AP66: =IF($H66="",0,IF(CONFIG!$B$22="Autonomous",ROUND((AO66*VLOOKUP($H66,CONFIG!$A$46:$C$55,3,FALSE)+(VLOOKUP($BR66,CONFIG!$A$33:$C$43,3,FALSE)*AQ66)),0),(ROUND('School Staffing Tool'!AQ66*VLOOKUP($R66,'AVERAGE SALARY LOOKUP'!$A$3:$F$700,6,FALSE),0)))) -> 0 | AR66: 0 | AV66: =(IF(AX66="",0,ROUND(VLOOKUP(R66,'AVERAGE SALARY LOOKUP'!$A$3:$E$10004,4,FALSE)*AX66,0))) -> 0 | AW66: =IF($H66="",0,IF(CONFIG!$B$22="Autonomous",ROUND((AV66*VLOOKUP($H66,CONFIG!$A$46:$C$55,3,FALSE)+(VLOOKUP($BR66,CONFIG!$A$33:$C$43,3,FALSE)*AX66)),0),(ROUND('School Staffing Tool'!AX66*VLOOKUP($R66,'AVERAGE SALARY LOOKUP'!$A$3:$H$700,8,FALSE),0)))) -> 0 | AY66: 0 | BC66: 0 | BD66: =IF(BB66="",0,ROUND((BC66*VLOOKUP($H66,CONFIG!$A$46:$C$55,3,FALSE)+(VLOOKUP($BR66,CONFIG!$A$33:$C$43,3,FALSE)*BE66)),0)) -> 0 | BF66: 0 | BJ66: =(IF(BL66="",0,ROUND(VLOOKUP($R$34,'AVERAGE SALARY LOOKUP'!$A$3:$E$10004,4,FALSE)*BL66,0))) -> 0 | BK66: =IF($H66="",0,IF(CONFIG!$B$22="Autonomous",ROUND((BJ66*VLOOKUP($H66,CONFIG!$A$46:$C$55,3,FALSE)+(VLOOKUP($BR66,CONFIG!$A$33:$C$43,3,FALSE)*BL66)),0),(ROUND('School Staffing Tool'!BL66*VLOOKUP($R66,'AVERAGE SALARY LOOKUP'!$A$3:$F$700,6,FALSE),0)))) -> 0 | BM66: 0 | BQ66: 0 | BR66: =IF(R66="","",VLOOKUP(R66,'AVERAGE SALARY LOOKUP'!$A$3:$C$686,3,FALSE)) ->  | BS66: 0 | BV66: 0 | BW66: 0 | BX66: 0
A67: 0289 FY 10-11 P012 | B67: =CONCATENATE(CONFIG!$C$9," ",CONFIG!$B$6," ",P67,Q67) -> 0289 FY 10-11 P012A | C67: 6,7,8 Lit | F67: ELA - E Teacher | G67: =IF(F67="","",IF(OR(D67="",D67="HS"),VLOOKUP(F67,'JOB CODE LOOKUP'!$S$5:$V$183,3,FALSE),VLOOKUP(F67,'JOB CODE LOOKUP'!$S$5:$V$183,4,FALSE))) -> 10289110018314520110 | H67: 10 | I67: 289 | J67: 11 | K67: 0018 | L67: 3145 | M67: 2 | N67: 0110 | O67: 0200 | P67: P012 | Q67: A | R67: =IF(F67="","",(IF(CONFIG!$B$12="ES",VLOOKUP(F67,'JOB CODE LOOKUP'!$A$2:$E$222,2,FALSE),IF(CONFIG!$B$12="K-8",VLOOKUP(F67,'JOB CODE LOOKUP'!$G$2:$K$222,2,FALSE),IF(CONFIG!$B$12="MS",VLOOKUP(F67,'JOB CODE LOOKUP'!$M$2:$Q$222,2,FALSE),IF(CONFIG!$B$12="HS",VLOOKUP(F67,'JOB CODE LOOKUP'!$S$2:$W$222,2,FALSE),IF(AND(CONFIG!$B$12="6-12",D67="HS"),VLOOKUP(F67,'JOB CODE LOOKUP'!$S$2:$W$222,2,FALSE),IF(AND(CONFIG!$B$12="6-12",D67="MS"),VLOOKUP(F67,'JOB CODE LOOKUP'!$M$2:$Q$222,2,FALSE),"")))))))) -> 3302 | S67: =IF(CONFIG!$B$2<>"Y","",(IF(OR(G67="",LEFT(H67,1)="2",H67="19",L67="1911"),"",dbs(BV67,CONFIG!$B$4&":Employee - School Staffing",CONFIG!$B$5,CONFIG!$B$6,CONFIG!$C$9,H67,I67,J67,K67,L67,M67,N67,P67,Q67,R67,"FTE")))) ->  | T67: =IF(CONFIG!$B$2<>"Y","",(IF(OR(G67="",LEFT(H67,1)="2",H67="19",L67="1911"),"",dbs(BW67,CONFIG!$B$4&":Employee - School Staffing",CONFIG!$B$5,CONFIG!$B$6,CONFIG!$C$9,H67,I67,J67,K67,L67,M67,N67,P67,Q67,R67,"AMOUNT")))) ->  | U67: =IF(CONFIG!$B$2<>"Y","",(IF(OR(G67="",LEFT(H67,1)="2",H67="19",L67="1911"),"",dbs(BX67,CONFIG!$B$4&":Employee - School Staffing",CONFIG!$B$5,CONFIG!$B$6,CONFIG!$C$9,H67,I67,J67,K67,L67,M67,O67,P67,Q67,R67,"AMOUNT")))) ->  | Y67: 12 | Z67: ELA - E Teacher | AA67: =(IF(AC67="",0,IF(CONFIG!$B$22<>"Autonomous",ROUND(VLOOKUP(R67,'AVERAGE SALARY LOOKUP'!$A$3:$E$10004,4,FALSE)*AC67,0),IF(E67="",0,IF(E67="vacancy",ROUND(VLOOKUP(R67,'AVERAGE SALARY LOOKUP'!$A$3:$E$10004,4,FALSE)*AC67,0),ROUND(VLOOKUP(E67,'FULL TIME ACTUAL RATES'!$B$2:$G$4927,6,FALSE)*AC67,0)))))) -> 51768 | AB67: =IF($H67="",0,IF(CONFIG!$B$22="Autonomous",ROUND((AA67*VLOOKUP($H67,CONFIG!$A$46:$C$55,3,FALSE)+(VLOOKUP($BR67,CONFIG!$A$33:$C$43,3,FALSE)*AC67)),0),(ROUND('School Staffing Tool'!AC67*VLOOKUP(R67,'AVERAGE SALARY LOOKUP'!$A$3:$F$700,6,FALSE),0)))) -> 14176 | AC67: 1 | AD67: 65944 | AH67: =(IF(AJ67="",0,ROUND(VLOOKUP(R67,'AVERAGE SALARY LOOKUP'!$A$3:$E$10004,4,FALSE)*AJ67,0))) -> 0 | AI67: =IF($H67="",0,IF(CONFIG!$B$22="Autonomous",ROUND((AH67*VLOOKUP($H67,CONFIG!$A$46:$C$55,3,FALSE)+(VLOOKUP($BR67,CONFIG!$A$33:$C$43,3,FALSE)*AJ67)),0),IF(H67="10",(ROUND(AJ67*VLOOKUP($R67,'AVERAGE SALARY LOOKUP'!$A$3:$I$700,6,FALSE),0)),(ROUND(AJ67*VLOOKUP($R67,'AVERAGE SALARY LOOKUP'!$A$3:$I$700,9,FALSE),0))))) -> 0 | AK67: 0 | AO67: =(IF(AQ67="",0,IF(CONFIG!$B$22<>"Autonomous",ROUND(VLOOKUP(R67,'AVERAGE SALARY LOOKUP'!$A$3:$E$10004,4,FALSE)*AQ67,0),IF(E67="",0,IF(E67="vacancy",ROUND(VLOOKUP(R67,'AVERAGE SALARY LOOKUP'!$A$3:$E$10004,4,FALSE)*AQ67,0),ROUND(VLOOKUP(E67,'FULL TIME ACTUAL RATES'!$B$2:$G$4927,6,FALSE)*AQ67,0)))))) -> 0 | AP67: =IF($H67="",0,IF(CONFIG!$B$22="Autonomous",ROUND((AO67*VLOOKUP($H67,CONFIG!$A$46:$C$55,3,FALSE)+(VLOOKUP($BR67,CONFIG!$A$33:$C$43,3,FALSE)*AQ67)),0),(ROUND('School Staffing Tool'!AQ67*VLOOKUP($R67,'AVERAGE SALARY LOOKUP'!$A$3:$F$700,6,FALSE),0)))) -> 0 | AR67: 0 | AV67: =(IF(AX67="",0,ROUND(VLOOKUP(R67,'AVERAGE SALARY LOOKUP'!$A$3:$E$10004,4,FALSE)*AX67,0))) -> 0 | AW67: =IF($H67="",0,IF(CONFIG!$B$22="Autonomous",ROUND((AV67*VLOOKUP($H67,CONFIG!$A$46:$C$55,3,FALSE)+(VLOOKUP($BR67,CONFIG!$A$33:$C$43,3,FALSE)*AX67)),0),(ROUND('School Staffing Tool'!AX67*VLOOKUP($R67,'AVERAGE SALARY LOOKUP'!$A$3:$H$700,8,FALSE),0)))) -> 0 | AY67: 0 | BC67: 0 | BD67: =IF(BB67="",0,ROUND((BC67*VLOOKUP($H67,CONFIG!$A$46:$C$55,3,FALSE)+(VLOOKUP($BR67,CONFIG!$A$33:$C$43,3,FALSE)*BE67)),0)) -> 0 | BF67: 0 | BJ67: =(IF(BL67="",0,ROUND(VLOOKUP($R$34,'AVERAGE SALARY LOOKUP'!$A$3:$E$10004,4,FALSE)*BL67,0))) -> 0 | BK67: =IF($H67="",0,IF(CONFIG!$B$22="Autonomous",ROUND((BJ67*VLOOKUP($H67,CONFIG!$A$46:$C$55,3,FALSE)+(VLOOKUP($BR67,CONFIG!$A$33:$C$43,3,FALSE)*BL67)),0),(ROUND('School Staffing Tool'!BL67*VLOOKUP($R67,'AVERAGE SALARY LOOKUP'!$A$3:$F$700,6,FALSE),0)))) -> 0 | BM67: 0 | BQ67: 1 | BR67: =IF(R67="","",VLOOKUP(R67,'AVERAGE SALARY LOOKUP'!$A$3:$C$686,3,FALSE)) -> DCTA | BS67: 1 | BU67: 10,3145,2 | BV67: 1 | BW67: 51768 | BX67: 14176
A68: 0289 FY 10-11 P012 | B68: =CONCATENATE(CONFIG!$C$9," ",CONFIG!$B$6," ",P68,Q68) -> 0289 FY 10-11 P012B | G68: =IF(F68="","",IF(OR(D68="",D68="HS"),VLOOKUP(F68,'JOB CODE LOOKUP'!$S$5:$V$183,3,FALSE),VLOOKUP(F68,'JOB CODE LOOKUP'!$S$5:$V$183,4,FALSE))) ->  | P68: P012 | Q68: B | R68: =IF(F68="","",(IF(CONFIG!$B$12="ES",VLOOKUP(F68,'JOB CODE LOOKUP'!$A$2:$E$222,2,FALSE),IF(CONFIG!$B$12="K-8",VLOOKUP(F68,'JOB CODE LOOKUP'!$G$2:$K$222,2,FALSE),IF(CONFIG!$B$12="MS",VLOOKUP(F68,'JOB CODE LOOKUP'!$M$2:$Q$222,2,FALSE),IF(CONFIG!$B$12="HS",VLOOKUP(F68,'JOB CODE LOOKUP'!$S$2:$W$222,2,FALSE),IF(AND(CONFIG!$B$12="6-12",D68="HS"),VLOOKUP(F68,'JOB CODE LOOKUP'!$S$2:$W$222,2,FALSE),IF(AND(CONFIG!$B$12="6-12",D68="MS"),VLOOKUP(F68,'JOB CODE LOOKUP'!$M$2:$Q$222,2,FALSE),"")))))))) ->  | S68: =IF(CONFIG!$B$2<>"Y","",(IF(OR(G68="",LEFT(H68,1)="2",H68="19",L68="1911"),"",dbs(BV68,CONFIG!$B$4&":Employee - School Staffing",CONFIG!$B$5,CONFIG!$B$6,CONFIG!$C$9,H68,I68,J68,K68,L68,M68,N68,P68,Q68,R68,"FTE")))) ->  | T68: =IF(CONFIG!$B$2<>"Y","",(IF(OR(G68="",LEFT(H68,1)="2",H68="19",L68="1911"),"",dbs(BW68,CONFIG!$B$4&":Employee - School Staffing",CONFIG!$B$5,CONFIG!$B$6,CONFIG!$C$9,H68,I68,J68,K68,L68,M68,N68,P68,Q68,R68,"AMOUNT")))) ->  | U68: =IF(CONFIG!$B$2<>"Y","",(IF(OR(G68="",LEFT(H68,1)="2",H68="19",L68="1911"),"",dbs(BX68,CONFIG!$B$4&":Employee - School Staffing",CONFIG!$B$5,CONFIG!$B$6,CONFIG!$C$9,H68,I68,J68,K68,L68,M68,O68,P68,Q68,R68,"AMOUNT")))) ->  | Y68: 12 | AA68: =(IF(AC68="",0,IF(CONFIG!$B$22<>"Autonomous",ROUND(VLOOKUP(R68,'AVERAGE SALARY LOOKUP'!$A$3:$E$10004,4,FALSE)*AC68,0),IF(E68="",0,IF(E68="vacancy",ROUND(VLOOKUP(R68,'AVERAGE SALARY LOOKUP'!$A$3:$E$10004,4,FALSE)*AC68,0),ROUND(VLOOKUP(E68,'FULL TIME ACTUAL RATES'!$B$2:$G$4927,6,FALSE)*AC68,0)))))) -> 0 | AB68: =IF($H68="",0,IF(CONFIG!$B$22="Autonomous",ROUND((AA68*VLOOKUP($H68,CONFIG!$A$46:$C$55,3,FALSE)+(VLOOKUP($BR68,CONFIG!$A$33:$C$43,3,FALSE)*AC68)),0),(ROUND('School Staffing Tool'!AC68*VLOOKUP(R68,'AVERAGE SALARY LOOKUP'!$A$3:$F$700,6,FALSE),0)))) -> 0 | AD68: 0 | AH68: =(IF(AJ68="",0,ROUND(VLOOKUP(R68,'AVERAGE SALARY LOOKUP'!$A$3:$E$10004,4,FALSE)*AJ68,0))) -> 0 | AI68: =IF($H68="",0,IF(CONFIG!$B$22="Autonomous",ROUND((AH68*VLOOKUP($H68,CONFIG!$A$46:$C$55,3,FALSE)+(VLOOKUP($BR68,CONFIG!$A$33:$C$43,3,FALSE)*AJ68)),0),IF(H68="10",(ROUND(AJ68*VLOOKUP($R68,'AVERAGE SALARY LOOKUP'!$A$3:$I$700,6,FALSE),0)),(ROUND(AJ68*VLOOKUP($R68,'AVERAGE SALARY LOOKUP'!$A$3:$I$700,9,FALSE),0))))) -> 0 | AK68: 0 | AO68: =(IF(AQ68="",0,IF(CONFIG!$B$22<>"Autonomous",ROUND(VLOOKUP(R68,'AVERAGE SALARY LOOKUP'!$A$3:$E$10004,4,FALSE)*AQ68,0),IF(E68="",0,IF(E68="vacancy",ROUND(VLOOKUP(R68,'AVERAGE SALARY LOOKUP'!$A$3:$E$10004,4,FALSE)*AQ68,0),ROUND(VLOOKUP(E68,'FULL TIME ACTUAL RATES'!$B$2:$G$4927,6,FALSE)*AQ68,0)))))) -> 0 | AP68: =IF($H68="",0,IF(CONFIG!$B$22="Autonomous",ROUND((AO68*VLOOKUP($H68,CONFIG!$A$46:$C$55,3,FALSE)+(VLOOKUP($BR68,CONFIG!$A$33:$C$43,3,FALSE)*AQ68)),0),(ROUND('School Staffing Tool'!AQ68*VLOOKUP($R68,'AVERAGE SALARY LOOKUP'!$A$3:$F$700,6,FALSE),0)))) -> 0 | AR68: 0 | AV68: =(IF(AX68="",0,ROUND(VLOOKUP(R68,'AVERAGE SALARY LOOKUP'!$A$3:$E$10004,4,FALSE)*AX68,0))) -> 0 | AW68: =IF($H68="",0,IF(CONFIG!$B$22="Autonomous",ROUND((AV68*VLOOKUP($H68,CONFIG!$A$46:$C$55,3,FALSE)+(VLOOKUP($BR68,CONFIG!$A$33:$C$43,3,FALSE)*AX68)),0),(ROUND('School Staffing Tool'!AX68*VLOOKUP($R68,'AVERAGE SALARY LOOKUP'!$A$3:$H$700,8,FALSE),0)))) -> 0 | AY68: 0 | BC68: 0 | BD68: =IF(BB68="",0,ROUND((BC68*VLOOKUP($H68,CONFIG!$A$46:$C$55,3,FALSE)+(VLOOKUP($BR68,CONFIG!$A$33:$C$43,3,FALSE)*BE68)),0)) -> 0 | BF68: 0 | BJ68: =(IF(BL68="",0,ROUND(VLOOKUP($R$34,'AVERAGE SALARY LOOKUP'!$A$3:$E$10004,4,FALSE)*BL68,0))) -> 0 | BK68: =IF($H68="",0,IF(CONFIG!$B$22="Autonomous",ROUND((BJ68*VLOOKUP($H68,CONFIG!$A$46:$C$55,3,FALSE)+(VLOOKUP($BR68,CONFIG!$A$33:$C$43,3,FALSE)*BL68)),0),(ROUND('School Staffing Tool'!BL68*VLOOKUP($R68,'AVERAGE SALARY LOOKUP'!$A$3:$F$700,6,FALSE),0)))) -> 0 | BM68: 0 | BQ68: 0 | BR68: =IF(R68="","",VLOOKUP(R68,'AVERAGE SALARY LOOKUP'!$A$3:$C$686,3,FALSE)) ->  | BS68: 0 | BV68: 0 | BW68: 0 | BX68: 0
A69: 0289 FY 10-11 P012 | B69: =CONCATENATE(CONFIG!$C$9," ",CONFIG!$B$6," ",P69,Q69) -> 0289 FY 10-11 P012C | G69: =IF(F69="","",IF(OR(D69="",D69="HS"),VLOOKUP(F69,'JOB CODE LOOKUP'!$S$5:$V$183,3,FALSE),VLOOKUP(F69,'JOB CODE LOOKUP'!$S$5:$V$183,4,FALSE))) ->  | P69: P012 | Q69: C | R69: =IF(F69="","",(IF(CONFIG!$B$12="ES",VLOOKUP(F69,'JOB CODE LOOKUP'!$A$2:$E$222,2,FALSE),IF(CONFIG!$B$12="K-8",VLOOKUP(F69,'JOB CODE LOOKUP'!$G$2:$K$222,2,FALSE),IF(CONFIG!$B$12="MS",VLOOKUP(F69,'JOB CODE LOOKUP'!$M$2:$Q$222,2,FALSE),IF(CONFIG!$B$12="HS",VLOOKUP(F69,'JOB CODE LOOKUP'!$S$2:$W$222,2,FALSE),IF(AND(CONFIG!$B$12="6-12",D69="HS"),VLOOKUP(F69,'JOB CODE LOOKUP'!$S$2:$W$222,2,FALSE),IF(AND(CONFIG!$B$12="6-12",D69="MS"),VLOOKUP(F69,'JOB CODE LOOKUP'!$M$2:$Q$222,2,FALSE),"")))))))) ->  | S69: =IF(CONFIG!$B$2<>"Y","",(IF(OR(G69="",LEFT(H69,1)="2",H69="19",L69="1911"),"",dbs(BV69,CONFIG!$B$4&":Employee - School Staffing",CONFIG!$B$5,CONFIG!$B$6,CONFIG!$C$9,H69,I69,J69,K69,L69,M69,N69,P69,Q69,R69,"FTE")))) ->  | T69: =IF(CONFIG!$B$2<>"Y","",(IF(OR(G69="",LEFT(H69,1)="2",H69="19",L69="1911"),"",dbs(BW69,CONFIG!$B$4&":Employee - School Staffing",CONFIG!$B$5,CONFIG!$B$6,CONFIG!$C$9,H69,I69,J69,K69,L69,M69,N69,P69,Q69,R69,"AMOUNT")))) ->  | U69: =IF(CONFIG!$B$2<>"Y","",(IF(OR(G69="",LEFT(H69,1)="2",H69="19",L69="1911"),"",dbs(BX69,CONFIG!$B$4&":Employee - School Staffing",CONFIG!$B$5,CONFIG!$B$6,CONFIG!$C$9,H69,I69,J69,K69,L69,M69,O69,P69,Q69,R69,"AMOUNT")))) ->  | Y69: 12 | AA69: =(IF(AC69="",0,IF(CONFIG!$B$22<>"Autonomous",ROUND(VLOOKUP(R69,'AVERAGE SALARY LOOKUP'!$A$3:$E$10004,4,FALSE)*AC69,0),IF(E69="",0,IF(E69="vacancy",ROUND(VLOOKUP(R69,'AVERAGE SALARY LOOKUP'!$A$3:$E$10004,4,FALSE)*AC69,0),ROUND(VLOOKUP(E69,'FULL TIME ACTUAL RATES'!$B$2:$G$4927,6,FALSE)*AC69,0)))))) -> 0 | AB69: =IF($H69="",0,IF(CONFIG!$B$22="Autonomous",ROUND((AA69*VLOOKUP($H69,CONFIG!$A$46:$C$55,3,FALSE)+(VLOOKUP($BR69,CONFIG!$A$33:$C$43,3,FALSE)*AC69)),0),(ROUND('School Staffing Tool'!AC69*VLOOKUP(R69,'AVERAGE SALARY LOOKUP'!$A$3:$F$700,6,FALSE),0)))) -> 0 | AD69: 0 | AH69: =(IF(AJ69="",0,ROUND(VLOOKUP(R69,'AVERAGE SALARY LOOKUP'!$A$3:$E$10004,4,FALSE)*AJ69,0))) -> 0 | AI69: =IF($H69="",0,IF(CONFIG!$B$22="Autonomous",ROUND((AH69*VLOOKUP($H69,CONFIG!$A$46:$C$55,3,FALSE)+(VLOOKUP($BR69,CONFIG!$A$33:$C$43,3,FALSE)*AJ69)),0),IF(H69="10",(ROUND(AJ69*VLOOKUP($R69,'AVERAGE SALARY LOOKUP'!$A$3:$I$700,6,FALSE),0)),(ROUND(AJ69*VLOOKUP($R69,'AVERAGE SALARY LOOKUP'!$A$3:$I$700,9,FALSE),0))))) -> 0 | AK69: 0 | AO69: =(IF(AQ69="",0,IF(CONFIG!$B$22<>"Autonomous",ROUND(VLOOKUP(R69,'AVERAGE SALARY LOOKUP'!$A$3:$E$10004,4,FALSE)*AQ69,0),IF(E69="",0,IF(E69="vacancy",ROUND(VLOOKUP(R69,'AVERAGE SALARY LOOKUP'!$A$3:$E$10004,4,FALSE)*AQ69,0),ROUND(VLOOKUP(E69,'FULL TIME ACTUAL RATES'!$B$2:$G$4927,6,FALSE)*AQ69,0)))))) -> 0 | AP69: =IF($H69="",0,IF(CONFIG!$B$22="Autonomous",ROUND((AO69*VLOOKUP($H69,CONFIG!$A$46:$C$55,3,FALSE)+(VLOOKUP($BR69,CONFIG!$A$33:$C$43,3,FALSE)*AQ69)),0),(ROUND('School Staffing Tool'!AQ69*VLOOKUP($R69,'AVERAGE SALARY LOOKUP'!$A$3:$F$700,6,FALSE),0)))) -> 0 | AR69: 0 | AV69: =(IF(AX69="",0,ROUND(VLOOKUP(R69,'AVERAGE SALARY LOOKUP'!$A$3:$E$10004,4,FALSE)*AX69,0))) -> 0 | AW69: =IF($H69="",0,IF(CONFIG!$B$22="Autonomous",ROUND((AV69*VLOOKUP($H69,CONFIG!$A$46:$C$55,3,FALSE)+(VLOOKUP($BR69,CONFIG!$A$33:$C$43,3,FALSE)*AX69)),0),(ROUND('School Staffing Tool'!AX69*VLOOKUP($R69,'AVERAGE SALARY LOOKUP'!$A$3:$H$700,8,FALSE),0)))) -> 0 | AY69: 0 | BC69: 0 | BD69: =IF(BB69="",0,ROUND((BC69*VLOOKUP($H69,CONFIG!$A$46:$C$55,3,FALSE)+(VLOOKUP($BR69,CONFIG!$A$33:$C$43,3,FALSE)*BE69)),0)) -> 0 | BF69: 0 | BJ69: =(IF(BL69="",0,ROUND(VLOOKUP($R$34,'AVERAGE SALARY LOOKUP'!$A$3:$E$10004,4,FALSE)*BL69,0))) -> 0 | BK69: =IF($H69="",0,IF(CONFIG!$B$22="Autonomous",ROUND((BJ69*VLOOKUP($H69,CONFIG!$A$46:$C$55,3,FALSE)+(VLOOKUP($BR69,CONFIG!$A$33:$C$43,3,FALSE)*BL69)),0),(ROUND('School Staffing Tool'!BL69*VLOOKUP($R69,'AVERAGE SALARY LOOKUP'!$A$3:$F$700,6,FALSE),0)))) -> 0 | BM69: 0 | BQ69: 0 | BR69: =IF(R69="","",VLOOKUP(R69,'AVERAGE SALARY LOOKUP'!$A$3:$C$686,3,FALSE)) ->  | BS69: 0 | BV69: 0 | BW69: 0 | BX69: 0
A70: 0289 FY 10-11 P013 | B70: =CONCATENATE(CONFIG!$C$9," ",CONFIG!$B$6," ",P70,Q70) -> 0289 FY 10-11 P013A | C70: 6,7,8 Lit | F70: ELA - E Teacher | G70: =IF(F70="","",IF(OR(D70="",D70="HS"),VLOOKUP(F70,'JOB CODE LOOKUP'!$S$5:$V$183,3,FALSE),VLOOKUP(F70,'JOB CODE LOOKUP'!$S$5:$V$183,4,FALSE))) -> 10289110018314520110 | H70: 10 | I70: 289 | J70: 11 | K70: 0018 | L70: 3145 | M70: 2 | N70: 0110 | O70: 0200 | P70: P013 | Q70: A | R70: =IF(F70="","",(IF(CONFIG!$B$12="ES",VLOOKUP(F70,'JOB CODE LOOKUP'!$A$2:$E$222,2,FALSE),IF(CONFIG!$B$12="K-8",VLOOKUP(F70,'JOB CODE LOOKUP'!$G$2:$K$222,2,FALSE),IF(CONFIG!$B$12="MS",VLOOKUP(F70,'JOB CODE LOOKUP'!$M$2:$Q$222,2,FALSE),IF(CONFIG!$B$12="HS",VLOOKUP(F70,'JOB CODE LOOKUP'!$S$2:$W$222,2,FALSE),IF(AND(CONFIG!$B$12="6-12",D70="HS"),VLOOKUP(F70,'JOB CODE LOOKUP'!$S$2:$W$222,2,FALSE),IF(AND(CONFIG!$B$12="6-12",D70="MS"),VLOOKUP(F70,'JOB CODE LOOKUP'!$M$2:$Q$222,2,FALSE),"")))))))) -> 3302 | S70: =IF(CONFIG!$B$2<>"Y","",(IF(OR(G70="",LEFT(H70,1)="2",H70="19",L70="1911"),"",dbs(BV70,CONFIG!$B$4&":Employee - School Staffing",CONFIG!$B$5,CONFIG!$B$6,CONFIG!$C$9,H70,I70,J70,K70,L70,M70,N70,P70,Q70,R70,"FTE")))) ->  | T70: =IF(CONFIG!$B$2<>"Y","",(IF(OR(G70="",LEFT(H70,1)="2",H70="19",L70="1911"),"",dbs(BW70,CONFIG!$B$4&":Employee - School Staffing",CONFIG!$B$5,CONFIG!$B$6,CONFIG!$C$9,H70,I70,J70,K70,L70,M70,N70,P70,Q70,R70,"AMOUNT")))) ->  | U70: =IF(CONFIG!$B$2<>"Y","",(IF(OR(G70="",LEFT(H70,1)="2",H70="19",L70="1911"),"",dbs(BX70,CONFIG!$B$4&":Employee - School Staffing",CONFIG!$B$5,CONFIG!$B$6,CONFIG!$C$9,H70,I70,J70,K70,L70,M70,O70,P70,Q70,R70,"AMOUNT")))) ->  | Y70: 13 | Z70: ELA - E Teacher | AA70: =(IF(AC70="",0,IF(CONFIG!$B$22<>"Autonomous",ROUND(VLOOKUP(R70,'AVERAGE SALARY LOOKUP'!$A$3:$E$10004,4,FALSE)*AC70,0),IF(E70="",0,IF(E70="vacancy",ROUND(VLOOKUP(R70,'AVERAGE SALARY LOOKUP'!$A$3:$E$10004,4,FALSE)*AC70,0),ROUND(VLOOKUP(E70,'FULL TIME ACTUAL RATES'!$B$2:$G$4927,6,FALSE)*AC70,0)))))) -> 51768 | AB70: =IF($H70="",0,IF(CONFIG!$B$22="Autonomous",ROUND((AA70*VLOOKUP($H70,CONFIG!$A$46:$C$55,3,FALSE)+(VLOOKUP($BR70,CONFIG!$A$33:$C$43,3,FALSE)*AC70)),0),(ROUND('School Staffing Tool'!AC70*VLOOKUP(R70,'AVERAGE SALARY LOOKUP'!$A$3:$F$700,6,FALSE),0)))) -> 14176 | AC70: 1 | AD70: 65944 | AH70: =(IF(AJ70="",0,ROUND(VLOOKUP(R70,'AVERAGE SALARY LOOKUP'!$A$3:$E$10004,4,FALSE)*AJ70,0))) -> 0 | AI70: =IF($H70="",0,IF(CONFIG!$B$22="Autonomous",ROUND((AH70*VLOOKUP($H70,CONFIG!$A$46:$C$55,3,FALSE)+(VLOOKUP($BR70,CONFIG!$A$33:$C$43,3,FALSE)*AJ70)),0),IF(H70="10",(ROUND(AJ70*VLOOKUP($R70,'AVERAGE SALARY LOOKUP'!$A$3:$I$700,6,FALSE),0)),(ROUND(AJ70*VLOOKUP($R70,'AVERAGE SALARY LOOKUP'!$A$3:$I$700,9,FALSE),0))))) -> 0 | AK70: 0 | AO70: =(IF(AQ70="",0,IF(CONFIG!$B$22<>"Autonomous",ROUND(VLOOKUP(R70,'AVERAGE SALARY LOOKUP'!$A$3:$E$10004,4,FALSE)*AQ70,0),IF(E70="",0,IF(E70="vacancy",ROUND(VLOOKUP(R70,'AVERAGE SALARY LOOKUP'!$A$3:$E$10004,4,FALSE)*AQ70,0),ROUND(VLOOKUP(E70,'FULL TIME ACTUAL RATES'!$B$2:$G$4927,6,FALSE)*AQ70,0)))))) -> 0 | AP70: =IF($H70="",0,IF(CONFIG!$B$22="Autonomous",ROUND((AO70*VLOOKUP($H70,CONFIG!$A$46:$C$55,3,FALSE)+(VLOOKUP($BR70,CONFIG!$A$33:$C$43,3,FALSE)*AQ70)),0),(ROUND('School Staffing Tool'!AQ70*VLOOKUP($R70,'AVERAGE SALARY LOOKUP'!$A$3:$F$700,6,FALSE),0)))) -> 0 | AR70: 0 | AV70: =(IF(AX70="",0,ROUND(VLOOKUP(R70,'AVERAGE SALARY LOOKUP'!$A$3:$E$10004,4,FALSE)*AX70,0))) -> 0 | AW70: =IF($H70="",0,IF(CONFIG!$B$22="Autonomous",ROUND((AV70*VLOOKUP($H70,CONFIG!$A$46:$C$55,3,FALSE)+(VLOOKUP($BR70,CONFIG!$A$33:$C$43,3,FALSE)*AX70)),0),(ROUND('School Staffing Tool'!AX70*VLOOKUP($R70,'AVERAGE SALARY LOOKUP'!$A$3:$H$700,8,FALSE),0)))) -> 0 | AY70: 0 | BC70: 0 | BD70: =IF(BB70="",0,ROUND((BC70*VLOOKUP($H70,CONFIG!$A$46:$C$55,3,FALSE)+(VLOOKUP($BR70,CONFIG!$A$33:$C$43,3,FALSE)*BE70)),0)) -> 0 | BF70: 0 | BJ70: =(IF(BL70="",0,ROUND(VLOOKUP($R$34,'AVERAGE SALARY LOOKUP'!$A$3:$E$10004,4,FALSE)*BL70,0))) -> 0 | BK70: =IF($H70="",0,IF(CONFIG!$B$22="Autonomous",ROUND((BJ70*VLOOKUP($H70,CONFIG!$A$46:$C$55,3,FALSE)+(VLOOKUP($BR70,CONFIG!$A$33:$C$43,3,FALSE)*BL70)),0),(ROUND('School Staffing Tool'!BL70*VLOOKUP($R70,'AVERAGE SALARY LOOKUP'!$A$3:$F$700,6,FALSE),0)))) -> 0 | BM70: 0 | BQ70: 1 | BR70: =IF(R70="","",VLOOKUP(R70,'AVERAGE SALARY LOOKUP'!$A$3:$C$686,3,FALSE)) -> DCTA | BS70: 1 | BU70: 10,3145,2 | BV70: 1 | BW70: 51768 | BX70: 14176
A71: 0289 FY 10-11 P013 | B71: =CONCATENATE(CONFIG!$C$9," ",CONFIG!$B$6," ",P71,Q71) -> 0289 FY 10-11 P013B | G71: =IF(F71="","",IF(OR(D71="",D71="HS"),VLOOKUP(F71,'JOB CODE LOOKUP'!$S$5:$V$183,3,FALSE),VLOOKUP(F71,'JOB CODE LOOKUP'!$S$5:$V$183,4,FALSE))) ->  | P71: P013 | Q71: B | R71: =IF(F71="","",(IF(CONFIG!$B$12="ES",VLOOKUP(F71,'JOB CODE LOOKUP'!$A$2:$E$222,2,FALSE),IF(CONFIG!$B$12="K-8",VLOOKUP(F71,'JOB CODE LOOKUP'!$G$2:$K$222,2,FALSE),IF(CONFIG!$B$12="MS",VLOOKUP(F71,'JOB CODE LOOKUP'!$M$2:$Q$222,2,FALSE),IF(CONFIG!$B$12="HS",VLOOKUP(F71,'JOB CODE LOOKUP'!$S$2:$W$222,2,FALSE),IF(AND(CONFIG!$B$12="6-12",D71="HS"),VLOOKUP(F71,'JOB CODE LOOKUP'!$S$2:$W$222,2,FALSE),IF(AND(CONFIG!$B$12="6-12",D71="MS"),VLOOKUP(F71,'JOB CODE LOOKUP'!$M$2:$Q$222,2,FALSE),"")))))))) ->  | S71: =IF(CONFIG!$B$2<>"Y","",(IF(OR(G71="",LEFT(H71,1)="2",H71="19",L71="1911"),"",dbs(BV71,CONFIG!$B$4&":Employee - School Staffing",CONFIG!$B$5,CONFIG!$B$6,CONFIG!$C$9,H71,I71,J71,K71,L71,M71,N71,P71,Q71,R71,"FTE")))) ->  | T71: =IF(CONFIG!$B$2<>"Y","",(IF(OR(G71="",LEFT(H71,1)="2",H71="19",L71="1911"),"",dbs(BW71,CONFIG!$B$4&":Employee - School Staffing",CONFIG!$B$5,CONFIG!$B$6,CONFIG!$C$9,H71,I71,J71,K71,L71,M71,N71,P71,Q71,R71,"AMOUNT")))) ->  | U71: =IF(CONFIG!$B$2<>"Y","",(IF(OR(G71="",LEFT(H71,1)="2",H71="19",L71="1911"),"",dbs(BX71,CONFIG!$B$4&":Employee - School Staffing",CONFIG!$B$5,CONFIG!$B$6,CONFIG!$C$9,H71,I71,J71,K71,L71,M71,O71,P71,Q71,R71,"AMOUNT")))) ->  | Y71: 13 | AA71: =(IF(AC71="",0,IF(CONFIG!$B$22<>"Autonomous",ROUND(VLOOKUP(R71,'AVERAGE SALARY LOOKUP'!$A$3:$E$10004,4,FALSE)*AC71,0),IF(E71="",0,IF(E71="vacancy",ROUND(VLOOKUP(R71,'AVERAGE SALARY LOOKUP'!$A$3:$E$10004,4,FALSE)*AC71,0),ROUND(VLOOKUP(E71,'FULL TIME ACTUAL RATES'!$B$2:$G$4927,6,FALSE)*AC71,0)))))) -> 0 | AB71: =IF($H71="",0,IF(CONFIG!$B$22="Autonomous",ROUND((AA71*VLOOKUP($H71,CONFIG!$A$46:$C$55,3,FALSE)+(VLOOKUP($BR71,CONFIG!$A$33:$C$43,3,FALSE)*AC71)),0),(ROUND('School Staffing Tool'!AC71*VLOOKUP(R71,'AVERAGE SALARY LOOKUP'!$A$3:$F$700,6,FALSE),0)))) -> 0 | AD71: 0 | AH71: =(IF(AJ71="",0,ROUND(VLOOKUP(R71,'AVERAGE SALARY LOOKUP'!$A$3:$E$10004,4,FALSE)*AJ71,0))) -> 0 | AI71: =IF($H71="",0,IF(CONFIG!$B$22="Autonomous",ROUND((AH71*VLOOKUP($H71,CONFIG!$A$46:$C$55,3,FALSE)+(VLOOKUP($BR71,CONFIG!$A$33:$C$43,3,FALSE)*AJ71)),0),IF(H71="10",(ROUND(AJ71*VLOOKUP($R71,'AVERAGE SALARY LOOKUP'!$A$3:$I$700,6,FALSE),0)),(ROUND(AJ71*VLOOKUP($R71,'AVERAGE SALARY LOOKUP'!$A$3:$I$700,9,FALSE),0))))) -> 0 | AK71: 0 | AO71: =(IF(AQ71="",0,IF(CONFIG!$B$22<>"Autonomous",ROUND(VLOOKUP(R71,'AVERAGE SALARY LOOKUP'!$A$3:$E$10004,4,FALSE)*AQ71,0),IF(E71="",0,IF(E71="vacancy",ROUND(VLOOKUP(R71,'AVERAGE SALARY LOOKUP'!$A$3:$E$10004,4,FALSE)*AQ71,0),ROUND(VLOOKUP(E71,'FULL TIME ACTUAL RATES'!$B$2:$G$4927,6,FALSE)*AQ71,0)))))) -> 0 | AP71: =IF($H71="",0,IF(CONFIG!$B$22="Autonomous",ROUND((AO71*VLOOKUP($H71,CONFIG!$A$46:$C$55,3,FALSE)+(VLOOKUP($BR71,CONFIG!$A$33:$C$43,3,FALSE)*AQ71)),0),(ROUND('School Staffing Tool'!AQ71*VLOOKUP($R71,'AVERAGE SALARY LOOKUP'!$A$3:$F$700,6,FALSE),0)))) -> 0 | AR71: 0 | AV71: =(IF(AX71="",0,ROUND(VLOOKUP(R71,'AVERAGE SALARY LOOKUP'!$A$3:$E$10004,4,FALSE)*AX71,0))) -> 0 | AW71: =IF($H71="",0,IF(CONFIG!$B$22="Autonomous",ROUND((AV71*VLOOKUP($H71,CONFIG!$A$46:$C$55,3,FALSE)+(VLOOKUP($BR71,CONFIG!$A$33:$C$43,3,FALSE)*AX71)),0),(ROUND('School Staffing Tool'!AX71*VLOOKUP($R71,'AVERAGE SALARY LOOKUP'!$A$3:$H$700,8,FALSE),0)))) -> 0 | AY71: 0 | BC71: 0 | BD71: =IF(BB71="",0,ROUND((BC71*VLOOKUP($H71,CONFIG!$A$46:$C$55,3,FALSE)+(VLOOKUP($BR71,CONFIG!$A$33:$C$43,3,FALSE)*BE71)),0)) -> 0 | BF71: 0 | BJ71: =(IF(BL71="",0,ROUND(VLOOKUP($R$34,'AVERAGE SALARY LOOKUP'!$A$3:$E$10004,4,FALSE)*BL71,0))) -> 0 | BK71: =IF($H71="",0,IF(CONFIG!$B$22="Autonomous",ROUND((BJ71*VLOOKUP($H71,CONFIG!$A$46:$C$55,3,FALSE)+(VLOOKUP($BR71,CONFIG!$A$33:$C$43,3,FALSE)*BL71)),0),(ROUND('School Staffing Tool'!BL71*VLOOKUP($R71,'AVERAGE SALARY LOOKUP'!$A$3:$F$700,6,FALSE),0)))) -> 0 | BM71: 0 | BQ71: 0 | BR71: =IF(R71="","",VLOOKUP(R71,'AVERAGE SALARY LOOKUP'!$A$3:$C$686,3,FALSE)) ->  | BS71: 0 | BV71: 0 | BW71: 0 | BX71: 0
A72: 0289 FY 10-11 P013 | B72: =CONCATENATE(CONFIG!$C$9," ",CONFIG!$B$6," ",P72,Q72) -> 0289 FY 10-11 P013C | G72: =IF(F72="","",IF(OR(D72="",D72="HS"),VLOOKUP(F72,'JOB CODE LOOKUP'!$S$5:$V$183,3,FALSE),VLOOKUP(F72,'JOB CODE LOOKUP'!$S$5:$V$183,4,FALSE))) ->  | P72: P013 | Q72: C | R72: =IF(F72="","",(IF(CONFIG!$B$12="ES",VLOOKUP(F72,'JOB CODE LOOKUP'!$A$2:$E$222,2,FALSE),IF(CONFIG!$B$12="K-8",VLOOKUP(F72,'JOB CODE LOOKUP'!$G$2:$K$222,2,FALSE),IF(CONFIG!$B$12="MS",VLOOKUP(F72,'JOB CODE LOOKUP'!$M$2:$Q$222,2,FALSE),IF(CONFIG!$B$12="HS",VLOOKUP(F72,'JOB CODE LOOKUP'!$S$2:$W$222,2,FALSE),IF(AND(CONFIG!$B$12="6-12",D72="HS"),VLOOKUP(F72,'JOB CODE LOOKUP'!$S$2:$W$222,2,FALSE),IF(AND(CONFIG!$B$12="6-12",D72="MS"),VLOOKUP(F72,'JOB CODE LOOKUP'!$M$2:$Q$222,2,FALSE),"")))))))) ->  | S72: =IF(CONFIG!$B$2<>"Y","",(IF(OR(G72="",LEFT(H72,1)="2",H72="19",L72="1911"),"",dbs(BV72,CONFIG!$B$4&":Employee - School Staffing",CONFIG!$B$5,CONFIG!$B$6,CONFIG!$C$9,H72,I72,J72,K72,L72,M72,N72,P72,Q72,R72,"FTE")))) ->  | T72: =IF(CONFIG!$B$2<>"Y","",(IF(OR(G72="",LEFT(H72,1)="2",H72="19",L72="1911"),"",dbs(BW72,CONFIG!$B$4&":Employee - School Staffing",CONFIG!$B$5,CONFIG!$B$6,CONFIG!$C$9,H72,I72,J72,K72,L72,M72,N72,P72,Q72,R72,"AMOUNT")))) ->  | U72: =IF(CONFIG!$B$2<>"Y","",(IF(OR(G72="",LEFT(H72,1)="2",H72="19",L72="1911"),"",dbs(BX72,CONFIG!$B$4&":Employee - School Staffing",CONFIG!$B$5,CONFIG!$B$6,CONFIG!$C$9,H72,I72,J72,K72,L72,M72,O72,P72,Q72,R72,"AMOUNT")))) ->  | Y72: 13 | AA72: =(IF(AC72="",0,IF(CONFIG!$B$22<>"Autonomous",ROUND(VLOOKUP(R72,'AVERAGE SALARY LOOKUP'!$A$3:$E$10004,4,FALSE)*AC72,0),IF(E72="",0,IF(E72="vacancy",ROUND(VLOOKUP(R72,'AVERAGE SALARY LOOKUP'!$A$3:$E$10004,4,FALSE)*AC72,0),ROUND(VLOOKUP(E72,'FULL TIME ACTUAL RATES'!$B$2:$G$4927,6,FALSE)*AC72,0)))))) -> 0 | AB72: =IF($H72="",0,IF(CONFIG!$B$22="Autonomous",ROUND((AA72*VLOOKUP($H72,CONFIG!$A$46:$C$55,3,FALSE)+(VLOOKUP($BR72,CONFIG!$A$33:$C$43,3,FALSE)*AC72)),0),(ROUND('School Staffing Tool'!AC72*VLOOKUP(R72,'AVERAGE SALARY LOOKUP'!$A$3:$F$700,6,FALSE),0)))) -> 0 | AD72: 0 | AH72: =(IF(AJ72="",0,ROUND(VLOOKUP(R72,'AVERAGE SALARY LOOKUP'!$A$3:$E$10004,4,FALSE)*AJ72,0))) -> 0 | AI72: =IF($H72="",0,IF(CONFIG!$B$22="Autonomous",ROUND((AH72*VLOOKUP($H72,CONFIG!$A$46:$C$55,3,FALSE)+(VLOOKUP($BR72,CONFIG!$A$33:$C$43,3,FALSE)*AJ72)),0),IF(H72="10",(ROUND(AJ72*VLOOKUP($R72,'AVERAGE SALARY LOOKUP'!$A$3:$I$700,6,FALSE),0)),(ROUND(AJ72*VLOOKUP($R72,'AVERAGE SALARY LOOKUP'!$A$3:$I$700,9,FALSE),0))))) -> 0 | AK72: 0 | AO72: =(IF(AQ72="",0,IF(CONFIG!$B$22<>"Autonomous",ROUND(VLOOKUP(R72,'AVERAGE SALARY LOOKUP'!$A$3:$E$10004,4,FALSE)*AQ72,0),IF(E72="",0,IF(E72="vacancy",ROUND(VLOOKUP(R72,'AVERAGE SALARY LOOKUP'!$A$3:$E$10004,4,FALSE)*AQ72,0),ROUND(VLOOKUP(E72,'FULL TIME ACTUAL RATES'!$B$2:$G$4927,6,FALSE)*AQ72,0)))))) -> 0 | AP72: =IF($H72="",0,IF(CONFIG!$B$22="Autonomous",ROUND((AO72*VLOOKUP($H72,CONFIG!$A$46:$C$55,3,FALSE)+(VLOOKUP($BR72,CONFIG!$A$33:$C$43,3,FALSE)*AQ72)),0),(ROUND('School Staffing Tool'!AQ72*VLOOKUP($R72,'AVERAGE SALARY LOOKUP'!$A$3:$F$700,6,FALSE),0)))) -> 0 | AR72: 0 | AV72: =(IF(AX72="",0,ROUND(VLOOKUP(R72,'AVERAGE SALARY LOOKUP'!$A$3:$E$10004,4,FALSE)*AX72,0))) -> 0 | AW72: =IF($H72="",0,IF(CONFIG!$B$22="Autonomous",ROUND((AV72*VLOOKUP($H72,CONFIG!$A$46:$C$55,3,FALSE)+(VLOOKUP($BR72,CONFIG!$A$33:$C$43,3,FALSE)*AX72)),0),(ROUND('School Staffing Tool'!AX72*VLOOKUP($R72,'AVERAGE SALARY LOOKUP'!$A$3:$H$700,8,FALSE),0)))) -> 0 | AY72: 0 | BC72: 0 | BD72: =IF(BB72="",0,ROUND((BC72*VLOOKUP($H72,CONFIG!$A$46:$C$55,3,FALSE)+(VLOOKUP($BR72,CONFIG!$A$33:$C$43,3,FALSE)*BE72)),0)) -> 0 | BF72: 0 | BJ72: =(IF(BL72="",0,ROUND(VLOOKUP($R$34,'AVERAGE SALARY LOOKUP'!$A$3:$E$10004,4,FALSE)*BL72,0))) -> 0 | BK72: =IF($H72="",0,IF(CONFIG!$B$22="Autonomous",ROUND((BJ72*VLOOKUP($H72,CONFIG!$A$46:$C$55,3,FALSE)+(VLOOKUP($BR72,CONFIG!$A$33:$C$43,3,FALSE)*BL72)),0),(ROUND('School Staffing Tool'!BL72*VLOOKUP($R72,'AVERAGE SALARY LOOKUP'!$A$3:$F$700,6,FALSE),0)))) -> 0 | BM72: 0 | BQ72: 0 | BR72: =IF(R72="","",VLOOKUP(R72,'AVERAGE SALARY LOOKUP'!$A$3:$C$686,3,FALSE)) ->  | BS72: 0 | BV72: 0 | BW72: 0 | BX72: 0
A73: 0289 FY 10-11 P014 | B73: =CONCATENATE(CONFIG!$C$9," ",CONFIG!$B$6," ",P73,Q73) -> 0289 FY 10-11 P014A | C73: ESL | F73: ESL / Zone Teacher | G73: =IF(F73="","",IF(OR(D73="",D73="HS"),VLOOKUP(F73,'JOB CODE LOOKUP'!$S$5:$V$183,3,FALSE),VLOOKUP(F73,'JOB CODE LOOKUP'!$S$5:$V$183,4,FALSE))) -> 10289110018314720110 | H73: 10 | I73: 289 | J73: 11 | K73: 0018 | L73: 3147 | M73: 2 | N73: 0110 | O73: 0200 | P73: P014 | Q73: A | R73: =IF(F73="","",(IF(CONFIG!$B$12="ES",VLOOKUP(F73,'JOB CODE LOOKUP'!$A$2:$E$222,2,FALSE),IF(CONFIG!$B$12="K-8",VLOOKUP(F73,'JOB CODE LOOKUP'!$G$2:$K$222,2,FALSE),IF(CONFIG!$B$12="MS",VLOOKUP(F73,'JOB CODE LOOKUP'!$M$2:$Q$222,2,FALSE),IF(CONFIG!$B$12="HS",VLOOKUP(F73,'JOB CODE LOOKUP'!$S$2:$W$222,2,FALSE),IF(AND(CONFIG!$B$12="6-12",D73="HS"),VLOOKUP(F73,'JOB CODE LOOKUP'!$S$2:$W$222,2,FALSE),IF(AND(CONFIG!$B$12="6-12",D73="MS"),VLOOKUP(F73,'JOB CODE LOOKUP'!$M$2:$Q$222,2,FALSE),"")))))))) -> 3302 | S73: =IF(CONFIG!$B$2<>"Y","",(IF(OR(G73="",LEFT(H73,1)="2",H73="19",L73="1911"),"",dbs(BV73,CONFIG!$B$4&":Employee - School Staffing",CONFIG!$B$5,CONFIG!$B$6,CONFIG!$C$9,H73,I73,J73,K73,L73,M73,N73,P73,Q73,R73,"FTE")))) ->  | T73: =IF(CONFIG!$B$2<>"Y","",(IF(OR(G73="",LEFT(H73,1)="2",H73="19",L73="1911"),"",dbs(BW73,CONFIG!$B$4&":Employee - School Staffing",CONFIG!$B$5,CONFIG!$B$6,CONFIG!$C$9,H73,I73,J73,K73,L73,M73,N73,P73,Q73,R73,"AMOUNT")))) ->  | U73: =IF(CONFIG!$B$2<>"Y","",(IF(OR(G73="",LEFT(H73,1)="2",H73="19",L73="1911"),"",dbs(BX73,CONFIG!$B$4&":Employee - School Staffing",CONFIG!$B$5,CONFIG!$B$6,CONFIG!$C$9,H73,I73,J73,K73,L73,M73,O73,P73,Q73,R73,"AMOUNT")))) ->  | Y73: 14 | Z73: ESL / Zone Teacher | AA73: =(IF(AC73="",0,IF(CONFIG!$B$22<>"Autonomous",ROUND(VLOOKUP(R73,'AVERAGE SALARY LOOKUP'!$A$3:$E$10004,4,FALSE)*AC73,0),IF(E73="",0,IF(E73="vacancy",ROUND(VLOOKUP(R73,'AVERAGE SALARY LOOKUP'!$A$3:$E$10004,4,FALSE)*AC73,0),ROUND(VLOOKUP(E73,'FULL TIME ACTUAL RATES'!$B$2:$G$4927,6,FALSE)*AC73,0)))))) -> 51768 | AB73: =IF($H73="",0,IF(CONFIG!$B$22="Autonomous",ROUND((AA73*VLOOKUP($H73,CONFIG!$A$46:$C$55,3,FALSE)+(VLOOKUP($BR73,CONFIG!$A$33:$C$43,3,FALSE)*AC73)),0),(ROUND('School Staffing Tool'!AC73*VLOOKUP(R73,'AVERAGE SALARY LOOKUP'!$A$3:$F$700,6,FALSE),0)))) -> 14176 | AC73: 1 | AD73: 65944 | AH73: =(IF(AJ73="",0,ROUND(VLOOKUP(R73,'AVERAGE SALARY LOOKUP'!$A$3:$E$10004,4,FALSE)*AJ73,0))) -> 0 | AI73: =IF($H73="",0,IF(CONFIG!$B$22="Autonomous",ROUND((AH73*VLOOKUP($H73,CONFIG!$A$46:$C$55,3,FALSE)+(VLOOKUP($BR73,CONFIG!$A$33:$C$43,3,FALSE)*AJ73)),0),IF(H73="10",(ROUND(AJ73*VLOOKUP($R73,'AVERAGE SALARY LOOKUP'!$A$3:$I$700,6,FALSE),0)),(ROUND(AJ73*VLOOKUP($R73,'AVERAGE SALARY LOOKUP'!$A$3:$I$700,9,FALSE),0))))) -> 0 | AK73: 0 | AO73: =(IF(AQ73="",0,IF(CONFIG!$B$22<>"Autonomous",ROUND(VLOOKUP(R73,'AVERAGE SALARY LOOKUP'!$A$3:$E$10004,4,FALSE)*AQ73,0),IF(E73="",0,IF(E73="vacancy",ROUND(VLOOKUP(R73,'AVERAGE SALARY LOOKUP'!$A$3:$E$10004,4,FALSE)*AQ73,0),ROUND(VLOOKUP(E73,'FULL TIME ACTUAL RATES'!$B$2:$G$4927,6,FALSE)*AQ73,0)))))) -> 0 | AP73: =IF($H73="",0,IF(CONFIG!$B$22="Autonomous",ROUND((AO73*VLOOKUP($H73,CONFIG!$A$46:$C$55,3,FALSE)+(VLOOKUP($BR73,CONFIG!$A$33:$C$43,3,FALSE)*AQ73)),0),(ROUND('School Staffing Tool'!AQ73*VLOOKUP($R73,'AVERAGE SALARY LOOKUP'!$A$3:$F$700,6,FALSE),0)))) -> 0 | AR73: 0 | AV73: =(IF(AX73="",0,ROUND(VLOOKUP(R73,'AVERAGE SALARY LOOKUP'!$A$3:$E$10004,4,FALSE)*AX73,0))) -> 0 | AW73: =IF($H73="",0,IF(CONFIG!$B$22="Autonomous",ROUND((AV73*VLOOKUP($H73,CONFIG!$A$46:$C$55,3,FALSE)+(VLOOKUP($BR73,CONFIG!$A$33:$C$43,3,FALSE)*AX73)),0),(ROUND('School Staffing Tool'!AX73*VLOOKUP($R73,'AVERAGE SALARY LOOKUP'!$A$3:$H$700,8,FALSE),0)))) -> 0 | AY73: 0 | BC73: 0 | BD73: =IF(BB73="",0,ROUND((BC73*VLOOKUP($H73,CONFIG!$A$46:$C$55,3,FALSE)+(VLOOKUP($BR73,CONFIG!$A$33:$C$43,3,FALSE)*BE73)),0)) -> 0 | BF73: 0 | BJ73: =(IF(BL73="",0,ROUND(VLOOKUP($R$34,'AVERAGE SALARY LOOKUP'!$A$3:$E$10004,4,FALSE)*BL73,0))) -> 0 | BK73: =IF($H73="",0,IF(CONFIG!$B$22="Autonomous",ROUND((BJ73*VLOOKUP($H73,CONFIG!$A$46:$C$55,3,FALSE)+(VLOOKUP($BR73,CONFIG!$A$33:$C$43,3,FALSE)*BL73)),0),(ROUND('School Staffing Tool'!BL73*VLOOKUP($R73,'AVERAGE SALARY LOOKUP'!$A$3:$F$700,6,FALSE),0)))) -> 0 | BM73: 0 | BQ73: 1 | BR73: =IF(R73="","",VLOOKUP(R73,'AVERAGE SALARY LOOKUP'!$A$3:$C$686,3,FALSE)) -> DCTA | BS73: 1 | BU73: 10,3147,2 | BV73: 1 | BW73: 51768 | BX73: 14176
A74: 0289 FY 10-11 P014 | B74: =CONCATENATE(CONFIG!$C$9," ",CONFIG!$B$6," ",P74,Q74) -> 0289 FY 10-11 P014B | G74: =IF(F74="","",IF(OR(D74="",D74="HS"),VLOOKUP(F74,'JOB CODE LOOKUP'!$S$5:$V$183,3,FALSE),VLOOKUP(F74,'JOB CODE LOOKUP'!$S$5:$V$183,4,FALSE))) ->  | P74: P014 | Q74: B | R74: =IF(F74="","",(IF(CONFIG!$B$12="ES",VLOOKUP(F74,'JOB CODE LOOKUP'!$A$2:$E$222,2,FALSE),IF(CONFIG!$B$12="K-8",VLOOKUP(F74,'JOB CODE LOOKUP'!$G$2:$K$222,2,FALSE),IF(CONFIG!$B$12="MS",VLOOKUP(F74,'JOB CODE LOOKUP'!$M$2:$Q$222,2,FALSE),IF(CONFIG!$B$12="HS",VLOOKUP(F74,'JOB CODE LOOKUP'!$S$2:$W$222,2,FALSE),IF(AND(CONFIG!$B$12="6-12",D74="HS"),VLOOKUP(F74,'JOB CODE LOOKUP'!$S$2:$W$222,2,FALSE),IF(AND(CONFIG!$B$12="6-12",D74="MS"),VLOOKUP(F74,'JOB CODE LOOKUP'!$M$2:$Q$222,2,FALSE),"")))))))) ->  | S74: =IF(CONFIG!$B$2<>"Y","",(IF(OR(G74="",LEFT(H74,1)="2",H74="19",L74="1911"),"",dbs(BV74,CONFIG!$B$4&":Employee - School Staffing",CONFIG!$B$5,CONFIG!$B$6,CONFIG!$C$9,H74,I74,J74,K74,L74,M74,N74,P74,Q74,R74,"FTE")))) ->  | T74: =IF(CONFIG!$B$2<>"Y","",(IF(OR(G74="",LEFT(H74,1)="2",H74="19",L74="1911"),"",dbs(BW74,CONFIG!$B$4&":Employee - School Staffing",CONFIG!$B$5,CONFIG!$B$6,CONFIG!$C$9,H74,I74,J74,K74,L74,M74,N74,P74,Q74,R74,"AMOUNT")))) ->  | U74: =IF(CONFIG!$B$2<>"Y","",(IF(OR(G74="",LEFT(H74,1)="2",H74="19",L74="1911"),"",dbs(BX74,CONFIG!$B$4&":Employee - School Staffing",CONFIG!$B$5,CONFIG!$B$6,CONFIG!$C$9,H74,I74,J74,K74,L74,M74,O74,P74,Q74,R74,"AMOUNT")))) ->  | Y74: 14 | AA74: =(IF(AC74="",0,IF(CONFIG!$B$22<>"Autonomous",ROUND(VLOOKUP(R74,'AVERAGE SALARY LOOKUP'!$A$3:$E$10004,4,FALSE)*AC74,0),IF(E74="",0,IF(E74="vacancy",ROUND(VLOOKUP(R74,'AVERAGE SALARY LOOKUP'!$A$3:$E$10004,4,FALSE)*AC74,0),ROUND(VLOOKUP(E74,'FULL TIME ACTUAL RATES'!$B$2:$G$4927,6,FALSE)*AC74,0)))))) -> 0 | AB74: =IF($H74="",0,IF(CONFIG!$B$22="Autonomous",ROUND((AA74*VLOOKUP($H74,CONFIG!$A$46:$C$55,3,FALSE)+(VLOOKUP($BR74,CONFIG!$A$33:$C$43,3,FALSE)*AC74)),0),(ROUND('School Staffing Tool'!AC74*VLOOKUP(R74,'AVERAGE SALARY LOOKUP'!$A$3:$F$700,6,FALSE),0)))) -> 0 | AD74: 0 | AH74: =(IF(AJ74="",0,ROUND(VLOOKUP(R74,'AVERAGE SALARY LOOKUP'!$A$3:$E$10004,4,FALSE)*AJ74,0))) -> 0 | AI74: =IF($H74="",0,IF(CONFIG!$B$22="Autonomous",ROUND((AH74*VLOOKUP($H74,CONFIG!$A$46:$C$55,3,FALSE)+(VLOOKUP($BR74,CONFIG!$A$33:$C$43,3,FALSE)*AJ74)),0),IF(H74="10",(ROUND(AJ74*VLOOKUP($R74,'AVERAGE SALARY LOOKUP'!$A$3:$I$700,6,FALSE),0)),(ROUND(AJ74*VLOOKUP($R74,'AVERAGE SALARY LOOKUP'!$A$3:$I$700,9,FALSE),0))))) -> 0 | AK74: 0 | AO74: =(IF(AQ74="",0,IF(CONFIG!$B$22<>"Autonomous",ROUND(VLOOKUP(R74,'AVERAGE SALARY LOOKUP'!$A$3:$E$10004,4,FALSE)*AQ74,0),IF(E74="",0,IF(E74="vacancy",ROUND(VLOOKUP(R74,'AVERAGE SALARY LOOKUP'!$A$3:$E$10004,4,FALSE)*AQ74,0),ROUND(VLOOKUP(E74,'FULL TIME ACTUAL RATES'!$B$2:$G$4927,6,FALSE)*AQ74,0)))))) -> 0 | AP74: =IF($H74="",0,IF(CONFIG!$B$22="Autonomous",ROUND((AO74*VLOOKUP($H74,CONFIG!$A$46:$C$55,3,FALSE)+(VLOOKUP($BR74,CONFIG!$A$33:$C$43,3,FALSE)*AQ74)),0),(ROUND('School Staffing Tool'!AQ74*VLOOKUP($R74,'AVERAGE SALARY LOOKUP'!$A$3:$F$700,6,FALSE),0)))) -> 0 | AR74: 0 | AV74: =(IF(AX74="",0,ROUND(VLOOKUP(R74,'AVERAGE SALARY LOOKUP'!$A$3:$E$10004,4,FALSE)*AX74,0))) -> 0 | AW74: =IF($H74="",0,IF(CONFIG!$B$22="Autonomous",ROUND((AV74*VLOOKUP($H74,CONFIG!$A$46:$C$55,3,FALSE)+(VLOOKUP($BR74,CONFIG!$A$33:$C$43,3,FALSE)*AX74)),0),(ROUND('School Staffing Tool'!AX74*VLOOKUP($R74,'AVERAGE SALARY LOOKUP'!$A$3:$H$700,8,FALSE),0)))) -> 0 | AY74: 0 | BC74: 0 | BD74: =IF(BB74="",0,ROUND((BC74*VLOOKUP($H74,CONFIG!$A$46:$C$55,3,FALSE)+(VLOOKUP($BR74,CONFIG!$A$33:$C$43,3,FALSE)*BE74)),0)) -> 0 | BF74: 0 | BJ74: =(IF(BL74="",0,ROUND(VLOOKUP($R$34,'AVERAGE SALARY LOOKUP'!$A$3:$E$10004,4,FALSE)*BL74,0))) -> 0 | BK74: =IF($H74="",0,IF(CONFIG!$B$22="Autonomous",ROUND((BJ74*VLOOKUP($H74,CONFIG!$A$46:$C$55,3,FALSE)+(VLOOKUP($BR74,CONFIG!$A$33:$C$43,3,FALSE)*BL74)),0),(ROUND('School Staffing Tool'!BL74*VLOOKUP($R74,'AVERAGE SALARY LOOKUP'!$A$3:$F$700,6,FALSE),0)))) -> 0 | BM74: 0 | BQ74: 0 | BR74: =IF(R74="","",VLOOKUP(R74,'AVERAGE SALARY LOOKUP'!$A$3:$C$686,3,FALSE)) ->  | BS74: 0 | BV74: 0 | BW74: 0 | BX74: 0
A75: 0289 FY 10-11 P014 | B75: =CONCATENATE(CONFIG!$C$9," ",CONFIG!$B$6," ",P75,Q75) -> 0289 FY 10-11 P014C | G75: =IF(F75="","",IF(OR(D75="",D75="HS"),VLOOKUP(F75,'JOB CODE LOOKUP'!$S$5:$V$183,3,FALSE),VLOOKUP(F75,'JOB CODE LOOKUP'!$S$5:$V$183,4,FALSE))) ->  | P75: P014 | Q75: C | R75: =IF(F75="","",(IF(CONFIG!$B$12="ES",VLOOKUP(F75,'JOB CODE LOOKUP'!$A$2:$E$222,2,FALSE),IF(CONFIG!$B$12="K-8",VLOOKUP(F75,'JOB CODE LOOKUP'!$G$2:$K$222,2,FALSE),IF(CONFIG!$B$12="MS",VLOOKUP(F75,'JOB CODE LOOKUP'!$M$2:$Q$222,2,FALSE),IF(CONFIG!$B$12="HS",VLOOKUP(F75,'JOB CODE LOOKUP'!$S$2:$W$222,2,FALSE),IF(AND(CONFIG!$B$12="6-12",D75="HS"),VLOOKUP(F75,'JOB CODE LOOKUP'!$S$2:$W$222,2,FALSE),IF(AND(CONFIG!$B$12="6-12",D75="MS"),VLOOKUP(F75,'JOB CODE LOOKUP'!$M$2:$Q$222,2,FALSE),"")))))))) ->  | S75: =IF(CONFIG!$B$2<>"Y","",(IF(OR(G75="",LEFT(H75,1)="2",H75="19",L75="1911"),"",dbs(BV75,CONFIG!$B$4&":Employee - School Staffing",CONFIG!$B$5,CONFIG!$B$6,CONFIG!$C$9,H75,I75,J75,K75,L75,M75,N75,P75,Q75,R75,"FTE")))) ->  | T75: =IF(CONFIG!$B$2<>"Y","",(IF(OR(G75="",LEFT(H75,1)="2",H75="19",L75="1911"),"",dbs(BW75,CONFIG!$B$4&":Employee - School Staffing",CONFIG!$B$5,CONFIG!$B$6,CONFIG!$C$9,H75,I75,J75,K75,L75,M75,N75,P75,Q75,R75,"AMOUNT")))) ->  | U75: =IF(CONFIG!$B$2<>"Y","",(IF(OR(G75="",LEFT(H75,1)="2",H75="19",L75="1911"),"",dbs(BX75,CONFIG!$B$4&":Employee - School Staffing",CONFIG!$B$5,CONFIG!$B$6,CONFIG!$C$9,H75,I75,J75,K75,L75,M75,O75,P75,Q75,R75,"AMOUNT")))) ->  | Y75: 14 | AA75: =(IF(AC75="",0,IF(CONFIG!$B$22<>"Autonomous",ROUND(VLOOKUP(R75,'AVERAGE SALARY LOOKUP'!$A$3:$E$10004,4,FALSE)*AC75,0),IF(E75="",0,IF(E75="vacancy",ROUND(VLOOKUP(R75,'AVERAGE SALARY LOOKUP'!$A$3:$E$10004,4,FALSE)*AC75,0),ROUND(VLOOKUP(E75,'FULL TIME ACTUAL RATES'!$B$2:$G$4927,6,FALSE)*AC75,0)))))) -> 0 | AB75: =IF($H75="",0,IF(CONFIG!$B$22="Autonomous",ROUND((AA75*VLOOKUP($H75,CONFIG!$A$46:$C$55,3,FALSE)+(VLOOKUP($BR75,CONFIG!$A$33:$C$43,3,FALSE)*AC75)),0),(ROUND('School Staffing Tool'!AC75*VLOOKUP(R75,'AVERAGE SALARY LOOKUP'!$A$3:$F$700,6,FALSE),0)))) -> 0 | AD75: 0 | AH75: =(IF(AJ75="",0,ROUND(VLOOKUP(R75,'AVERAGE SALARY LOOKUP'!$A$3:$E$10004,4,FALSE)*AJ75,0))) -> 0 | AI75: =IF($H75="",0,IF(CONFIG!$B$22="Autonomous",ROUND((AH75*VLOOKUP($H75,CONFIG!$A$46:$C$55,3,FALSE)+(VLOOKUP($BR75,CONFIG!$A$33:$C$43,3,FALSE)*AJ75)),0),IF(H75="10",(ROUND(AJ75*VLOOKUP($R75,'AVERAGE SALARY LOOKUP'!$A$3:$I$700,6,FALSE),0)),(ROUND(AJ75*VLOOKUP($R75,'AVERAGE SALARY LOOKUP'!$A$3:$I$700,9,FALSE),0))))) -> 0 | AK75: 0 | AO75: =(IF(AQ75="",0,IF(CONFIG!$B$22<>"Autonomous",ROUND(VLOOKUP(R75,'AVERAGE SALARY LOOKUP'!$A$3:$E$10004,4,FALSE)*AQ75,0),IF(E75="",0,IF(E75="vacancy",ROUND(VLOOKUP(R75,'AVERAGE SALARY LOOKUP'!$A$3:$E$10004,4,FALSE)*AQ75,0),ROUND(VLOOKUP(E75,'FULL TIME ACTUAL RATES'!$B$2:$G$4927,6,FALSE)*AQ75,0)))))) -> 0 | AP75: =IF($H75="",0,IF(CONFIG!$B$22="Autonomous",ROUND((AO75*VLOOKUP($H75,CONFIG!$A$46:$C$55,3,FALSE)+(VLOOKUP($BR75,CONFIG!$A$33:$C$43,3,FALSE)*AQ75)),0),(ROUND('School Staffing Tool'!AQ75*VLOOKUP($R75,'AVERAGE SALARY LOOKUP'!$A$3:$F$700,6,FALSE),0)))) -> 0 | AR75: 0 | AV75: =(IF(AX75="",0,ROUND(VLOOKUP(R75,'AVERAGE SALARY LOOKUP'!$A$3:$E$10004,4,FALSE)*AX75,0))) -> 0 | AW75: =IF($H75="",0,IF(CONFIG!$B$22="Autonomous",ROUND((AV75*VLOOKUP($H75,CONFIG!$A$46:$C$55,3,FALSE)+(VLOOKUP($BR75,CONFIG!$A$33:$C$43,3,FALSE)*AX75)),0),(ROUND('School Staffing Tool'!AX75*VLOOKUP($R75,'AVERAGE SALARY LOOKUP'!$A$3:$H$700,8,FALSE),0)))) -> 0 | AY75: 0 | BC75: 0 | BD75: =IF(BB75="",0,ROUND((BC75*VLOOKUP($H75,CONFIG!$A$46:$C$55,3,FALSE)+(VLOOKUP($BR75,CONFIG!$A$33:$C$43,3,FALSE)*BE75)),0)) -> 0 | BF75: 0 | BJ75: =(IF(BL75="",0,ROUND(VLOOKUP($R$34,'AVERAGE SALARY LOOKUP'!$A$3:$E$10004,4,FALSE)*BL75,0))) -> 0 | BK75: =IF($H75="",0,IF(CONFIG!$B$22="Autonomous",ROUND((BJ75*VLOOKUP($H75,CONFIG!$A$46:$C$55,3,FALSE)+(VLOOKUP($BR75,CONFIG!$A$33:$C$43,3,FALSE)*BL75)),0),(ROUND('School Staffing Tool'!BL75*VLOOKUP($R75,'AVERAGE SALARY LOOKUP'!$A$3:$F$700,6,FALSE),0)))) -> 0 | BM75: 0 | BQ75: 0 | BR75: =IF(R75="","",VLOOKUP(R75,'AVERAGE SALARY LOOKUP'!$A$3:$C$686,3,FALSE)) ->  | BS75: 0 | BV75: 0 | BW75: 0 | BX75: 0
A76: 0289 FY 10-11 P015 | B76: =CONCATENATE(CONFIG!$C$9," ",CONFIG!$B$6," ",P76,Q76) -> 0289 FY 10-11 P015A | C76: Humanities/GT | F76: Gifted & Talented Teacher | G76: =IF(F76="","",IF(OR(D76="",D76="HS"),VLOOKUP(F76,'JOB CODE LOOKUP'!$S$5:$V$183,3,FALSE),VLOOKUP(F76,'JOB CODE LOOKUP'!$S$5:$V$183,4,FALSE))) -> 10289110070315020110 | H76: 10 | I76: 289 | J76: 11 | K76: 0070 | L76: 3150 | M76: 2 | N76: 0110 | O76: 0200 | P76: P015 | Q76: A | R76: =IF(F76="","",(IF(CONFIG!$B$12="ES",VLOOKUP(F76,'JOB CODE LOOKUP'!$A$2:$E$222,2,FALSE),IF(CONFIG!$B$12="K-8",VLOOKUP(F76,'JOB CODE LOOKUP'!$G$2:$K$222,2,FALSE),IF(CONFIG!$B$12="MS",VLOOKUP(F76,'JOB CODE LOOKUP'!$M$2:$Q$222,2,FALSE),IF(CONFIG!$B$12="HS",VLOOKUP(F76,'JOB CODE LOOKUP'!$S$2:$W$222,2,FALSE),IF(AND(CONFIG!$B$12="6-12",D76="HS"),VLOOKUP(F76,'JOB CODE LOOKUP'!$S$2:$W$222,2,FALSE),IF(AND(CONFIG!$B$12="6-12",D76="MS"),VLOOKUP(F76,'JOB CODE LOOKUP'!$M$2:$Q$222,2,FALSE),"")))))))) -> 3302 | S76: =IF(CONFIG!$B$2<>"Y","",(IF(OR(G76="",LEFT(H76,1)="2",H76="19",L76="1911"),"",dbs(BV76,CONFIG!$B$4&":Employee - School Staffing",CONFIG!$B$5,CONFIG!$B$6,CONFIG!$C$9,H76,I76,J76,K76,L76,M76,N76,P76,Q76,R76,"FTE")))) ->  | T76: =IF(CONFIG!$B$2<>"Y","",(IF(OR(G76="",LEFT(H76,1)="2",H76="19",L76="1911"),"",dbs(BW76,CONFIG!$B$4&":Employee - School Staffing",CONFIG!$B$5,CONFIG!$B$6,CONFIG!$C$9,H76,I76,J76,K76,L76,M76,N76,P76,Q76,R76,"AMOUNT")))) ->  | U76: =IF(CONFIG!$B$2<>"Y","",(IF(OR(G76="",LEFT(H76,1)="2",H76="19",L76="1911"),"",dbs(BX76,CONFIG!$B$4&":Employee - School Staffing",CONFIG!$B$5,CONFIG!$B$6,CONFIG!$C$9,H76,I76,J76,K76,L76,M76,O76,P76,Q76,R76,"AMOUNT")))) ->  | Y76: 15 | Z76: Gifted & Talented Teacher | AA76: =(IF(AC76="",0,IF(CONFIG!$B$22<>"Autonomous",ROUND(VLOOKUP(R76,'AVERAGE SALARY LOOKUP'!$A$3:$E$10004,4,FALSE)*AC76,0),IF(E76="",0,IF(E76="vacancy",ROUND(VLOOKUP(R76,'AVERAGE SALARY LOOKUP'!$A$3:$E$10004,4,FALSE)*AC76,0),ROUND(VLOOKUP(E76,'FULL TIME ACTUAL RATES'!$B$2:$G$4927,6,FALSE)*AC76,0)))))) -> 25884 | AB76: =IF($H76="",0,IF(CONFIG!$B$22="Autonomous",ROUND((AA76*VLOOKUP($H76,CONFIG!$A$46:$C$55,3,FALSE)+(VLOOKUP($BR76,CONFIG!$A$33:$C$43,3,FALSE)*AC76)),0),(ROUND('School Staffing Tool'!AC76*VLOOKUP(R76,'AVERAGE SALARY LOOKUP'!$A$3:$F$700,6,FALSE),0)))) -> 7088 | AC76: 0.5 | AD76: 32972 | AH76: =(IF(AJ76="",0,ROUND(VLOOKUP(R76,'AVERAGE SALARY LOOKUP'!$A$3:$E$10004,4,FALSE)*AJ76,0))) -> 0 | AI76: =IF($H76="",0,IF(CONFIG!$B$22="Autonomous",ROUND((AH76*VLOOKUP($H76,CONFIG!$A$46:$C$55,3,FALSE)+(VLOOKUP($BR76,CONFIG!$A$33:$C$43,3,FALSE)*AJ76)),0),IF(H76="10",(ROUND(AJ76*VLOOKUP($R76,'AVERAGE SALARY LOOKUP'!$A$3:$I$700,6,FALSE),0)),(ROUND(AJ76*VLOOKUP($R76,'AVERAGE SALARY LOOKUP'!$A$3:$I$700,9,FALSE),0))))) -> 0 | AK76: 0 | AO76: =(IF(AQ76="",0,IF(CONFIG!$B$22<>"Autonomous",ROUND(VLOOKUP(R76,'AVERAGE SALARY LOOKUP'!$A$3:$E$10004,4,FALSE)*AQ76,0),IF(E76="",0,IF(E76="vacancy",ROUND(VLOOKUP(R76,'AVERAGE SALARY LOOKUP'!$A$3:$E$10004,4,FALSE)*AQ76,0),ROUND(VLOOKUP(E76,'FULL TIME ACTUAL RATES'!$B$2:$G$4927,6,FALSE)*AQ76,0)))))) -> 0 | AP76: =IF($H76="",0,IF(CONFIG!$B$22="Autonomous",ROUND((AO76*VLOOKUP($H76,CONFIG!$A$46:$C$55,3,FALSE)+(VLOOKUP($BR76,CONFIG!$A$33:$C$43,3,FALSE)*AQ76)),0),(ROUND('School Staffing Tool'!AQ76*VLOOKUP($R76,'AVERAGE SALARY LOOKUP'!$A$3:$F$700,6,FALSE),0)))) -> 0 | AR76: 0 | AV76: =(IF(AX76="",0,ROUND(VLOOKUP(R76,'AVERAGE SALARY LOOKUP'!$A$3:$E$10004,4,FALSE)*AX76,0))) -> 0 | AW76: =IF($H76="",0,IF(CONFIG!$B$22="Autonomous",ROUND((AV76*VLOOKUP($H76,CONFIG!$A$46:$C$55,3,FALSE)+(VLOOKUP($BR76,CONFIG!$A$33:$C$43,3,FALSE)*AX76)),0),(ROUND('School Staffing Tool'!AX76*VLOOKUP($R76,'AVERAGE SALARY LOOKUP'!$A$3:$H$700,8,FALSE),0)))) -> 0 | AY76: 0 | BC76: 0 | BD76: =IF(BB76="",0,ROUND((BC76*VLOOKUP($H76,CONFIG!$A$46:$C$55,3,FALSE)+(VLOOKUP($BR76,CONFIG!$A$33:$C$43,3,FALSE)*BE76)),0)) -> 0 | BF76: 0 | BJ76: =(IF(BL76="",0,ROUND(VLOOKUP($R$34,'AVERAGE SALARY LOOKUP'!$A$3:$E$10004,4,FALSE)*BL76,0))) -> 0 | BK76: =IF($H76="",0,IF(CONFIG!$B$22="Autonomous",ROUND((BJ76*VLOOKUP($H76,CONFIG!$A$46:$C$55,3,FALSE)+(VLOOKUP($BR76,CONFIG!$A$33:$C$43,3,FALSE)*BL76)),0),(ROUND('School Staffing Tool'!BL76*VLOOKUP($R76,'AVERAGE SALARY LOOKUP'!$A$3:$F$700,6,FALSE),0)))) -> 0 | BM76: 0 | BQ76: 0.5 | BR76: =IF(R76="","",VLOOKUP(R76,'AVERAGE SALARY LOOKUP'!$A$3:$C$686,3,FALSE)) -> DCTA | BS76: 0.5 | BU76: 10,3150,2 | BV76: 0.5 | BW76: 25884 | BX76: 7088
A77: 0289 FY 10-11 P015 | B77: =CONCATENATE(CONFIG!$C$9," ",CONFIG!$B$6," ",P77,Q77) -> 0289 FY 10-11 P015B | F77: Title II Facilitator, Humanities | G77: =IF(F77="","",IF(OR(D77="",D77="HS"),VLOOKUP(F77,'JOB CODE LOOKUP'!$S$5:$V$183,3,FALSE),VLOOKUP(F77,'JOB CODE LOOKUP'!$S$5:$V$183,4,FALSE))) -> 28289222217436720110 | H77: 28 | I77: 289 | J77: 22 | K77: 2217 | L77: 4367 | M77: 2 | N77: 0110 | O77: 0200 | P77: P015 | Q77: B | R77: =IF(F77="","",(IF(CONFIG!$B$12="ES",VLOOKUP(F77,'JOB CODE LOOKUP'!$A$2:$E$222,2,FALSE),IF(CONFIG!$B$12="K-8",VLOOKUP(F77,'JOB CODE LOOKUP'!$G$2:$K$222,2,FALSE),IF(CONFIG!$B$12="MS",VLOOKUP(F77,'JOB CODE LOOKUP'!$M$2:$Q$222,2,FALSE),IF(CONFIG!$B$12="HS",VLOOKUP(F77,'JOB CODE LOOKUP'!$S$2:$W$222,2,FALSE),IF(AND(CONFIG!$B$12="6-12",D77="HS"),VLOOKUP(F77,'JOB CODE LOOKUP'!$S$2:$W$222,2,FALSE),IF(AND(CONFIG!$B$12="6-12",D77="MS"),VLOOKUP(F77,'JOB CODE LOOKUP'!$M$2:$Q$222,2,FALSE),"")))))))) -> 3332 | S77: =IF(CONFIG!$B$2<>"Y","",(IF(OR(G77="",LEFT(H77,1)="2",H77="19",L77="1911"),"",dbs(BV77,CONFIG!$B$4&":Employee - School Staffing",CONFIG!$B$5,CONFIG!$B$6,CONFIG!$C$9,H77,I77,J77,K77,L77,M77,N77,P77,Q77,R77,"FTE")))) ->  | T77: =IF(CONFIG!$B$2<>"Y","",(IF(OR(G77="",LEFT(H77,1)="2",H77="19",L77="1911"),"",dbs(BW77,CONFIG!$B$4&":Employee - School Staffing",CONFIG!$B$5,CONFIG!$B$6,CONFIG!$C$9,H77,I77,J77,K77,L77,M77,N77,P77,Q77,R77,"AMOUNT")))) ->  | U77: =IF(CONFIG!$B$2<>"Y","",(IF(OR(G77="",LEFT(H77,1)="2",H77="19",L77="1911"),"",dbs(BX77,CONFIG!$B$4&":Employee - School Staffing",CONFIG!$B$5,CONFIG!$B$6,CONFIG!$C$9,H77,I77,J77,K77,L77,M77,O77,P77,Q77,R77,"AMOUNT")))) ->  | Y77: 15 | AA77: =(IF(AC77="",0,IF(CONFIG!$B$22<>"Autonomous",ROUND(VLOOKUP(R77,'AVERAGE SALARY LOOKUP'!$A$3:$E$10004,4,FALSE)*AC77,0),IF(E77="",0,IF(E77="vacancy",ROUND(VLOOKUP(R77,'AVERAGE SALARY LOOKUP'!$A$3:$E$10004,4,FALSE)*AC77,0),ROUND(VLOOKUP(E77,'FULL TIME ACTUAL RATES'!$B$2:$G$4927,6,FALSE)*AC77,0)))))) -> 0 | AB77: =IF($H77="",0,IF(CONFIG!$B$22="Autonomous",ROUND((AA77*VLOOKUP($H77,CONFIG!$A$46:$C$55,3,FALSE)+(VLOOKUP($BR77,CONFIG!$A$33:$C$43,3,FALSE)*AC77)),0),(ROUND('School Staffing Tool'!AC77*VLOOKUP(R77,'AVERAGE SALARY LOOKUP'!$A$3:$F$700,6,FALSE),0)))) -> 0 | AD77: 0 | AH77: =(IF(AJ77="",0,ROUND(VLOOKUP(R77,'AVERAGE SALARY LOOKUP'!$A$3:$E$10004,4,FALSE)*AJ77,0))) -> 0 | AI77: =IF($H77="",0,IF(CONFIG!$B$22="Autonomous",ROUND((AH77*VLOOKUP($H77,CONFIG!$A$46:$C$55,3,FALSE)+(VLOOKUP($BR77,CONFIG!$A$33:$C$43,3,FALSE)*AJ77)),0),IF(H77="10",(ROUND(AJ77*VLOOKUP($R77,'AVERAGE SALARY LOOKUP'!$A$3:$I$700,6,FALSE),0)),(ROUND(AJ77*VLOOKUP($R77,'AVERAGE SALARY LOOKUP'!$A$3:$I$700,9,FALSE),0))))) -> 0 | AK77: 0 | AO77: =(IF(AQ77="",0,IF(CONFIG!$B$22<>"Autonomous",ROUND(VLOOKUP(R77,'AVERAGE SALARY LOOKUP'!$A$3:$E$10004,4,FALSE)*AQ77,0),IF(E77="",0,IF(E77="vacancy",ROUND(VLOOKUP(R77,'AVERAGE SALARY LOOKUP'!$A$3:$E$10004,4,FALSE)*AQ77,0),ROUND(VLOOKUP(E77,'FULL TIME ACTUAL RATES'!$B$2:$G$4927,6,FALSE)*AQ77,0)))))) -> 0 | AP77: =IF($H77="",0,IF(CONFIG!$B$22="Autonomous",ROUND((AO77*VLOOKUP($H77,CONFIG!$A$46:$C$55,3,FALSE)+(VLOOKUP($BR77,CONFIG!$A$33:$C$43,3,FALSE)*AQ77)),0),(ROUND('School Staffing Tool'!AQ77*VLOOKUP($R77,'AVERAGE SALARY LOOKUP'!$A$3:$F$700,6,FALSE),0)))) -> 0 | AR77: 0 | AU77: Title II Facilitator, Humanities | AV77: =(IF(AX77="",0,ROUND(VLOOKUP(R77,'AVERAGE SALARY LOOKUP'!$A$3:$E$10004,4,FALSE)*AX77,0))) -> 6960 | AW77: =IF($H77="",0,IF(CONFIG!$B$22="Autonomous",ROUND((AV77*VLOOKUP($H77,CONFIG!$A$46:$C$55,3,FALSE)+(VLOOKUP($BR77,CONFIG!$A$33:$C$43,3,FALSE)*AX77)),0),(ROUND('School Staffing Tool'!AX77*VLOOKUP($R77,'AVERAGE SALARY LOOKUP'!$A$3:$H$700,8,FALSE),0)))) -> 2185 | AX77: 0.12 | AY77: 9145 | BC77: 0 | BD77: =IF(BB77="",0,ROUND((BC77*VLOOKUP($H77,CONFIG!$A$46:$C$55,3,FALSE)+(VLOOKUP($BR77,CONFIG!$A$33:$C$43,3,FALSE)*BE77)),0)) -> 0 | BF77: 0 | BJ77: =(IF(BL77="",0,ROUND(VLOOKUP($R$34,'AVERAGE SALARY LOOKUP'!$A$3:$E$10004,4,FALSE)*BL77,0))) -> 0 | BK77: =IF($H77="",0,IF(CONFIG!$B$22="Autonomous",ROUND((BJ77*VLOOKUP($H77,CONFIG!$A$46:$C$55,3,FALSE)+(VLOOKUP($BR77,CONFIG!$A$33:$C$43,3,FALSE)*BL77)),0),(ROUND('School Staffing Tool'!BL77*VLOOKUP($R77,'AVERAGE SALARY LOOKUP'!$A$3:$F$700,6,FALSE),0)))) -> 0 | BM77: 0 | BQ77: 0.12 | BR77: =IF(R77="","",VLOOKUP(R77,'AVERAGE SALARY LOOKUP'!$A$3:$C$686,3,FALSE)) -> DCTA | BS77: 0.12 | BU77: 28,4367,2 | BV77: 0.12 | BW77: 6960 | BX77: 2185
A78: 0289 FY 10-11 P015 | B78: =CONCATENATE(CONFIG!$C$9," ",CONFIG!$B$6," ",P78,Q78) -> 0289 FY 10-11 P015C | F78: General Fund Facilitator, Humanities | G78: =IF(F78="","",IF(OR(D78="",D78="HS"),VLOOKUP(F78,'JOB CODE LOOKUP'!$S$5:$V$183,3,FALSE),VLOOKUP(F78,'JOB CODE LOOKUP'!$S$5:$V$183,4,FALSE))) -> 10289222217000020110 | H78: 10 | I78: 289 | J78: 22 | K78: 2217 | L78: 0000 | M78: 2 | N78: 0110 | O78: 0200 | P78: P015 | Q78: C | R78: =IF(F78="","",(IF(CONFIG!$B$12="ES",VLOOKUP(F78,'JOB CODE LOOKUP'!$A$2:$E$222,2,FALSE),IF(CONFIG!$B$12="K-8",VLOOKUP(F78,'JOB CODE LOOKUP'!$G$2:$K$222,2,FALSE),IF(CONFIG!$B$12="MS",VLOOKUP(F78,'JOB CODE LOOKUP'!$M$2:$Q$222,2,FALSE),IF(CONFIG!$B$12="HS",VLOOKUP(F78,'JOB CODE LOOKUP'!$S$2:$W$222,2,FALSE),IF(AND(CONFIG!$B$12="6-12",D78="HS"),VLOOKUP(F78,'JOB CODE LOOKUP'!$S$2:$W$222,2,FALSE),IF(AND(CONFIG!$B$12="6-12",D78="MS"),VLOOKUP(F78,'JOB CODE LOOKUP'!$M$2:$Q$222,2,FALSE),"")))))))) -> 3332 | S78: =IF(CONFIG!$B$2<>"Y","",(IF(OR(G78="",LEFT(H78,1)="2",H78="19",L78="1911"),"",dbs(BV78,CONFIG!$B$4&":Employee - School Staffing",CONFIG!$B$5,CONFIG!$B$6,CONFIG!$C$9,H78,I78,J78,K78,L78,M78,N78,P78,Q78,R78,"FTE")))) ->  | T78: =IF(CONFIG!$B$2<>"Y","",(IF(OR(G78="",LEFT(H78,1)="2",H78="19",L78="1911"),"",dbs(BW78,CONFIG!$B$4&":Employee - School Staffing",CONFIG!$B$5,CONFIG!$B$6,CONFIG!$C$9,H78,I78,J78,K78,L78,M78,N78,P78,Q78,R78,"AMOUNT")))) ->  | U78: =IF(CONFIG!$B$2<>"Y","",(IF(OR(G78="",LEFT(H78,1)="2",H78="19",L78="1911"),"",dbs(BX78,CONFIG!$B$4&":Employee - School Staffing",CONFIG!$B$5,CONFIG!$B$6,CONFIG!$C$9,H78,I78,J78,K78,L78,M78,O78,P78,Q78,R78,"AMOUNT")))) ->  | Y78: 15 | Z78: General Fund Facilitator, Humanities | AA78: =(IF(AC78="",0,IF(CONFIG!$B$22<>"Autonomous",ROUND(VLOOKUP(R78,'AVERAGE SALARY LOOKUP'!$A$3:$E$10004,4,FALSE)*AC78,0),IF(E78="",0,IF(E78="vacancy",ROUND(VLOOKUP(R78,'AVERAGE SALARY LOOKUP'!$A$3:$E$10004,4,FALSE)*AC78,0),ROUND(VLOOKUP(E78,'FULL TIME ACTUAL RATES'!$B$2:$G$4927,6,FALSE)*AC78,0)))))) -> 22039 | AB78: =IF($H78="",0,IF(CONFIG!$B$22="Autonomous",ROUND((AA78*VLOOKUP($H78,CONFIG!$A$46:$C$55,3,FALSE)+(VLOOKUP($BR78,CONFIG!$A$33:$C$43,3,FALSE)*AC78)),0),(ROUND('School Staffing Tool'!AC78*VLOOKUP(R78,'AVERAGE SALARY LOOKUP'!$A$3:$F$700,6,FALSE),0)))) -> 5807 | AC78: 0.38 | AD78: 27846 | AH78: =(IF(AJ78="",0,ROUND(VLOOKUP(R78,'AVERAGE SALARY LOOKUP'!$A$3:$E$10004,4,FALSE)*AJ78,0))) -> 0 | AI78: =IF($H78="",0,IF(CONFIG!$B$22="Autonomous",ROUND((AH78*VLOOKUP($H78,CONFIG!$A$46:$C$55,3,FALSE)+(VLOOKUP($BR78,CONFIG!$A$33:$C$43,3,FALSE)*AJ78)),0),IF(H78="10",(ROUND(AJ78*VLOOKUP($R78,'AVERAGE SALARY LOOKUP'!$A$3:$I$700,6,FALSE),0)),(ROUND(AJ78*VLOOKUP($R78,'AVERAGE SALARY LOOKUP'!$A$3:$I$700,9,FALSE),0))))) -> 0 | AK78: 0 | AO78: =(IF(AQ78="",0,IF(CONFIG!$B$22<>"Autonomous",ROUND(VLOOKUP(R78,'AVERAGE SALARY LOOKUP'!$A$3:$E$10004,4,FALSE)*AQ78,0),IF(E78="",0,IF(E78="vacancy",ROUND(VLOOKUP(R78,'AVERAGE SALARY LOOKUP'!$A$3:$E$10004,4,FALSE)*AQ78,0),ROUND(VLOOKUP(E78,'FULL TIME ACTUAL RATES'!$B$2:$G$4927,6,FALSE)*AQ78,0)))))) -> 0 | AP78: =IF($H78="",0,IF(CONFIG!$B$22="Autonomous",ROUND((AO78*VLOOKUP($H78,CONFIG!$A$46:$C$55,3,FALSE)+(VLOOKUP($BR78,CONFIG!$A$33:$C$43,3,FALSE)*AQ78)),0),(ROUND('School Staffing Tool'!AQ78*VLOOKUP($R78,'AVERAGE SALARY LOOKUP'!$A$3:$F$700,6,FALSE),0)))) -> 0 | AR78: 0 | AV78: =(IF(AX78="",0,ROUND(VLOOKUP(R78,'AVERAGE SALARY LOOKUP'!$A$3:$E$10004,4,FALSE)*AX78,0))) -> 0 | AW78: =IF($H78="",0,IF(CONFIG!$B$22="Autonomous",ROUND((AV78*VLOOKUP($H78,CONFIG!$A$46:$C$55,3,FALSE)+(VLOOKUP($BR78,CONFIG!$A$33:$C$43,3,FALSE)*AX78)),0),(ROUND('School Staffing Tool'!AX78*VLOOKUP($R78,'AVERAGE SALARY LOOKUP'!$A$3:$H$700,8,FALSE),0)))) -> 0 | AY78: 0 | BC78: 0 | BD78: =IF(BB78="",0,ROUND((BC78*VLOOKUP($H78,CONFIG!$A$46:$C$55,3,FALSE)+(VLOOKUP($BR78,CONFIG!$A$33:$C$43,3,FALSE)*BE78)),0)) -> 0 | BF78: 0 | BJ78: =(IF(BL78="",0,ROUND(VLOOKUP($R$34,'AVERAGE SALARY LOOKUP'!$A$3:$E$10004,4,FALSE)*BL78,0))) -> 0 | BK78: =IF($H78="",0,IF(CONFIG!$B$22="Autonomous",ROUND((BJ78*VLOOKUP($H78,CONFIG!$A$46:$C$55,3,FALSE)+(VLOOKUP($BR78,CONFIG!$A$33:$C$43,3,FALSE)*BL78)),0),(ROUND('School Staffing Tool'!BL78*VLOOKUP($R78,'AVERAGE SALARY LOOKUP'!$A$3:$F$700,6,FALSE),0)))) -> 0 | BM78: 0 | BQ78: 0.38 | BR78: =IF(R78="","",VLOOKUP(R78,'AVERAGE SALARY LOOKUP'!$A$3:$C$686,3,FALSE)) -> DCTA | BS78: 0.38 | BU78: 10,0000,2 | BV78: 0.38 | BW78: 22039 | BX78: 5807
A79: 0289 FY 10-11 P016 | B79: =CONCATENATE(CONFIG!$C$9," ",CONFIG!$B$6," ",P79,Q79) -> 0289 FY 10-11 P016A | C79: MM | F79: Mild/Moderate Teacher | G79: =IF(F79="","",IF(OR(D79="",D79="HS"),VLOOKUP(F79,'JOB CODE LOOKUP'!$S$5:$V$183,3,FALSE),VLOOKUP(F79,'JOB CODE LOOKUP'!$S$5:$V$183,4,FALSE))) -> 10289121701313320110 | H79: 10 | I79: 289 | J79: 12 | K79: 1701 | L79: 3133 | M79: 2 | N79: 0110 | O79: 0200 | P79: P016 | Q79: A | R79: =IF(F79="","",(IF(CONFIG!$B$12="ES",VLOOKUP(F79,'JOB CODE LOOKUP'!$A$2:$E$222,2,FALSE),IF(CONFIG!$B$12="K-8",VLOOKUP(F79,'JOB CODE LOOKUP'!$G$2:$K$222,2,FALSE),IF(CONFIG!$B$12="MS",VLOOKUP(F79,'JOB CODE LOOKUP'!$M$2:$Q$222,2,FALSE),IF(CONFIG!$B$12="HS",VLOOKUP(F79,'JOB CODE LOOKUP'!$S$2:$W$222,2,FALSE),IF(AND(CONFIG!$B$12="6-12",D79="HS"),VLOOKUP(F79,'JOB CODE LOOKUP'!$S$2:$W$222,2,FALSE),IF(AND(CONFIG!$B$12="6-12",D79="MS"),VLOOKUP(F79,'JOB CODE LOOKUP'!$M$2:$Q$222,2,FALSE),"")))))))) -> 3337 | S79: =IF(CONFIG!$B$2<>"Y","",(IF(OR(G79="",LEFT(H79,1)="2",H79="19",L79="1911"),"",dbs(BV79,CONFIG!$B$4&":Employee - School Staffing",CONFIG!$B$5,CONFIG!$B$6,CONFIG!$C$9,H79,I79,J79,K79,L79,M79,N79,P79,Q79,R79,"FTE")))) ->  | T79: =IF(CONFIG!$B$2<>"Y","",(IF(OR(G79="",LEFT(H79,1)="2",H79="19",L79="1911"),"",dbs(BW79,CONFIG!$B$4&":Employee - School Staffing",CONFIG!$B$5,CONFIG!$B$6,CONFIG!$C$9,H79,I79,J79,K79,L79,M79,N79,P79,Q79,R79,"AMOUNT")))) ->  | U79: =IF(CONFIG!$B$2<>"Y","",(IF(OR(G79="",LEFT(H79,1)="2",H79="19",L79="1911"),"",dbs(BX79,CONFIG!$B$4&":Employee - School Staffing",CONFIG!$B$5,CONFIG!$B$6,CONFIG!$C$9,H79,I79,J79,K79,L79,M79,O79,P79,Q79,R79,"AMOUNT")))) ->  | Y79: 16 | Z79: Mild/Moderate Teacher | AA79: =(IF(AC79="",0,IF(CONFIG!$B$22<>"Autonomous",ROUND(VLOOKUP(R79,'AVERAGE SALARY LOOKUP'!$A$3:$E$10004,4,FALSE)*AC79,0),IF(E79="",0,IF(E79="vacancy",ROUND(VLOOKUP(R79,'AVERAGE SALARY LOOKUP'!$A$3:$E$10004,4,FALSE)*AC79,0),ROUND(VLOOKUP(E79,'FULL TIME ACTUAL RATES'!$B$2:$G$4927,6,FALSE)*AC79,0)))))) -> 51768 | AB79: =IF($H79="",0,IF(CONFIG!$B$22="Autonomous",ROUND((AA79*VLOOKUP($H79,CONFIG!$A$46:$C$55,3,FALSE)+(VLOOKUP($BR79,CONFIG!$A$33:$C$43,3,FALSE)*AC79)),0),(ROUND('School Staffing Tool'!AC79*VLOOKUP(R79,'AVERAGE SALARY LOOKUP'!$A$3:$F$700,6,FALSE),0)))) -> 14176 | AC79: 1 | AD79: 65944 | AH79: =(IF(AJ79="",0,ROUND(VLOOKUP(R79,'AVERAGE SALARY LOOKUP'!$A$3:$E$10004,4,FALSE)*AJ79,0))) -> 0 | AI79: =IF($H79="",0,IF(CONFIG!$B$22="Autonomous",ROUND((AH79*VLOOKUP($H79,CONFIG!$A$46:$C$55,3,FALSE)+(VLOOKUP($BR79,CONFIG!$A$33:$C$43,3,FALSE)*AJ79)),0),IF(H79="10",(ROUND(AJ79*VLOOKUP($R79,'AVERAGE SALARY LOOKUP'!$A$3:$I$700,6,FALSE),0)),(ROUND(AJ79*VLOOKUP($R79,'AVERAGE SALARY LOOKUP'!$A$3:$I$700,9,FALSE),0))))) -> 0 | AK79: 0 | AO79: =(IF(AQ79="",0,IF(CONFIG!$B$22<>"Autonomous",ROUND(VLOOKUP(R79,'AVERAGE SALARY LOOKUP'!$A$3:$E$10004,4,FALSE)*AQ79,0),IF(E79="",0,IF(E79="vacancy",ROUND(VLOOKUP(R79,'AVERAGE SALARY LOOKUP'!$A$3:$E$10004,4,FALSE)*AQ79,0),ROUND(VLOOKUP(E79,'FULL TIME ACTUAL RATES'!$B$2:$G$4927,6,FALSE)*AQ79,0)))))) -> 0 | AP79: =IF($H79="",0,IF(CONFIG!$B$22="Autonomous",ROUND((AO79*VLOOKUP($H79,CONFIG!$A$46:$C$55,3,FALSE)+(VLOOKUP($BR79,CONFIG!$A$33:$C$43,3,FALSE)*AQ79)),0),(ROUND('School Staffing Tool'!AQ79*VLOOKUP($R79,'AVERAGE SALARY LOOKUP'!$A$3:$F$700,6,FALSE),0)))) -> 0 | AR79: 0 | AV79: =(IF(AX79="",0,ROUND(VLOOKUP(R79,'AVERAGE SALARY LOOKUP'!$A$3:$E$10004,4,FALSE)*AX79,0))) -> 0 | AW79: =IF($H79="",0,IF(CONFIG!$B$22="Autonomous",ROUND((AV79*VLOOKUP($H79,CONFIG!$A$46:$C$55,3,FALSE)+(VLOOKUP($BR79,CONFIG!$A$33:$C$43,3,FALSE)*AX79)),0),(ROUND('School Staffing Tool'!AX79*VLOOKUP($R79,'AVERAGE SALARY LOOKUP'!$A$3:$H$700,8,FALSE),0)))) -> 0 | AY79: 0 | BC79: 0 | BD79: =IF(BB79="",0,ROUND((BC79*VLOOKUP($H79,CONFIG!$A$46:$C$55,3,FALSE)+(VLOOKUP($BR79,CONFIG!$A$33:$C$43,3,FALSE)*BE79)),0)) -> 0 | BF79: 0 | BJ79: =(IF(BL79="",0,ROUND(VLOOKUP($R$34,'AVERAGE SALARY LOOKUP'!$A$3:$E$10004,4,FALSE)*BL79,0))) -> 0 | BK79: =IF($H79="",0,IF(CONFIG!$B$22="Autonomous",ROUND((BJ79*VLOOKUP($H79,CONFIG!$A$46:$C$55,3,FALSE)+(VLOOKUP($BR79,CONFIG!$A$33:$C$43,3,FALSE)*BL79)),0),(ROUND('School Staffing Tool'!BL79*VLOOKUP($R79,'AVERAGE SALARY LOOKUP'!$A$3:$F$700,6,FALSE),0)))) -> 0 | BM79: 0 | BQ79: 1 | BR79: =IF(R79="","",VLOOKUP(R79,'AVERAGE SALARY LOOKUP'!$A$3:$C$686,3,FALSE)) -> DCTA | BS79: 1 | BU79: 10,3133,2 | BV79: 1 | BW79: 51768 | BX79: 14176
A80: 0289 FY 10-11 P016 | B80: =CONCATENATE(CONFIG!$C$9," ",CONFIG!$B$6," ",P80,Q80) -> 0289 FY 10-11 P016B | G80: =IF(F80="","",IF(OR(D80="",D80="HS"),VLOOKUP(F80,'JOB CODE LOOKUP'!$S$5:$V$183,3,FALSE),VLOOKUP(F80,'JOB CODE LOOKUP'!$S$5:$V$183,4,FALSE))) ->  | P80: P016 | Q80: B | R80: =IF(F80="","",(IF(CONFIG!$B$12="ES",VLOOKUP(F80,'JOB CODE LOOKUP'!$A$2:$E$222,2,FALSE),IF(CONFIG!$B$12="K-8",VLOOKUP(F80,'JOB CODE LOOKUP'!$G$2:$K$222,2,FALSE),IF(CONFIG!$B$12="MS",VLOOKUP(F80,'JOB CODE LOOKUP'!$M$2:$Q$222,2,FALSE),IF(CONFIG!$B$12="HS",VLOOKUP(F80,'JOB CODE LOOKUP'!$S$2:$W$222,2,FALSE),IF(AND(CONFIG!$B$12="6-12",D80="HS"),VLOOKUP(F80,'JOB CODE LOOKUP'!$S$2:$W$222,2,FALSE),IF(AND(CONFIG!$B$12="6-12",D80="MS"),VLOOKUP(F80,'JOB CODE LOOKUP'!$M$2:$Q$222,2,FALSE),"")))))))) ->  | S80: =IF(CONFIG!$B$2<>"Y","",(IF(OR(G80="",LEFT(H80,1)="2",H80="19",L80="1911"),"",dbs(BV80,CONFIG!$B$4&":Employee - School Staffing",CONFIG!$B$5,CONFIG!$B$6,CONFIG!$C$9,H80,I80,J80,K80,L80,M80,N80,P80,Q80,R80,"FTE")))) ->  | T80: =IF(CONFIG!$B$2<>"Y","",(IF(OR(G80="",LEFT(H80,1)="2",H80="19",L80="1911"),"",dbs(BW80,CONFIG!$B$4&":Employee - School Staffing",CONFIG!$B$5,CONFIG!$B$6,CONFIG!$C$9,H80,I80,J80,K80,L80,M80,N80,P80,Q80,R80,"AMOUNT")))) ->  | U80: =IF(CONFIG!$B$2<>"Y","",(IF(OR(G80="",LEFT(H80,1)="2",H80="19",L80="1911"),"",dbs(BX80,CONFIG!$B$4&":Employee - School Staffing",CONFIG!$B$5,CONFIG!$B$6,CONFIG!$C$9,H80,I80,J80,K80,L80,M80,O80,P80,Q80,R80,"AMOUNT")))) ->  | Y80: 16 | AA80: =(IF(AC80="",0,IF(CONFIG!$B$22<>"Autonomous",ROUND(VLOOKUP(R80,'AVERAGE SALARY LOOKUP'!$A$3:$E$10004,4,FALSE)*AC80,0),IF(E80="",0,IF(E80="vacancy",ROUND(VLOOKUP(R80,'AVERAGE SALARY LOOKUP'!$A$3:$E$10004,4,FALSE)*AC80,0),ROUND(VLOOKUP(E80,'FULL TIME ACTUAL RATES'!$B$2:$G$4927,6,FALSE)*AC80,0)))))) -> 0 | AB80: =IF($H80="",0,IF(CONFIG!$B$22="Autonomous",ROUND((AA80*VLOOKUP($H80,CONFIG!$A$46:$C$55,3,FALSE)+(VLOOKUP($BR80,CONFIG!$A$33:$C$43,3,FALSE)*AC80)),0),(ROUND('School Staffing Tool'!AC80*VLOOKUP(R80,'AVERAGE SALARY LOOKUP'!$A$3:$F$700,6,FALSE),0)))) -> 0 | AD80: 0 | AH80: =(IF(AJ80="",0,ROUND(VLOOKUP(R80,'AVERAGE SALARY LOOKUP'!$A$3:$E$10004,4,FALSE)*AJ80,0))) -> 0 | AI80: =IF($H80="",0,IF(CONFIG!$B$22="Autonomous",ROUND((AH80*VLOOKUP($H80,CONFIG!$A$46:$C$55,3,FALSE)+(VLOOKUP($BR80,CONFIG!$A$33:$C$43,3,FALSE)*AJ80)),0),IF(H80="10",(ROUND(AJ80*VLOOKUP($R80,'AVERAGE SALARY LOOKUP'!$A$3:$I$700,6,FALSE),0)),(ROUND(AJ80*VLOOKUP($R80,'AVERAGE SALARY LOOKUP'!$A$3:$I$700,9,FALSE),0))))) -> 0 | AK80: 0 | AO80: =(IF(AQ80="",0,IF(CONFIG!$B$22<>"Autonomous",ROUND(VLOOKUP(R80,'AVERAGE SALARY LOOKUP'!$A$3:$E$10004,4,FALSE)*AQ80,0),IF(E80="",0,IF(E80="vacancy",ROUND(VLOOKUP(R80,'AVERAGE SALARY LOOKUP'!$A$3:$E$10004,4,FALSE)*AQ80,0),ROUND(VLOOKUP(E80,'FULL TIME ACTUAL RATES'!$B$2:$G$4927,6,FALSE)*AQ80,0)))))) -> 0 | AP80: =IF($H80="",0,IF(CONFIG!$B$22="Autonomous",ROUND((AO80*VLOOKUP($H80,CONFIG!$A$46:$C$55,3,FALSE)+(VLOOKUP($BR80,CONFIG!$A$33:$C$43,3,FALSE)*AQ80)),0),(ROUND('School Staffing Tool'!AQ80*VLOOKUP($R80,'AVERAGE SALARY LOOKUP'!$A$3:$F$700,6,FALSE),0)))) -> 0 | AR80: 0 | AV80: =(IF(AX80="",0,ROUND(VLOOKUP(R80,'AVERAGE SALARY LOOKUP'!$A$3:$E$10004,4,FALSE)*AX80,0))) -> 0 | AW80: =IF($H80="",0,IF(CONFIG!$B$22="Autonomous",ROUND((AV80*VLOOKUP($H80,CONFIG!$A$46:$C$55,3,FALSE)+(VLOOKUP($BR80,CONFIG!$A$33:$C$43,3,FALSE)*AX80)),0),(ROUND('School Staffing Tool'!AX80*VLOOKUP($R80,'AVERAGE SALARY LOOKUP'!$A$3:$H$700,8,FALSE),0)))) -> 0 | AY80: 0 | BC80: 0 | BD80: =IF(BB80="",0,ROUND((BC80*VLOOKUP($H80,CONFIG!$A$46:$C$55,3,FALSE)+(VLOOKUP($BR80,CONFIG!$A$33:$C$43,3,FALSE)*BE80)),0)) -> 0 | BF80: 0 | BJ80: =(IF(BL80="",0,ROUND(VLOOKUP($R$34,'AVERAGE SALARY LOOKUP'!$A$3:$E$10004,4,FALSE)*BL80,0))) -> 0 | BK80: =IF($H80="",0,IF(CONFIG!$B$22="Autonomous",ROUND((BJ80*VLOOKUP($H80,CONFIG!$A$46:$C$55,3,FALSE)+(VLOOKUP($BR80,CONFIG!$A$33:$C$43,3,FALSE)*BL80)),0),(ROUND('School Staffing Tool'!BL80*VLOOKUP($R80,'AVERAGE SALARY LOOKUP'!$A$3:$F$700,6,FALSE),0)))) -> 0 | BM80: 0 | BQ80: 0 | BR80: =IF(R80="","",VLOOKUP(R80,'AVERAGE SALARY LOOKUP'!$A$3:$C$686,3,FALSE)) ->  | BS80: 0 | BV80: 0 | BW80: 0 | BX80: 0
A81: 0289 FY 10-11 P016 | B81: =CONCATENATE(CONFIG!$C$9," ",CONFIG!$B$6," ",P81,Q81) -> 0289 FY 10-11 P016C | G81: =IF(F81="","",IF(OR(D81="",D81="HS"),VLOOKUP(F81,'JOB CODE LOOKUP'!$S$5:$V$183,3,FALSE),VLOOKUP(F81,'JOB CODE LOOKUP'!$S$5:$V$183,4,FALSE))) ->  | P81: P016 | Q81: C | R81: =IF(F81="","",(IF(CONFIG!$B$12="ES",VLOOKUP(F81,'JOB CODE LOOKUP'!$A$2:$E$222,2,FALSE),IF(CONFIG!$B$12="K-8",VLOOKUP(F81,'JOB CODE LOOKUP'!$G$2:$K$222,2,FALSE),IF(CONFIG!$B$12="MS",VLOOKUP(F81,'JOB CODE LOOKUP'!$M$2:$Q$222,2,FALSE),IF(CONFIG!$B$12="HS",VLOOKUP(F81,'JOB CODE LOOKUP'!$S$2:$W$222,2,FALSE),IF(AND(CONFIG!$B$12="6-12",D81="HS"),VLOOKUP(F81,'JOB CODE LOOKUP'!$S$2:$W$222,2,FALSE),IF(AND(CONFIG!$B$12="6-12",D81="MS"),VLOOKUP(F81,'JOB CODE LOOKUP'!$M$2:$Q$222,2,FALSE),"")))))))) ->  | S81: =IF(CONFIG!$B$2<>"Y","",(IF(OR(G81="",LEFT(H81,1)="2",H81="19",L81="1911"),"",dbs(BV81,CONFIG!$B$4&":Employee - School Staffing",CONFIG!$B$5,CONFIG!$B$6,CONFIG!$C$9,H81,I81,J81,K81,L81,M81,N81,P81,Q81,R81,"FTE")))) ->  | T81: =IF(CONFIG!$B$2<>"Y","",(IF(OR(G81="",LEFT(H81,1)="2",H81="19",L81="1911"),"",dbs(BW81,CONFIG!$B$4&":Employee - School Staffing",CONFIG!$B$5,CONFIG!$B$6,CONFIG!$C$9,H81,I81,J81,K81,L81,M81,N81,P81,Q81,R81,"AMOUNT")))) ->  | U81: =IF(CONFIG!$B$2<>"Y","",(IF(OR(G81="",LEFT(H81,1)="2",H81="19",L81="1911"),"",dbs(BX81,CONFIG!$B$4&":Employee - School Staffing",CONFIG!$B$5,CONFIG!$B$6,CONFIG!$C$9,H81,I81,J81,K81,L81,M81,O81,P81,Q81,R81,"AMOUNT")))) ->  | Y81: 16 | AA81: =(IF(AC81="",0,IF(CONFIG!$B$22<>"Autonomous",ROUND(VLOOKUP(R81,'AVERAGE SALARY LOOKUP'!$A$3:$E$10004,4,FALSE)*AC81,0),IF(E81="",0,IF(E81="vacancy",ROUND(VLOOKUP(R81,'AVERAGE SALARY LOOKUP'!$A$3:$E$10004,4,FALSE)*AC81,0),ROUND(VLOOKUP(E81,'FULL TIME ACTUAL RATES'!$B$2:$G$4927,6,FALSE)*AC81,0)))))) -> 0 | AB81: =IF($H81="",0,IF(CONFIG!$B$22="Autonomous",ROUND((AA81*VLOOKUP($H81,CONFIG!$A$46:$C$55,3,FALSE)+(VLOOKUP($BR81,CONFIG!$A$33:$C$43,3,FALSE)*AC81)),0),(ROUND('School Staffing Tool'!AC81*VLOOKUP(R81,'AVERAGE SALARY LOOKUP'!$A$3:$F$700,6,FALSE),0)))) -> 0 | AD81: 0 | AH81: =(IF(AJ81="",0,ROUND(VLOOKUP(R81,'AVERAGE SALARY LOOKUP'!$A$3:$E$10004,4,FALSE)*AJ81,0))) -> 0 | AI81: =IF($H81="",0,IF(CONFIG!$B$22="Autonomous",ROUND((AH81*VLOOKUP($H81,CONFIG!$A$46:$C$55,3,FALSE)+(VLOOKUP($BR81,CONFIG!$A$33:$C$43,3,FALSE)*AJ81)),0),IF(H81="10",(ROUND(AJ81*VLOOKUP($R81,'AVERAGE SALARY LOOKUP'!$A$3:$I$700,6,FALSE),0)),(ROUND(AJ81*VLOOKUP($R81,'AVERAGE SALARY LOOKUP'!$A$3:$I$700,9,FALSE),0))))) -> 0 | AK81: 0 | AO81: =(IF(AQ81="",0,IF(CONFIG!$B$22<>"Autonomous",ROUND(VLOOKUP(R81,'AVERAGE SALARY LOOKUP'!$A$3:$E$10004,4,FALSE)*AQ81,0),IF(E81="",0,IF(E81="vacancy",ROUND(VLOOKUP(R81,'AVERAGE SALARY LOOKUP'!$A$3:$E$10004,4,FALSE)*AQ81,0),ROUND(VLOOKUP(E81,'FULL TIME ACTUAL RATES'!$B$2:$G$4927,6,FALSE)*AQ81,0)))))) -> 0 | AP81: =IF($H81="",0,IF(CONFIG!$B$22="Autonomous",ROUND((AO81*VLOOKUP($H81,CONFIG!$A$46:$C$55,3,FALSE)+(VLOOKUP($BR81,CONFIG!$A$33:$C$43,3,FALSE)*AQ81)),0),(ROUND('School Staffing Tool'!AQ81*VLOOKUP($R81,'AVERAGE SALARY LOOKUP'!$A$3:$F$700,6,FALSE),0)))) -> 0 | AR81: 0 | AV81: =(IF(AX81="",0,ROUND(VLOOKUP(R81,'AVERAGE SALARY LOOKUP'!$A$3:$E$10004,4,FALSE)*AX81,0))) -> 0 | AW81: =IF($H81="",0,IF(CONFIG!$B$22="Autonomous",ROUND((AV81*VLOOKUP($H81,CONFIG!$A$46:$C$55,3,FALSE)+(VLOOKUP($BR81,CONFIG!$A$33:$C$43,3,FALSE)*AX81)),0),(ROUND('School Staffing Tool'!AX81*VLOOKUP($R81,'AVERAGE SALARY LOOKUP'!$A$3:$H$700,8,FALSE),0)))) -> 0 | AY81: 0 | BC81: 0 | BD81: =IF(BB81="",0,ROUND((BC81*VLOOKUP($H81,CONFIG!$A$46:$C$55,3,FALSE)+(VLOOKUP($BR81,CONFIG!$A$33:$C$43,3,FALSE)*BE81)),0)) -> 0 | BF81: 0 | BJ81: =(IF(BL81="",0,ROUND(VLOOKUP($R$34,'AVERAGE SALARY LOOKUP'!$A$3:$E$10004,4,FALSE)*BL81,0))) -> 0 | BK81: =IF($H81="",0,IF(CONFIG!$B$22="Autonomous",ROUND((BJ81*VLOOKUP($H81,CONFIG!$A$46:$C$55,3,FALSE)+(VLOOKUP($BR81,CONFIG!$A$33:$C$43,3,FALSE)*BL81)),0),(ROUND('School Staffing Tool'!BL81*VLOOKUP($R81,'AVERAGE SALARY LOOKUP'!$A$3:$F$700,6,FALSE),0)))) -> 0 | BM81: 0 | BQ81: 0 | BR81: =IF(R81="","",VLOOKUP(R81,'AVERAGE SALARY LOOKUP'!$A$3:$C$686,3,FALSE)) ->  | BS81: 0 | BV81: 0 | BW81: 0 | BX81: 0
A82: 0289 FY 10-11 P017 | B82: =CONCATENATE(CONFIG!$C$9," ",CONFIG!$B$6," ",P82,Q82) -> 0289 FY 10-11 P017A | C82: MM | F82: Mild/Moderate Teacher | G82: =IF(F82="","",IF(OR(D82="",D82="HS"),VLOOKUP(F82,'JOB CODE LOOKUP'!$S$5:$V$183,3,FALSE),VLOOKUP(F82,'JOB CODE LOOKUP'!$S$5:$V$183,4,FALSE))) -> 10289121701313320110 | H82: 10 | I82: 289 | J82: 12 | K82: 1701 | L82: 3133 | M82: 2 | N82: 0110 | O82: 0200 | P82: P017 | Q82: A | R82: =IF(F82="","",(IF(CONFIG!$B$12="ES",VLOOKUP(F82,'JOB CODE LOOKUP'!$A$2:$E$222,2,FALSE),IF(CONFIG!$B$12="K-8",VLOOKUP(F82,'JOB CODE LOOKUP'!$G$2:$K$222,2,FALSE),IF(CONFIG!$B$12="MS",VLOOKUP(F82,'JOB CODE LOOKUP'!$M$2:$Q$222,2,FALSE),IF(CONFIG!$B$12="HS",VLOOKUP(F82,'JOB CODE LOOKUP'!$S$2:$W$222,2,FALSE),IF(AND(CONFIG!$B$12="6-12",D82="HS"),VLOOKUP(F82,'JOB CODE LOOKUP'!$S$2:$W$222,2,FALSE),IF(AND(CONFIG!$B$12="6-12",D82="MS"),VLOOKUP(F82,'JOB CODE LOOKUP'!$M$2:$Q$222,2,FALSE),"")))))))) -> 3337 | S82: =IF(CONFIG!$B$2<>"Y","",(IF(OR(G82="",LEFT(H82,1)="2",H82="19",L82="1911"),"",dbs(BV82,CONFIG!$B$4&":Employee - School Staffing",CONFIG!$B$5,CONFIG!$B$6,CONFIG!$C$9,H82,I82,J82,K82,L82,M82,N82,P82,Q82,R82,"FTE")))) ->  | T82: =IF(CONFIG!$B$2<>"Y","",(IF(OR(G82="",LEFT(H82,1)="2",H82="19",L82="1911"),"",dbs(BW82,CONFIG!$B$4&":Employee - School Staffing",CONFIG!$B$5,CONFIG!$B$6,CONFIG!$C$9,H82,I82,J82,K82,L82,M82,N82,P82,Q82,R82,"AMOUNT")))) ->  | U82: =IF(CONFIG!$B$2<>"Y","",(IF(OR(G82="",LEFT(H82,1)="2",H82="19",L82="1911"),"",dbs(BX82,CONFIG!$B$4&":Employee - School Staffing",CONFIG!$B$5,CONFIG!$B$6,CONFIG!$C$9,H82,I82,J82,K82,L82,M82,O82,P82,Q82,R82,"AMOUNT")))) ->  | Y82: 17 | Z82: Mild/Moderate Teacher | AA82: =(IF(AC82="",0,IF(CONFIG!$B$22<>"Autonomous",ROUND(VLOOKUP(R82,'AVERAGE SALARY LOOKUP'!$A$3:$E$10004,4,FALSE)*AC82,0),IF(E82="",0,IF(E82="vacancy",ROUND(VLOOKUP(R82,'AVERAGE SALARY LOOKUP'!$A$3:$E$10004,4,FALSE)*AC82,0),ROUND(VLOOKUP(E82,'FULL TIME ACTUAL RATES'!$B$2:$G$4927,6,FALSE)*AC82,0)))))) -> 25884 | AB82: =IF($H82="",0,IF(CONFIG!$B$22="Autonomous",ROUND((AA82*VLOOKUP($H82,CONFIG!$A$46:$C$55,3,FALSE)+(VLOOKUP($BR82,CONFIG!$A$33:$C$43,3,FALSE)*AC82)),0),(ROUND('School Staffing Tool'!AC82*VLOOKUP(R82,'AVERAGE SALARY LOOKUP'!$A$3:$F$700,6,FALSE),0)))) -> 7088 | AC82: 0.5 | AD82: 32972 | AH82: =(IF(AJ82="",0,ROUND(VLOOKUP(R82,'AVERAGE SALARY LOOKUP'!$A$3:$E$10004,4,FALSE)*AJ82,0))) -> 0 | AI82: =IF($H82="",0,IF(CONFIG!$B$22="Autonomous",ROUND((AH82*VLOOKUP($H82,CONFIG!$A$46:$C$55,3,FALSE)+(VLOOKUP($BR82,CONFIG!$A$33:$C$43,3,FALSE)*AJ82)),0),IF(H82="10",(ROUND(AJ82*VLOOKUP($R82,'AVERAGE SALARY LOOKUP'!$A$3:$I$700,6,FALSE),0)),(ROUND(AJ82*VLOOKUP($R82,'AVERAGE SALARY LOOKUP'!$A$3:$I$700,9,FALSE),0))))) -> 0 | AK82: 0 | AO82: =(IF(AQ82="",0,IF(CONFIG!$B$22<>"Autonomous",ROUND(VLOOKUP(R82,'AVERAGE SALARY LOOKUP'!$A$3:$E$10004,4,FALSE)*AQ82,0),IF(E82="",0,IF(E82="vacancy",ROUND(VLOOKUP(R82,'AVERAGE SALARY LOOKUP'!$A$3:$E$10004,4,FALSE)*AQ82,0),ROUND(VLOOKUP(E82,'FULL TIME ACTUAL RATES'!$B$2:$G$4927,6,FALSE)*AQ82,0)))))) -> 0 | AP82: =IF($H82="",0,IF(CONFIG!$B$22="Autonomous",ROUND((AO82*VLOOKUP($H82,CONFIG!$A$46:$C$55,3,FALSE)+(VLOOKUP($BR82,CONFIG!$A$33:$C$43,3,FALSE)*AQ82)),0),(ROUND('School Staffing Tool'!AQ82*VLOOKUP($R82,'AVERAGE SALARY LOOKUP'!$A$3:$F$700,6,FALSE),0)))) -> 0 | AR82: 0 | AV82: =(IF(AX82="",0,ROUND(VLOOKUP(R82,'AVERAGE SALARY LOOKUP'!$A$3:$E$10004,4,FALSE)*AX82,0))) -> 0 | AW82: =IF($H82="",0,IF(CONFIG!$B$22="Autonomous",ROUND((AV82*VLOOKUP($H82,CONFIG!$A$46:$C$55,3,FALSE)+(VLOOKUP($BR82,CONFIG!$A$33:$C$43,3,FALSE)*AX82)),0),(ROUND('School Staffing Tool'!AX82*VLOOKUP($R82,'AVERAGE SALARY LOOKUP'!$A$3:$H$700,8,FALSE),0)))) -> 0 | AY82: 0 | BC82: 0 | BD82: =IF(BB82="",0,ROUND((BC82*VLOOKUP($H82,CONFIG!$A$46:$C$55,3,FALSE)+(VLOOKUP($BR82,CONFIG!$A$33:$C$43,3,FALSE)*BE82)),0)) -> 0 | BF82: 0 | BJ82: =(IF(BL82="",0,ROUND(VLOOKUP($R$34,'AVERAGE SALARY LOOKUP'!$A$3:$E$10004,4,FALSE)*BL82,0))) -> 0 | BK82: =IF($H82="",0,IF(CONFIG!$B$22="Autonomous",ROUND((BJ82*VLOOKUP($H82,CONFIG!$A$46:$C$55,3,FALSE)+(VLOOKUP($BR82,CONFIG!$A$33:$C$43,3,FALSE)*BL82)),0),(ROUND('School Staffing Tool'!BL82*VLOOKUP($R82,'AVERAGE SALARY LOOKUP'!$A$3:$F$700,6,FALSE),0)))) -> 0 | BM82: 0 | BQ82: 0.5 | BR82: =IF(R82="","",VLOOKUP(R82,'AVERAGE SALARY LOOKUP'!$A$3:$C$686,3,FALSE)) -> DCTA | BS82: 0.5 | BU82: 10,3133,2 | BV82: 0.5 | BW82: 25884 | BX82: 7088
A83: 0289 FY 10-11 P017 | B83: =CONCATENATE(CONFIG!$C$9," ",CONFIG!$B$6," ",P83,Q83) -> 0289 FY 10-11 P017B | G83: =IF(F83="","",IF(OR(D83="",D83="HS"),VLOOKUP(F83,'JOB CODE LOOKUP'!$S$5:$V$183,3,FALSE),VLOOKUP(F83,'JOB CODE LOOKUP'!$S$5:$V$183,4,FALSE))) ->  | P83: P017 | Q83: B | R83: =IF(F83="","",(IF(CONFIG!$B$12="ES",VLOOKUP(F83,'JOB CODE LOOKUP'!$A$2:$E$222,2,FALSE),IF(CONFIG!$B$12="K-8",VLOOKUP(F83,'JOB CODE LOOKUP'!$G$2:$K$222,2,FALSE),IF(CONFIG!$B$12="MS",VLOOKUP(F83,'JOB CODE LOOKUP'!$M$2:$Q$222,2,FALSE),IF(CONFIG!$B$12="HS",VLOOKUP(F83,'JOB CODE LOOKUP'!$S$2:$W$222,2,FALSE),IF(AND(CONFIG!$B$12="6-12",D83="HS"),VLOOKUP(F83,'JOB CODE LOOKUP'!$S$2:$W$222,2,FALSE),IF(AND(CONFIG!$B$12="6-12",D83="MS"),VLOOKUP(F83,'JOB CODE LOOKUP'!$M$2:$Q$222,2,FALSE),"")))))))) ->  | S83: =IF(CONFIG!$B$2<>"Y","",(IF(OR(G83="",LEFT(H83,1)="2",H83="19",L83="1911"),"",dbs(BV83,CONFIG!$B$4&":Employee - School Staffing",CONFIG!$B$5,CONFIG!$B$6,CONFIG!$C$9,H83,I83,J83,K83,L83,M83,N83,P83,Q83,R83,"FTE")))) ->  | T83: =IF(CONFIG!$B$2<>"Y","",(IF(OR(G83="",LEFT(H83,1)="2",H83="19",L83="1911"),"",dbs(BW83,CONFIG!$B$4&":Employee - School Staffing",CONFIG!$B$5,CONFIG!$B$6,CONFIG!$C$9,H83,I83,J83,K83,L83,M83,N83,P83,Q83,R83,"AMOUNT")))) ->  | U83: =IF(CONFIG!$B$2<>"Y","",(IF(OR(G83="",LEFT(H83,1)="2",H83="19",L83="1911"),"",dbs(BX83,CONFIG!$B$4&":Employee - School Staffing",CONFIG!$B$5,CONFIG!$B$6,CONFIG!$C$9,H83,I83,J83,K83,L83,M83,O83,P83,Q83,R83,"AMOUNT")))) ->  | Y83: 17 | AA83: =(IF(AC83="",0,IF(CONFIG!$B$22<>"Autonomous",ROUND(VLOOKUP(R83,'AVERAGE SALARY LOOKUP'!$A$3:$E$10004,4,FALSE)*AC83,0),IF(E83="",0,IF(E83="vacancy",ROUND(VLOOKUP(R83,'AVERAGE SALARY LOOKUP'!$A$3:$E$10004,4,FALSE)*AC83,0),ROUND(VLOOKUP(E83,'FULL TIME ACTUAL RATES'!$B$2:$G$4927,6,FALSE)*AC83,0)))))) -> 0 | AB83: =IF($H83="",0,IF(CONFIG!$B$22="Autonomous",ROUND((AA83*VLOOKUP($H83,CONFIG!$A$46:$C$55,3,FALSE)+(VLOOKUP($BR83,CONFIG!$A$33:$C$43,3,FALSE)*AC83)),0),(ROUND('School Staffing Tool'!AC83*VLOOKUP(R83,'AVERAGE SALARY LOOKUP'!$A$3:$F$700,6,FALSE),0)))) -> 0 | AD83: 0 | AH83: =(IF(AJ83="",0,ROUND(VLOOKUP(R83,'AVERAGE SALARY LOOKUP'!$A$3:$E$10004,4,FALSE)*AJ83,0))) -> 0 | AI83: =IF($H83="",0,IF(CONFIG!$B$22="Autonomous",ROUND((AH83*VLOOKUP($H83,CONFIG!$A$46:$C$55,3,FALSE)+(VLOOKUP($BR83,CONFIG!$A$33:$C$43,3,FALSE)*AJ83)),0),IF(H83="10",(ROUND(AJ83*VLOOKUP($R83,'AVERAGE SALARY LOOKUP'!$A$3:$I$700,6,FALSE),0)),(ROUND(AJ83*VLOOKUP($R83,'AVERAGE SALARY LOOKUP'!$A$3:$I$700,9,FALSE),0))))) -> 0 | AK83: 0 | AO83: =(IF(AQ83="",0,IF(CONFIG!$B$22<>"Autonomous",ROUND(VLOOKUP(R83,'AVERAGE SALARY LOOKUP'!$A$3:$E$10004,4,FALSE)*AQ83,0),IF(E83="",0,IF(E83="vacancy",ROUND(VLOOKUP(R83,'AVERAGE SALARY LOOKUP'!$A$3:$E$10004,4,FALSE)*AQ83,0),ROUND(VLOOKUP(E83,'FULL TIME ACTUAL RATES'!$B$2:$G$4927,6,FALSE)*AQ83,0)))))) -> 0 | AP83: =IF($H83="",0,IF(CONFIG!$B$22="Autonomous",ROUND((AO83*VLOOKUP($H83,CONFIG!$A$46:$C$55,3,FALSE)+(VLOOKUP($BR83,CONFIG!$A$33:$C$43,3,FALSE)*AQ83)),0),(ROUND('School Staffing Tool'!AQ83*VLOOKUP($R83,'AVERAGE SALARY LOOKUP'!$A$3:$F$700,6,FALSE),0)))) -> 0 | AR83: 0 | AV83: =(IF(AX83="",0,ROUND(VLOOKUP(R83,'AVERAGE SALARY LOOKUP'!$A$3:$E$10004,4,FALSE)*AX83,0))) -> 0 | AW83: =IF($H83="",0,IF(CONFIG!$B$22="Autonomous",ROUND((AV83*VLOOKUP($H83,CONFIG!$A$46:$C$55,3,FALSE)+(VLOOKUP($BR83,CONFIG!$A$33:$C$43,3,FALSE)*AX83)),0),(ROUND('School Staffing Tool'!AX83*VLOOKUP($R83,'AVERAGE SALARY LOOKUP'!$A$3:$H$700,8,FALSE),0)))) -> 0 | AY83: 0 | BC83: 0 | BD83: =IF(BB83="",0,ROUND((BC83*VLOOKUP($H83,CONFIG!$A$46:$C$55,3,FALSE)+(VLOOKUP($BR83,CONFIG!$A$33:$C$43,3,FALSE)*BE83)),0)) -> 0 | BF83: 0 | BJ83: =(IF(BL83="",0,ROUND(VLOOKUP($R$34,'AVERAGE SALARY LOOKUP'!$A$3:$E$10004,4,FALSE)*BL83,0))) -> 0 | BK83: =IF($H83="",0,IF(CONFIG!$B$22="Autonomous",ROUND((BJ83*VLOOKUP($H83,CONFIG!$A$46:$C$55,3,FALSE)+(VLOOKUP($BR83,CONFIG!$A$33:$C$43,3,FALSE)*BL83)),0),(ROUND('School Staffing Tool'!BL83*VLOOKUP($R83,'AVERAGE SALARY LOOKUP'!$A$3:$F$700,6,FALSE),0)))) -> 0 | BM83: 0 | BQ83: 0 | BR83: =IF(R83="","",VLOOKUP(R83,'AVERAGE SALARY LOOKUP'!$A$3:$C$686,3,FALSE)) ->  | BS83: 0 | BV83: 0 | BW83: 0 | BX83: 0
A84: 0289 FY 10-11 P017 | B84: =CONCATENATE(CONFIG!$C$9," ",CONFIG!$B$6," ",P84,Q84) -> 0289 FY 10-11 P017C | G84: =IF(F84="","",IF(OR(D84="",D84="HS"),VLOOKUP(F84,'JOB CODE LOOKUP'!$S$5:$V$183,3,FALSE),VLOOKUP(F84,'JOB CODE LOOKUP'!$S$5:$V$183,4,FALSE))) ->  | P84: P017 | Q84: C | R84: =IF(F84="","",(IF(CONFIG!$B$12="ES",VLOOKUP(F84,'JOB CODE LOOKUP'!$A$2:$E$222,2,FALSE),IF(CONFIG!$B$12="K-8",VLOOKUP(F84,'JOB CODE LOOKUP'!$G$2:$K$222,2,FALSE),IF(CONFIG!$B$12="MS",VLOOKUP(F84,'JOB CODE LOOKUP'!$M$2:$Q$222,2,FALSE),IF(CONFIG!$B$12="HS",VLOOKUP(F84,'JOB CODE LOOKUP'!$S$2:$W$222,2,FALSE),IF(AND(CONFIG!$B$12="6-12",D84="HS"),VLOOKUP(F84,'JOB CODE LOOKUP'!$S$2:$W$222,2,FALSE),IF(AND(CONFIG!$B$12="6-12",D84="MS"),VLOOKUP(F84,'JOB CODE LOOKUP'!$M$2:$Q$222,2,FALSE),"")))))))) ->  | S84: =IF(CONFIG!$B$2<>"Y","",(IF(OR(G84="",LEFT(H84,1)="2",H84="19",L84="1911"),"",dbs(BV84,CONFIG!$B$4&":Employee - School Staffing",CONFIG!$B$5,CONFIG!$B$6,CONFIG!$C$9,H84,I84,J84,K84,L84,M84,N84,P84,Q84,R84,"FTE")))) ->  | T84: =IF(CONFIG!$B$2<>"Y","",(IF(OR(G84="",LEFT(H84,1)="2",H84="19",L84="1911"),"",dbs(BW84,CONFIG!$B$4&":Employee - School Staffing",CONFIG!$B$5,CONFIG!$B$6,CONFIG!$C$9,H84,I84,J84,K84,L84,M84,N84,P84,Q84,R84,"AMOUNT")))) ->  | U84: =IF(CONFIG!$B$2<>"Y","",(IF(OR(G84="",LEFT(H84,1)="2",H84="19",L84="1911"),"",dbs(BX84,CONFIG!$B$4&":Employee - School Staffing",CONFIG!$B$5,CONFIG!$B$6,CONFIG!$C$9,H84,I84,J84,K84,L84,M84,O84,P84,Q84,R84,"AMOUNT")))) ->  | Y84: 17 | AA84: =(IF(AC84="",0,IF(CONFIG!$B$22<>"Autonomous",ROUND(VLOOKUP(R84,'AVERAGE SALARY LOOKUP'!$A$3:$E$10004,4,FALSE)*AC84,0),IF(E84="",0,IF(E84="vacancy",ROUND(VLOOKUP(R84,'AVERAGE SALARY LOOKUP'!$A$3:$E$10004,4,FALSE)*AC84,0),ROUND(VLOOKUP(E84,'FULL TIME ACTUAL RATES'!$B$2:$G$4927,6,FALSE)*AC84,0)))))) -> 0 | AB84: =IF($H84="",0,IF(CONFIG!$B$22="Autonomous",ROUND((AA84*VLOOKUP($H84,CONFIG!$A$46:$C$55,3,FALSE)+(VLOOKUP($BR84,CONFIG!$A$33:$C$43,3,FALSE)*AC84)),0),(ROUND('School Staffing Tool'!AC84*VLOOKUP(R84,'AVERAGE SALARY LOOKUP'!$A$3:$F$700,6,FALSE),0)))) -> 0 | AD84: 0 | AH84: =(IF(AJ84="",0,ROUND(VLOOKUP(R84,'AVERAGE SALARY LOOKUP'!$A$3:$E$10004,4,FALSE)*AJ84,0))) -> 0 | AI84: =IF($H84="",0,IF(CONFIG!$B$22="Autonomous",ROUND((AH84*VLOOKUP($H84,CONFIG!$A$46:$C$55,3,FALSE)+(VLOOKUP($BR84,CONFIG!$A$33:$C$43,3,FALSE)*AJ84)),0),IF(H84="10",(ROUND(AJ84*VLOOKUP($R84,'AVERAGE SALARY LOOKUP'!$A$3:$I$700,6,FALSE),0)),(ROUND(AJ84*VLOOKUP($R84,'AVERAGE SALARY LOOKUP'!$A$3:$I$700,9,FALSE),0))))) -> 0 | AK84: 0 | AO84: =(IF(AQ84="",0,IF(CONFIG!$B$22<>"Autonomous",ROUND(VLOOKUP(R84,'AVERAGE SALARY LOOKUP'!$A$3:$E$10004,4,FALSE)*AQ84,0),IF(E84="",0,IF(E84="vacancy",ROUND(VLOOKUP(R84,'AVERAGE SALARY LOOKUP'!$A$3:$E$10004,4,FALSE)*AQ84,0),ROUND(VLOOKUP(E84,'FULL TIME ACTUAL RATES'!$B$2:$G$4927,6,FALSE)*AQ84,0)))))) -> 0 | AP84: =IF($H84="",0,IF(CONFIG!$B$22="Autonomous",ROUND((AO84*VLOOKUP($H84,CONFIG!$A$46:$C$55,3,FALSE)+(VLOOKUP($BR84,CONFIG!$A$33:$C$43,3,FALSE)*AQ84)),0),(ROUND('School Staffing Tool'!AQ84*VLOOKUP($R84,'AVERAGE SALARY LOOKUP'!$A$3:$F$700,6,FALSE),0)))) -> 0 | AR84: 0 | AV84: =(IF(AX84="",0,ROUND(VLOOKUP(R84,'AVERAGE SALARY LOOKUP'!$A$3:$E$10004,4,FALSE)*AX84,0))) -> 0 | AW84: =IF($H84="",0,IF(CONFIG!$B$22="Autonomous",ROUND((AV84*VLOOKUP($H84,CONFIG!$A$46:$C$55,3,FALSE)+(VLOOKUP($BR84,CONFIG!$A$33:$C$43,3,FALSE)*AX84)),0),(ROUND('School Staffing Tool'!AX84*VLOOKUP($R84,'AVERAGE SALARY LOOKUP'!$A$3:$H$700,8,FALSE),0)))) -> 0 | AY84: 0 | BC84: 0 | BD84: =IF(BB84="",0,ROUND((BC84*VLOOKUP($H84,CONFIG!$A$46:$C$55,3,FALSE)+(VLOOKUP($BR84,CONFIG!$A$33:$C$43,3,FALSE)*BE84)),0)) -> 0 | BF84: 0 | BJ84: =(IF(BL84="",0,ROUND(VLOOKUP($R$34,'AVERAGE SALARY LOOKUP'!$A$3:$E$10004,4,FALSE)*BL84,0))) -> 0 | BK84: =IF($H84="",0,IF(CONFIG!$B$22="Autonomous",ROUND((BJ84*VLOOKUP($H84,CONFIG!$A$46:$C$55,3,FALSE)+(VLOOKUP($BR84,CONFIG!$A$33:$C$43,3,FALSE)*BL84)),0),(ROUND('School Staffing Tool'!BL84*VLOOKUP($R84,'AVERAGE SALARY LOOKUP'!$A$3:$F$700,6,FALSE),0)))) -> 0 | BM84: 0 | BQ84: 0 | BR84: =IF(R84="","",VLOOKUP(R84,'AVERAGE SALARY LOOKUP'!$A$3:$C$686,3,FALSE)) ->  | BS84: 0 | BV84: 0 | BW84: 0 | BX84: 0
A85: 0289 FY 10-11 P018 | B85: =CONCATENATE(CONFIG!$C$9," ",CONFIG!$B$6," ",P85,Q85) -> 0289 FY 10-11 P018A | C85: RTI | F85: ELA - E Teacher | G85: =IF(F85="","",IF(OR(D85="",D85="HS"),VLOOKUP(F85,'JOB CODE LOOKUP'!$S$5:$V$183,3,FALSE),VLOOKUP(F85,'JOB CODE LOOKUP'!$S$5:$V$183,4,FALSE))) -> 10289110018314520110 | H85: 10 | I85: 289 | J85: 11 | K85: 0018 | L85: 3145 | M85: 2 | N85: 0110 | O85: 0200 | P85: P018 | Q85: A | R85: =IF(F85="","",(IF(CONFIG!$B$12="ES",VLOOKUP(F85,'JOB CODE LOOKUP'!$A$2:$E$222,2,FALSE),IF(CONFIG!$B$12="K-8",VLOOKUP(F85,'JOB CODE LOOKUP'!$G$2:$K$222,2,FALSE),IF(CONFIG!$B$12="MS",VLOOKUP(F85,'JOB CODE LOOKUP'!$M$2:$Q$222,2,FALSE),IF(CONFIG!$B$12="HS",VLOOKUP(F85,'JOB CODE LOOKUP'!$S$2:$W$222,2,FALSE),IF(AND(CONFIG!$B$12="6-12",D85="HS"),VLOOKUP(F85,'JOB CODE LOOKUP'!$S$2:$W$222,2,FALSE),IF(AND(CONFIG!$B$12="6-12",D85="MS"),VLOOKUP(F85,'JOB CODE LOOKUP'!$M$2:$Q$222,2,FALSE),"")))))))) -> 3302 | S85: =IF(CONFIG!$B$2<>"Y","",(IF(OR(G85="",LEFT(H85,1)="2",H85="19",L85="1911"),"",dbs(BV85,CONFIG!$B$4&":Employee - School Staffing",CONFIG!$B$5,CONFIG!$B$6,CONFIG!$C$9,H85,I85,J85,K85,L85,M85,N85,P85,Q85,R85,"FTE")))) ->  | T85: =IF(CONFIG!$B$2<>"Y","",(IF(OR(G85="",LEFT(H85,1)="2",H85="19",L85="1911"),"",dbs(BW85,CONFIG!$B$4&":Employee - School Staffing",CONFIG!$B$5,CONFIG!$B$6,CONFIG!$C$9,H85,I85,J85,K85,L85,M85,N85,P85,Q85,R85,"AMOUNT")))) ->  | U85: =IF(CONFIG!$B$2<>"Y","",(IF(OR(G85="",LEFT(H85,1)="2",H85="19",L85="1911"),"",dbs(BX85,CONFIG!$B$4&":Employee - School Staffing",CONFIG!$B$5,CONFIG!$B$6,CONFIG!$C$9,H85,I85,J85,K85,L85,M85,O85,P85,Q85,R85,"AMOUNT")))) ->  | Y85: 18 | Z85: ELA - E Teacher | AA85: =(IF(AC85="",0,IF(CONFIG!$B$22<>"Autonomous",ROUND(VLOOKUP(R85,'AVERAGE SALARY LOOKUP'!$A$3:$E$10004,4,FALSE)*AC85,0),IF(E85="",0,IF(E85="vacancy",ROUND(VLOOKUP(R85,'AVERAGE SALARY LOOKUP'!$A$3:$E$10004,4,FALSE)*AC85,0),ROUND(VLOOKUP(E85,'FULL TIME ACTUAL RATES'!$B$2:$G$4927,6,FALSE)*AC85,0)))))) -> 25884 | AB85: =IF($H85="",0,IF(CONFIG!$B$22="Autonomous",ROUND((AA85*VLOOKUP($H85,CONFIG!$A$46:$C$55,3,FALSE)+(VLOOKUP($BR85,CONFIG!$A$33:$C$43,3,FALSE)*AC85)),0),(ROUND('School Staffing Tool'!AC85*VLOOKUP(R85,'AVERAGE SALARY LOOKUP'!$A$3:$F$700,6,FALSE),0)))) -> 7088 | AC85: 0.5 | AD85: 32972 | AH85: =(IF(AJ85="",0,ROUND(VLOOKUP(R85,'AVERAGE SALARY LOOKUP'!$A$3:$E$10004,4,FALSE)*AJ85,0))) -> 0 | AI85: =IF($H85="",0,IF(CONFIG!$B$22="Autonomous",ROUND((AH85*VLOOKUP($H85,CONFIG!$A$46:$C$55,3,FALSE)+(VLOOKUP($BR85,CONFIG!$A$33:$C$43,3,FALSE)*AJ85)),0),IF(H85="10",(ROUND(AJ85*VLOOKUP($R85,'AVERAGE SALARY LOOKUP'!$A$3:$I$700,6,FALSE),0)),(ROUND(AJ85*VLOOKUP($R85,'AVERAGE SALARY LOOKUP'!$A$3:$I$700,9,FALSE),0))))) -> 0 | AK85: 0 | AO85: =(IF(AQ85="",0,IF(CONFIG!$B$22<>"Autonomous",ROUND(VLOOKUP(R85,'AVERAGE SALARY LOOKUP'!$A$3:$E$10004,4,FALSE)*AQ85,0),IF(E85="",0,IF(E85="vacancy",ROUND(VLOOKUP(R85,'AVERAGE SALARY LOOKUP'!$A$3:$E$10004,4,FALSE)*AQ85,0),ROUND(VLOOKUP(E85,'FULL TIME ACTUAL RATES'!$B$2:$G$4927,6,FALSE)*AQ85,0)))))) -> 0 | AP85: =IF($H85="",0,IF(CONFIG!$B$22="Autonomous",ROUND((AO85*VLOOKUP($H85,CONFIG!$A$46:$C$55,3,FALSE)+(VLOOKUP($BR85,CONFIG!$A$33:$C$43,3,FALSE)*AQ85)),0),(ROUND('School Staffing Tool'!AQ85*VLOOKUP($R85,'AVERAGE SALARY LOOKUP'!$A$3:$F$700,6,FALSE),0)))) -> 0 | AR85: 0 | AV85: =(IF(AX85="",0,ROUND(VLOOKUP(R85,'AVERAGE SALARY LOOKUP'!$A$3:$E$10004,4,FALSE)*AX85,0))) -> 0 | AW85: =IF($H85="",0,IF(CONFIG!$B$22="Autonomous",ROUND((AV85*VLOOKUP($H85,CONFIG!$A$46:$C$55,3,FALSE)+(VLOOKUP($BR85,CONFIG!$A$33:$C$43,3,FALSE)*AX85)),0),(ROUND('School Staffing Tool'!AX85*VLOOKUP($R85,'AVERAGE SALARY LOOKUP'!$A$3:$H$700,8,FALSE),0)))) -> 0 | AY85: 0 | BC85: 0 | BD85: =IF(BB85="",0,ROUND((BC85*VLOOKUP($H85,CONFIG!$A$46:$C$55,3,FALSE)+(VLOOKUP($BR85,CONFIG!$A$33:$C$43,3,FALSE)*BE85)),0)) -> 0 | BF85: 0 | BJ85: =(IF(BL85="",0,ROUND(VLOOKUP($R$34,'AVERAGE SALARY LOOKUP'!$A$3:$E$10004,4,FALSE)*BL85,0))) -> 0 | BK85: =IF($H85="",0,IF(CONFIG!$B$22="Autonomous",ROUND((BJ85*VLOOKUP($H85,CONFIG!$A$46:$C$55,3,FALSE)+(VLOOKUP($BR85,CONFIG!$A$33:$C$43,3,FALSE)*BL85)),0),(ROUND('School Staffing Tool'!BL85*VLOOKUP($R85,'AVERAGE SALARY LOOKUP'!$A$3:$F$700,6,FALSE),0)))) -> 0 | BM85: 0 | BQ85: 0.5 | BR85: =IF(R85="","",VLOOKUP(R85,'AVERAGE SALARY LOOKUP'!$A$3:$C$686,3,FALSE)) -> DCTA | BS85: 0.5 | BU85: 10,3145,2 | BV85: 0.5 | BW85: 25884 | BX85: 7088
A86: 0289 FY 10-11 P018 | B86: =CONCATENATE(CONFIG!$C$9," ",CONFIG!$B$6," ",P86,Q86) -> 0289 FY 10-11 P018B | G86: =IF(F86="","",IF(OR(D86="",D86="HS"),VLOOKUP(F86,'JOB CODE LOOKUP'!$S$5:$V$183,3,FALSE),VLOOKUP(F86,'JOB CODE LOOKUP'!$S$5:$V$183,4,FALSE))) ->  | P86: P018 | Q86: B | R86: =IF(F86="","",(IF(CONFIG!$B$12="ES",VLOOKUP(F86,'JOB CODE LOOKUP'!$A$2:$E$222,2,FALSE),IF(CONFIG!$B$12="K-8",VLOOKUP(F86,'JOB CODE LOOKUP'!$G$2:$K$222,2,FALSE),IF(CONFIG!$B$12="MS",VLOOKUP(F86,'JOB CODE LOOKUP'!$M$2:$Q$222,2,FALSE),IF(CONFIG!$B$12="HS",VLOOKUP(F86,'JOB CODE LOOKUP'!$S$2:$W$222,2,FALSE),IF(AND(CONFIG!$B$12="6-12",D86="HS"),VLOOKUP(F86,'JOB CODE LOOKUP'!$S$2:$W$222,2,FALSE),IF(AND(CONFIG!$B$12="6-12",D86="MS"),VLOOKUP(F86,'JOB CODE LOOKUP'!$M$2:$Q$222,2,FALSE),"")))))))) ->  | S86: =IF(CONFIG!$B$2<>"Y","",(IF(OR(G86="",LEFT(H86,1)="2",H86="19",L86="1911"),"",dbs(BV86,CONFIG!$B$4&":Employee - School Staffing",CONFIG!$B$5,CONFIG!$B$6,CONFIG!$C$9,H86,I86,J86,K86,L86,M86,N86,P86,Q86,R86,"FTE")))) ->  | T86: =IF(CONFIG!$B$2<>"Y","",(IF(OR(G86="",LEFT(H86,1)="2",H86="19",L86="1911"),"",dbs(BW86,CONFIG!$B$4&":Employee - School Staffing",CONFIG!$B$5,CONFIG!$B$6,CONFIG!$C$9,H86,I86,J86,K86,L86,M86,N86,P86,Q86,R86,"AMOUNT")))) ->  | U86: =IF(CONFIG!$B$2<>"Y","",(IF(OR(G86="",LEFT(H86,1)="2",H86="19",L86="1911"),"",dbs(BX86,CONFIG!$B$4&":Employee - School Staffing",CONFIG!$B$5,CONFIG!$B$6,CONFIG!$C$9,H86,I86,J86,K86,L86,M86,O86,P86,Q86,R86,"AMOUNT")))) ->  | Y86: 18 | AA86: =(IF(AC86="",0,IF(CONFIG!$B$22<>"Autonomous",ROUND(VLOOKUP(R86,'AVERAGE SALARY LOOKUP'!$A$3:$E$10004,4,FALSE)*AC86,0),IF(E86="",0,IF(E86="vacancy",ROUND(VLOOKUP(R86,'AVERAGE SALARY LOOKUP'!$A$3:$E$10004,4,FALSE)*AC86,0),ROUND(VLOOKUP(E86,'FULL TIME ACTUAL RATES'!$B$2:$G$4927,6,FALSE)*AC86,0)))))) -> 0 | AB86: =IF($H86="",0,IF(CONFIG!$B$22="Autonomous",ROUND((AA86*VLOOKUP($H86,CONFIG!$A$46:$C$55,3,FALSE)+(VLOOKUP($BR86,CONFIG!$A$33:$C$43,3,FALSE)*AC86)),0),(ROUND('School Staffing Tool'!AC86*VLOOKUP(R86,'AVERAGE SALARY LOOKUP'!$A$3:$F$700,6,FALSE),0)))) -> 0 | AD86: 0 | AH86: =(IF(AJ86="",0,ROUND(VLOOKUP(R86,'AVERAGE SALARY LOOKUP'!$A$3:$E$10004,4,FALSE)*AJ86,0))) -> 0 | AI86: =IF($H86="",0,IF(CONFIG!$B$22="Autonomous",ROUND((AH86*VLOOKUP($H86,CONFIG!$A$46:$C$55,3,FALSE)+(VLOOKUP($BR86,CONFIG!$A$33:$C$43,3,FALSE)*AJ86)),0),IF(H86="10",(ROUND(AJ86*VLOOKUP($R86,'AVERAGE SALARY LOOKUP'!$A$3:$I$700,6,FALSE),0)),(ROUND(AJ86*VLOOKUP($R86,'AVERAGE SALARY LOOKUP'!$A$3:$I$700,9,FALSE),0))))) -> 0 | AK86: 0 | AO86: =(IF(AQ86="",0,IF(CONFIG!$B$22<>"Autonomous",ROUND(VLOOKUP(R86,'AVERAGE SALARY LOOKUP'!$A$3:$E$10004,4,FALSE)*AQ86,0),IF(E86="",0,IF(E86="vacancy",ROUND(VLOOKUP(R86,'AVERAGE SALARY LOOKUP'!$A$3:$E$10004,4,FALSE)*AQ86,0),ROUND(VLOOKUP(E86,'FULL TIME ACTUAL RATES'!$B$2:$G$4927,6,FALSE)*AQ86,0)))))) -> 0 | AP86: =IF($H86="",0,IF(CONFIG!$B$22="Autonomous",ROUND((AO86*VLOOKUP($H86,CONFIG!$A$46:$C$55,3,FALSE)+(VLOOKUP($BR86,CONFIG!$A$33:$C$43,3,FALSE)*AQ86)),0),(ROUND('School Staffing Tool'!AQ86*VLOOKUP($R86,'AVERAGE SALARY LOOKUP'!$A$3:$F$700,6,FALSE),0)))) -> 0 | AR86: 0 | AV86: =(IF(AX86="",0,ROUND(VLOOKUP(R86,'AVERAGE SALARY LOOKUP'!$A$3:$E$10004,4,FALSE)*AX86,0))) -> 0 | AW86: =IF($H86="",0,IF(CONFIG!$B$22="Autonomous",ROUND((AV86*VLOOKUP($H86,CONFIG!$A$46:$C$55,3,FALSE)+(VLOOKUP($BR86,CONFIG!$A$33:$C$43,3,FALSE)*AX86)),0),(ROUND('School Staffing Tool'!AX86*VLOOKUP($R86,'AVERAGE SALARY LOOKUP'!$A$3:$H$700,8,FALSE),0)))) -> 0 | AY86: 0 | BC86: 0 | BD86: =IF(BB86="",0,ROUND((BC86*VLOOKUP($H86,CONFIG!$A$46:$C$55,3,FALSE)+(VLOOKUP($BR86,CONFIG!$A$33:$C$43,3,FALSE)*BE86)),0)) -> 0 | BF86: 0 | BJ86: =(IF(BL86="",0,ROUND(VLOOKUP($R$34,'AVERAGE SALARY LOOKUP'!$A$3:$E$10004,4,FALSE)*BL86,0))) -> 0 | BK86: =IF($H86="",0,IF(CONFIG!$B$22="Autonomous",ROUND((BJ86*VLOOKUP($H86,CONFIG!$A$46:$C$55,3,FALSE)+(VLOOKUP($BR86,CONFIG!$A$33:$C$43,3,FALSE)*BL86)),0),(ROUND('School Staffing Tool'!BL86*VLOOKUP($R86,'AVERAGE SALARY LOOKUP'!$A$3:$F$700,6,FALSE),0)))) -> 0 | BM86: 0 | BQ86: 0 | BR86: =IF(R86="","",VLOOKUP(R86,'AVERAGE SALARY LOOKUP'!$A$3:$C$686,3,FALSE)) ->  | BS86: 0 | BV86: 0 | BW86: 0 | BX86: 0
A87: 0289 FY 10-11 P018 | B87: =CONCATENATE(CONFIG!$C$9," ",CONFIG!$B$6," ",P87,Q87) -> 0289 FY 10-11 P018C | G87: =IF(F87="","",IF(OR(D87="",D87="HS"),VLOOKUP(F87,'JOB CODE LOOKUP'!$S$5:$V$183,3,FALSE),VLOOKUP(F87,'JOB CODE LOOKUP'!$S$5:$V$183,4,FALSE))) ->  | P87: P018 | Q87: C | R87: =IF(F87="","",(IF(CONFIG!$B$12="ES",VLOOKUP(F87,'JOB CODE LOOKUP'!$A$2:$E$222,2,FALSE),IF(CONFIG!$B$12="K-8",VLOOKUP(F87,'JOB CODE LOOKUP'!$G$2:$K$222,2,FALSE),IF(CONFIG!$B$12="MS",VLOOKUP(F87,'JOB CODE LOOKUP'!$M$2:$Q$222,2,FALSE),IF(CONFIG!$B$12="HS",VLOOKUP(F87,'JOB CODE LOOKUP'!$S$2:$W$222,2,FALSE),IF(AND(CONFIG!$B$12="6-12",D87="HS"),VLOOKUP(F87,'JOB CODE LOOKUP'!$S$2:$W$222,2,FALSE),IF(AND(CONFIG!$B$12="6-12",D87="MS"),VLOOKUP(F87,'JOB CODE LOOKUP'!$M$2:$Q$222,2,FALSE),"")))))))) ->  | S87: =IF(CONFIG!$B$2<>"Y","",(IF(OR(G87="",LEFT(H87,1)="2",H87="19",L87="1911"),"",dbs(BV87,CONFIG!$B$4&":Employee - School Staffing",CONFIG!$B$5,CONFIG!$B$6,CONFIG!$C$9,H87,I87,J87,K87,L87,M87,N87,P87,Q87,R87,"FTE")))) ->  | T87: =IF(CONFIG!$B$2<>"Y","",(IF(OR(G87="",LEFT(H87,1)="2",H87="19",L87="1911"),"",dbs(BW87,CONFIG!$B$4&":Employee - School Staffing",CONFIG!$B$5,CONFIG!$B$6,CONFIG!$C$9,H87,I87,J87,K87,L87,M87,N87,P87,Q87,R87,"AMOUNT")))) ->  | U87: =IF(CONFIG!$B$2<>"Y","",(IF(OR(G87="",LEFT(H87,1)="2",H87="19",L87="1911"),"",dbs(BX87,CONFIG!$B$4&":Employee - School Staffing",CONFIG!$B$5,CONFIG!$B$6,CONFIG!$C$9,H87,I87,J87,K87,L87,M87,O87,P87,Q87,R87,"AMOUNT")))) ->  | Y87: 18 | AA87: =(IF(AC87="",0,IF(CONFIG!$B$22<>"Autonomous",ROUND(VLOOKUP(R87,'AVERAGE SALARY LOOKUP'!$A$3:$E$10004,4,FALSE)*AC87,0),IF(E87="",0,IF(E87="vacancy",ROUND(VLOOKUP(R87,'AVERAGE SALARY LOOKUP'!$A$3:$E$10004,4,FALSE)*AC87,0),ROUND(VLOOKUP(E87,'FULL TIME ACTUAL RATES'!$B$2:$G$4927,6,FALSE)*AC87,0)))))) -> 0 | AB87: =IF($H87="",0,IF(CONFIG!$B$22="Autonomous",ROUND((AA87*VLOOKUP($H87,CONFIG!$A$46:$C$55,3,FALSE)+(VLOOKUP($BR87,CONFIG!$A$33:$C$43,3,FALSE)*AC87)),0),(ROUND('School Staffing Tool'!AC87*VLOOKUP(R87,'AVERAGE SALARY LOOKUP'!$A$3:$F$700,6,FALSE),0)))) -> 0 | AD87: 0 | AH87: =(IF(AJ87="",0,ROUND(VLOOKUP(R87,'AVERAGE SALARY LOOKUP'!$A$3:$E$10004,4,FALSE)*AJ87,0))) -> 0 | AI87: =IF($H87="",0,IF(CONFIG!$B$22="Autonomous",ROUND((AH87*VLOOKUP($H87,CONFIG!$A$46:$C$55,3,FALSE)+(VLOOKUP($BR87,CONFIG!$A$33:$C$43,3,FALSE)*AJ87)),0),IF(H87="10",(ROUND(AJ87*VLOOKUP($R87,'AVERAGE SALARY LOOKUP'!$A$3:$I$700,6,FALSE),0)),(ROUND(AJ87*VLOOKUP($R87,'AVERAGE SALARY LOOKUP'!$A$3:$I$700,9,FALSE),0))))) -> 0 | AK87: 0 | AO87: =(IF(AQ87="",0,IF(CONFIG!$B$22<>"Autonomous",ROUND(VLOOKUP(R87,'AVERAGE SALARY LOOKUP'!$A$3:$E$10004,4,FALSE)*AQ87,0),IF(E87="",0,IF(E87="vacancy",ROUND(VLOOKUP(R87,'AVERAGE SALARY LOOKUP'!$A$3:$E$10004,4,FALSE)*AQ87,0),ROUND(VLOOKUP(E87,'FULL TIME ACTUAL RATES'!$B$2:$G$4927,6,FALSE)*AQ87,0)))))) -> 0 | AP87: =IF($H87="",0,IF(CONFIG!$B$22="Autonomous",ROUND((AO87*VLOOKUP($H87,CONFIG!$A$46:$C$55,3,FALSE)+(VLOOKUP($BR87,CONFIG!$A$33:$C$43,3,FALSE)*AQ87)),0),(ROUND('School Staffing Tool'!AQ87*VLOOKUP($R87,'AVERAGE SALARY LOOKUP'!$A$3:$F$700,6,FALSE),0)))) -> 0 | AR87: 0 | AV87: =(IF(AX87="",0,ROUND(VLOOKUP(R87,'AVERAGE SALARY LOOKUP'!$A$3:$E$10004,4,FALSE)*AX87,0))) -> 0 | AW87: =IF($H87="",0,IF(CONFIG!$B$22="Autonomous",ROUND((AV87*VLOOKUP($H87,CONFIG!$A$46:$C$55,3,FALSE)+(VLOOKUP($BR87,CONFIG!$A$33:$C$43,3,FALSE)*AX87)),0),(ROUND('School Staffing Tool'!AX87*VLOOKUP($R87,'AVERAGE SALARY LOOKUP'!$A$3:$H$700,8,FALSE),0)))) -> 0 | AY87: 0 | BC87: 0 | BD87: =IF(BB87="",0,ROUND((BC87*VLOOKUP($H87,CONFIG!$A$46:$C$55,3,FALSE)+(VLOOKUP($BR87,CONFIG!$A$33:$C$43,3,FALSE)*BE87)),0)) -> 0 | BF87: 0 | BJ87: =(IF(BL87="",0,ROUND(VLOOKUP($R$34,'AVERAGE SALARY LOOKUP'!$A$3:$E$10004,4,FALSE)*BL87,0))) -> 0 | BK87: =IF($H87="",0,IF(CONFIG!$B$22="Autonomous",ROUND((BJ87*VLOOKUP($H87,CONFIG!$A$46:$C$55,3,FALSE)+(VLOOKUP($BR87,CONFIG!$A$33:$C$43,3,FALSE)*BL87)),0),(ROUND('School Staffing Tool'!BL87*VLOOKUP($R87,'AVERAGE SALARY LOOKUP'!$A$3:$F$700,6,FALSE),0)))) -> 0 | BM87: 0 | BQ87: 0 | BR87: =IF(R87="","",VLOOKUP(R87,'AVERAGE SALARY LOOKUP'!$A$3:$C$686,3,FALSE)) ->  | BS87: 0 | BV87: 0 | BW87: 0 | BX87: 0
A88: 0289 FY 10-11 P019 | B88: =CONCATENATE(CONFIG!$C$9," ",CONFIG!$B$6," ",P88,Q88) -> 0289 FY 10-11 P019A | C88: Dance | F88: Arts Teacher (General Fund Match) | G88: =IF(F88="","",IF(OR(D88="",D88="HS"),VLOOKUP(F88,'JOB CODE LOOKUP'!$S$5:$V$183,3,FALSE),VLOOKUP(F88,'JOB CODE LOOKUP'!$S$5:$V$183,4,FALSE))) -> 10289110018007920110 | H88: 10 | I88: 289 | J88: 11 | K88: 0018 | L88: 0079 | M88: 2 | N88: 0110 | O88: 0200 | P88: P019 | Q88: A | R88: =IF(F88="","",(IF(CONFIG!$B$12="ES",VLOOKUP(F88,'JOB CODE LOOKUP'!$A$2:$E$222,2,FALSE),IF(CONFIG!$B$12="K-8",VLOOKUP(F88,'JOB CODE LOOKUP'!$G$2:$K$222,2,FALSE),IF(CONFIG!$B$12="MS",VLOOKUP(F88,'JOB CODE LOOKUP'!$M$2:$Q$222,2,FALSE),IF(CONFIG!$B$12="HS",VLOOKUP(F88,'JOB CODE LOOKUP'!$S$2:$W$222,2,FALSE),IF(AND(CONFIG!$B$12="6-12",D88="HS"),VLOOKUP(F88,'JOB CODE LOOKUP'!$S$2:$W$222,2,FALSE),IF(AND(CONFIG!$B$12="6-12",D88="MS"),VLOOKUP(F88,'JOB CODE LOOKUP'!$M$2:$Q$222,2,FALSE),"")))))))) -> 3302 | S88: =IF(CONFIG!$B$2<>"Y","",(IF(OR(G88="",LEFT(H88,1)="2",H88="19",L88="1911"),"",dbs(BV88,CONFIG!$B$4&":Employee - School Staffing",CONFIG!$B$5,CONFIG!$B$6,CONFIG!$C$9,H88,I88,J88,K88,L88,M88,N88,P88,Q88,R88,"FTE")))) ->  | T88: =IF(CONFIG!$B$2<>"Y","",(IF(OR(G88="",LEFT(H88,1)="2",H88="19",L88="1911"),"",dbs(BW88,CONFIG!$B$4&":Employee - School Staffing",CONFIG!$B$5,CONFIG!$B$6,CONFIG!$C$9,H88,I88,J88,K88,L88,M88,N88,P88,Q88,R88,"AMOUNT")))) ->  | U88: =IF(CONFIG!$B$2<>"Y","",(IF(OR(G88="",LEFT(H88,1)="2",H88="19",L88="1911"),"",dbs(BX88,CONFIG!$B$4&":Employee - School Staffing",CONFIG!$B$5,CONFIG!$B$6,CONFIG!$C$9,H88,I88,J88,K88,L88,M88,O88,P88,Q88,R88,"AMOUNT")))) ->  | Y88: 19 | Z88: Arts Teacher (General Fund Match) | AA88: =(IF(AC88="",0,IF(CONFIG!$B$22<>"Autonomous",ROUND(VLOOKUP(R88,'AVERAGE SALARY LOOKUP'!$A$3:$E$10004,4,FALSE)*AC88,0),IF(E88="",0,IF(E88="vacancy",ROUND(VLOOKUP(R88,'AVERAGE SALARY LOOKUP'!$A$3:$E$10004,4,FALSE)*AC88,0),ROUND(VLOOKUP(E88,'FULL TIME ACTUAL RATES'!$B$2:$G$4927,6,FALSE)*AC88,0)))))) -> 25884 | AB88: =IF($H88="",0,IF(CONFIG!$B$22="Autonomous",ROUND((AA88*VLOOKUP($H88,CONFIG!$A$46:$C$55,3,FALSE)+(VLOOKUP($BR88,CONFIG!$A$33:$C$43,3,FALSE)*AC88)),0),(ROUND('School Staffing Tool'!AC88*VLOOKUP(R88,'AVERAGE SALARY LOOKUP'!$A$3:$F$700,6,FALSE),0)))) -> 7088 | AC88: 0.5 | AD88: 32972 | AH88: =(IF(AJ88="",0,ROUND(VLOOKUP(R88,'AVERAGE SALARY LOOKUP'!$A$3:$E$10004,4,FALSE)*AJ88,0))) -> 0 | AI88: =IF($H88="",0,IF(CONFIG!$B$22="Autonomous",ROUND((AH88*VLOOKUP($H88,CONFIG!$A$46:$C$55,3,FALSE)+(VLOOKUP($BR88,CONFIG!$A$33:$C$43,3,FALSE)*AJ88)),0),IF(H88="10",(ROUND(AJ88*VLOOKUP($R88,'AVERAGE SALARY LOOKUP'!$A$3:$I$700,6,FALSE),0)),(ROUND(AJ88*VLOOKUP($R88,'AVERAGE SALARY LOOKUP'!$A$3:$I$700,9,FALSE),0))))) -> 0 | AK88: 0 | AO88: =(IF(AQ88="",0,IF(CONFIG!$B$22<>"Autonomous",ROUND(VLOOKUP(R88,'AVERAGE SALARY LOOKUP'!$A$3:$E$10004,4,FALSE)*AQ88,0),IF(E88="",0,IF(E88="vacancy",ROUND(VLOOKUP(R88,'AVERAGE SALARY LOOKUP'!$A$3:$E$10004,4,FALSE)*AQ88,0),ROUND(VLOOKUP(E88,'FULL TIME ACTUAL RATES'!$B$2:$G$4927,6,FALSE)*AQ88,0)))))) -> 0 | AP88: =IF($H88="",0,IF(CONFIG!$B$22="Autonomous",ROUND((AO88*VLOOKUP($H88,CONFIG!$A$46:$C$55,3,FALSE)+(VLOOKUP($BR88,CONFIG!$A$33:$C$43,3,FALSE)*AQ88)),0),(ROUND('School Staffing Tool'!AQ88*VLOOKUP($R88,'AVERAGE SALARY LOOKUP'!$A$3:$F$700,6,FALSE),0)))) -> 0 | AR88: 0 | AV88: =(IF(AX88="",0,ROUND(VLOOKUP(R88,'AVERAGE SALARY LOOKUP'!$A$3:$E$10004,4,FALSE)*AX88,0))) -> 0 | AW88: =IF($H88="",0,IF(CONFIG!$B$22="Autonomous",ROUND((AV88*VLOOKUP($H88,CONFIG!$A$46:$C$55,3,FALSE)+(VLOOKUP($BR88,CONFIG!$A$33:$C$43,3,FALSE)*AX88)),0),(ROUND('School Staffing Tool'!AX88*VLOOKUP($R88,'AVERAGE SALARY LOOKUP'!$A$3:$H$700,8,FALSE),0)))) -> 0 | AY88: 0 | BC88: 0 | BD88: =IF(BB88="",0,ROUND((BC88*VLOOKUP($H88,CONFIG!$A$46:$C$55,3,FALSE)+(VLOOKUP($BR88,CONFIG!$A$33:$C$43,3,FALSE)*BE88)),0)) -> 0 | BF88: 0 | BJ88: =(IF(BL88="",0,ROUND(VLOOKUP($R$34,'AVERAGE SALARY LOOKUP'!$A$3:$E$10004,4,FALSE)*BL88,0))) -> 0 | BK88: =IF($H88="",0,IF(CONFIG!$B$22="Autonomous",ROUND((BJ88*VLOOKUP($H88,CONFIG!$A$46:$C$55,3,FALSE)+(VLOOKUP($BR88,CONFIG!$A$33:$C$43,3,FALSE)*BL88)),0),(ROUND('School Staffing Tool'!BL88*VLOOKUP($R88,'AVERAGE SALARY LOOKUP'!$A$3:$F$700,6,FALSE),0)))) -> 0 | BM88: 0 | BQ88: 0.5 | BR88: =IF(R88="","",VLOOKUP(R88,'AVERAGE SALARY LOOKUP'!$A$3:$C$686,3,FALSE)) -> DCTA | BS88: 0.5 | BU88: 10,0079,2 | BV88: 0.5 | BW88: 25884 | BX88: 7088
A89: 0289 FY 10-11 P019 | B89: =CONCATENATE(CONFIG!$C$9," ",CONFIG!$B$6," ",P89,Q89) -> 0289 FY 10-11 P019B | G89: =IF(F89="","",IF(OR(D89="",D89="HS"),VLOOKUP(F89,'JOB CODE LOOKUP'!$S$5:$V$183,3,FALSE),VLOOKUP(F89,'JOB CODE LOOKUP'!$S$5:$V$183,4,FALSE))) ->  | P89: P019 | Q89: B | R89: =IF(F89="","",(IF(CONFIG!$B$12="ES",VLOOKUP(F89,'JOB CODE LOOKUP'!$A$2:$E$222,2,FALSE),IF(CONFIG!$B$12="K-8",VLOOKUP(F89,'JOB CODE LOOKUP'!$G$2:$K$222,2,FALSE),IF(CONFIG!$B$12="MS",VLOOKUP(F89,'JOB CODE LOOKUP'!$M$2:$Q$222,2,FALSE),IF(CONFIG!$B$12="HS",VLOOKUP(F89,'JOB CODE LOOKUP'!$S$2:$W$222,2,FALSE),IF(AND(CONFIG!$B$12="6-12",D89="HS"),VLOOKUP(F89,'JOB CODE LOOKUP'!$S$2:$W$222,2,FALSE),IF(AND(CONFIG!$B$12="6-12",D89="MS"),VLOOKUP(F89,'JOB CODE LOOKUP'!$M$2:$Q$222,2,FALSE),"")))))))) ->  | S89: =IF(CONFIG!$B$2<>"Y","",(IF(OR(G89="",LEFT(H89,1)="2",H89="19",L89="1911"),"",dbs(BV89,CONFIG!$B$4&":Employee - School Staffing",CONFIG!$B$5,CONFIG!$B$6,CONFIG!$C$9,H89,I89,J89,K89,L89,M89,N89,P89,Q89,R89,"FTE")))) ->  | T89: =IF(CONFIG!$B$2<>"Y","",(IF(OR(G89="",LEFT(H89,1)="2",H89="19",L89="1911"),"",dbs(BW89,CONFIG!$B$4&":Employee - School Staffing",CONFIG!$B$5,CONFIG!$B$6,CONFIG!$C$9,H89,I89,J89,K89,L89,M89,N89,P89,Q89,R89,"AMOUNT")))) ->  | U89: =IF(CONFIG!$B$2<>"Y","",(IF(OR(G89="",LEFT(H89,1)="2",H89="19",L89="1911"),"",dbs(BX89,CONFIG!$B$4&":Employee - School Staffing",CONFIG!$B$5,CONFIG!$B$6,CONFIG!$C$9,H89,I89,J89,K89,L89,M89,O89,P89,Q89,R89,"AMOUNT")))) ->  | Y89: 19 | AA89: =(IF(AC89="",0,IF(CONFIG!$B$22<>"Autonomous",ROUND(VLOOKUP(R89,'AVERAGE SALARY LOOKUP'!$A$3:$E$10004,4,FALSE)*AC89,0),IF(E89="",0,IF(E89="vacancy",ROUND(VLOOKUP(R89,'AVERAGE SALARY LOOKUP'!$A$3:$E$10004,4,FALSE)*AC89,0),ROUND(VLOOKUP(E89,'FULL TIME ACTUAL RATES'!$B$2:$G$4927,6,FALSE)*AC89,0)))))) -> 0 | AB89: =IF($H89="",0,IF(CONFIG!$B$22="Autonomous",ROUND((AA89*VLOOKUP($H89,CONFIG!$A$46:$C$55,3,FALSE)+(VLOOKUP($BR89,CONFIG!$A$33:$C$43,3,FALSE)*AC89)),0),(ROUND('School Staffing Tool'!AC89*VLOOKUP(R89,'AVERAGE SALARY LOOKUP'!$A$3:$F$700,6,FALSE),0)))) -> 0 | AD89: 0 | AH89: =(IF(AJ89="",0,ROUND(VLOOKUP(R89,'AVERAGE SALARY LOOKUP'!$A$3:$E$10004,4,FALSE)*AJ89,0))) -> 0 | AI89: =IF($H89="",0,IF(CONFIG!$B$22="Autonomous",ROUND((AH89*VLOOKUP($H89,CONFIG!$A$46:$C$55,3,FALSE)+(VLOOKUP($BR89,CONFIG!$A$33:$C$43,3,FALSE)*AJ89)),0),IF(H89="10",(ROUND(AJ89*VLOOKUP($R89,'AVERAGE SALARY LOOKUP'!$A$3:$I$700,6,FALSE),0)),(ROUND(AJ89*VLOOKUP($R89,'AVERAGE SALARY LOOKUP'!$A$3:$I$700,9,FALSE),0))))) -> 0 | AK89: 0 | AO89: =(IF(AQ89="",0,IF(CONFIG!$B$22<>"Autonomous",ROUND(VLOOKUP(R89,'AVERAGE SALARY LOOKUP'!$A$3:$E$10004,4,FALSE)*AQ89,0),IF(E89="",0,IF(E89="vacancy",ROUND(VLOOKUP(R89,'AVERAGE SALARY LOOKUP'!$A$3:$E$10004,4,FALSE)*AQ89,0),ROUND(VLOOKUP(E89,'FULL TIME ACTUAL RATES'!$B$2:$G$4927,6,FALSE)*AQ89,0)))))) -> 0 | AP89: =IF($H89="",0,IF(CONFIG!$B$22="Autonomous",ROUND((AO89*VLOOKUP($H89,CONFIG!$A$46:$C$55,3,FALSE)+(VLOOKUP($BR89,CONFIG!$A$33:$C$43,3,FALSE)*AQ89)),0),(ROUND('School Staffing Tool'!AQ89*VLOOKUP($R89,'AVERAGE SALARY LOOKUP'!$A$3:$F$700,6,FALSE),0)))) -> 0 | AR89: 0 | AV89: =(IF(AX89="",0,ROUND(VLOOKUP(R89,'AVERAGE SALARY LOOKUP'!$A$3:$E$10004,4,FALSE)*AX89,0))) -> 0 | AW89: =IF($H89="",0,IF(CONFIG!$B$22="Autonomous",ROUND((AV89*VLOOKUP($H89,CONFIG!$A$46:$C$55,3,FALSE)+(VLOOKUP($BR89,CONFIG!$A$33:$C$43,3,FALSE)*AX89)),0),(ROUND('School Staffing Tool'!AX89*VLOOKUP($R89,'AVERAGE SALARY LOOKUP'!$A$3:$H$700,8,FALSE),0)))) -> 0 | AY89: 0 | BC89: 0 | BD89: =IF(BB89="",0,ROUND((BC89*VLOOKUP($H89,CONFIG!$A$46:$C$55,3,FALSE)+(VLOOKUP($BR89,CONFIG!$A$33:$C$43,3,FALSE)*BE89)),0)) -> 0 | BF89: 0 | BJ89: =(IF(BL89="",0,ROUND(VLOOKUP($R$34,'AVERAGE SALARY LOOKUP'!$A$3:$E$10004,4,FALSE)*BL89,0))) -> 0 | BK89: =IF($H89="",0,IF(CONFIG!$B$22="Autonomous",ROUND((BJ89*VLOOKUP($H89,CONFIG!$A$46:$C$55,3,FALSE)+(VLOOKUP($BR89,CONFIG!$A$33:$C$43,3,FALSE)*BL89)),0),(ROUND('School Staffing Tool'!BL89*VLOOKUP($R89,'AVERAGE SALARY LOOKUP'!$A$3:$F$700,6,FALSE),0)))) -> 0 | BM89: 0 | BQ89: 0 | BR89: =IF(R89="","",VLOOKUP(R89,'AVERAGE SALARY LOOKUP'!$A$3:$C$686,3,FALSE)) ->  | BS89: 0 | BV89: 0 | BW89: 0 | BX89: 0
A90: 0289 FY 10-11 P019 | B90: =CONCATENATE(CONFIG!$C$9," ",CONFIG!$B$6," ",P90,Q90) -> 0289 FY 10-11 P019C | G90: =IF(F90="","",IF(OR(D90="",D90="HS"),VLOOKUP(F90,'JOB CODE LOOKUP'!$S$5:$V$183,3,FALSE),VLOOKUP(F90,'JOB CODE LOOKUP'!$S$5:$V$183,4,FALSE))) ->  | P90: P019 | Q90: C | R90: =IF(F90="","",(IF(CONFIG!$B$12="ES",VLOOKUP(F90,'JOB CODE LOOKUP'!$A$2:$E$222,2,FALSE),IF(CONFIG!$B$12="K-8",VLOOKUP(F90,'JOB CODE LOOKUP'!$G$2:$K$222,2,FALSE),IF(CONFIG!$B$12="MS",VLOOKUP(F90,'JOB CODE LOOKUP'!$M$2:$Q$222,2,FALSE),IF(CONFIG!$B$12="HS",VLOOKUP(F90,'JOB CODE LOOKUP'!$S$2:$W$222,2,FALSE),IF(AND(CONFIG!$B$12="6-12",D90="HS"),VLOOKUP(F90,'JOB CODE LOOKUP'!$S$2:$W$222,2,FALSE),IF(AND(CONFIG!$B$12="6-12",D90="MS"),VLOOKUP(F90,'JOB CODE LOOKUP'!$M$2:$Q$222,2,FALSE),"")))))))) ->  | S90: =IF(CONFIG!$B$2<>"Y","",(IF(OR(G90="",LEFT(H90,1)="2",H90="19",L90="1911"),"",dbs(BV90,CONFIG!$B$4&":Employee - School Staffing",CONFIG!$B$5,CONFIG!$B$6,CONFIG!$C$9,H90,I90,J90,K90,L90,M90,N90,P90,Q90,R90,"FTE")))) ->  | T90: =IF(CONFIG!$B$2<>"Y","",(IF(OR(G90="",LEFT(H90,1)="2",H90="19",L90="1911"),"",dbs(BW90,CONFIG!$B$4&":Employee - School Staffing",CONFIG!$B$5,CONFIG!$B$6,CONFIG!$C$9,H90,I90,J90,K90,L90,M90,N90,P90,Q90,R90,"AMOUNT")))) ->  | U90: =IF(CONFIG!$B$2<>"Y","",(IF(OR(G90="",LEFT(H90,1)="2",H90="19",L90="1911"),"",dbs(BX90,CONFIG!$B$4&":Employee - School Staffing",CONFIG!$B$5,CONFIG!$B$6,CONFIG!$C$9,H90,I90,J90,K90,L90,M90,O90,P90,Q90,R90,"AMOUNT")))) ->  | Y90: 19 | AA90: =(IF(AC90="",0,IF(CONFIG!$B$22<>"Autonomous",ROUND(VLOOKUP(R90,'AVERAGE SALARY LOOKUP'!$A$3:$E$10004,4,FALSE)*AC90,0),IF(E90="",0,IF(E90="vacancy",ROUND(VLOOKUP(R90,'AVERAGE SALARY LOOKUP'!$A$3:$E$10004,4,FALSE)*AC90,0),ROUND(VLOOKUP(E90,'FULL TIME ACTUAL RATES'!$B$2:$G$4927,6,FALSE)*AC90,0)))))) -> 0 | AB90: =IF($H90="",0,IF(CONFIG!$B$22="Autonomous",ROUND((AA90*VLOOKUP($H90,CONFIG!$A$46:$C$55,3,FALSE)+(VLOOKUP($BR90,CONFIG!$A$33:$C$43,3,FALSE)*AC90)),0),(ROUND('School Staffing Tool'!AC90*VLOOKUP(R90,'AVERAGE SALARY LOOKUP'!$A$3:$F$700,6,FALSE),0)))) -> 0 | AD90: 0 | AH90: =(IF(AJ90="",0,ROUND(VLOOKUP(R90,'AVERAGE SALARY LOOKUP'!$A$3:$E$10004,4,FALSE)*AJ90,0))) -> 0 | AI90: =IF($H90="",0,IF(CONFIG!$B$22="Autonomous",ROUND((AH90*VLOOKUP($H90,CONFIG!$A$46:$C$55,3,FALSE)+(VLOOKUP($BR90,CONFIG!$A$33:$C$43,3,FALSE)*AJ90)),0),IF(H90="10",(ROUND(AJ90*VLOOKUP($R90,'AVERAGE SALARY LOOKUP'!$A$3:$I$700,6,FALSE),0)),(ROUND(AJ90*VLOOKUP($R90,'AVERAGE SALARY LOOKUP'!$A$3:$I$700,9,FALSE),0))))) -> 0 | AK90: 0 | AO90: =(IF(AQ90="",0,IF(CONFIG!$B$22<>"Autonomous",ROUND(VLOOKUP(R90,'AVERAGE SALARY LOOKUP'!$A$3:$E$10004,4,FALSE)*AQ90,0),IF(E90="",0,IF(E90="vacancy",ROUND(VLOOKUP(R90,'AVERAGE SALARY LOOKUP'!$A$3:$E$10004,4,FALSE)*AQ90,0),ROUND(VLOOKUP(E90,'FULL TIME ACTUAL RATES'!$B$2:$G$4927,6,FALSE)*AQ90,0)))))) -> 0 | AP90: =IF($H90="",0,IF(CONFIG!$B$22="Autonomous",ROUND((AO90*VLOOKUP($H90,CONFIG!$A$46:$C$55,3,FALSE)+(VLOOKUP($BR90,CONFIG!$A$33:$C$43,3,FALSE)*AQ90)),0),(ROUND('School Staffing Tool'!AQ90*VLOOKUP($R90,'AVERAGE SALARY LOOKUP'!$A$3:$F$700,6,FALSE),0)))) -> 0 | AR90: 0 | AV90: =(IF(AX90="",0,ROUND(VLOOKUP(R90,'AVERAGE SALARY LOOKUP'!$A$3:$E$10004,4,FALSE)*AX90,0))) -> 0 | AW90: =IF($H90="",0,IF(CONFIG!$B$22="Autonomous",ROUND((AV90*VLOOKUP($H90,CONFIG!$A$46:$C$55,3,FALSE)+(VLOOKUP($BR90,CONFIG!$A$33:$C$43,3,FALSE)*AX90)),0),(ROUND('School Staffing Tool'!AX90*VLOOKUP($R90,'AVERAGE SALARY LOOKUP'!$A$3:$H$700,8,FALSE),0)))) -> 0 | AY90: 0 | BC90: 0 | BD90: =IF(BB90="",0,ROUND((BC90*VLOOKUP($H90,CONFIG!$A$46:$C$55,3,FALSE)+(VLOOKUP($BR90,CONFIG!$A$33:$C$43,3,FALSE)*BE90)),0)) -> 0 | BF90: 0 | BJ90: =(IF(BL90="",0,ROUND(VLOOKUP($R$34,'AVERAGE SALARY LOOKUP'!$A$3:$E$10004,4,FALSE)*BL90,0))) -> 0 | BK90: =IF($H90="",0,IF(CONFIG!$B$22="Autonomous",ROUND((BJ90*VLOOKUP($H90,CONFIG!$A$46:$C$55,3,FALSE)+(VLOOKUP($BR90,CONFIG!$A$33:$C$43,3,FALSE)*BL90)),0),(ROUND('School Staffing Tool'!BL90*VLOOKUP($R90,'AVERAGE SALARY LOOKUP'!$A$3:$F$700,6,FALSE),0)))) -> 0 | BM90: 0 | BQ90: 0 | BR90: =IF(R90="","",VLOOKUP(R90,'AVERAGE SALARY LOOKUP'!$A$3:$C$686,3,FALSE)) ->  | BS90: 0 | BV90: 0 | BW90: 0 | BX90: 0
A91: 0289 FY 10-11 P020 | B91: =CONCATENATE(CONFIG!$C$9," ",CONFIG!$B$6," ",P91,Q91) -> 0289 FY 10-11 P020A | C91: ART | F91: ML Arts Regular Teacher | G91: =IF(F91="","",IF(OR(D91="",D91="HS"),VLOOKUP(F91,'JOB CODE LOOKUP'!$S$5:$V$183,3,FALSE),VLOOKUP(F91,'JOB CODE LOOKUP'!$S$5:$V$183,4,FALSE))) -> 16289110018007920110 | H91: 16 | I91: 289 | J91: 11 | K91: 0018 | L91: 0079 | M91: 2 | N91: 0110 | O91: 0200 | P91: P020 | Q91: A | R91: =IF(F91="","",(IF(CONFIG!$B$12="ES",VLOOKUP(F91,'JOB CODE LOOKUP'!$A$2:$E$222,2,FALSE),IF(CONFIG!$B$12="K-8",VLOOKUP(F91,'JOB CODE LOOKUP'!$G$2:$K$222,2,FALSE),IF(CONFIG!$B$12="MS",VLOOKUP(F91,'JOB CODE LOOKUP'!$M$2:$Q$222,2,FALSE),IF(CONFIG!$B$12="HS",VLOOKUP(F91,'JOB CODE LOOKUP'!$S$2:$W$222,2,FALSE),IF(AND(CONFIG!$B$12="6-12",D91="HS"),VLOOKUP(F91,'JOB CODE LOOKUP'!$S$2:$W$222,2,FALSE),IF(AND(CONFIG!$B$12="6-12",D91="MS"),VLOOKUP(F91,'JOB CODE LOOKUP'!$M$2:$Q$222,2,FALSE),"")))))))) -> 3302 | S91: =IF(CONFIG!$B$2<>"Y","",(IF(OR(G91="",LEFT(H91,1)="2",H91="19",L91="1911"),"",dbs(BV91,CONFIG!$B$4&":Employee - School Staffing",CONFIG!$B$5,CONFIG!$B$6,CONFIG!$C$9,H91,I91,J91,K91,L91,M91,N91,P91,Q91,R91,"FTE")))) ->  | T91: =IF(CONFIG!$B$2<>"Y","",(IF(OR(G91="",LEFT(H91,1)="2",H91="19",L91="1911"),"",dbs(BW91,CONFIG!$B$4&":Employee - School Staffing",CONFIG!$B$5,CONFIG!$B$6,CONFIG!$C$9,H91,I91,J91,K91,L91,M91,N91,P91,Q91,R91,"AMOUNT")))) ->  | U91: =IF(CONFIG!$B$2<>"Y","",(IF(OR(G91="",LEFT(H91,1)="2",H91="19",L91="1911"),"",dbs(BX91,CONFIG!$B$4&":Employee - School Staffing",CONFIG!$B$5,CONFIG!$B$6,CONFIG!$C$9,H91,I91,J91,K91,L91,M91,O91,P91,Q91,R91,"AMOUNT")))) ->  | Y91: 20 | AA91: =(IF(AC91="",0,IF(CONFIG!$B$22<>"Autonomous",ROUND(VLOOKUP(R91,'AVERAGE SALARY LOOKUP'!$A$3:$E$10004,4,FALSE)*AC91,0),IF(E91="",0,IF(E91="vacancy",ROUND(VLOOKUP(R91,'AVERAGE SALARY LOOKUP'!$A$3:$E$10004,4,FALSE)*AC91,0),ROUND(VLOOKUP(E91,'FULL TIME ACTUAL RATES'!$B$2:$G$4927,6,FALSE)*AC91,0)))))) -> 0 | AB91: =IF($H91="",0,IF(CONFIG!$B$22="Autonomous",ROUND((AA91*VLOOKUP($H91,CONFIG!$A$46:$C$55,3,FALSE)+(VLOOKUP($BR91,CONFIG!$A$33:$C$43,3,FALSE)*AC91)),0),(ROUND('School Staffing Tool'!AC91*VLOOKUP(R91,'AVERAGE SALARY LOOKUP'!$A$3:$F$700,6,FALSE),0)))) -> 0 | AD91: 0 | AH91: =(IF(AJ91="",0,ROUND(VLOOKUP(R91,'AVERAGE SALARY LOOKUP'!$A$3:$E$10004,4,FALSE)*AJ91,0))) -> 0 | AI91: =IF($H91="",0,IF(CONFIG!$B$22="Autonomous",ROUND((AH91*VLOOKUP($H91,CONFIG!$A$46:$C$55,3,FALSE)+(VLOOKUP($BR91,CONFIG!$A$33:$C$43,3,FALSE)*AJ91)),0),IF(H91="10",(ROUND(AJ91*VLOOKUP($R91,'AVERAGE SALARY LOOKUP'!$A$3:$I$700,6,FALSE),0)),(ROUND(AJ91*VLOOKUP($R91,'AVERAGE SALARY LOOKUP'!$A$3:$I$700,9,FALSE),0))))) -> 0 | AK91: 0 | AN91: ML Arts Regular Teacher | AO91: =(IF(AQ91="",0,IF(CONFIG!$B$22<>"Autonomous",ROUND(VLOOKUP(R91,'AVERAGE SALARY LOOKUP'!$A$3:$E$10004,4,FALSE)*AQ91,0),IF(E91="",0,IF(E91="vacancy",ROUND(VLOOKUP(R91,'AVERAGE SALARY LOOKUP'!$A$3:$E$10004,4,FALSE)*AQ91,0),ROUND(VLOOKUP(E91,'FULL TIME ACTUAL RATES'!$B$2:$G$4927,6,FALSE)*AQ91,0)))))) -> 51768 | AP91: =IF($H91="",0,IF(CONFIG!$B$22="Autonomous",ROUND((AO91*VLOOKUP($H91,CONFIG!$A$46:$C$55,3,FALSE)+(VLOOKUP($BR91,CONFIG!$A$33:$C$43,3,FALSE)*AQ91)),0),(ROUND('School Staffing Tool'!AQ91*VLOOKUP($R91,'AVERAGE SALARY LOOKUP'!$A$3:$F$700,6,FALSE),0)))) -> 14176 | AQ91: 1 | AR91: 65944 | AV91: =(IF(AX91="",0,ROUND(VLOOKUP(R91,'AVERAGE SALARY LOOKUP'!$A$3:$E$10004,4,FALSE)*AX91,0))) -> 0 | AW91: =IF($H91="",0,IF(CONFIG!$B$22="Autonomous",ROUND((AV91*VLOOKUP($H91,CONFIG!$A$46:$C$55,3,FALSE)+(VLOOKUP($BR91,CONFIG!$A$33:$C$43,3,FALSE)*AX91)),0),(ROUND('School Staffing Tool'!AX91*VLOOKUP($R91,'AVERAGE SALARY LOOKUP'!$A$3:$H$700,8,FALSE),0)))) -> 0 | AY91: 0 | BC91: 0 | BD91: =IF(BB91="",0,ROUND((BC91*VLOOKUP($H91,CONFIG!$A$46:$C$55,3,FALSE)+(VLOOKUP($BR91,CONFIG!$A$33:$C$43,3,FALSE)*BE91)),0)) -> 0 | BF91: 0 | BJ91: =(IF(BL91="",0,ROUND(VLOOKUP($R$34,'AVERAGE SALARY LOOKUP'!$A$3:$E$10004,4,FALSE)*BL91,0))) -> 0 | BK91: =IF($H91="",0,IF(CONFIG!$B$22="Autonomous",ROUND((BJ91*VLOOKUP($H91,CONFIG!$A$46:$C$55,3,FALSE)+(VLOOKUP($BR91,CONFIG!$A$33:$C$43,3,FALSE)*BL91)),0),(ROUND('School Staffing Tool'!BL91*VLOOKUP($R91,'AVERAGE SALARY LOOKUP'!$A$3:$F$700,6,FALSE),0)))) -> 0 | BM91: 0 | BQ91: 1 | BR91: =IF(R91="","",VLOOKUP(R91,'AVERAGE SALARY LOOKUP'!$A$3:$C$686,3,FALSE)) -> DCTA | BS91: 1 | BU91: 16,0079,2 | BV91: 1 | BW91: 51768 | BX91: 14176
A92: 0289 FY 10-11 P020 | B92: =CONCATENATE(CONFIG!$C$9," ",CONFIG!$B$6," ",P92,Q92) -> 0289 FY 10-11 P020B | G92: =IF(F92="","",IF(OR(D92="",D92="HS"),VLOOKUP(F92,'JOB CODE LOOKUP'!$S$5:$V$183,3,FALSE),VLOOKUP(F92,'JOB CODE LOOKUP'!$S$5:$V$183,4,FALSE))) ->  | P92: P020 | Q92: B | R92: =IF(F92="","",(IF(CONFIG!$B$12="ES",VLOOKUP(F92,'JOB CODE LOOKUP'!$A$2:$E$222,2,FALSE),IF(CONFIG!$B$12="K-8",VLOOKUP(F92,'JOB CODE LOOKUP'!$G$2:$K$222,2,FALSE),IF(CONFIG!$B$12="MS",VLOOKUP(F92,'JOB CODE LOOKUP'!$M$2:$Q$222,2,FALSE),IF(CONFIG!$B$12="HS",VLOOKUP(F92,'JOB CODE LOOKUP'!$S$2:$W$222,2,FALSE),IF(AND(CONFIG!$B$12="6-12",D92="HS"),VLOOKUP(F92,'JOB CODE LOOKUP'!$S$2:$W$222,2,FALSE),IF(AND(CONFIG!$B$12="6-12",D92="MS"),VLOOKUP(F92,'JOB CODE LOOKUP'!$M$2:$Q$222,2,FALSE),"")))))))) ->  | S92: =IF(CONFIG!$B$2<>"Y","",(IF(OR(G92="",LEFT(H92,1)="2",H92="19",L92="1911"),"",dbs(BV92,CONFIG!$B$4&":Employee - School Staffing",CONFIG!$B$5,CONFIG!$B$6,CONFIG!$C$9,H92,I92,J92,K92,L92,M92,N92,P92,Q92,R92,"FTE")))) ->  | T92: =IF(CONFIG!$B$2<>"Y","",(IF(OR(G92="",LEFT(H92,1)="2",H92="19",L92="1911"),"",dbs(BW92,CONFIG!$B$4&":Employee - School Staffing",CONFIG!$B$5,CONFIG!$B$6,CONFIG!$C$9,H92,I92,J92,K92,L92,M92,N92,P92,Q92,R92,"AMOUNT")))) ->  | U92: =IF(CONFIG!$B$2<>"Y","",(IF(OR(G92="",LEFT(H92,1)="2",H92="19",L92="1911"),"",dbs(BX92,CONFIG!$B$4&":Employee - School Staffing",CONFIG!$B$5,CONFIG!$B$6,CONFIG!$C$9,H92,I92,J92,K92,L92,M92,O92,P92,Q92,R92,"AMOUNT")))) ->  | Y92: 20 | AA92: =(IF(AC92="",0,IF(CONFIG!$B$22<>"Autonomous",ROUND(VLOOKUP(R92,'AVERAGE SALARY LOOKUP'!$A$3:$E$10004,4,FALSE)*AC92,0),IF(E92="",0,IF(E92="vacancy",ROUND(VLOOKUP(R92,'AVERAGE SALARY LOOKUP'!$A$3:$E$10004,4,FALSE)*AC92,0),ROUND(VLOOKUP(E92,'FULL TIME ACTUAL RATES'!$B$2:$G$4927,6,FALSE)*AC92,0)))))) -> 0 | AB92: =IF($H92="",0,IF(CONFIG!$B$22="Autonomous",ROUND((AA92*VLOOKUP($H92,CONFIG!$A$46:$C$55,3,FALSE)+(VLOOKUP($BR92,CONFIG!$A$33:$C$43,3,FALSE)*AC92)),0),(ROUND('School Staffing Tool'!AC92*VLOOKUP(R92,'AVERAGE SALARY LOOKUP'!$A$3:$F$700,6,FALSE),0)))) -> 0 | AD92: 0 | AH92: =(IF(AJ92="",0,ROUND(VLOOKUP(R92,'AVERAGE SALARY LOOKUP'!$A$3:$E$10004,4,FALSE)*AJ92,0))) -> 0 | AI92: =IF($H92="",0,IF(CONFIG!$B$22="Autonomous",ROUND((AH92*VLOOKUP($H92,CONFIG!$A$46:$C$55,3,FALSE)+(VLOOKUP($BR92,CONFIG!$A$33:$C$43,3,FALSE)*AJ92)),0),IF(H92="10",(ROUND(AJ92*VLOOKUP($R92,'AVERAGE SALARY LOOKUP'!$A$3:$I$700,6,FALSE),0)),(ROUND(AJ92*VLOOKUP($R92,'AVERAGE SALARY LOOKUP'!$A$3:$I$700,9,FALSE),0))))) -> 0 | AK92: 0 | AO92: =(IF(AQ92="",0,IF(CONFIG!$B$22<>"Autonomous",ROUND(VLOOKUP(R92,'AVERAGE SALARY LOOKUP'!$A$3:$E$10004,4,FALSE)*AQ92,0),IF(E92="",0,IF(E92="vacancy",ROUND(VLOOKUP(R92,'AVERAGE SALARY LOOKUP'!$A$3:$E$10004,4,FALSE)*AQ92,0),ROUND(VLOOKUP(E92,'FULL TIME ACTUAL RATES'!$B$2:$G$4927,6,FALSE)*AQ92,0)))))) -> 0 | AP92: =IF($H92="",0,IF(CONFIG!$B$22="Autonomous",ROUND((AO92*VLOOKUP($H92,CONFIG!$A$46:$C$55,3,FALSE)+(VLOOKUP($BR92,CONFIG!$A$33:$C$43,3,FALSE)*AQ92)),0),(ROUND('School Staffing Tool'!AQ92*VLOOKUP($R92,'AVERAGE SALARY LOOKUP'!$A$3:$F$700,6,FALSE),0)))) -> 0 | AR92: 0 | AV92: =(IF(AX92="",0,ROUND(VLOOKUP(R92,'AVERAGE SALARY LOOKUP'!$A$3:$E$10004,4,FALSE)*AX92,0))) -> 0 | AW92: =IF($H92="",0,IF(CONFIG!$B$22="Autonomous",ROUND((AV92*VLOOKUP($H92,CONFIG!$A$46:$C$55,3,FALSE)+(VLOOKUP($BR92,CONFIG!$A$33:$C$43,3,FALSE)*AX92)),0),(ROUND('School Staffing Tool'!AX92*VLOOKUP($R92,'AVERAGE SALARY LOOKUP'!$A$3:$H$700,8,FALSE),0)))) -> 0 | AY92: 0 | BC92: 0 | BD92: =IF(BB92="",0,ROUND((BC92*VLOOKUP($H92,CONFIG!$A$46:$C$55,3,FALSE)+(VLOOKUP($BR92,CONFIG!$A$33:$C$43,3,FALSE)*BE92)),0)) -> 0 | BF92: 0 | BJ92: =(IF(BL92="",0,ROUND(VLOOKUP($R$34,'AVERAGE SALARY LOOKUP'!$A$3:$E$10004,4,FALSE)*BL92,0))) -> 0 | BK92: =IF($H92="",0,IF(CONFIG!$B$22="Autonomous",ROUND((BJ92*VLOOKUP($H92,CONFIG!$A$46:$C$55,3,FALSE)+(VLOOKUP($BR92,CONFIG!$A$33:$C$43,3,FALSE)*BL92)),0),(ROUND('School Staffing Tool'!BL92*VLOOKUP($R92,'AVERAGE SALARY LOOKUP'!$A$3:$F$700,6,FALSE),0)))) -> 0 | BM92: 0 | BQ92: 0 | BR92: =IF(R92="","",VLOOKUP(R92,'AVERAGE SALARY LOOKUP'!$A$3:$C$686,3,FALSE)) ->  | BS92: 0 | BV92: 0 | BW92: 0 | BX92: 0
A93: 0289 FY 10-11 P020 | B93: =CONCATENATE(CONFIG!$C$9," ",CONFIG!$B$6," ",P93,Q93) -> 0289 FY 10-11 P020C | G93: =IF(F93="","",IF(OR(D93="",D93="HS"),VLOOKUP(F93,'JOB CODE LOOKUP'!$S$5:$V$183,3,FALSE),VLOOKUP(F93,'JOB CODE LOOKUP'!$S$5:$V$183,4,FALSE))) ->  | P93: P020 | Q93: C | R93: =IF(F93="","",(IF(CONFIG!$B$12="ES",VLOOKUP(F93,'JOB CODE LOOKUP'!$A$2:$E$222,2,FALSE),IF(CONFIG!$B$12="K-8",VLOOKUP(F93,'JOB CODE LOOKUP'!$G$2:$K$222,2,FALSE),IF(CONFIG!$B$12="MS",VLOOKUP(F93,'JOB CODE LOOKUP'!$M$2:$Q$222,2,FALSE),IF(CONFIG!$B$12="HS",VLOOKUP(F93,'JOB CODE LOOKUP'!$S$2:$W$222,2,FALSE),IF(AND(CONFIG!$B$12="6-12",D93="HS"),VLOOKUP(F93,'JOB CODE LOOKUP'!$S$2:$W$222,2,FALSE),IF(AND(CONFIG!$B$12="6-12",D93="MS"),VLOOKUP(F93,'JOB CODE LOOKUP'!$M$2:$Q$222,2,FALSE),"")))))))) ->  | S93: =IF(CONFIG!$B$2<>"Y","",(IF(OR(G93="",LEFT(H93,1)="2",H93="19",L93="1911"),"",dbs(BV93,CONFIG!$B$4&":Employee - School Staffing",CONFIG!$B$5,CONFIG!$B$6,CONFIG!$C$9,H93,I93,J93,K93,L93,M93,N93,P93,Q93,R93,"FTE")))) ->  | T93: =IF(CONFIG!$B$2<>"Y","",(IF(OR(G93="",LEFT(H93,1)="2",H93="19",L93="1911"),"",dbs(BW93,CONFIG!$B$4&":Employee - School Staffing",CONFIG!$B$5,CONFIG!$B$6,CONFIG!$C$9,H93,I93,J93,K93,L93,M93,N93,P93,Q93,R93,"AMOUNT")))) ->  | U93: =IF(CONFIG!$B$2<>"Y","",(IF(OR(G93="",LEFT(H93,1)="2",H93="19",L93="1911"),"",dbs(BX93,CONFIG!$B$4&":Employee - School Staffing",CONFIG!$B$5,CONFIG!$B$6,CONFIG!$C$9,H93,I93,J93,K93,L93,M93,O93,P93,Q93,R93,"AMOUNT")))) ->  | Y93: 20 | AA93: =(IF(AC93="",0,IF(CONFIG!$B$22<>"Autonomous",ROUND(VLOOKUP(R93,'AVERAGE SALARY LOOKUP'!$A$3:$E$10004,4,FALSE)*AC93,0),IF(E93="",0,IF(E93="vacancy",ROUND(VLOOKUP(R93,'AVERAGE SALARY LOOKUP'!$A$3:$E$10004,4,FALSE)*AC93,0),ROUND(VLOOKUP(E93,'FULL TIME ACTUAL RATES'!$B$2:$G$4927,6,FALSE)*AC93,0)))))) -> 0 | AB93: =IF($H93="",0,IF(CONFIG!$B$22="Autonomous",ROUND((AA93*VLOOKUP($H93,CONFIG!$A$46:$C$55,3,FALSE)+(VLOOKUP($BR93,CONFIG!$A$33:$C$43,3,FALSE)*AC93)),0),(ROUND('School Staffing Tool'!AC93*VLOOKUP(R93,'AVERAGE SALARY LOOKUP'!$A$3:$F$700,6,FALSE),0)))) -> 0 | AD93: 0 | AH93: =(IF(AJ93="",0,ROUND(VLOOKUP(R93,'AVERAGE SALARY LOOKUP'!$A$3:$E$10004,4,FALSE)*AJ93,0))) -> 0 | AI93: =IF($H93="",0,IF(CONFIG!$B$22="Autonomous",ROUND((AH93*VLOOKUP($H93,CONFIG!$A$46:$C$55,3,FALSE)+(VLOOKUP($BR93,CONFIG!$A$33:$C$43,3,FALSE)*AJ93)),0),IF(H93="10",(ROUND(AJ93*VLOOKUP($R93,'AVERAGE SALARY LOOKUP'!$A$3:$I$700,6,FALSE),0)),(ROUND(AJ93*VLOOKUP($R93,'AVERAGE SALARY LOOKUP'!$A$3:$I$700,9,FALSE),0))))) -> 0 | AK93: 0 | AO93: =(IF(AQ93="",0,IF(CONFIG!$B$22<>"Autonomous",ROUND(VLOOKUP(R93,'AVERAGE SALARY LOOKUP'!$A$3:$E$10004,4,FALSE)*AQ93,0),IF(E93="",0,IF(E93="vacancy",ROUND(VLOOKUP(R93,'AVERAGE SALARY LOOKUP'!$A$3:$E$10004,4,FALSE)*AQ93,0),ROUND(VLOOKUP(E93,'FULL TIME ACTUAL RATES'!$B$2:$G$4927,6,FALSE)*AQ93,0)))))) -> 0 | AP93: =IF($H93="",0,IF(CONFIG!$B$22="Autonomous",ROUND((AO93*VLOOKUP($H93,CONFIG!$A$46:$C$55,3,FALSE)+(VLOOKUP($BR93,CONFIG!$A$33:$C$43,3,FALSE)*AQ93)),0),(ROUND('School Staffing Tool'!AQ93*VLOOKUP($R93,'AVERAGE SALARY LOOKUP'!$A$3:$F$700,6,FALSE),0)))) -> 0 | AR93: 0 | AV93: =(IF(AX93="",0,ROUND(VLOOKUP(R93,'AVERAGE SALARY LOOKUP'!$A$3:$E$10004,4,FALSE)*AX93,0))) -> 0 | AW93: =IF($H93="",0,IF(CONFIG!$B$22="Autonomous",ROUND((AV93*VLOOKUP($H93,CONFIG!$A$46:$C$55,3,FALSE)+(VLOOKUP($BR93,CONFIG!$A$33:$C$43,3,FALSE)*AX93)),0),(ROUND('School Staffing Tool'!AX93*VLOOKUP($R93,'AVERAGE SALARY LOOKUP'!$A$3:$H$700,8,FALSE),0)))) -> 0 | AY93: 0 | BC93: 0 | BD93: =IF(BB93="",0,ROUND((BC93*VLOOKUP($H93,CONFIG!$A$46:$C$55,3,FALSE)+(VLOOKUP($BR93,CONFIG!$A$33:$C$43,3,FALSE)*BE93)),0)) -> 0 | BF93: 0 | BJ93: =(IF(BL93="",0,ROUND(VLOOKUP($R$34,'AVERAGE SALARY LOOKUP'!$A$3:$E$10004,4,FALSE)*BL93,0))) -> 0 | BK93: =IF($H93="",0,IF(CONFIG!$B$22="Autonomous",ROUND((BJ93*VLOOKUP($H93,CONFIG!$A$46:$C$55,3,FALSE)+(VLOOKUP($BR93,CONFIG!$A$33:$C$43,3,FALSE)*BL93)),0),(ROUND('School Staffing Tool'!BL93*VLOOKUP($R93,'AVERAGE SALARY LOOKUP'!$A$3:$F$700,6,FALSE),0)))) -> 0 | BM93: 0 | BQ93: 0 | BR93: =IF(R93="","",VLOOKUP(R93,'AVERAGE SALARY LOOKUP'!$A$3:$C$686,3,FALSE)) ->  | BS93: 0 | BV93: 0 | BW93: 0 | BX93: 0
A94: 0289 FY 10-11 P021 | B94: =CONCATENATE(CONFIG!$C$9," ",CONFIG!$B$6," ",P94,Q94) -> 0289 FY 10-11 P021A | C94: Nurse | F94: Nurse | G94: =IF(F94="","",IF(OR(D94="",D94="HS"),VLOOKUP(F94,'JOB CODE LOOKUP'!$S$5:$V$183,3,FALSE),VLOOKUP(F94,'JOB CODE LOOKUP'!$S$5:$V$183,4,FALSE))) -> 10289212134000020110 | H94: 10 | I94: 289 | J94: 21 | K94: 2134 | L94: 0000 | M94: 2 | N94: 0110 | O94: 0200 | P94: P021 | Q94: A | R94: =IF(F94="","",(IF(CONFIG!$B$12="ES",VLOOKUP(F94,'JOB CODE LOOKUP'!$A$2:$E$222,2,FALSE),IF(CONFIG!$B$12="K-8",VLOOKUP(F94,'JOB CODE LOOKUP'!$G$2:$K$222,2,FALSE),IF(CONFIG!$B$12="MS",VLOOKUP(F94,'JOB CODE LOOKUP'!$M$2:$Q$222,2,FALSE),IF(CONFIG!$B$12="HS",VLOOKUP(F94,'JOB CODE LOOKUP'!$S$2:$W$222,2,FALSE),IF(AND(CONFIG!$B$12="6-12",D94="HS"),VLOOKUP(F94,'JOB CODE LOOKUP'!$S$2:$W$222,2,FALSE),IF(AND(CONFIG!$B$12="6-12",D94="MS"),VLOOKUP(F94,'JOB CODE LOOKUP'!$M$2:$Q$222,2,FALSE),"")))))))) -> 1401 | S94: =IF(CONFIG!$B$2<>"Y","",(IF(OR(G94="",LEFT(H94,1)="2",H94="19",L94="1911"),"",dbs(BV94,CONFIG!$B$4&":Employee - School Staffing",CONFIG!$B$5,CONFIG!$B$6,CONFIG!$C$9,H94,I94,J94,K94,L94,M94,N94,P94,Q94,R94,"FTE")))) ->  | T94: =IF(CONFIG!$B$2<>"Y","",(IF(OR(G94="",LEFT(H94,1)="2",H94="19",L94="1911"),"",dbs(BW94,CONFIG!$B$4&":Employee - School Staffing",CONFIG!$B$5,CONFIG!$B$6,CONFIG!$C$9,H94,I94,J94,K94,L94,M94,N94,P94,Q94,R94,"AMOUNT")))) ->  | U94: =IF(CONFIG!$B$2<>"Y","",(IF(OR(G94="",LEFT(H94,1)="2",H94="19",L94="1911"),"",dbs(BX94,CONFIG!$B$4&":Employee - School Staffing",CONFIG!$B$5,CONFIG!$B$6,CONFIG!$C$9,H94,I94,J94,K94,L94,M94,O94,P94,Q94,R94,"AMOUNT")))) ->  | Y94: 21 | Z94: Nurse | AA94: =(IF(AC94="",0,IF(CONFIG!$B$22<>"Autonomous",ROUND(VLOOKUP(R94,'AVERAGE SALARY LOOKUP'!$A$3:$E$10004,4,FALSE)*AC94,0),IF(E94="",0,IF(E94="vacancy",ROUND(VLOOKUP(R94,'AVERAGE SALARY LOOKUP'!$A$3:$E$10004,4,FALSE)*AC94,0),ROUND(VLOOKUP(E94,'FULL TIME ACTUAL RATES'!$B$2:$G$4927,6,FALSE)*AC94,0)))))) -> 13256 | AB94: =IF($H94="",0,IF(CONFIG!$B$22="Autonomous",ROUND((AA94*VLOOKUP($H94,CONFIG!$A$46:$C$55,3,FALSE)+(VLOOKUP($BR94,CONFIG!$A$33:$C$43,3,FALSE)*AC94)),0),(ROUND('School Staffing Tool'!AC94*VLOOKUP(R94,'AVERAGE SALARY LOOKUP'!$A$3:$F$700,6,FALSE),0)))) -> 1468 | AC94: 0.2 | AD94: 14724 | AH94: =(IF(AJ94="",0,ROUND(VLOOKUP(R94,'AVERAGE SALARY LOOKUP'!$A$3:$E$10004,4,FALSE)*AJ94,0))) -> 0 | AI94: =IF($H94="",0,IF(CONFIG!$B$22="Autonomous",ROUND((AH94*VLOOKUP($H94,CONFIG!$A$46:$C$55,3,FALSE)+(VLOOKUP($BR94,CONFIG!$A$33:$C$43,3,FALSE)*AJ94)),0),IF(H94="10",(ROUND(AJ94*VLOOKUP($R94,'AVERAGE SALARY LOOKUP'!$A$3:$I$700,6,FALSE),0)),(ROUND(AJ94*VLOOKUP($R94,'AVERAGE SALARY LOOKUP'!$A$3:$I$700,9,FALSE),0))))) -> 0 | AK94: 0 | AO94: =(IF(AQ94="",0,IF(CONFIG!$B$22<>"Autonomous",ROUND(VLOOKUP(R94,'AVERAGE SALARY LOOKUP'!$A$3:$E$10004,4,FALSE)*AQ94,0),IF(E94="",0,IF(E94="vacancy",ROUND(VLOOKUP(R94,'AVERAGE SALARY LOOKUP'!$A$3:$E$10004,4,FALSE)*AQ94,0),ROUND(VLOOKUP(E94,'FULL TIME ACTUAL RATES'!$B$2:$G$4927,6,FALSE)*AQ94,0)))))) -> 0 | AP94: =IF($H94="",0,IF(CONFIG!$B$22="Autonomous",ROUND((AO94*VLOOKUP($H94,CONFIG!$A$46:$C$55,3,FALSE)+(VLOOKUP($BR94,CONFIG!$A$33:$C$43,3,FALSE)*AQ94)),0),(ROUND('School Staffing Tool'!AQ94*VLOOKUP($R94,'AVERAGE SALARY LOOKUP'!$A$3:$F$700,6,FALSE),0)))) -> 0 | AR94: 0 | AV94: =(IF(AX94="",0,ROUND(VLOOKUP(R94,'AVERAGE SALARY LOOKUP'!$A$3:$E$10004,4,FALSE)*AX94,0))) -> 0 | AW94: =IF($H94="",0,IF(CONFIG!$B$22="Autonomous",ROUND((AV94*VLOOKUP($H94,CONFIG!$A$46:$C$55,3,FALSE)+(VLOOKUP($BR94,CONFIG!$A$33:$C$43,3,FALSE)*AX94)),0),(ROUND('School Staffing Tool'!AX94*VLOOKUP($R94,'AVERAGE SALARY LOOKUP'!$A$3:$H$700,8,FALSE),0)))) -> 0 | AY94: 0 | BC94: 0 | BD94: =IF(BB94="",0,ROUND((BC94*VLOOKUP($H94,CONFIG!$A$46:$C$55,3,FALSE)+(VLOOKUP($BR94,CONFIG!$A$33:$C$43,3,FALSE)*BE94)),0)) -> 0 | BF94: 0 | BJ94: =(IF(BL94="",0,ROUND(VLOOKUP($R$34,'AVERAGE SALARY LOOKUP'!$A$3:$E$10004,4,FALSE)*BL94,0))) -> 0 | BK94: =IF($H94="",0,IF(CONFIG!$B$22="Autonomous",ROUND((BJ94*VLOOKUP($H94,CONFIG!$A$46:$C$55,3,FALSE)+(VLOOKUP($BR94,CONFIG!$A$33:$C$43,3,FALSE)*BL94)),0),(ROUND('School Staffing Tool'!BL94*VLOOKUP($R94,'AVERAGE SALARY LOOKUP'!$A$3:$F$700,6,FALSE),0)))) -> 0 | BM94: 0 | BQ94: 0.2 | BR94: =IF(R94="","",VLOOKUP(R94,'AVERAGE SALARY LOOKUP'!$A$3:$C$686,3,FALSE)) -> DCTA | BS94: 0.2 | BU94: 10,0000,2 | BV94: 0.2 | BW94: 13256 | BX94: 1468
A95: 0289 FY 10-11 P021 | B95: =CONCATENATE(CONFIG!$C$9," ",CONFIG!$B$6," ",P95,Q95) -> 0289 FY 10-11 P021B | F95: Central - Nurse | G95: =IF(F95="","",IF(OR(D95="",D95="HS"),VLOOKUP(F95,'JOB CODE LOOKUP'!$S$5:$V$183,3,FALSE),VLOOKUP(F95,'JOB CODE LOOKUP'!$S$5:$V$183,4,FALSE))) ->  | P95: P021 | Q95: B | R95: =IF(F95="","",(IF(CONFIG!$B$12="ES",VLOOKUP(F95,'JOB CODE LOOKUP'!$A$2:$E$222,2,FALSE),IF(CONFIG!$B$12="K-8",VLOOKUP(F95,'JOB CODE LOOKUP'!$G$2:$K$222,2,FALSE),IF(CONFIG!$B$12="MS",VLOOKUP(F95,'JOB CODE LOOKUP'!$M$2:$Q$222,2,FALSE),IF(CONFIG!$B$12="HS",VLOOKUP(F95,'JOB CODE LOOKUP'!$S$2:$W$222,2,FALSE),IF(AND(CONFIG!$B$12="6-12",D95="HS"),VLOOKUP(F95,'JOB CODE LOOKUP'!$S$2:$W$222,2,FALSE),IF(AND(CONFIG!$B$12="6-12",D95="MS"),VLOOKUP(F95,'JOB CODE LOOKUP'!$M$2:$Q$222,2,FALSE),"")))))))) ->  | S95: =IF(CONFIG!$B$2<>"Y","",(IF(OR(G95="",LEFT(H95,1)="2",H95="19",L95="1911"),"",dbs(BV95,CONFIG!$B$4&":Employee - School Staffing",CONFIG!$B$5,CONFIG!$B$6,CONFIG!$C$9,H95,I95,J95,K95,L95,M95,N95,P95,Q95,R95,"FTE")))) ->  | T95: =IF(CONFIG!$B$2<>"Y","",(IF(OR(G95="",LEFT(H95,1)="2",H95="19",L95="1911"),"",dbs(BW95,CONFIG!$B$4&":Employee - School Staffing",CONFIG!$B$5,CONFIG!$B$6,CONFIG!$C$9,H95,I95,J95,K95,L95,M95,N95,P95,Q95,R95,"AMOUNT")))) ->  | U95: =IF(CONFIG!$B$2<>"Y","",(IF(OR(G95="",LEFT(H95,1)="2",H95="19",L95="1911"),"",dbs(BX95,CONFIG!$B$4&":Employee - School Staffing",CONFIG!$B$5,CONFIG!$B$6,CONFIG!$C$9,H95,I95,J95,K95,L95,M95,O95,P95,Q95,R95,"AMOUNT")))) ->  | Y95: 21 | AA95: =(IF(AC95="",0,IF(CONFIG!$B$22<>"Autonomous",ROUND(VLOOKUP(R95,'AVERAGE SALARY LOOKUP'!$A$3:$E$10004,4,FALSE)*AC95,0),IF(E95="",0,IF(E95="vacancy",ROUND(VLOOKUP(R95,'AVERAGE SALARY LOOKUP'!$A$3:$E$10004,4,FALSE)*AC95,0),ROUND(VLOOKUP(E95,'FULL TIME ACTUAL RATES'!$B$2:$G$4927,6,FALSE)*AC95,0)))))) -> 0 | AB95: =IF($H95="",0,IF(CONFIG!$B$22="Autonomous",ROUND((AA95*VLOOKUP($H95,CONFIG!$A$46:$C$55,3,FALSE)+(VLOOKUP($BR95,CONFIG!$A$33:$C$43,3,FALSE)*AC95)),0),(ROUND('School Staffing Tool'!AC95*VLOOKUP(R95,'AVERAGE SALARY LOOKUP'!$A$3:$F$700,6,FALSE),0)))) ->  | AH95: =(IF(AJ95="",0,ROUND(VLOOKUP(R95,'AVERAGE SALARY LOOKUP'!$A$3:$E$10004,4,FALSE)*AJ95,0))) -> 0 | AI95: =IF($H95="",0,IF(CONFIG!$B$22="Autonomous",ROUND((AH95*VLOOKUP($H95,CONFIG!$A$46:$C$55,3,FALSE)+(VLOOKUP($BR95,CONFIG!$A$33:$C$43,3,FALSE)*AJ95)),0),IF(H95="10",(ROUND(AJ95*VLOOKUP($R95,'AVERAGE SALARY LOOKUP'!$A$3:$I$700,6,FALSE),0)),(ROUND(AJ95*VLOOKUP($R95,'AVERAGE SALARY LOOKUP'!$A$3:$I$700,9,FALSE),0))))) ->  | AO95: =(IF(AQ95="",0,IF(CONFIG!$B$22<>"Autonomous",ROUND(VLOOKUP(R95,'AVERAGE SALARY LOOKUP'!$A$3:$E$10004,4,FALSE)*AQ95,0),IF(E95="",0,IF(E95="vacancy",ROUND(VLOOKUP(R95,'AVERAGE SALARY LOOKUP'!$A$3:$E$10004,4,FALSE)*AQ95,0),ROUND(VLOOKUP(E95,'FULL TIME ACTUAL RATES'!$B$2:$G$4927,6,FALSE)*AQ95,0)))))) -> 0 | AP95: =IF($H95="",0,IF(CONFIG!$B$22="Autonomous",ROUND((AO95*VLOOKUP($H95,CONFIG!$A$46:$C$55,3,FALSE)+(VLOOKUP($BR95,CONFIG!$A$33:$C$43,3,FALSE)*AQ95)),0),(ROUND('School Staffing Tool'!AQ95*VLOOKUP($R95,'AVERAGE SALARY LOOKUP'!$A$3:$F$700,6,FALSE),0)))) ->  | AV95: =(IF(AX95="",0,ROUND(VLOOKUP(R95,'AVERAGE SALARY LOOKUP'!$A$3:$E$10004,4,FALSE)*AX95,0))) -> 0 | AW95: =IF($H95="",0,IF(CONFIG!$B$22="Autonomous",ROUND((AV95*VLOOKUP($H95,CONFIG!$A$46:$C$55,3,FALSE)+(VLOOKUP($BR95,CONFIG!$A$33:$C$43,3,FALSE)*AX95)),0),(ROUND('School Staffing Tool'!AX95*VLOOKUP($R95,'AVERAGE SALARY LOOKUP'!$A$3:$H$700,8,FALSE),0)))) ->  | BC95: 0 | BD95: =IF(BB95="",0,ROUND((BC95*VLOOKUP($H95,CONFIG!$A$46:$C$55,3,FALSE)+(VLOOKUP($BR95,CONFIG!$A$33:$C$43,3,FALSE)*BE95)),0)) -> 0 | BF95: 0 | BJ95: =(IF(BL95="",0,ROUND(VLOOKUP($R$34,'AVERAGE SALARY LOOKUP'!$A$3:$E$10004,4,FALSE)*BL95,0))) -> 0 | BK95: =IF($H95="",0,IF(CONFIG!$B$22="Autonomous",ROUND((BJ95*VLOOKUP($H95,CONFIG!$A$46:$C$55,3,FALSE)+(VLOOKUP($BR95,CONFIG!$A$33:$C$43,3,FALSE)*BL95)),0),(ROUND('School Staffing Tool'!BL95*VLOOKUP($R95,'AVERAGE SALARY LOOKUP'!$A$3:$F$700,6,FALSE),0)))) ->  | BO95: Central - Nurse | BP95: 0.2 | BQ95: 0.2 | BR95: =IF(R95="","",VLOOKUP(R95,'AVERAGE SALARY LOOKUP'!$A$3:$C$686,3,FALSE)) ->  | BS95: 0.2 | BV95: 0.2 | BW95: 0
A96: 0289 FY 10-11 P021 | B96: =CONCATENATE(CONFIG!$C$9," ",CONFIG!$B$6," ",P96,Q96) -> 0289 FY 10-11 P021C | G96: =IF(F96="","",IF(OR(D96="",D96="HS"),VLOOKUP(F96,'JOB CODE LOOKUP'!$S$5:$V$183,3,FALSE),VLOOKUP(F96,'JOB CODE LOOKUP'!$S$5:$V$183,4,FALSE))) ->  | P96: P021 | Q96: C | R96: =IF(F96="","",(IF(CONFIG!$B$12="ES",VLOOKUP(F96,'JOB CODE LOOKUP'!$A$2:$E$222,2,FALSE),IF(CONFIG!$B$12="K-8",VLOOKUP(F96,'JOB CODE LOOKUP'!$G$2:$K$222,2,FALSE),IF(CONFIG!$B$12="MS",VLOOKUP(F96,'JOB CODE LOOKUP'!$M$2:$Q$222,2,FALSE),IF(CONFIG!$B$12="HS",VLOOKUP(F96,'JOB CODE LOOKUP'!$S$2:$W$222,2,FALSE),IF(AND(CONFIG!$B$12="6-12",D96="HS"),VLOOKUP(F96,'JOB CODE LOOKUP'!$S$2:$W$222,2,FALSE),IF(AND(CONFIG!$B$12="6-12",D96="MS"),VLOOKUP(F96,'JOB CODE LOOKUP'!$M$2:$Q$222,2,FALSE),"")))))))) ->  | S96: =IF(CONFIG!$B$2<>"Y","",(IF(OR(G96="",LEFT(H96,1)="2",H96="19",L96="1911"),"",dbs(BV96,CONFIG!$B$4&":Employee - School Staffing",CONFIG!$B$5,CONFIG!$B$6,CONFIG!$C$9,H96,I96,J96,K96,L96,M96,N96,P96,Q96,R96,"FTE")))) ->  | T96: =IF(CONFIG!$B$2<>"Y","",(IF(OR(G96="",LEFT(H96,1)="2",H96="19",L96="1911"),"",dbs(BW96,CONFIG!$B$4&":Employee - School Staffing",CONFIG!$B$5,CONFIG!$B$6,CONFIG!$C$9,H96,I96,J96,K96,L96,M96,N96,P96,Q96,R96,"AMOUNT")))) ->  | U96: =IF(CONFIG!$B$2<>"Y","",(IF(OR(G96="",LEFT(H96,1)="2",H96="19",L96="1911"),"",dbs(BX96,CONFIG!$B$4&":Employee - School Staffing",CONFIG!$B$5,CONFIG!$B$6,CONFIG!$C$9,H96,I96,J96,K96,L96,M96,O96,P96,Q96,R96,"AMOUNT")))) ->  | Y96: 21 | AA96: =(IF(AC96="",0,IF(CONFIG!$B$22<>"Autonomous",ROUND(VLOOKUP(R96,'AVERAGE SALARY LOOKUP'!$A$3:$E$10004,4,FALSE)*AC96,0),IF(E96="",0,IF(E96="vacancy",ROUND(VLOOKUP(R96,'AVERAGE SALARY LOOKUP'!$A$3:$E$10004,4,FALSE)*AC96,0),ROUND(VLOOKUP(E96,'FULL TIME ACTUAL RATES'!$B$2:$G$4927,6,FALSE)*AC96,0)))))) -> 0 | AB96: =IF($H96="",0,IF(CONFIG!$B$22="Autonomous",ROUND((AA96*VLOOKUP($H96,CONFIG!$A$46:$C$55,3,FALSE)+(VLOOKUP($BR96,CONFIG!$A$33:$C$43,3,FALSE)*AC96)),0),(ROUND('School Staffing Tool'!AC96*VLOOKUP(R96,'AVERAGE SALARY LOOKUP'!$A$3:$F$700,6,FALSE),0)))) -> 0 | AD96: 0 | AH96: =(IF(AJ96="",0,ROUND(VLOOKUP(R96,'AVERAGE SALARY LOOKUP'!$A$3:$E$10004,4,FALSE)*AJ96,0))) -> 0 | AI96: =IF($H96="",0,IF(CONFIG!$B$22="Autonomous",ROUND((AH96*VLOOKUP($H96,CONFIG!$A$46:$C$55,3,FALSE)+(VLOOKUP($BR96,CONFIG!$A$33:$C$43,3,FALSE)*AJ96)),0),IF(H96="10",(ROUND(AJ96*VLOOKUP($R96,'AVERAGE SALARY LOOKUP'!$A$3:$I$700,6,FALSE),0)),(ROUND(AJ96*VLOOKUP($R96,'AVERAGE SALARY LOOKUP'!$A$3:$I$700,9,FALSE),0))))) -> 0 | AK96: 0 | AO96: =(IF(AQ96="",0,IF(CONFIG!$B$22<>"Autonomous",ROUND(VLOOKUP(R96,'AVERAGE SALARY LOOKUP'!$A$3:$E$10004,4,FALSE)*AQ96,0),IF(E96="",0,IF(E96="vacancy",ROUND(VLOOKUP(R96,'AVERAGE SALARY LOOKUP'!$A$3:$E$10004,4,FALSE)*AQ96,0),ROUND(VLOOKUP(E96,'FULL TIME ACTUAL RATES'!$B$2:$G$4927,6,FALSE)*AQ96,0)))))) -> 0 | AP96: =IF($H96="",0,IF(CONFIG!$B$22="Autonomous",ROUND((AO96*VLOOKUP($H96,CONFIG!$A$46:$C$55,3,FALSE)+(VLOOKUP($BR96,CONFIG!$A$33:$C$43,3,FALSE)*AQ96)),0),(ROUND('School Staffing Tool'!AQ96*VLOOKUP($R96,'AVERAGE SALARY LOOKUP'!$A$3:$F$700,6,FALSE),0)))) -> 0 | AR96: 0 | AV96: =(IF(AX96="",0,ROUND(VLOOKUP(R96,'AVERAGE SALARY LOOKUP'!$A$3:$E$10004,4,FALSE)*AX96,0))) -> 0 | AW96: =IF($H96="",0,IF(CONFIG!$B$22="Autonomous",ROUND((AV96*VLOOKUP($H96,CONFIG!$A$46:$C$55,3,FALSE)+(VLOOKUP($BR96,CONFIG!$A$33:$C$43,3,FALSE)*AX96)),0),(ROUND('School Staffing Tool'!AX96*VLOOKUP($R96,'AVERAGE SALARY LOOKUP'!$A$3:$H$700,8,FALSE),0)))) -> 0 | AY96: 0 | BC96: 0 | BD96: =IF(BB96="",0,ROUND((BC96*VLOOKUP($H96,CONFIG!$A$46:$C$55,3,FALSE)+(VLOOKUP($BR96,CONFIG!$A$33:$C$43,3,FALSE)*BE96)),0)) -> 0 | BF96: 0 | BJ96: =(IF(BL96="",0,ROUND(VLOOKUP($R$34,'AVERAGE SALARY LOOKUP'!$A$3:$E$10004,4,FALSE)*BL96,0))) -> 0 | BK96: =IF($H96="",0,IF(CONFIG!$B$22="Autonomous",ROUND((BJ96*VLOOKUP($H96,CONFIG!$A$46:$C$55,3,FALSE)+(VLOOKUP($BR96,CONFIG!$A$33:$C$43,3,FALSE)*BL96)),0),(ROUND('School Staffing Tool'!BL96*VLOOKUP($R96,'AVERAGE SALARY LOOKUP'!$A$3:$F$700,6,FALSE),0)))) -> 0 | BM96: 0 | BQ96: 0 | BR96: =IF(R96="","",VLOOKUP(R96,'AVERAGE SALARY LOOKUP'!$A$3:$C$686,3,FALSE)) ->  | BS96: 0 | BV96: 0 | BW96: 0 | BX96: 0
A97: 0289 FY 10-11 P022 | B97: =CONCATENATE(CONFIG!$C$9," ",CONFIG!$B$6," ",P97,Q97) -> 0289 FY 10-11 P022A | C97: Psych | F97: Psychologist | G97: =IF(F97="","",IF(OR(D97="",D97="HS"),VLOOKUP(F97,'JOB CODE LOOKUP'!$S$5:$V$183,3,FALSE),VLOOKUP(F97,'JOB CODE LOOKUP'!$S$5:$V$183,4,FALSE))) -> 10289212140000020110 | H97: 10 | I97: 289 | J97: 21 | K97: 2140 | L97: 0000 | M97: 2 | N97: 0110 | O97: 0200 | P97: P022 | Q97: A | R97: =IF(F97="","",(IF(CONFIG!$B$12="ES",VLOOKUP(F97,'JOB CODE LOOKUP'!$A$2:$E$222,2,FALSE),IF(CONFIG!$B$12="K-8",VLOOKUP(F97,'JOB CODE LOOKUP'!$G$2:$K$222,2,FALSE),IF(CONFIG!$B$12="MS",VLOOKUP(F97,'JOB CODE LOOKUP'!$M$2:$Q$222,2,FALSE),IF(CONFIG!$B$12="HS",VLOOKUP(F97,'JOB CODE LOOKUP'!$S$2:$W$222,2,FALSE),IF(AND(CONFIG!$B$12="6-12",D97="HS"),VLOOKUP(F97,'JOB CODE LOOKUP'!$S$2:$W$222,2,FALSE),IF(AND(CONFIG!$B$12="6-12",D97="MS"),VLOOKUP(F97,'JOB CODE LOOKUP'!$M$2:$Q$222,2,FALSE),"")))))))) -> 1511 | S97: =IF(CONFIG!$B$2<>"Y","",(IF(OR(G97="",LEFT(H97,1)="2",H97="19",L97="1911"),"",dbs(BV97,CONFIG!$B$4&":Employee - School Staffing",CONFIG!$B$5,CONFIG!$B$6,CONFIG!$C$9,H97,I97,J97,K97,L97,M97,N97,P97,Q97,R97,"FTE")))) ->  | T97: =IF(CONFIG!$B$2<>"Y","",(IF(OR(G97="",LEFT(H97,1)="2",H97="19",L97="1911"),"",dbs(BW97,CONFIG!$B$4&":Employee - School Staffing",CONFIG!$B$5,CONFIG!$B$6,CONFIG!$C$9,H97,I97,J97,K97,L97,M97,N97,P97,Q97,R97,"AMOUNT")))) ->  | U97: =IF(CONFIG!$B$2<>"Y","",(IF(OR(G97="",LEFT(H97,1)="2",H97="19",L97="1911"),"",dbs(BX97,CONFIG!$B$4&":Employee - School Staffing",CONFIG!$B$5,CONFIG!$B$6,CONFIG!$C$9,H97,I97,J97,K97,L97,M97,O97,P97,Q97,R97,"AMOUNT")))) ->  | Y97: 22 | Z97: Psychologist | AA97: =(IF(AC97="",0,IF(CONFIG!$B$22<>"Autonomous",ROUND(VLOOKUP(R97,'AVERAGE SALARY LOOKUP'!$A$3:$E$10004,4,FALSE)*AC97,0),IF(E97="",0,IF(E97="vacancy",ROUND(VLOOKUP(R97,'AVERAGE SALARY LOOKUP'!$A$3:$E$10004,4,FALSE)*AC97,0),ROUND(VLOOKUP(E97,'FULL TIME ACTUAL RATES'!$B$2:$G$4927,6,FALSE)*AC97,0)))))) -> 13256 | AB97: =IF($H97="",0,IF(CONFIG!$B$22="Autonomous",ROUND((AA97*VLOOKUP($H97,CONFIG!$A$46:$C$55,3,FALSE)+(VLOOKUP($BR97,CONFIG!$A$33:$C$43,3,FALSE)*AC97)),0),(ROUND('School Staffing Tool'!AC97*VLOOKUP(R97,'AVERAGE SALARY LOOKUP'!$A$3:$F$700,6,FALSE),0)))) -> 1468 | AC97: 0.2 | AD97: 14724 | AH97: =(IF(AJ97="",0,ROUND(VLOOKUP(R97,'AVERAGE SALARY LOOKUP'!$A$3:$E$10004,4,FALSE)*AJ97,0))) -> 0 | AI97: =IF($H97="",0,IF(CONFIG!$B$22="Autonomous",ROUND((AH97*VLOOKUP($H97,CONFIG!$A$46:$C$55,3,FALSE)+(VLOOKUP($BR97,CONFIG!$A$33:$C$43,3,FALSE)*AJ97)),0),IF(H97="10",(ROUND(AJ97*VLOOKUP($R97,'AVERAGE SALARY LOOKUP'!$A$3:$I$700,6,FALSE),0)),(ROUND(AJ97*VLOOKUP($R97,'AVERAGE SALARY LOOKUP'!$A$3:$I$700,9,FALSE),0))))) -> 0 | AK97: 0 | AO97: =(IF(AQ97="",0,IF(CONFIG!$B$22<>"Autonomous",ROUND(VLOOKUP(R97,'AVERAGE SALARY LOOKUP'!$A$3:$E$10004,4,FALSE)*AQ97,0),IF(E97="",0,IF(E97="vacancy",ROUND(VLOOKUP(R97,'AVERAGE SALARY LOOKUP'!$A$3:$E$10004,4,FALSE)*AQ97,0),ROUND(VLOOKUP(E97,'FULL TIME ACTUAL RATES'!$B$2:$G$4927,6,FALSE)*AQ97,0)))))) -> 0 | AP97: =IF($H97="",0,IF(CONFIG!$B$22="Autonomous",ROUND((AO97*VLOOKUP($H97,CONFIG!$A$46:$C$55,3,FALSE)+(VLOOKUP($BR97,CONFIG!$A$33:$C$43,3,FALSE)*AQ97)),0),(ROUND('School Staffing Tool'!AQ97*VLOOKUP($R97,'AVERAGE SALARY LOOKUP'!$A$3:$F$700,6,FALSE),0)))) -> 0 | AR97: 0 | AV97: =(IF(AX97="",0,ROUND(VLOOKUP(R97,'AVERAGE SALARY LOOKUP'!$A$3:$E$10004,4,FALSE)*AX97,0))) -> 0 | AW97: =IF($H97="",0,IF(CONFIG!$B$22="Autonomous",ROUND((AV97*VLOOKUP($H97,CONFIG!$A$46:$C$55,3,FALSE)+(VLOOKUP($BR97,CONFIG!$A$33:$C$43,3,FALSE)*AX97)),0),(ROUND('School Staffing Tool'!AX97*VLOOKUP($R97,'AVERAGE SALARY LOOKUP'!$A$3:$H$700,8,FALSE),0)))) -> 0 | AY97: 0 | BC97: 0 | BD97: =IF(BB97="",0,ROUND((BC97*VLOOKUP($H97,CONFIG!$A$46:$C$55,3,FALSE)+(VLOOKUP($BR97,CONFIG!$A$33:$C$43,3,FALSE)*BE97)),0)) -> 0 | BF97: 0 | BJ97: =(IF(BL97="",0,ROUND(VLOOKUP($R$34,'AVERAGE SALARY LOOKUP'!$A$3:$E$10004,4,FALSE)*BL97,0))) -> 0 | BK97: =IF($H97="",0,IF(CONFIG!$B$22="Autonomous",ROUND((BJ97*VLOOKUP($H97,CONFIG!$A$46:$C$55,3,FALSE)+(VLOOKUP($BR97,CONFIG!$A$33:$C$43,3,FALSE)*BL97)),0),(ROUND('School Staffing Tool'!BL97*VLOOKUP($R97,'AVERAGE SALARY LOOKUP'!$A$3:$F$700,6,FALSE),0)))) -> 0 | BM97: 0 | BQ97: 0.2 | BR97: =IF(R97="","",VLOOKUP(R97,'AVERAGE SALARY LOOKUP'!$A$3:$C$686,3,FALSE)) -> DCTA | BS97: 0.2 | BU97: 10,0000,2 | BV97: 0.2 | BW97: 13256 | BX97: 1468
A98: 0289 FY 10-11 P022 | B98: =CONCATENATE(CONFIG!$C$9," ",CONFIG!$B$6," ",P98,Q98) -> 0289 FY 10-11 P022B | F98: =IF(AC98<>"",Z98,IF(AJ98<>"",AG98,IF(AQ98<>"",AN98,IF(AX98<>"",AU98,IF(BE98<>"",BB98,IF(BL98<>"",BI98,IF(BP98<>"",BO98,""))))))) ->  | G98: =IF(F98="","",IF(OR(D98="",D98="HS"),VLOOKUP(F98,'JOB CODE LOOKUP'!$S$5:$V$183,3,FALSE),VLOOKUP(F98,'JOB CODE LOOKUP'!$S$5:$V$183,4,FALSE))) ->  | P98: P022 | Q98: B | R98: =IF(F98="","",(IF(CONFIG!$B$12="ES",VLOOKUP(F98,'JOB CODE LOOKUP'!$A$2:$E$222,2,FALSE),IF(CONFIG!$B$12="K-8",VLOOKUP(F98,'JOB CODE LOOKUP'!$G$2:$K$222,2,FALSE),IF(CONFIG!$B$12="MS",VLOOKUP(F98,'JOB CODE LOOKUP'!$M$2:$Q$222,2,FALSE),IF(CONFIG!$B$12="HS",VLOOKUP(F98,'JOB CODE LOOKUP'!$S$2:$W$222,2,FALSE),IF(AND(CONFIG!$B$12="6-12",D98="HS"),VLOOKUP(F98,'JOB CODE LOOKUP'!$S$2:$W$222,2,FALSE),IF(AND(CONFIG!$B$12="6-12",D98="MS"),VLOOKUP(F98,'JOB CODE LOOKUP'!$M$2:$Q$222,2,FALSE),"")))))))) ->  | S98: =IF(CONFIG!$B$2<>"Y","",(IF(OR(G98="",LEFT(H98,1)="2",H98="19",L98="1911"),"",dbs(BV98,CONFIG!$B$4&":Employee - School Staffing",CONFIG!$B$5,CONFIG!$B$6,CONFIG!$C$9,H98,I98,J98,K98,L98,M98,N98,P98,Q98,R98,"FTE")))) ->  | T98: =IF(CONFIG!$B$2<>"Y","",(IF(OR(G98="",LEFT(H98,1)="2",H98="19",L98="1911"),"",dbs(BW98,CONFIG!$B$4&":Employee - School Staffing",CONFIG!$B$5,CONFIG!$B$6,CONFIG!$C$9,H98,I98,J98,K98,L98,M98,N98,P98,Q98,R98,"AMOUNT")))) ->  | U98: =IF(CONFIG!$B$2<>"Y","",(IF(OR(G98="",LEFT(H98,1)="2",H98="19",L98="1911"),"",dbs(BX98,CONFIG!$B$4&":Employee - School Staffing",CONFIG!$B$5,CONFIG!$B$6,CONFIG!$C$9,H98,I98,J98,K98,L98,M98,O98,P98,Q98,R98,"AMOUNT")))) ->  | Y98: =RIGHT(P98,2) -> 22 | AA98: =(IF(AC98="",0,IF(CONFIG!$B$22<>"Autonomous",ROUND(VLOOKUP(R98,'AVERAGE SALARY LOOKUP'!$A$3:$E$10004,4,FALSE)*AC98,0),IF(E98="",0,IF(E98="vacancy",ROUND(VLOOKUP(R98,'AVERAGE SALARY LOOKUP'!$A$3:$E$10004,4,FALSE)*AC98,0),ROUND(VLOOKUP(E98,'FULL TIME ACTUAL RATES'!$B$2:$G$4927,6,FALSE)*AC98,0)))))) -> 0 | AB98: =IF($H98="",0,IF(CONFIG!$B$22="Autonomous",ROUND((AA98*VLOOKUP($H98,CONFIG!$A$46:$C$55,3,FALSE)+(VLOOKUP($BR98,CONFIG!$A$33:$C$43,3,FALSE)*AC98)),0),(ROUND('School Staffing Tool'!AC98*VLOOKUP(R98,'AVERAGE SALARY LOOKUP'!$A$3:$F$700,6,FALSE),0)))) -> 0 | AD98: 0 | AH98: =(IF(AJ98="",0,ROUND(VLOOKUP(R98,'AVERAGE SALARY LOOKUP'!$A$3:$E$10004,4,FALSE)*AJ98,0))) -> 0 | AI98: =IF($H98="",0,IF(CONFIG!$B$22="Autonomous",ROUND((AH98*VLOOKUP($H98,CONFIG!$A$46:$C$55,3,FALSE)+(VLOOKUP($BR98,CONFIG!$A$33:$C$43,3,FALSE)*AJ98)),0),IF(H98="10",(ROUND(AJ98*VLOOKUP($R98,'AVERAGE SALARY LOOKUP'!$A$3:$I$700,6,FALSE),0)),(ROUND(AJ98*VLOOKUP($R98,'AVERAGE SALARY LOOKUP'!$A$3:$I$700,9,FALSE),0))))) -> 0 | AK98: 0 | AO98: =(IF(AQ98="",0,IF(CONFIG!$B$22<>"Autonomous",ROUND(VLOOKUP(R98,'AVERAGE SALARY LOOKUP'!$A$3:$E$10004,4,FALSE)*AQ98,0),IF(E98="",0,IF(E98="vacancy",ROUND(VLOOKUP(R98,'AVERAGE SALARY LOOKUP'!$A$3:$E$10004,4,FALSE)*AQ98,0),ROUND(VLOOKUP(E98,'FULL TIME ACTUAL RATES'!$B$2:$G$4927,6,FALSE)*AQ98,0)))))) -> 0 | AP98: =IF($H98="",0,IF(CONFIG!$B$22="Autonomous",ROUND((AO98*VLOOKUP($H98,CONFIG!$A$46:$C$55,3,FALSE)+(VLOOKUP($BR98,CONFIG!$A$33:$C$43,3,FALSE)*AQ98)),0),(ROUND('School Staffing Tool'!AQ98*VLOOKUP($R98,'AVERAGE SALARY LOOKUP'!$A$3:$F$700,6,FALSE),0)))) -> 0 | AR98: 0 | AV98: =(IF(AX98="",0,ROUND(VLOOKUP(R98,'AVERAGE SALARY LOOKUP'!$A$3:$E$10004,4,FALSE)*AX98,0))) -> 0 | AW98: =IF($H98="",0,IF(CONFIG!$B$22="Autonomous",ROUND((AV98*VLOOKUP($H98,CONFIG!$A$46:$C$55,3,FALSE)+(VLOOKUP($BR98,CONFIG!$A$33:$C$43,3,FALSE)*AX98)),0),(ROUND('School Staffing Tool'!AX98*VLOOKUP($R98,'AVERAGE SALARY LOOKUP'!$A$3:$H$700,8,FALSE),0)))) -> 0 | AY98: 0 | BC98: 0 | BD98: =IF(BB98="",0,ROUND((BC98*VLOOKUP($H98,CONFIG!$A$46:$C$55,3,FALSE)+(VLOOKUP($BR98,CONFIG!$A$33:$C$43,3,FALSE)*BE98)),0)) -> 0 | BF98: 0 | BJ98: =(IF(BL98="",0,ROUND(VLOOKUP($R$34,'AVERAGE SALARY LOOKUP'!$A$3:$E$10004,4,FALSE)*BL98,0))) -> 0 | BK98: =IF($H98="",0,IF(CONFIG!$B$22="Autonomous",ROUND((BJ98*VLOOKUP($H98,CONFIG!$A$46:$C$55,3,FALSE)+(VLOOKUP($BR98,CONFIG!$A$33:$C$43,3,FALSE)*BL98)),0),(ROUND('School Staffing Tool'!BL98*VLOOKUP($R98,'AVERAGE SALARY LOOKUP'!$A$3:$F$700,6,FALSE),0)))) -> 0 | BM98: 0 | BQ98: =BP98+BL98+BE98+AQ98+AX98+AJ98+AC98 -> 0 | BR98: =IF(R98="","",VLOOKUP(R98,'AVERAGE SALARY LOOKUP'!$A$3:$C$686,3,FALSE)) ->  | BS98: 0 | BV98: =BP98+BL98+BE98+AQ98+AX98+AJ98+AC98 -> 0 | BW98: =IF(F98="",0,AA98+AH98+AO98+AV98+BC98+BJ98) -> 0 | BX98: =IF(F98="",0,AB98+AI98+AP98+AW98+BD98+BK98) -> 0
A99: =LEFT(B99,18) -> 0289 FY 10-11 P022 | B99: =CONCATENATE(CONFIG!$C$9," ",CONFIG!$B$6," ",P99,Q99) -> 0289 FY 10-11 P022C | G99: =IF(F99="","",IF(OR(D99="",D99="HS"),VLOOKUP(F99,'JOB CODE LOOKUP'!$S$5:$V$183,3,FALSE),VLOOKUP(F99,'JOB CODE LOOKUP'!$S$5:$V$183,4,FALSE))) ->  | H99: =LEFT(G99,2) ->  | I99: =MID(G99,3,3) ->  | J99: =MID(G99,6,2) ->  | K99: =MID(G99,8,4) ->  | L99: =MID(G99,12,4) ->  | M99: =MID(G99,16,1) ->  | N99: =RIGHT(G99,4) ->  | O99: =IF(N99="","","0200") ->  | P99: P022 | Q99: C | R99: =IF(F99="","",(IF(CONFIG!$B$12="ES",VLOOKUP(F99,'JOB CODE LOOKUP'!$A$2:$E$222,2,FALSE),IF(CONFIG!$B$12="K-8",VLOOKUP(F99,'JOB CODE LOOKUP'!$G$2:$K$222,2,FALSE),IF(CONFIG!$B$12="MS",VLOOKUP(F99,'JOB CODE LOOKUP'!$M$2:$Q$222,2,FALSE),IF(CONFIG!$B$12="HS",VLOOKUP(F99,'JOB CODE LOOKUP'!$S$2:$W$222,2,FALSE),IF(AND(CONFIG!$B$12="6-12",D99="HS"),VLOOKUP(F99,'JOB CODE LOOKUP'!$S$2:$W$222,2,FALSE),IF(AND(CONFIG!$B$12="6-12",D99="MS"),VLOOKUP(F99,'JOB CODE LOOKUP'!$M$2:$Q$222,2,FALSE),"")))))))) ->  | S99: =IF(CONFIG!$B$2<>"Y","",(IF(OR(G99="",LEFT(H99,1)="2",H99="19",L99="1911"),"",dbs(BV99,CONFIG!$B$4&":Employee - School Staffing",CONFIG!$B$5,CONFIG!$B$6,CONFIG!$C$9,H99,I99,J99,K99,L99,M99,N99,P99,Q99,R99,"FTE")))) ->  | T99: =IF(CONFIG!$B$2<>"Y","",(IF(OR(G99="",LEFT(H99,1)="2",H99="19",L99="1911"),"",dbs(BW99,CONFIG!$B$4&":Employee - School Staffing",CONFIG!$B$5,CONFIG!$B$6,CONFIG!$C$9,H99,I99,J99,K99,L99,M99,N99,P99,Q99,R99,"AMOUNT")))) ->  | U99: =IF(CONFIG!$B$2<>"Y","",(IF(OR(G99="",LEFT(H99,1)="2",H99="19",L99="1911"),"",dbs(BX99,CONFIG!$B$4&":Employee - School Staffing",CONFIG!$B$5,CONFIG!$B$6,CONFIG!$C$9,H99,I99,J99,K99,L99,M99,O99,P99,Q99,R99,"AMOUNT")))) ->  | Y99: 22 | AA99: =(IF(AC99="",0,IF(CONFIG!$B$22<>"Autonomous",ROUND(VLOOKUP(R99,'AVERAGE SALARY LOOKUP'!$A$3:$E$10004,4,FALSE)*AC99,0),IF(E99="",0,IF(E99="vacancy",ROUND(VLOOKUP(R99,'AVERAGE SALARY LOOKUP'!$A$3:$E$10004,4,FALSE)*AC99,0),ROUND(VLOOKUP(E99,'FULL TIME ACTUAL RATES'!$B$2:$G$4927,6,FALSE)*AC99,0)))))) -> 0 | AB99: =IF($H99="",0,IF(CONFIG!$B$22="Autonomous",ROUND((AA99*VLOOKUP($H99,CONFIG!$A$46:$C$55,3,FALSE)+(VLOOKUP($BR99,CONFIG!$A$33:$C$43,3,FALSE)*AC99)),0),(ROUND('School Staffing Tool'!AC99*VLOOKUP(R99,'AVERAGE SALARY LOOKUP'!$A$3:$F$700,6,FALSE),0)))) -> 0 | AD99: =IF(AA99="",0,ROUND(AA99+AB99,0)) -> 0 | AH99: =(IF(AJ99="",0,ROUND(VLOOKUP(R99,'AVERAGE SALARY LOOKUP'!$A$3:$E$10004,4,FALSE)*AJ99,0))) -> 0 | AI99: =IF($H99="",0,IF(CONFIG!$B$22="Autonomous",ROUND((AH99*VLOOKUP($H99,CONFIG!$A$46:$C$55,3,FALSE)+(VLOOKUP($BR99,CONFIG!$A$33:$C$43,3,FALSE)*AJ99)),0),IF(H99="10",(ROUND(AJ99*VLOOKUP($R99,'AVERAGE SALARY LOOKUP'!$A$3:$I$700,6,FALSE),0)),(ROUND(AJ99*VLOOKUP($R99,'AVERAGE SALARY LOOKUP'!$A$3:$I$700,9,FALSE),0))))) -> 0 | AK99: =IF(AH99="",0,ROUND(AH99+AI99,0)) -> 0 | AO99: =(IF(AQ99="",0,IF(CONFIG!$B$22<>"Autonomous",ROUND(VLOOKUP(R99,'AVERAGE SALARY LOOKUP'!$A$3:$E$10004,4,FALSE)*AQ99,0),IF(E99="",0,IF(E99="vacancy",ROUND(VLOOKUP(R99,'AVERAGE SALARY LOOKUP'!$A$3:$E$10004,4,FALSE)*AQ99,0),ROUND(VLOOKUP(E99,'FULL TIME ACTUAL RATES'!$B$2:$G$4927,6,FALSE)*AQ99,0)))))) -> 0 | AP99: =IF($H99="",0,IF(CONFIG!$B$22="Autonomous",ROUND((AO99*VLOOKUP($H99,CONFIG!$A$46:$C$55,3,FALSE)+(VLOOKUP($BR99,CONFIG!$A$33:$C$43,3,FALSE)*AQ99)),0),(ROUND('School Staffing Tool'!AQ99*VLOOKUP($R99,'AVERAGE SALARY LOOKUP'!$A$3:$F$700,6,FALSE),0)))) -> 0 | AR99: =IF(AO99="",0,ROUND(AO99+AP99,0)) -> 0 | AV99: =(IF(AX99="",0,ROUND(VLOOKUP(R99,'AVERAGE SALARY LOOKUP'!$A$3:$E$10004,4,FALSE)*AX99,0))) -> 0 | AW99: =IF($H99="",0,IF(CONFIG!$B$22="Autonomous",ROUND((AV99*VLOOKUP($H99,CONFIG!$A$46:$C$55,3,FALSE)+(VLOOKUP($BR99,CONFIG!$A$33:$C$43,3,FALSE)*AX99)),0),(ROUND('School Staffing Tool'!AX99*VLOOKUP($R99,'AVERAGE SALARY LOOKUP'!$A$3:$H$700,8,FALSE),0)))) -> 0 | AY99: =IF(AV99="",0,ROUND(AV99+AW99,0)) -> 0 | BC99: 0 | BD99: =IF(BB99="",0,ROUND((BC99*VLOOKUP($H99,CONFIG!$A$46:$C$55,3,FALSE)+(VLOOKUP($BR99,CONFIG!$A$33:$C$43,3,FALSE)*BE99)),0)) -> 0 | BF99: =IF(BC99="",0,ROUND(BC99+BD99,0)) -> 0 | BJ99: =(IF(BL99="",0,ROUND(VLOOKUP($R$34,'AVERAGE SALARY LOOKUP'!$A$3:$E$10004,4,FALSE)*BL99,0))) -> 0 | BK99: =IF($H99="",0,IF(CONFIG!$B$22="Autonomous",ROUND((BJ99*VLOOKUP($H99,CONFIG!$A$46:$C$55,3,FALSE)+(VLOOKUP($BR99,CONFIG!$A$33:$C$43,3,FALSE)*BL99)),0),(ROUND('School Staffing Tool'!BL99*VLOOKUP($R99,'AVERAGE SALARY LOOKUP'!$A$3:$F$700,6,FALSE),0)))) -> 0 | BM99: =IF(BJ99="","",BJ99+BK99) -> 0 | BQ99: 0 | BR99: =IF(R99="","",VLOOKUP(R99,'AVERAGE SALARY LOOKUP'!$A$3:$C$686,3,FALSE)) ->  | BS99: =BQ99 -> 0 | BU99: =IF(F99="","",(CONCATENATE(H99,",",L99,",",M99))) ->  | BV99: 0 | BW99: 0 | BX99: 0
A100: 0289 FY 10-11 P023 | B100: =CONCATENATE(CONFIG!$C$9," ",CONFIG!$B$6," ",P100,Q100) -> 0289 FY 10-11 P023A | C100: SW | F100: Social Worker | G100: =IF(F100="","",IF(OR(D100="",D100="HS"),VLOOKUP(F100,'JOB CODE LOOKUP'!$S$5:$V$183,3,FALSE),VLOOKUP(F100,'JOB CODE LOOKUP'!$S$5:$V$183,4,FALSE))) -> 10289212113000020110 | H100: 10 | I100: 289 | J100: 21 | K100: 2113 | L100: 0000 | M100: 2 | N100: 0110 | O100: 0200 | P100: P023 | Q100: A | R100: =IF(F100="","",(IF(CONFIG!$B$12="ES",VLOOKUP(F100,'JOB CODE LOOKUP'!$A$2:$E$222,2,FALSE),IF(CONFIG!$B$12="K-8",VLOOKUP(F100,'JOB CODE LOOKUP'!$G$2:$K$222,2,FALSE),IF(CONFIG!$B$12="MS",VLOOKUP(F100,'JOB CODE LOOKUP'!$M$2:$Q$222,2,FALSE),IF(CONFIG!$B$12="HS",VLOOKUP(F100,'JOB CODE LOOKUP'!$S$2:$W$222,2,FALSE),IF(AND(CONFIG!$B$12="6-12",D100="HS"),VLOOKUP(F100,'JOB CODE LOOKUP'!$S$2:$W$222,2,FALSE),IF(AND(CONFIG!$B$12="6-12",D100="MS"),VLOOKUP(F100,'JOB CODE LOOKUP'!$M$2:$Q$222,2,FALSE),"")))))))) -> 1530 | S100: =IF(CONFIG!$B$2<>"Y","",(IF(OR(G100="",LEFT(H100,1)="2",H100="19",L100="1911"),"",dbs(BV100,CONFIG!$B$4&":Employee - School Staffing",CONFIG!$B$5,CONFIG!$B$6,CONFIG!$C$9,H100,I100,J100,K100,L100,M100,N100,P100,Q100,R100,"FTE")))) ->  | T100: =IF(CONFIG!$B$2<>"Y","",(IF(OR(G100="",LEFT(H100,1)="2",H100="19",L100="1911"),"",dbs(BW100,CONFIG!$B$4&":Employee - School Staffing",CONFIG!$B$5,CONFIG!$B$6,CONFIG!$C$9,H100,I100,J100,K100,L100,M100,N100,P100,Q100,R100,"AMOUNT")))) ->  | U100: =IF(CONFIG!$B$2<>"Y","",(IF(OR(G100="",LEFT(H100,1)="2",H100="19",L100="1911"),"",dbs(BX100,CONFIG!$B$4&":Employee - School Staffing",CONFIG!$B$5,CONFIG!$B$6,CONFIG!$C$9,H100,I100,J100,K100,L100,M100,O100,P100,Q100,R100,"AMOUNT")))) ->  | Y100: 23 | Z100: Social Worker | AA100: =(IF(AC100="",0,IF(CONFIG!$B$22<>"Autonomous",ROUND(VLOOKUP(R100,'AVERAGE SALARY LOOKUP'!$A$3:$E$10004,4,FALSE)*AC100,0),IF(E100="",0,IF(E100="vacancy",ROUND(VLOOKUP(R100,'AVERAGE SALARY LOOKUP'!$A$3:$E$10004,4,FALSE)*AC100,0),ROUND(VLOOKUP(E100,'FULL TIME ACTUAL RATES'!$B$2:$G$4927,6,FALSE)*AC100,0)))))) -> 13256 | AB100: =IF($H100="",0,IF(CONFIG!$B$22="Autonomous",ROUND((AA100*VLOOKUP($H100,CONFIG!$A$46:$C$55,3,FALSE)+(VLOOKUP($BR100,CONFIG!$A$33:$C$43,3,FALSE)*AC100)),0),(ROUND('School Staffing Tool'!AC100*VLOOKUP(R100,'AVERAGE SALARY LOOKUP'!$A$3:$F$700,6,FALSE),0)))) -> 1468 | AC100: 0.2 | AD100: 14724 | AH100: =(IF(AJ100="",0,ROUND(VLOOKUP(R100,'AVERAGE SALARY LOOKUP'!$A$3:$E$10004,4,FALSE)*AJ100,0))) -> 0 | AI100: =IF($H100="",0,IF(CONFIG!$B$22="Autonomous",ROUND((AH100*VLOOKUP($H100,CONFIG!$A$46:$C$55,3,FALSE)+(VLOOKUP($BR100,CONFIG!$A$33:$C$43,3,FALSE)*AJ100)),0),IF(H100="10",(ROUND(AJ100*VLOOKUP($R100,'AVERAGE SALARY LOOKUP'!$A$3:$I$700,6,FALSE),0)),(ROUND(AJ100*VLOOKUP($R100,'AVERAGE SALARY LOOKUP'!$A$3:$I$700,9,FALSE),0))))) -> 0 | AK100: 0 | AO100: =(IF(AQ100="",0,IF(CONFIG!$B$22<>"Autonomous",ROUND(VLOOKUP(R100,'AVERAGE SALARY LOOKUP'!$A$3:$E$10004,4,FALSE)*AQ100,0),IF(E100="",0,IF(E100="vacancy",ROUND(VLOOKUP(R100,'AVERAGE SALARY LOOKUP'!$A$3:$E$10004,4,FALSE)*AQ100,0),ROUND(VLOOKUP(E100,'FULL TIME ACTUAL RATES'!$B$2:$G$4927,6,FALSE)*AQ100,0)))))) -> 0 | AP100: =IF($H100="",0,IF(CONFIG!$B$22="Autonomous",ROUND((AO100*VLOOKUP($H100,CONFIG!$A$46:$C$55,3,FALSE)+(VLOOKUP($BR100,CONFIG!$A$33:$C$43,3,FALSE)*AQ100)),0),(ROUND('School Staffing Tool'!AQ100*VLOOKUP($R100,'AVERAGE SALARY LOOKUP'!$A$3:$F$700,6,FALSE),0)))) -> 0 | AR100: 0 | AV100: =(IF(AX100="",0,ROUND(VLOOKUP(R100,'AVERAGE SALARY LOOKUP'!$A$3:$E$10004,4,FALSE)*AX100,0))) -> 0 | AW100: =IF($H100="",0,IF(CONFIG!$B$22="Autonomous",ROUND((AV100*VLOOKUP($H100,CONFIG!$A$46:$C$55,3,FALSE)+(VLOOKUP($BR100,CONFIG!$A$33:$C$43,3,FALSE)*AX100)),0),(ROUND('School Staffing Tool'!AX100*VLOOKUP($R100,'AVERAGE SALARY LOOKUP'!$A$3:$H$700,8,FALSE),0)))) -> 0 | AY100: 0 | BC100: 0 | BD100: =IF(BB100="",0,ROUND((BC100*VLOOKUP($H100,CONFIG!$A$46:$C$55,3,FALSE)+(VLOOKUP($BR100,CONFIG!$A$33:$C$43,3,FALSE)*BE100)),0)) -> 0 | BF100: 0 | BJ100: =(IF(BL100="",0,ROUND(VLOOKUP($R$34,'AVERAGE SALARY LOOKUP'!$A$3:$E$10004,4,FALSE)*BL100,0))) -> 0 | BK100: =IF($H100="",0,IF(CONFIG!$B$22="Autonomous",ROUND((BJ100*VLOOKUP($H100,CONFIG!$A$46:$C$55,3,FALSE)+(VLOOKUP($BR100,CONFIG!$A$33:$C$43,3,FALSE)*BL100)),0),(ROUND('School Staffing Tool'!BL100*VLOOKUP($R100,'AVERAGE SALARY LOOKUP'!$A$3:$F$700,6,FALSE),0)))) -> 0 | BM100: 0 | BQ100: 0.2 | BR100: =IF(R100="","",VLOOKUP(R100,'AVERAGE SALARY LOOKUP'!$A$3:$C$686,3,FALSE)) -> DCTA | BS100: 0.2 | BU100: 10,0000,2 | BV100: 0.2 | BW100: 13256 | BX100: 1468
A101: 0289 FY 10-11 P023 | B101: =CONCATENATE(CONFIG!$C$9," ",CONFIG!$B$6," ",P101,Q101) -> 0289 FY 10-11 P023B | F101: SW | G101: =IF(F101="","",IF(OR(D101="",D101="HS"),VLOOKUP(F101,'JOB CODE LOOKUP'!$S$5:$V$183,3,FALSE),VLOOKUP(F101,'JOB CODE LOOKUP'!$S$5:$V$183,4,FALSE))) ->  | P101: P023 | Q101: B | R101: =IF(F101="","",(IF(CONFIG!$B$12="ES",VLOOKUP(F101,'JOB CODE LOOKUP'!$A$2:$E$222,2,FALSE),IF(CONFIG!$B$12="K-8",VLOOKUP(F101,'JOB CODE LOOKUP'!$G$2:$K$222,2,FALSE),IF(CONFIG!$B$12="MS",VLOOKUP(F101,'JOB CODE LOOKUP'!$M$2:$Q$222,2,FALSE),IF(CONFIG!$B$12="HS",VLOOKUP(F101,'JOB CODE LOOKUP'!$S$2:$W$222,2,FALSE),IF(AND(CONFIG!$B$12="6-12",D101="HS"),VLOOKUP(F101,'JOB CODE LOOKUP'!$S$2:$W$222,2,FALSE),IF(AND(CONFIG!$B$12="6-12",D101="MS"),VLOOKUP(F101,'JOB CODE LOOKUP'!$M$2:$Q$222,2,FALSE),"")))))))) ->  | S101: =IF(CONFIG!$B$2<>"Y","",(IF(OR(G101="",LEFT(H101,1)="2",H101="19",L101="1911"),"",dbs(BV101,CONFIG!$B$4&":Employee - School Staffing",CONFIG!$B$5,CONFIG!$B$6,CONFIG!$C$9,H101,I101,J101,K101,L101,M101,N101,P101,Q101,R101,"FTE")))) ->  | T101: =IF(CONFIG!$B$2<>"Y","",(IF(OR(G101="",LEFT(H101,1)="2",H101="19",L101="1911"),"",dbs(BW101,CONFIG!$B$4&":Employee - School Staffing",CONFIG!$B$5,CONFIG!$B$6,CONFIG!$C$9,H101,I101,J101,K101,L101,M101,N101,P101,Q101,R101,"AMOUNT")))) ->  | U101: =IF(CONFIG!$B$2<>"Y","",(IF(OR(G101="",LEFT(H101,1)="2",H101="19",L101="1911"),"",dbs(BX101,CONFIG!$B$4&":Employee - School Staffing",CONFIG!$B$5,CONFIG!$B$6,CONFIG!$C$9,H101,I101,J101,K101,L101,M101,O101,P101,Q101,R101,"AMOUNT")))) ->  | Y101: 23 | AA101: =(IF(AC101="",0,IF(CONFIG!$B$22<>"Autonomous",ROUND(VLOOKUP(R101,'AVERAGE SALARY LOOKUP'!$A$3:$E$10004,4,FALSE)*AC101,0),IF(E101="",0,IF(E101="vacancy",ROUND(VLOOKUP(R101,'AVERAGE SALARY LOOKUP'!$A$3:$E$10004,4,FALSE)*AC101,0),ROUND(VLOOKUP(E101,'FULL TIME ACTUAL RATES'!$B$2:$G$4927,6,FALSE)*AC101,0)))))) -> 0 | AB101: =IF($H101="",0,IF(CONFIG!$B$22="Autonomous",ROUND((AA101*VLOOKUP($H101,CONFIG!$A$46:$C$55,3,FALSE)+(VLOOKUP($BR101,CONFIG!$A$33:$C$43,3,FALSE)*AC101)),0),(ROUND('School Staffing Tool'!AC101*VLOOKUP(R101,'AVERAGE SALARY LOOKUP'!$A$3:$F$700,6,FALSE),0)))) ->  | AH101: =(IF(AJ101="",0,ROUND(VLOOKUP(R101,'AVERAGE SALARY LOOKUP'!$A$3:$E$10004,4,FALSE)*AJ101,0))) -> 0 | AI101: =IF($H101="",0,IF(CONFIG!$B$22="Autonomous",ROUND((AH101*VLOOKUP($H101,CONFIG!$A$46:$C$55,3,FALSE)+(VLOOKUP($BR101,CONFIG!$A$33:$C$43,3,FALSE)*AJ101)),0),IF(H101="10",(ROUND(AJ101*VLOOKUP($R101,'AVERAGE SALARY LOOKUP'!$A$3:$I$700,6,FALSE),0)),(ROUND(AJ101*VLOOKUP($R101,'AVERAGE SALARY LOOKUP'!$A$3:$I$700,9,FALSE),0))))) ->  | AO101: =(IF(AQ101="",0,IF(CONFIG!$B$22<>"Autonomous",ROUND(VLOOKUP(R101,'AVERAGE SALARY LOOKUP'!$A$3:$E$10004,4,FALSE)*AQ101,0),IF(E101="",0,IF(E101="vacancy",ROUND(VLOOKUP(R101,'AVERAGE SALARY LOOKUP'!$A$3:$E$10004,4,FALSE)*AQ101,0),ROUND(VLOOKUP(E101,'FULL TIME ACTUAL RATES'!$B$2:$G$4927,6,FALSE)*AQ101,0)))))) -> 0 | AP101: =IF($H101="",0,IF(CONFIG!$B$22="Autonomous",ROUND((AO101*VLOOKUP($H101,CONFIG!$A$46:$C$55,3,FALSE)+(VLOOKUP($BR101,CONFIG!$A$33:$C$43,3,FALSE)*AQ101)),0),(ROUND('School Staffing Tool'!AQ101*VLOOKUP($R101,'AVERAGE SALARY LOOKUP'!$A$3:$F$700,6,FALSE),0)))) ->  | AV101: =(IF(AX101="",0,ROUND(VLOOKUP(R101,'AVERAGE SALARY LOOKUP'!$A$3:$E$10004,4,FALSE)*AX101,0))) -> 0 | AW101: =IF($H101="",0,IF(CONFIG!$B$22="Autonomous",ROUND((AV101*VLOOKUP($H101,CONFIG!$A$46:$C$55,3,FALSE)+(VLOOKUP($BR101,CONFIG!$A$33:$C$43,3,FALSE)*AX101)),0),(ROUND('School Staffing Tool'!AX101*VLOOKUP($R101,'AVERAGE SALARY LOOKUP'!$A$3:$H$700,8,FALSE),0)))) ->  | BC101: 0 | BD101: =IF(BB101="",0,ROUND((BC101*VLOOKUP($H101,CONFIG!$A$46:$C$55,3,FALSE)+(VLOOKUP($BR101,CONFIG!$A$33:$C$43,3,FALSE)*BE101)),0)) -> 0 | BF101: 0 | BJ101: =(IF(BL101="",0,ROUND(VLOOKUP($R$34,'AVERAGE SALARY LOOKUP'!$A$3:$E$10004,4,FALSE)*BL101,0))) -> 0 | BK101: =IF($H101="",0,IF(CONFIG!$B$22="Autonomous",ROUND((BJ101*VLOOKUP($H101,CONFIG!$A$46:$C$55,3,FALSE)+(VLOOKUP($BR101,CONFIG!$A$33:$C$43,3,FALSE)*BL101)),0),(ROUND('School Staffing Tool'!BL101*VLOOKUP($R101,'AVERAGE SALARY LOOKUP'!$A$3:$F$700,6,FALSE),0)))) ->  | BO101: SW | BP101: 0.2 | BQ101: 0.2 | BR101: =IF(R101="","",VLOOKUP(R101,'AVERAGE SALARY LOOKUP'!$A$3:$C$686,3,FALSE)) ->  | BS101: 0.2 | BV101: 0.2 | BW101: 0
